Workbook

Sheet Disclaimer
F2: Full input cost effectiveness assessment tool to support Heat Network notification under Regulation 3 of The Heat Network (Metering and Billing) Regulations 2014 as amended (2026)
C8: Further guidance, including what is within scope of the Regulations is available at:
C9: www.gov.uk/heat-networks
C10: Please read our privacy notice of how your data will be used
C12: If you have any issues completing this, please email: HN.Meters@energysecurity.gov.uk

Sheet Version Control (hidden)
B2: VERSION CONTROL
B4: Version no. | C4: Date created | D4: Key changes since previous | E4: Issued to
B5: 3.2 | C5: 2019-06-10 | D5: Tool now developed ready for internal review | E5: Christine Schams
B6: 3.8 | D6: Updates to reflect interaction with CIBSE: 1) user selection of fabric types including detailed sub-categories; 2) Degree days by archetype; 3) adjustment for ground contact floor construction types | E6: George Robinson
B7: Beta v1.1 | C7: 2020-07-15 | D7: Updated to include user input for fuel (section 2A on user input form, INPT; FUEL and associated macros) | E7: George Robinson
B8: Beta v1.2 | C8: 2020-09-11 | D8: Updated per observations raised in "HMBR Data collection requirements v1.0.docx" | E8: George Robinson
B9: Beta v1.3 | C9: 2020-11-12 | D9: Updated for snagging list raised by Matt Sutton and Tom Allad. Minor adjustments. | E9: George Robinson
B10: Final input CET v1.0 | C10: 2020-11-26 | D10: Final vesion completed | E10: George Robinson
B11: Final input CET v2.0 | C11: 2021-03-31 | D11: Glitch highlighted in the fuel entry - when form cleared it would delete formula for total fuel costs. Now corrected | E11: George Robinson
B12: Final input CET v2.1 | C12: 2021-07-07 | D12: Glitch highlighted on selecting a fuel that the issue raised above reappeared. Now corrected for a select event - formula retained. | E12: George Robinson
B13: Final input CET v2.2 | C13: 2026-01-27 | D13: Update for Administrator and Enforcement Authority contact details and branding. | E13: Eugene Sasin

Sheet INPT; User Input Form (hidden)
C1: FULL INPUT COST EFFECTIVENESS ASSESSMENT TOOL
C2: USER INPUT FORM
C3: Tool integrity checks: | D3: If errors are present please refer to "OUTP; Integrity" | F3: ='OUTP; Integrity'!D17 -> 5
C5: SECTION 1: NETWORK SET UP | R5: NOTES
B7: 1 | C7: Network name: | E7: text | T7: TRUE
B8: 2 | C8: Network geographical location: | E8: dropdown option | T8: TRUE
B9: 3 | C9: Network unique identification number: | E9: text
C11: To add a new building: 1. Add building name and other relevant information in the yellow boxes. 2. Press 'ADD NEW BUILDING' - summary information will appear in the box to the right. This may take time. 3. Repeat for each building. | R11: 1. Input building data as instructed. This will update the file and enable plant data to be added below. 2. To amend details, select the building that needs amending using the adjacent text box, amend the data in the yellow boxes and click 'Amend Building Details'.
C16: BUILDING INPUTS:
T17: Mandatory? | U17: Flatfile match | V17: List Match
B19: A1 | C19: Building Name | D19: This is just for your reference - e.g. Town Hall, Central Library, Block A… | E19: text | T19: TRUE | U19: =MATCH(C19,sysBuildingStartRow,0) -> 2
B20: A2 | C20: Are fuel costs for building known? | D20: TRUE: user inputs fuel for the building (2A); FALSE: user inputs plant details (2B) | E20: T/F | T20: TRUE | U20: 3
B21: A3 | C21: Enter external wall U-Value? | D21: If you have calculated the specific U-Value for the building select TRUE | E21: T/F | T21: TRUE | U21: 4
B22: A4 | C22: External wall construction type - summary | D22: Selection from CIBSE standard wall construction types | E22: dropdown option | T22: TRUE | U22: 5 | V22: =MATCH(F22,lstWallTypes,0) -> 
B23: A5 | C23: External wall construction type - detailed | D23: Selection from CIBSE standard wall construction types (sub-selection) | E23: dropdown option | T23: TRUE | U23: 6 | V23: =MATCH(F23,OFFSET(lstWallTypeDetailed,,dcWallTypeEntry-1,,1),0) -> 
B24: A6 | C24: Average external wall fabric efficiency | D24: Enter the wall's U-Value if you selected TRUE for A3 | E24: W/m2k | T24: =IF(F21,TRUE,FALSE) -> FALSE | U24: 7
B25: A7 | C25: Enter external floor U-Value? | D25: If you have calculated the specific U-Value for the external floor select TRUE | E25: T/F | T25: TRUE | U25: 8
B26: A8 | C26: External floor construction type - summary | D26: Selection from CIBSE standard floor construction types | E26: dropdown option | T26: TRUE | U26: 9 | V26: =MATCH(F26,lstFloorTypes,0) -> 
B27: A9 | C27: External floor construction type - Detailed | D27: Selection from CIBSE standard floor construction types (sub-selection) | E27: dropdown option | T27: TRUE | U27: 10 | V27: =MATCH(F27,OFFSET(lstFloorTypeDetailed,,dcFloorTypeEntry-1,,1),0) -> 
B28: A10 | C28: Average floor fabric efficiency | D28: Enter the floor's U-Value if you selected TRUE for A7 | E28: W/m2k | T28: =IF(F25,TRUE,FALSE) -> FALSE | U28: 11
B29: A11 | C29: Enter external roof U-Value? | D29: If you have calculated the specific U-Value for the external roof select TRUE | E29: T/F | T29: TRUE | U29: 12
B30: A12 | C30: Roof construction type - summary | D30: Selection from CIBSE standard roof construction types | E30: dropdown option | T30: TRUE | U30: 13 | V30: =MATCH(F30,lstRoofTypes,0) -> 
B31: A13 | C31: Roof construction type - detailed | D31: Selection from CIBSE standard roof construction types (sub-selection) | E31: dropdown option | T31: TRUE | U31: 14 | V31: =MATCH(F31,OFFSET(lstRoofTypeDetailed,,dcRoofTypeEntry-1,,1),0) -> 
B32: A14 | C32: Average roof fabric efficiency | D32: Enter the roof's U-Value if you selected True for A11 | E32: W/m2k | T32: =IF(F29,TRUE,FALSE) -> FALSE | U32: 15
C34: SECTION 2A: FUEL CONSUMPTION
C36: Select the building from the drop down list for which you want to add fuel cost information | G36: =IF(dcBuildLBSelect <> 0,INDEX(sysBuild,dcBuildIDSelect,0),"") -> 
C39: ADD FUEL DATA
C41: To add information on the fuel cost FOR A SINGLE YEAR of the building selected to supply/generate heat/cooling: 1. Enter details in the yellow boxes in the form below 2. Press 'ADD NEW FUEL ITEM' 3. Repeat for each additional fuel type (n.b. if you have multiple invoices for the same fuel type | R41: 3. The purpose of this section is to allow the user to build up the total fuel consumption and cost for a given building across a given year. It is important to note that a whole year's worth of fuel consumption to supply the building with heat and/or cooling must be entered. If there are multiple invoices and each invoice is to be entered separately then the total months of a given fuel must add to 12 to ensure that one whole year's worth of fuel consumption has been provided. For buildings where multiple fuel types are used (e.g. biomass + gas), 12 months of consumption data must be provided for each fuel type.
C46: FUEL CONSUMPTION FOR THE BUILDING OVER THE YEAR
T47: Mandatory? | U47: Flatfile match
B49: BA1 | C49: ='INPT; Fuel'!D$4 -> Fuel description | D49: You can enter free text to describe the fuel being entered (e.g. Gas-INVOICE1) | E49: text | T49: TRUE | U49: =MATCH(C49,sysFuelStartRow,0) -> 3
B50: BA2 | C50: ='INPT; Fuel'!E$4 -> Fuel type | D50: Drop down selection to align with BEIS fuel types | E50: dropdown | T50: TRUE | U50: 4
B51: BA3 | C51: ='INPT; Fuel'!F$4 -> Consumption | D51: The fuel as per invoice or allocated based on building level heat meter readings. | E51: kWh | T51: TRUE | U51: 5
B52: BA4 | C52: ='INPT; Fuel'!G$4 -> Number of months consumption relates to | D52: If fuel entry is < 12 months add new until a full 12 months for that fuel is provided | E52: months | T52: TRUE | U52: 6
B53: BA5 | C53: ='INPT; Fuel'!H$4 -> Marginal cost of fuel | D53: The cost of each additional kWh consumption of the fuel | E53: p/kWh | T53: FALSE | U53: 7
B54: BA6 | C54: ='INPT; Fuel'!I$4 -> Relevant consumption levies | D54: For example CCL for gas and electricity | E54: p/kWh | T54: FALSE | U54: 8
B55: BA7 | C55: ='INPT; Fuel'!J$4 -> Other consumption charges | D55: For example distribution use of system charges | E55: p/kWh | T55: FALSE | U55: 9
B56: BA8 | C56: ='INPT; Fuel'!K$4 -> Fixed charge over consumption period | D56: This should be the fixed charge for the building over the consumption period | E56: £ | T56: FALSE | U56: 10
B57: BA9 | C57: ='INPT; Fuel'!M$4 -> Total fuel cost over consumption period | D57: This should be the total fuel cost over the consumption period (fixed+variable) | E57: £ | F57: =(SUM($F$53:$F$55)*$F$51/100) + $F$56 -> 0 | T57: TRUE | U57: 12 | W57: Fuel formula: | X57: =(SUM($F$53:$F$55)*$F$51/100) + $F$56 -> 0
B58: BA10 | C58: ='INPT; Fuel'!L$4 -> Output energy from fuel | D58: Specifies what the fuel is used for: heat, cooling or heat + cooling | E58: dropdown | T58: TRUE | U58: 11
C60: SECTION 2B: HEAT GENERATING PLANT WITHIN OR WITHOUT BUILDING
C62: Select the building from the drop down list for which you want to add information on plant / equipment. N.b. if your scheme imports heat from a third party this can be included: select "HEAT" as plant | G62: =IF(dcBuildLBSelect <> 0,INDEX(sysBuild,dcBuildIDSelect,0),"") -> 
C65: ADD PLANT & EQUIPMENT DATA
C67: To add information on the pieces of generating plant in the plant room selected: 1. Enter details in the yellow boxes in the form below - n.b. if you intend on entering an energy dispatch hierarchy then enter plant in ascending order of dispatch 2. Press 'ADD NEW PLANT ITEM' 3. Repeat for each additional item | R67: 4. To change plant data that has already been entered, select the item you want to amend by highlighting it in the list box, enter the revised details in yellow boxes in col F and click on the 'Amend Existing Plant Item' button. 5. If you want to delete an item of plant, select it in the listbox and press 'Delete Existing'. 6. If you have entered information in yellow boxes and want to use this to create a new item but have already selected an item in the list box, press the 'Deselect Plant From Listbox' button and then press 'Add New Plant Item'.
C72: PLANT WITHIN/WITHOUT BUILDING INPUTS:
T73: Mandatory? | U73: Flatfile match
B75: BB1 | C75: Plant Name | E75: text | T75: TRUE | U75: =MATCH(C75,sysPlantStartRow,0) -> 3
B76: BB2 | C76: Number of units of this plant type | E76: # | T76: TRUE | U76: 4
B77: BB3 | C77: Is plant located in the building? | E77: T/F | T77: TRUE | U77: 5
B78: BB4 | C78: Average distribution losses to end customers | D78: Where plant is located outside of the building or in building boiler room | E78: % | T78: =IF(T77,FALSE,TRUE) -> FALSE | U78: 6
B79: BB5 | C79: Plant fuel | D79: n.b. if you are importing heat please enter the underlying fuel - e.g. RDF | E79: dropdown | T79: TRUE | U79: 7
B80: BB6 | C80: Cost of fuel | D80: Many fuels such as biofuels will have specific local costs - please specify | E80: p/kWh | T80: =IFERROR(IF(INDEX('INPT; BEIS'!$D$72:$D$79,MATCH(F79,lstFuel,0),1)=TRUE,FALSE,TRUE),FALSE) -> FALSE | U80: 8
B81: BB7 | C81: Plant thermal capacity allocated to building | D81: Central plant supplies a number of buildings: allocate as appropriate | E81: kWth | T81: TRUE | U81: 9
B82: BB8 | C82: Plant cooling capacity allocated to building | D82: Central plant supplies a number of buildings: allocate as appropriate | E82: kWcoolth | T82: TRUE | U82: 10
B83: BB9 | C83: Plant thermal efficiency | D83: useable heat out / fuel energy in | E83: % | T83: TRUE | U83: 11
B84: BB10 | C84: Plant cooling efficiency | D84: useable cooling out / fuel energy in | E84: % | T84: TRUE | U84: 12
B85: BB11 | C85: Plant overall energy conversion efficiency | D85: total usable energy out / fuel energy in (i.e. further useful energy e.g. elec.) | E85: % | T85: TRUE | U85: 13
B86: BB12 | C86: Plant availability | D86: Reflects % of total hours in year when plant is available | E86: % | T86: TRUE | U86: 14
B87: BB13 | C87: Heat dispatch hierarchy (if known) | D87: relative to other plant how does this rank for heat dispatch (leave blank if no heating) | E87: Rank | T87: FALSE | U87: 15
B88: BB14 | C88: Cooling dispatch hierarchy (if known) | D88: relative to other plant how does this rank for cooling dispatch (leave blank if no cooling) | E88: Rank | T88: FALSE | U88: 16
C90: SECTION 3: UNIT TYPES WITHIN BUILDING
C92: Select the building from the drop down list for which you want to add information on unit types. | G92: =IF(dcBuildLBSelect <> 0,INDEX(sysBuild,dcBuildIDSelect,0),"") -> 
C95: ADD DATA REGARDING UNIT TYPES WITHIN EACH BUILDING
C97: To add information on unit types in the building selected (IMPORTANT: READ NOTES IN COL Q): 1. Enter details in the yellow boxes in the form below 2. Press 'ADD NEW UNIT TYPE' 3. Repeat for each additional item | R97: 7. Unit types refer to the dwellings or spaces within a building that define its use. This could be flats, retail units, or however it is that you categorise the components of your building - e.g. Flat Archetype 1, Flat Archetype 2 etc.
C102: BUILDING UNIT INPUTS:
T103: Mandatory? | U103: Flatfile match | V103: List Match
B105: C1 | C105: Unit type name | D105: e.g. Residential Flat Type 1 | E105: text | T105: TRUE | U105: =MATCH(C105,sysUnitStartRow,0) -> 3
B106: C2 | C106: Unit archetype | D106: This relates to the use type - e.g. school, leisure centre etc. | E106: dropdown | T106: TRUE | U106: 4
B107: C3 | C107: Total number of units of this type in building | D107: The total number of units of this type within the building | E107: # | T107: TRUE | U107: 6
B108: C4 | C108: Number of storeys in unit | D108: e.g. where the building and unit are the same such as a hospital | E108: # | T108: TRUE | U108: 7
B109: C5 | C109: Number of units with external roof | D109: Of this unit type how many have rooves exposed to outdoor conditions | E109: # | T109: TRUE | U109: 8
B110: C6 | C110: Number of units with floor in ground contact | D110: Of the unit type how many have floors exposed to outdoor conditions | E110: # | T110: TRUE | U110: 9
B111: C7 | C111: Average floor space per storey per unit | D111: This is per unit per storey not total across units | E111: m2 | T111: TRUE | U111: 10
B112: C8 | C112: Average ceiling height of unit | D112: This is the conditioned ceiling height | E112: m | T112: TRUE | U112: 11
B113: C9 | C113: Average external perimeter of unit | D113: The average m length of external wall per unit | E113: m | T113: TRUE | U113: 12
B114: C10 | C114: Enter glazing as % of external perimeter? | D114: If you know or can accurately estimate the % of external wall with glazing | E114: t/f | T114: TRUE | U114: 13
B115: C11 | C115: % of external perimeter with windows / glazing | D115: If known the percentage of the external wall with windows / glazing incl. frame | E115: % | T115: =F114 -> 0 | U115: 14
B116: C12 | C116: Glazing type - general | D116: Single, double, triple glazed etc. (ε refers to emissivity of glaze) | E116: dropdown | T116: TRUE | U116: 15 | V116: =MATCH(F116,lstGlazing,0) -> 
B117: C13 | C117: Glazing type - spacing | D117: Spacing between each glaze (if known) expressed in mm | E117: mm | T117: TRUE | U117: 16 | V117: =MATCH(F117,OFFSET(lstGlazingDetailed,,dcGlazingTypeEntry-1,,1),0) -> 
B118: C14 | C118: Enter window/glazing U-Value? | D118: Enter a calculated U-Value or else rely on the benchmark | E118: t/f | T118: TRUE | U118: 17
B119: C15 | C119: Window/glazing U-Value | D119: If known enter the w/m2 U-value of the windows / glazing installed | E119: W/m2 | T119: =F118 -> 0 | U119: 18
B120: C16 | C120: Enter air change / hour | D120: Enter your estimated air change / hour or else rely on the benchmark | E120: t/f | T120: TRUE | U120: 19
B121: C17 | C121: Average air change per hour (if known) | D121: The combined average air change due to ventilation and air tightness | E121: Change / hour | T121: =F120 -> 0 | U121: 20
B122: C18 | C122: Is there heating? | D122: If a building only has cooling then set this to FALSE. | E122: t/f | T122: TRUE | U122: 21
B123: C19 | C123: Is there cooling? | D123: If a building only has heating then set this to FALSE. | E123: t/f | T123: TRUE | U123: 22
B124: C20 | C124: Number of heat meters required (if known) | D124: This is the total number of meters required across all units of this type | E124: # | T124: FALSE | U124: 23
B125: C21 | C125: Can users change controls? | D125: True or false | E125: t/f | T125: TRUE | U125: 24
B126: C22 | C126: Av. Number of radiators per unit | E126: # | T126: TRUE | U126: 25
C128: END OF WORKSHEET

Sheet OUTP; Integrity (hidden)
A1: =RIGHT(CELL("filename", A1), LEN(CELL("filename", A1)) - SEARCH("]", CELL("filename", A1))) -> OUTP; Integrity
N2: Building | P2: =MAX($M2:M2)+1 -> 1 | Q2: =MAX($M2:P2)+1 -> 2 | R2: =MAX($M2:Q2)+1 -> 3 | S2: =MAX($M2:R2)+1 -> 4 | T2: =MAX($M2:S2)+1 -> 5 | U2: =MAX($M2:T2)+1 -> 6 | V2: =MAX($M2:U2)+1 -> 7 | W2: =MAX($M2:V2)+1 -> 8 | X2: =MAX($M2:W2)+1 -> 9 | Y2: =MAX($M2:X2)+1 -> 10 | Z2: =MAX($M2:Y2)+1 -> 11 | AA2: =MAX($M2:Z2)+1 -> 12 | AB2: =MAX($M2:AA2)+1 -> 13 | AC2: =MAX($M2:AB2)+1 -> 14 | AD2: =MAX($M2:AC2)+1 -> 15 | AE2: =MAX($M2:AD2)+1 -> 16 | AF2: =MAX($M2:AE2)+1 -> 17 | AG2: =MAX($M2:AF2)+1 -> 18 | AH2: =MAX($M2:AG2)+1 -> 19 | AI2: =MAX($M2:AH2)+1 -> 20 | AJ2: =MAX($M2:AI2)+1 -> 21 | AK2: =MAX($M2:AJ2)+1 -> 22 | AL2: =MAX($M2:AK2)+1 -> 23 | AM2: =MAX($M2:AL2)+1 -> 24 | AN2: =MAX($M2:AM2)+1 -> 25 | AO2: =MAX($M2:AN2)+1 -> 26 | AP2: =MAX($M2:AO2)+1 -> 27 | AQ2: =MAX($M2:AP2)+1 -> 28 | AR2: =MAX($M2:AQ2)+1 -> 29 | AS2: =MAX($M2:AR2)+1 -> 30 | AT2: =MAX($M2:AS2)+1 -> 31 | AU2: =MAX($M2:AT2)+1 -> 32 | AV2: =MAX($M2:AU2)+1 -> 33 | AW2: =MAX($M2:AV2)+1 -> 34 | AX2: =MAX($M2:AW2)+1 -> 35 | AY2: =MAX($M2:AX2)+1 -> 36 | AZ2: =MAX($M2:AY2)+1 -> 37 | BA2: =MAX($M2:AZ2)+1 -> 38 | BB2: =MAX($M2:BA2)+1 -> 39 | BC2: =MAX($M2:BB2)+1 -> 40 | BD2: =MAX($M2:BC2)+1 -> 41 | BE2: =MAX($M2:BD2)+1 -> 42 | BF2: =MAX($M2:BE2)+1 -> 43 | BG2: =MAX($M2:BF2)+1 -> 44 | BH2: =MAX($M2:BG2)+1 -> 45 | BI2: =MAX($M2:BH2)+1 -> 46 | BJ2: =MAX($M2:BI2)+1 -> 47 | BK2: =MAX($M2:BJ2)+1 -> 48 | BL2: =MAX($M2:BK2)+1 -> 49 | BM2: =MAX($M2:BL2)+1 -> 50 | BN2: =MAX($M2:BM2)+1 -> 51 | BO2: =MAX($M2:BN2)+1 -> 52 | BP2: =MAX($M2:BO2)+1 -> 53 | BQ2: =MAX($M2:BP2)+1 -> 54 | BR2: =MAX($M2:BQ2)+1 -> 55 | BS2: =MAX($M2:BR2)+1 -> 56 | BT2: =MAX($M2:BS2)+1 -> 57 | BU2: =MAX($M2:BT2)+1 -> 58 | BV2: =MAX($M2:BU2)+1 -> 59 | BW2: =MAX($M2:BV2)+1 -> 60 | BX2: =MAX($M2:BW2)+1 -> 61 | BY2: =MAX($M2:BX2)+1 -> 62 | BZ2: =MAX($M2:BY2)+1 -> 63 | CA2: =MAX($M2:BZ2)+1 -> 64 | CB2: =MAX($M2:CA2)+1 -> 65 | CC2: =MAX($M2:CB2)+1 -> 66 | CD2: =MAX($M2:CC2)+1 -> 67 | CE2: =MAX($M2:CD2)+1 -> 68 | CF2: =MAX($M2:CE2)+1 -> 69 | CG2: =MAX($M2:CF2)+1 -> 70 | CH2: =MAX($M2:CG2)+1 -> 71 | CI2: =MAX($M2:CH2)+1 -> 72 | CJ2: =MAX($M2:CI2)+1 -> 73 | CK2: =MAX($M2:CJ2)+1 -> 74 | CL2: =MAX($M2:CK2)+1 -> 75 | CM2: =MAX($M2:CL2)+1 -> 76 | CN2: =MAX($M2:CM2)+1 -> 77 | CO2: =MAX($M2:CN2)+1 -> 78 | CP2: =MAX($M2:CO2)+1 -> 79 | CQ2: =MAX($M2:CP2)+1 -> 80 | CR2: =MAX($M2:CQ2)+1 -> 81 | CS2: =MAX($M2:CR2)+1 -> 82 | CT2: =MAX($M2:CS2)+1 -> 83 | CU2: =MAX($M2:CT2)+1 -> 84 | CV2: =MAX($M2:CU2)+1 -> 85 | CW2: =MAX($M2:CV2)+1 -> 86 | CX2: =MAX($M2:CW2)+1 -> 87 | CY2: =MAX($M2:CX2)+1 -> 88 | CZ2: =MAX($M2:CY2)+1 -> 89 | DA2: =MAX($M2:CZ2)+1 -> 90 | DB2: =MAX($M2:DA2)+1 -> 91 | DC2: =MAX($M2:DB2)+1 -> 92 | DD2: =MAX($M2:DC2)+1 -> 93 | DE2: =MAX($M2:DD2)+1 -> 94 | DF2: =MAX($M2:DE2)+1 -> 95 | DG2: =MAX($M2:DF2)+1 -> 96 | DH2: =MAX($M2:DG2)+1 -> 97 | DI2: =MAX($M2:DH2)+1 -> 98 | DJ2: =MAX($M2:DI2)+1 -> 99 | DK2: =MAX($M2:DJ2)+1 -> 100 | DL2: =MAX($M2:DK2)+1 -> 101 | DM2: =MAX($M2:DL2)+1 -> 102 | DN2: =MAX($M2:DM2)+1 -> 103 | DO2: =MAX($M2:DN2)+1 -> 104 | DP2: =MAX($M2:DO2)+1 -> 105 | DQ2: =MAX($M2:DP2)+1 -> 106 | DR2: =MAX($M2:DQ2)+1 -> 107 | DS2: =MAX($M2:DR2)+1 -> 108 | DT2: =MAX($M2:DS2)+1 -> 109 | DU2: =MAX($M2:DT2)+1 -> 110 | DV2: =MAX($M2:DU2)+1 -> 111 | DW2: =MAX($M2:DV2)+1 -> 112 | DX2: =MAX($M2:DW2)+1 -> 113 | DY2: =MAX($M2:DX2)+1 -> 114 | DZ2: =MAX($M2:DY2)+1 -> 115 | EA2: =MAX($M2:DZ2)+1 -> 116 | EB2: =MAX($M2:EA2)+1 -> 117 | EC2: =MAX($M2:EB2)+1 -> 118 | ED2: =MAX($M2:EC2)+1 -> 119 | EE2: =MAX($M2:ED2)+1 -> 120 | EF2: =MAX($M2:EE2)+1 -> 121 | EG2: =MAX($M2:EF2)+1 -> 122 | EH2: =MAX($M2:EG2)+1 -> 123 | EI2: =MAX($M2:EH2)+1 -> 124 | EJ2: =MAX($M2:EI2)+1 -> 125 | EK2: =MAX($M2:EJ2)+1 -> 126 | EL2: =MAX($M2:EK2)+1 -> 127 | EM2: =MAX($M2:EL2)+1 -> 128 | EN2: =MAX($M2:EM2)+1 -> 129 | EO2: =MAX($M2:EN2)+1 -> 130 | EP2: =MAX($M2:EO2)+1 -> 131 | EQ2: =MAX($M2:EP2)+1 -> 132 | ER2: =MAX($M2:EQ2)+1 -> 133 | ES2: =MAX($M2:ER2)+1 -> 134 | ET2: =MAX($M2:ES2)+1 -> 135 | EU2: =MAX($M2:ET2)+1 -> 136 | EV2: =MAX($M2:EU2)+1 -> 137 | EW2: =MAX($M2:EV2)+1 -> 138 | EX2: =MAX($M2:EW2)+1 -> 139 | EY2: =MAX($M2:EX2)+1 -> 140 | EZ2: =MAX($M2:EY2)+1 -> 141 | FA2: =MAX($M2:EZ2)+1 -> 142 | FB2: =MAX($M2:FA2)+1 -> 143 | FC2: =MAX($M2:FB2)+1 -> 144 | FD2: =MAX($M2:FC2)+1 -> 145 | FE2: =MAX($M2:FD2)+1 -> 146 | FF2: =MAX($M2:FE2)+1 -> 147 | FG2: =MAX($M2:FF2)+1 -> 148 | FH2: =MAX($M2:FG2)+1 -> 149 | FI2: =MAX($M2:FH2)+1 -> 150 | FJ2: =MAX($M2:FI2)+1 -> 151 | FK2: =MAX($M2:FJ2)+1 -> 152 | FL2: =MAX($M2:FK2)+1 -> 153 | FM2: =MAX($M2:FL2)+1 -> 154 | FN2: =MAX($M2:FM2)+1 -> 155 | FO2: =MAX($M2:FN2)+1 -> 156 | FP2: =MAX($M2:FO2)+1 -> 157 | FQ2: =MAX($M2:FP2)+1 -> 158 | FR2: =MAX($M2:FQ2)+1 -> 159 | FS2: =MAX($M2:FR2)+1 -> 160 | FT2: =MAX($M2:FS2)+1 -> 161 | FU2: =MAX($M2:FT2)+1 -> 162 | FV2: =MAX($M2:FU2)+1 -> 163 | FW2: =MAX($M2:FV2)+1 -> 164 | FX2: =MAX($M2:FW2)+1 -> 165 | FY2: =MAX($M2:FX2)+1 -> 166 | FZ2: =MAX($M2:FY2)+1 -> 167 | GA2: =MAX($M2:FZ2)+1 -> 168 | GB2: =MAX($M2:GA2)+1 -> 169 | GC2: =MAX($M2:GB2)+1 -> 170 | GD2: =MAX($M2:GC2)+1 -> 171 | GE2: =MAX($M2:GD2)+1 -> 172 | GF2: =MAX($M2:GE2)+1 -> 173 | GG2: =MAX($M2:GF2)+1 -> 174 | GH2: =MAX($M2:GG2)+1 -> 175 | GI2: =MAX($M2:GH2)+1 -> 176 | GJ2: =MAX($M2:GI2)+1 -> 177 | GK2: =MAX($M2:GJ2)+1 -> 178 | GL2: =MAX($M2:GK2)+1 -> 179 | GM2: =MAX($M2:GL2)+1 -> 180 | GN2: =MAX($M2:GM2)+1 -> 181 | GO2: =MAX($M2:GN2)+1 -> 182 | GP2: =MAX($M2:GO2)+1 -> 183 | GQ2: =MAX($M2:GP2)+1 -> 184 | GR2: =MAX($M2:GQ2)+1 -> 185 | GS2: =MAX($M2:GR2)+1 -> 186 | GT2: =MAX($M2:GS2)+1 -> 187 | GU2: =MAX($M2:GT2)+1 -> 188 | GV2: =MAX($M2:GU2)+1 -> 189 | GW2: =MAX($M2:GV2)+1 -> 190 | GX2: =MAX($M2:GW2)+1 -> 191 | GY2: =MAX($M2:GX2)+1 -> 192 | GZ2: =MAX($M2:GY2)+1 -> 193 | HA2: =MAX($M2:GZ2)+1 -> 194 | HB2: =MAX($M2:HA2)+1 -> 195 | HC2: =MAX($M2:HB2)+1 -> 196 | HD2: =MAX($M2:HC2)+1 -> 197 | HE2: =MAX($M2:HD2)+1 -> 198 | HF2: =MAX($M2:HE2)+1 -> 199 | HG2: =MAX($M2:HF2)+1 -> 200
B3: Integrity Checks | G3: =IF(D14>0,INDEX(sysBuild,P17,1),"n/a") -> n/a | J3: =IF(D15>0,INDEX(sysBuild,P18,1),"n/a") -> n/a
B4: # | C4: Description | D4: Check | E4: Decision | G4: Heating Demand | H4: Max Heat Supply | J4: Cooling Demand | K4: Max Cooling Supply | N4: ='INPT; Buildings'!$D$4 -> Are fuel costs for building known? | P4: =IFERROR(INDEX(sysBuildEnterFuel,MATCH(P2,sysBuildID,0),1),0) -> 0 | Q4: 0 | R4: 0 | S4: 0 | T4: 0 | U4: 0 | V4: 0 | W4: 0 | X4: 0 | Y4: 0 | Z4: 0 | AA4: 0 | AB4: 0 | AC4: 0 | AD4: 0 | AE4: 0 | AF4: 0 | AG4: 0 | AH4: 0 | AI4: 0 | AJ4: 0 | AK4: 0 | AL4: 0 | AM4: 0 | AN4: 0 | AO4: 0 | AP4: 0 | AQ4: 0 | AR4: 0 | AS4: 0 | AT4: 0 | AU4: 0 | AV4: =IFERROR(INDEX(sysBuildEnterFuel,MATCH(AV2,sysBuildID,0),1),0) -> 0 | AW4: 0 | AX4: 0 | AY4: 0 | AZ4: 0 | BA4: 0 | BB4: 0 | BC4: 0 | BD4: 0 | BE4: 0 | BF4: 0 | BG4: 0 | BH4: 0 | BI4: 0 | BJ4: 0 | BK4: 0 | BL4: 0 | BM4: 0 | BN4: 0 | BO4: 0 | BP4: 0 | BQ4: 0 | BR4: 0 | BS4: 0 | BT4: 0 | BU4: 0 | BV4: 0 | BW4: 0 | BX4: 0 | BY4: 0 | BZ4: 0 | CA4: 0 | CB4: =IFERROR(INDEX(sysBuildEnterFuel,MATCH(CB2,sysBuildID,0),1),0) -> 0 | CC4: 0 | CD4: 0 | CE4: 0 | CF4: 0 | CG4: 0 | CH4: 0 | CI4: 0 | CJ4: 0 | CK4: 0 | CL4: 0 | CM4: 0 | CN4: 0 | CO4: 0 | CP4: 0 | CQ4: 0 | CR4: 0 | CS4: 0 | CT4: 0 | CU4: 0 | CV4: 0 | CW4: 0 | CX4: 0 | CY4: 0 | CZ4: 0 | DA4: 0 | DB4: 0 | DC4: 0 | DD4: 0 | DE4: 0 | DF4: 0 | DG4: 0 | DH4: =IFERROR(INDEX(sysBuildEnterFuel,MATCH(DH2,sysBuildID,0),1),0) -> 0 | DI4: 0 | DJ4: 0 | DK4: 0 | DL4: 0 | DM4: 0 | DN4: 0 | DO4: 0 | DP4: 0 | DQ4: 0 | DR4: 0 | DS4: 0 | DT4: 0 | DU4: 0 | DV4: 0 | DW4: 0 | DX4: 0 | DY4: 0 | DZ4: 0 | EA4: 0 | EB4: 0 | EC4: 0 | ED4: 0 | EE4: 0 | EF4: 0 | EG4: 0 | EH4: 0 | EI4: 0 | EJ4: 0 | EK4: 0 | EL4: 0 | EM4: 0 | EN4: =IFERROR(INDEX(sysBuildEnterFuel,MATCH(EN2,sysBuildID,0),1),0) -> 0 | EO4: 0 | EP4: 0 | EQ4: 0 | ER4: 0 | ES4: 0 | ET4: 0 | EU4: 0 | EV4: 0 | EW4: 0 | EX4: 0 | EY4: 0 | EZ4: 0 | FA4: 0 | FB4: 0 | FC4: 0 | FD4: 0 | FE4: 0 | FF4: 0 | FG4: 0 | FH4: 0 | FI4: 0 | FJ4: 0 | FK4: 0 | FL4: 0 | FM4: 0 | FN4: 0 | FO4: 0 | FP4: 0 | FQ4: 0 | FR4: 0 | FS4: 0 | FT4: =IFERROR(INDEX(sysBuildEnterFuel,MATCH(FT2,sysBuildID,0),1),0) -> 0 | FU4: 0 | FV4: 0 | FW4: 0 | FX4: 0 | FY4: 0 | FZ4: 0 | GA4: 0 | GB4: 0 | GC4: 0 | GD4: 0 | GE4: 0 | GF4: 0 | GG4: 0 | GH4: 0 | GI4: 0 | GJ4: 0 | GK4: 0 | GL4: 0 | GM4: 0 | GN4: 0 | GO4: 0 | GP4: 0 | GQ4: 0 | GR4: 0 | GS4: 0 | GT4: 0 | GU4: 0 | GV4: 0 | GW4: 0 | GX4: 0 | GY4: 0 | GZ4: =IFERROR(INDEX(sysBuildEnterFuel,MATCH(GZ2,sysBuildID,0),1),0) -> 0 | HA4: 0 | HB4: 0 | HC4: 0 | HD4: 0 | HE4: 0 | HF4: 0 | HG4: 0
G5: kWh | H5: kWh | J5: kWh | K5: kWh
B6: =MAX(B$5:B5)+1 -> 1 | C6: Has a network name been provided? | D6: =IF('INPT; User Input Form'!F7="",1,0) -> 1 | N6: Heat Demand | P6: =SUM('Unit>>>:<<<Unit'!L12) -> 0 | Q6: =SUM('Unit>>>:<<<Unit'!M12) -> 0 | R6: =SUM('Unit>>>:<<<Unit'!N12) -> 0 | S6: =SUM('Unit>>>:<<<Unit'!O12) -> 0 | T6: =SUM('Unit>>>:<<<Unit'!P12) -> 0 | U6: =SUM('Unit>>>:<<<Unit'!Q12) -> 0 | V6: =SUM('Unit>>>:<<<Unit'!R12) -> 0 | W6: =SUM('Unit>>>:<<<Unit'!S12) -> 0 | X6: =SUM('Unit>>>:<<<Unit'!T12) -> 0 | Y6: =SUM('Unit>>>:<<<Unit'!U12) -> 0 | Z6: =SUM('Unit>>>:<<<Unit'!V12) -> 0 | AA6: =SUM('Unit>>>:<<<Unit'!W12) -> 0 | AB6: =SUM('Unit>>>:<<<Unit'!X12) -> 0 | AC6: =SUM('Unit>>>:<<<Unit'!Y12) -> 0 | AD6: =SUM('Unit>>>:<<<Unit'!Z12) -> 0 | AE6: =SUM('Unit>>>:<<<Unit'!AA12) -> 0 | AF6: =SUM('Unit>>>:<<<Unit'!AB12) -> 0 | AG6: =SUM('Unit>>>:<<<Unit'!AC12) -> 0 | AH6: =SUM('Unit>>>:<<<Unit'!AD12) -> 0 | AI6: =SUM('Unit>>>:<<<Unit'!AE12) -> 0 | AJ6: =SUM('Unit>>>:<<<Unit'!AF12) -> 0 | AK6: =SUM('Unit>>>:<<<Unit'!AG12) -> 0 | AL6: =SUM('Unit>>>:<<<Unit'!AH12) -> 0 | AM6: =SUM('Unit>>>:<<<Unit'!AI12) -> 0 | AN6: =SUM('Unit>>>:<<<Unit'!AJ12) -> 0 | AO6: =SUM('Unit>>>:<<<Unit'!AK12) -> 0 | AP6: =SUM('Unit>>>:<<<Unit'!AL12) -> 0 | AQ6: =SUM('Unit>>>:<<<Unit'!AM12) -> 0 | AR6: =SUM('Unit>>>:<<<Unit'!AN12) -> 0 | AS6: =SUM('Unit>>>:<<<Unit'!AO12) -> 0 | AT6: =SUM('Unit>>>:<<<Unit'!AP12) -> 0 | AU6: =SUM('Unit>>>:<<<Unit'!AQ12) -> 0 | AV6: =SUM('Unit>>>:<<<Unit'!AR12) -> 0 | AW6: =SUM('Unit>>>:<<<Unit'!AS12) -> 0 | AX6: =SUM('Unit>>>:<<<Unit'!AT12) -> 0 | AY6: =SUM('Unit>>>:<<<Unit'!AU12) -> 0 | AZ6: =SUM('Unit>>>:<<<Unit'!AV12) -> 0 | BA6: =SUM('Unit>>>:<<<Unit'!AW12) -> 0 | BB6: =SUM('Unit>>>:<<<Unit'!AX12) -> 0 | BC6: =SUM('Unit>>>:<<<Unit'!AY12) -> 0 | BD6: =SUM('Unit>>>:<<<Unit'!AZ12) -> 0 | BE6: =SUM('Unit>>>:<<<Unit'!BA12) -> 0 | BF6: =SUM('Unit>>>:<<<Unit'!BB12) -> 0 | BG6: =SUM('Unit>>>:<<<Unit'!BC12) -> 0 | BH6: =SUM('Unit>>>:<<<Unit'!BD12) -> 0 | BI6: =SUM('Unit>>>:<<<Unit'!BE12) -> 0 | BJ6: =SUM('Unit>>>:<<<Unit'!BF12) -> 0 | BK6: =SUM('Unit>>>:<<<Unit'!BG12) -> 0 | BL6: =SUM('Unit>>>:<<<Unit'!BH12) -> 0 | BM6: =SUM('Unit>>>:<<<Unit'!BI12) -> 0 | BN6: =SUM('Unit>>>:<<<Unit'!BJ12) -> 0 | BO6: =SUM('Unit>>>:<<<Unit'!BK12) -> 0 | BP6: =SUM('Unit>>>:<<<Unit'!BL12) -> 0 | BQ6: =SUM('Unit>>>:<<<Unit'!BM12) -> 0 | BR6: =SUM('Unit>>>:<<<Unit'!BN12) -> 0 | BS6: =SUM('Unit>>>:<<<Unit'!BO12) -> 0 | BT6: =SUM('Unit>>>:<<<Unit'!BP12) -> 0 | BU6: =SUM('Unit>>>:<<<Unit'!BQ12) -> 0 | BV6: =SUM('Unit>>>:<<<Unit'!BR12) -> 0 | BW6: =SUM('Unit>>>:<<<Unit'!BS12) -> 0 | BX6: =SUM('Unit>>>:<<<Unit'!BT12) -> 0 | BY6: =SUM('Unit>>>:<<<Unit'!BU12) -> 0 | BZ6: =SUM('Unit>>>:<<<Unit'!BV12) -> 0 | CA6: =SUM('Unit>>>:<<<Unit'!BW12) -> 0 | CB6: =SUM('Unit>>>:<<<Unit'!BX12) -> 0 | CC6: =SUM('Unit>>>:<<<Unit'!BY12) -> 0 | CD6: =SUM('Unit>>>:<<<Unit'!BZ12) -> 0 | CE6: =SUM('Unit>>>:<<<Unit'!CA12) -> 0 | CF6: =SUM('Unit>>>:<<<Unit'!CB12) -> 0 | CG6: =SUM('Unit>>>:<<<Unit'!CC12) -> 0 | CH6: =SUM('Unit>>>:<<<Unit'!CD12) -> 0 | CI6: =SUM('Unit>>>:<<<Unit'!CE12) -> 0 | CJ6: =SUM('Unit>>>:<<<Unit'!CF12) -> 0 | CK6: =SUM('Unit>>>:<<<Unit'!CG12) -> 0 | CL6: =SUM('Unit>>>:<<<Unit'!CH12) -> 0 | CM6: =SUM('Unit>>>:<<<Unit'!CI12) -> 0 | CN6: =SUM('Unit>>>:<<<Unit'!CJ12) -> 0 | CO6: =SUM('Unit>>>:<<<Unit'!CK12) -> 0 | CP6: =SUM('Unit>>>:<<<Unit'!CL12) -> 0 | CQ6: =SUM('Unit>>>:<<<Unit'!CM12) -> 0 | CR6: =SUM('Unit>>>:<<<Unit'!CN12) -> 0 | CS6: =SUM('Unit>>>:<<<Unit'!CO12) -> 0 | CT6: =SUM('Unit>>>:<<<Unit'!CP12) -> 0 | CU6: =SUM('Unit>>>:<<<Unit'!CQ12) -> 0 | CV6: =SUM('Unit>>>:<<<Unit'!CR12) -> 0 | CW6: =SUM('Unit>>>:<<<Unit'!CS12) -> 0 | CX6: =SUM('Unit>>>:<<<Unit'!CT12) -> 0 | CY6: =SUM('Unit>>>:<<<Unit'!CU12) -> 0 | CZ6: =SUM('Unit>>>:<<<Unit'!CV12) -> 0 | DA6: =SUM('Unit>>>:<<<Unit'!CW12) -> 0 | DB6: =SUM('Unit>>>:<<<Unit'!CX12) -> 0 | DC6: =SUM('Unit>>>:<<<Unit'!CY12) -> 0 | DD6: =SUM('Unit>>>:<<<Unit'!CZ12) -> 0 | DE6: =SUM('Unit>>>:<<<Unit'!DA12) -> 0 | DF6: =SUM('Unit>>>:<<<Unit'!DB12) -> 0 | DG6: =SUM('Unit>>>:<<<Unit'!DC12) -> 0 | DH6: =SUM('Unit>>>:<<<Unit'!DD12) -> 0 | DI6: =SUM('Unit>>>:<<<Unit'!DE12) -> 0 | DJ6: =SUM('Unit>>>:<<<Unit'!DF12) -> 0 | DK6: =SUM('Unit>>>:<<<Unit'!DG12) -> 0 | DL6: =SUM('Unit>>>:<<<Unit'!DH12) -> 0 | DM6: =SUM('Unit>>>:<<<Unit'!DI12) -> 0 | DN6: =SUM('Unit>>>:<<<Unit'!DJ12) -> 0 | DO6: =SUM('Unit>>>:<<<Unit'!DK12) -> 0 | DP6: =SUM('Unit>>>:<<<Unit'!DL12) -> 0 | DQ6: =SUM('Unit>>>:<<<Unit'!DM12) -> 0 | DR6: =SUM('Unit>>>:<<<Unit'!DN12) -> 0 | DS6: =SUM('Unit>>>:<<<Unit'!DO12) -> 0 | DT6: =SUM('Unit>>>:<<<Unit'!DP12) -> 0 | DU6: =SUM('Unit>>>:<<<Unit'!DQ12) -> 0 | DV6: =SUM('Unit>>>:<<<Unit'!DR12) -> 0 | DW6: =SUM('Unit>>>:<<<Unit'!DS12) -> 0 | DX6: =SUM('Unit>>>:<<<Unit'!DT12) -> 0 | DY6: =SUM('Unit>>>:<<<Unit'!DU12) -> 0 | DZ6: =SUM('Unit>>>:<<<Unit'!DV12) -> 0 | EA6: =SUM('Unit>>>:<<<Unit'!DW12) -> 0 | EB6: =SUM('Unit>>>:<<<Unit'!DX12) -> 0 | EC6: =SUM('Unit>>>:<<<Unit'!DY12) -> 0 | ED6: =SUM('Unit>>>:<<<Unit'!DZ12) -> 0 | EE6: =SUM('Unit>>>:<<<Unit'!EA12) -> 0 | EF6: =SUM('Unit>>>:<<<Unit'!EB12) -> 0 | EG6: =SUM('Unit>>>:<<<Unit'!EC12) -> 0 | EH6: =SUM('Unit>>>:<<<Unit'!ED12) -> 0 | EI6: =SUM('Unit>>>:<<<Unit'!EE12) -> 0 | EJ6: =SUM('Unit>>>:<<<Unit'!EF12) -> 0 | EK6: =SUM('Unit>>>:<<<Unit'!EG12) -> 0 | EL6: =SUM('Unit>>>:<<<Unit'!EH12) -> 0 | EM6: =SUM('Unit>>>:<<<Unit'!EI12) -> 0 | EN6: =SUM('Unit>>>:<<<Unit'!EJ12) -> 0 | EO6: =SUM('Unit>>>:<<<Unit'!EK12) -> 0 | EP6: =SUM('Unit>>>:<<<Unit'!EL12) -> 0 | EQ6: =SUM('Unit>>>:<<<Unit'!EM12) -> 0 | ER6: =SUM('Unit>>>:<<<Unit'!EN12) -> 0 | ES6: =SUM('Unit>>>:<<<Unit'!EO12) -> 0 | ET6: =SUM('Unit>>>:<<<Unit'!EP12) -> 0 | EU6: =SUM('Unit>>>:<<<Unit'!EQ12) -> 0 | EV6: =SUM('Unit>>>:<<<Unit'!ER12) -> 0 | EW6: =SUM('Unit>>>:<<<Unit'!ES12) -> 0 | EX6: =SUM('Unit>>>:<<<Unit'!ET12) -> 0 | EY6: =SUM('Unit>>>:<<<Unit'!EU12) -> 0 | EZ6: =SUM('Unit>>>:<<<Unit'!EV12) -> 0 | FA6: =SUM('Unit>>>:<<<Unit'!EW12) -> 0 | FB6: =SUM('Unit>>>:<<<Unit'!EX12) -> 0 | FC6: =SUM('Unit>>>:<<<Unit'!EY12) -> 0 | FD6: =SUM('Unit>>>:<<<Unit'!EZ12) -> 0 | FE6: =SUM('Unit>>>:<<<Unit'!FA12) -> 0 | FF6: =SUM('Unit>>>:<<<Unit'!FB12) -> 0 | FG6: =SUM('Unit>>>:<<<Unit'!FC12) -> 0 | FH6: =SUM('Unit>>>:<<<Unit'!FD12) -> 0 | FI6: =SUM('Unit>>>:<<<Unit'!FE12) -> 0 | FJ6: =SUM('Unit>>>:<<<Unit'!FF12) -> 0 | FK6: =SUM('Unit>>>:<<<Unit'!FG12) -> 0 | FL6: =SUM('Unit>>>:<<<Unit'!FH12) -> 0 | FM6: =SUM('Unit>>>:<<<Unit'!FI12) -> 0 | FN6: =SUM('Unit>>>:<<<Unit'!FJ12) -> 0 | FO6: =SUM('Unit>>>:<<<Unit'!FK12) -> 0 | FP6: =SUM('Unit>>>:<<<Unit'!FL12) -> 0 | FQ6: =SUM('Unit>>>:<<<Unit'!FM12) -> 0 | FR6: =SUM('Unit>>>:<<<Unit'!FN12) -> 0 | FS6: =SUM('Unit>>>:<<<Unit'!FO12) -> 0 | FT6: =SUM('Unit>>>:<<<Unit'!FP12) -> 0 | FU6: =SUM('Unit>>>:<<<Unit'!FQ12) -> 0 | FV6: =SUM('Unit>>>:<<<Unit'!FR12) -> 0 | FW6: =SUM('Unit>>>:<<<Unit'!FS12) -> 0 | FX6: =SUM('Unit>>>:<<<Unit'!FT12) -> 0 | FY6: =SUM('Unit>>>:<<<Unit'!FU12) -> 0 | FZ6: =SUM('Unit>>>:<<<Unit'!FV12) -> 0 | GA6: =SUM('Unit>>>:<<<Unit'!FW12) -> 0 | GB6: =SUM('Unit>>>:<<<Unit'!FX12) -> 0 | GC6: =SUM('Unit>>>:<<<Unit'!FY12) -> 0 | GD6: =SUM('Unit>>>:<<<Unit'!FZ12) -> 0 | GE6: =SUM('Unit>>>:<<<Unit'!GA12) -> 0 | GF6: =SUM('Unit>>>:<<<Unit'!GB12) -> 0 | GG6: =SUM('Unit>>>:<<<Unit'!GC12) -> 0 | GH6: =SUM('Unit>>>:<<<Unit'!GD12) -> 0 | GI6: =SUM('Unit>>>:<<<Unit'!GE12) -> 0 | GJ6: =SUM('Unit>>>:<<<Unit'!GF12) -> 0 | GK6: =SUM('Unit>>>:<<<Unit'!GG12) -> 0 | GL6: =SUM('Unit>>>:<<<Unit'!GH12) -> 0 | GM6: =SUM('Unit>>>:<<<Unit'!GI12) -> 0 | GN6: =SUM('Unit>>>:<<<Unit'!GJ12) -> 0 | GO6: =SUM('Unit>>>:<<<Unit'!GK12) -> 0 | GP6: =SUM('Unit>>>:<<<Unit'!GL12) -> 0 | GQ6: =SUM('Unit>>>:<<<Unit'!GM12) -> 0 | GR6: =SUM('Unit>>>:<<<Unit'!GN12) -> 0 | GS6: =SUM('Unit>>>:<<<Unit'!GO12) -> 0 | GT6: =SUM('Unit>>>:<<<Unit'!GP12) -> 0 | GU6: =SUM('Unit>>>:<<<Unit'!GQ12) -> 0 | GV6: =SUM('Unit>>>:<<<Unit'!GR12) -> 0 | GW6: =SUM('Unit>>>:<<<Unit'!GS12) -> 0 | GX6: =SUM('Unit>>>:<<<Unit'!GT12) -> 0 | GY6: =SUM('Unit>>>:<<<Unit'!GU12) -> 0 | GZ6: =SUM('Unit>>>:<<<Unit'!GV12) -> 0 | HA6: =SUM('Unit>>>:<<<Unit'!GW12) -> 0 | HB6: =SUM('Unit>>>:<<<Unit'!GX12) -> 0 | HC6: =SUM('Unit>>>:<<<Unit'!GY12) -> 0 | HD6: =SUM('Unit>>>:<<<Unit'!GZ12) -> 0 | HE6: =SUM('Unit>>>:<<<Unit'!HA12) -> 0 | HF6: =SUM('Unit>>>:<<<Unit'!HB12) -> 0 | HG6: =SUM('Unit>>>:<<<Unit'!HC12) -> 0
B7: =MAX(B$5:B6)+1 -> 2 | C7: Has the location of the network been selected? | D7: =IF(ISERROR(MATCH('INPT; User Input Form'!F8,lstRegion,0)),1,0) -> 1 | N7: Heat Supply | P7: =SUM('Plant>>>:<<<Plant'!L4) -> 0 | Q7: =SUM('Plant>>>:<<<Plant'!M4) -> 0 | R7: =SUM('Plant>>>:<<<Plant'!N4) -> 0 | S7: =SUM('Plant>>>:<<<Plant'!O4) -> 0 | T7: =SUM('Plant>>>:<<<Plant'!P4) -> 0 | U7: =SUM('Plant>>>:<<<Plant'!Q4) -> 0 | V7: =SUM('Plant>>>:<<<Plant'!R4) -> 0 | W7: =SUM('Plant>>>:<<<Plant'!S4) -> 0 | X7: =SUM('Plant>>>:<<<Plant'!T4) -> 0 | Y7: =SUM('Plant>>>:<<<Plant'!U4) -> 0 | Z7: =SUM('Plant>>>:<<<Plant'!V4) -> 0 | AA7: =SUM('Plant>>>:<<<Plant'!W4) -> 0 | AB7: =SUM('Plant>>>:<<<Plant'!X4) -> 0 | AC7: =SUM('Plant>>>:<<<Plant'!Y4) -> 0 | AD7: =SUM('Plant>>>:<<<Plant'!Z4) -> 0 | AE7: =SUM('Plant>>>:<<<Plant'!AA4) -> 0 | AF7: =SUM('Plant>>>:<<<Plant'!AB4) -> 0 | AG7: =SUM('Plant>>>:<<<Plant'!AC4) -> 0 | AH7: =SUM('Plant>>>:<<<Plant'!AD4) -> 0 | AI7: =SUM('Plant>>>:<<<Plant'!AE4) -> 0 | AJ7: =SUM('Plant>>>:<<<Plant'!AF4) -> 0 | AK7: =SUM('Plant>>>:<<<Plant'!AG4) -> 0 | AL7: =SUM('Plant>>>:<<<Plant'!AH4) -> 0 | AM7: =SUM('Plant>>>:<<<Plant'!AI4) -> 0 | AN7: =SUM('Plant>>>:<<<Plant'!AJ4) -> 0 | AO7: =SUM('Plant>>>:<<<Plant'!AK4) -> 0 | AP7: =SUM('Plant>>>:<<<Plant'!AL4) -> 0 | AQ7: =SUM('Plant>>>:<<<Plant'!AM4) -> 0 | AR7: =SUM('Plant>>>:<<<Plant'!AN4) -> 0 | AS7: =SUM('Plant>>>:<<<Plant'!AO4) -> 0 | AT7: =SUM('Plant>>>:<<<Plant'!AP4) -> 0 | AU7: =SUM('Plant>>>:<<<Plant'!AQ4) -> 0 | AV7: =SUM('Plant>>>:<<<Plant'!AR4) -> 0 | AW7: =SUM('Plant>>>:<<<Plant'!AS4) -> 0 | AX7: =SUM('Plant>>>:<<<Plant'!AT4) -> 0 | AY7: =SUM('Plant>>>:<<<Plant'!AU4) -> 0 | AZ7: =SUM('Plant>>>:<<<Plant'!AV4) -> 0 | BA7: =SUM('Plant>>>:<<<Plant'!AW4) -> 0 | BB7: =SUM('Plant>>>:<<<Plant'!AX4) -> 0 | BC7: =SUM('Plant>>>:<<<Plant'!AY4) -> 0 | BD7: =SUM('Plant>>>:<<<Plant'!AZ4) -> 0 | BE7: =SUM('Plant>>>:<<<Plant'!BA4) -> 0 | BF7: =SUM('Plant>>>:<<<Plant'!BB4) -> 0 | BG7: =SUM('Plant>>>:<<<Plant'!BC4) -> 0 | BH7: =SUM('Plant>>>:<<<Plant'!BD4) -> 0 | BI7: =SUM('Plant>>>:<<<Plant'!BE4) -> 0 | BJ7: =SUM('Plant>>>:<<<Plant'!BF4) -> 0 | BK7: =SUM('Plant>>>:<<<Plant'!BG4) -> 0 | BL7: =SUM('Plant>>>:<<<Plant'!BH4) -> 0 | BM7: =SUM('Plant>>>:<<<Plant'!BI4) -> 0 | BN7: =SUM('Plant>>>:<<<Plant'!BJ4) -> 0 | BO7: =SUM('Plant>>>:<<<Plant'!BK4) -> 0 | BP7: =SUM('Plant>>>:<<<Plant'!BL4) -> 0 | BQ7: =SUM('Plant>>>:<<<Plant'!BM4) -> 0 | BR7: =SUM('Plant>>>:<<<Plant'!BN4) -> 0 | BS7: =SUM('Plant>>>:<<<Plant'!BO4) -> 0 | BT7: =SUM('Plant>>>:<<<Plant'!BP4) -> 0 | BU7: =SUM('Plant>>>:<<<Plant'!BQ4) -> 0 | BV7: =SUM('Plant>>>:<<<Plant'!BR4) -> 0 | BW7: =SUM('Plant>>>:<<<Plant'!BS4) -> 0 | BX7: =SUM('Plant>>>:<<<Plant'!BT4) -> 0 | BY7: =SUM('Plant>>>:<<<Plant'!BU4) -> 0 | BZ7: =SUM('Plant>>>:<<<Plant'!BV4) -> 0 | CA7: =SUM('Plant>>>:<<<Plant'!BW4) -> 0 | CB7: =SUM('Plant>>>:<<<Plant'!BX4) -> 0 | CC7: =SUM('Plant>>>:<<<Plant'!BY4) -> 0 | CD7: =SUM('Plant>>>:<<<Plant'!BZ4) -> 0 | CE7: =SUM('Plant>>>:<<<Plant'!CA4) -> 0 | CF7: =SUM('Plant>>>:<<<Plant'!CB4) -> 0 | CG7: =SUM('Plant>>>:<<<Plant'!CC4) -> 0 | CH7: =SUM('Plant>>>:<<<Plant'!CD4) -> 0 | CI7: =SUM('Plant>>>:<<<Plant'!CE4) -> 0 | CJ7: =SUM('Plant>>>:<<<Plant'!CF4) -> 0 | CK7: =SUM('Plant>>>:<<<Plant'!CG4) -> 0 | CL7: =SUM('Plant>>>:<<<Plant'!CH4) -> 0 | CM7: =SUM('Plant>>>:<<<Plant'!CI4) -> 0 | CN7: =SUM('Plant>>>:<<<Plant'!CJ4) -> 0 | CO7: =SUM('Plant>>>:<<<Plant'!CK4) -> 0 | CP7: =SUM('Plant>>>:<<<Plant'!CL4) -> 0 | CQ7: =SUM('Plant>>>:<<<Plant'!CM4) -> 0 | CR7: =SUM('Plant>>>:<<<Plant'!CN4) -> 0 | CS7: =SUM('Plant>>>:<<<Plant'!CO4) -> 0 | CT7: =SUM('Plant>>>:<<<Plant'!CP4) -> 0 | CU7: =SUM('Plant>>>:<<<Plant'!CQ4) -> 0 | CV7: =SUM('Plant>>>:<<<Plant'!CR4) -> 0 | CW7: =SUM('Plant>>>:<<<Plant'!CS4) -> 0 | CX7: =SUM('Plant>>>:<<<Plant'!CT4) -> 0 | CY7: =SUM('Plant>>>:<<<Plant'!CU4) -> 0 | CZ7: =SUM('Plant>>>:<<<Plant'!CV4) -> 0 | DA7: =SUM('Plant>>>:<<<Plant'!CW4) -> 0 | DB7: =SUM('Plant>>>:<<<Plant'!CX4) -> 0 | DC7: =SUM('Plant>>>:<<<Plant'!CY4) -> 0 | DD7: =SUM('Plant>>>:<<<Plant'!CZ4) -> 0 | DE7: =SUM('Plant>>>:<<<Plant'!DA4) -> 0 | DF7: =SUM('Plant>>>:<<<Plant'!DB4) -> 0 | DG7: =SUM('Plant>>>:<<<Plant'!DC4) -> 0 | DH7: =SUM('Plant>>>:<<<Plant'!DD4) -> 0 | DI7: =SUM('Plant>>>:<<<Plant'!DE4) -> 0 | DJ7: =SUM('Plant>>>:<<<Plant'!DF4) -> 0 | DK7: =SUM('Plant>>>:<<<Plant'!DG4) -> 0 | DL7: =SUM('Plant>>>:<<<Plant'!DH4) -> 0 | DM7: =SUM('Plant>>>:<<<Plant'!DI4) -> 0 | DN7: =SUM('Plant>>>:<<<Plant'!DJ4) -> 0 | DO7: =SUM('Plant>>>:<<<Plant'!DK4) -> 0 | DP7: =SUM('Plant>>>:<<<Plant'!DL4) -> 0 | DQ7: =SUM('Plant>>>:<<<Plant'!DM4) -> 0 | DR7: =SUM('Plant>>>:<<<Plant'!DN4) -> 0 | DS7: =SUM('Plant>>>:<<<Plant'!DO4) -> 0 | DT7: =SUM('Plant>>>:<<<Plant'!DP4) -> 0 | DU7: =SUM('Plant>>>:<<<Plant'!DQ4) -> 0 | DV7: =SUM('Plant>>>:<<<Plant'!DR4) -> 0 | DW7: =SUM('Plant>>>:<<<Plant'!DS4) -> 0 | DX7: =SUM('Plant>>>:<<<Plant'!DT4) -> 0 | DY7: =SUM('Plant>>>:<<<Plant'!DU4) -> 0 | DZ7: =SUM('Plant>>>:<<<Plant'!DV4) -> 0 | EA7: =SUM('Plant>>>:<<<Plant'!DW4) -> 0 | EB7: =SUM('Plant>>>:<<<Plant'!DX4) -> 0 | EC7: =SUM('Plant>>>:<<<Plant'!DY4) -> 0 | ED7: =SUM('Plant>>>:<<<Plant'!DZ4) -> 0 | EE7: =SUM('Plant>>>:<<<Plant'!EA4) -> 0 | EF7: =SUM('Plant>>>:<<<Plant'!EB4) -> 0 | EG7: =SUM('Plant>>>:<<<Plant'!EC4) -> 0 | EH7: =SUM('Plant>>>:<<<Plant'!ED4) -> 0 | EI7: =SUM('Plant>>>:<<<Plant'!EE4) -> 0 | EJ7: =SUM('Plant>>>:<<<Plant'!EF4) -> 0 | EK7: =SUM('Plant>>>:<<<Plant'!EG4) -> 0 | EL7: =SUM('Plant>>>:<<<Plant'!EH4) -> 0 | EM7: =SUM('Plant>>>:<<<Plant'!EI4) -> 0 | EN7: =SUM('Plant>>>:<<<Plant'!EJ4) -> 0 | EO7: =SUM('Plant>>>:<<<Plant'!EK4) -> 0 | EP7: =SUM('Plant>>>:<<<Plant'!EL4) -> 0 | EQ7: =SUM('Plant>>>:<<<Plant'!EM4) -> 0 | ER7: =SUM('Plant>>>:<<<Plant'!EN4) -> 0 | ES7: =SUM('Plant>>>:<<<Plant'!EO4) -> 0 | ET7: =SUM('Plant>>>:<<<Plant'!EP4) -> 0 | EU7: =SUM('Plant>>>:<<<Plant'!EQ4) -> 0 | EV7: =SUM('Plant>>>:<<<Plant'!ER4) -> 0 | EW7: =SUM('Plant>>>:<<<Plant'!ES4) -> 0 | EX7: =SUM('Plant>>>:<<<Plant'!ET4) -> 0 | EY7: =SUM('Plant>>>:<<<Plant'!EU4) -> 0 | EZ7: =SUM('Plant>>>:<<<Plant'!EV4) -> 0 | FA7: =SUM('Plant>>>:<<<Plant'!EW4) -> 0 | FB7: =SUM('Plant>>>:<<<Plant'!EX4) -> 0 | FC7: =SUM('Plant>>>:<<<Plant'!EY4) -> 0 | FD7: =SUM('Plant>>>:<<<Plant'!EZ4) -> 0 | FE7: =SUM('Plant>>>:<<<Plant'!FA4) -> 0 | FF7: =SUM('Plant>>>:<<<Plant'!FB4) -> 0 | FG7: =SUM('Plant>>>:<<<Plant'!FC4) -> 0 | FH7: =SUM('Plant>>>:<<<Plant'!FD4) -> 0 | FI7: =SUM('Plant>>>:<<<Plant'!FE4) -> 0 | FJ7: =SUM('Plant>>>:<<<Plant'!FF4) -> 0 | FK7: =SUM('Plant>>>:<<<Plant'!FG4) -> 0 | FL7: =SUM('Plant>>>:<<<Plant'!FH4) -> 0 | FM7: =SUM('Plant>>>:<<<Plant'!FI4) -> 0 | FN7: =SUM('Plant>>>:<<<Plant'!FJ4) -> 0 | FO7: =SUM('Plant>>>:<<<Plant'!FK4) -> 0 | FP7: =SUM('Plant>>>:<<<Plant'!FL4) -> 0 | FQ7: =SUM('Plant>>>:<<<Plant'!FM4) -> 0 | FR7: =SUM('Plant>>>:<<<Plant'!FN4) -> 0 | FS7: =SUM('Plant>>>:<<<Plant'!FO4) -> 0 | FT7: =SUM('Plant>>>:<<<Plant'!FP4) -> 0 | FU7: =SUM('Plant>>>:<<<Plant'!FQ4) -> 0 | FV7: =SUM('Plant>>>:<<<Plant'!FR4) -> 0 | FW7: =SUM('Plant>>>:<<<Plant'!FS4) -> 0 | FX7: =SUM('Plant>>>:<<<Plant'!FT4) -> 0 | FY7: =SUM('Plant>>>:<<<Plant'!FU4) -> 0 | FZ7: =SUM('Plant>>>:<<<Plant'!FV4) -> 0 | GA7: =SUM('Plant>>>:<<<Plant'!FW4) -> 0 | GB7: =SUM('Plant>>>:<<<Plant'!FX4) -> 0 | GC7: =SUM('Plant>>>:<<<Plant'!FY4) -> 0 | GD7: =SUM('Plant>>>:<<<Plant'!FZ4) -> 0 | GE7: =SUM('Plant>>>:<<<Plant'!GA4) -> 0 | GF7: =SUM('Plant>>>:<<<Plant'!GB4) -> 0 | GG7: =SUM('Plant>>>:<<<Plant'!GC4) -> 0 | GH7: =SUM('Plant>>>:<<<Plant'!GD4) -> 0 | GI7: =SUM('Plant>>>:<<<Plant'!GE4) -> 0 | GJ7: =SUM('Plant>>>:<<<Plant'!GF4) -> 0 | GK7: =SUM('Plant>>>:<<<Plant'!GG4) -> 0 | GL7: =SUM('Plant>>>:<<<Plant'!GH4) -> 0 | GM7: =SUM('Plant>>>:<<<Plant'!GI4) -> 0 | GN7: =SUM('Plant>>>:<<<Plant'!GJ4) -> 0 | GO7: =SUM('Plant>>>:<<<Plant'!GK4) -> 0 | GP7: =SUM('Plant>>>:<<<Plant'!GL4) -> 0 | GQ7: =SUM('Plant>>>:<<<Plant'!GM4) -> 0 | GR7: =SUM('Plant>>>:<<<Plant'!GN4) -> 0 | GS7: =SUM('Plant>>>:<<<Plant'!GO4) -> 0 | GT7: =SUM('Plant>>>:<<<Plant'!GP4) -> 0 | GU7: =SUM('Plant>>>:<<<Plant'!GQ4) -> 0 | GV7: =SUM('Plant>>>:<<<Plant'!GR4) -> 0 | GW7: =SUM('Plant>>>:<<<Plant'!GS4) -> 0 | GX7: =SUM('Plant>>>:<<<Plant'!GT4) -> 0 | GY7: =SUM('Plant>>>:<<<Plant'!GU4) -> 0 | GZ7: =SUM('Plant>>>:<<<Plant'!GV4) -> 0 | HA7: =SUM('Plant>>>:<<<Plant'!GW4) -> 0 | HB7: =SUM('Plant>>>:<<<Plant'!GX4) -> 0 | HC7: =SUM('Plant>>>:<<<Plant'!GY4) -> 0 | HD7: =SUM('Plant>>>:<<<Plant'!GZ4) -> 0 | HE7: =SUM('Plant>>>:<<<Plant'!HA4) -> 0 | HF7: =SUM('Plant>>>:<<<Plant'!HB4) -> 0 | HG7: =SUM('Plant>>>:<<<Plant'!HC4) -> 0
B8: =MAX(B$5:B7)+1 -> 3 | C8: Has at least one building been entered? | D8: =IF(SUM(sysBuildID)=0,1,0) -> 1 | N8: Error | P8: =IF(P6>P7,1,0)*(P4=FALSE) -> 0 | Q8: =IF(Q6>Q7,1,0)*(Q4=FALSE) -> 0 | R8: 0 | S8: 0 | T8: 0 | U8: 0 | V8: 0 | W8: 0 | X8: 0 | Y8: 0 | Z8: 0 | AA8: 0 | AB8: 0 | AC8: 0 | AD8: 0 | AE8: 0 | AF8: 0 | AG8: 0 | AH8: 0 | AI8: 0 | AJ8: 0 | AK8: 0 | AL8: 0 | AM8: 0 | AN8: 0 | AO8: 0 | AP8: 0 | AQ8: 0 | AR8: 0 | AS8: 0 | AT8: 0 | AU8: 0 | AV8: 0 | AW8: 0 | AX8: 0 | AY8: 0 | AZ8: 0 | BA8: 0 | BB8: 0 | BC8: 0 | BD8: 0 | BE8: 0 | BF8: 0 | BG8: 0 | BH8: 0 | BI8: 0 | BJ8: 0 | BK8: 0 | BL8: 0 | BM8: 0 | BN8: 0 | BO8: 0 | BP8: 0 | BQ8: 0 | BR8: 0 | BS8: 0 | BT8: 0 | BU8: 0 | BV8: 0 | BW8: 0 | BX8: 0 | BY8: 0 | BZ8: 0 | CA8: 0 | CB8: 0 | CC8: =IF(CC6>CC7,1,0)*(CC4=FALSE) -> 0 | CD8: 0 | CE8: 0 | CF8: 0 | CG8: 0 | CH8: 0 | CI8: 0 | CJ8: 0 | CK8: 0 | CL8: 0 | CM8: 0 | CN8: 0 | CO8: 0 | CP8: 0 | CQ8: 0 | CR8: 0 | CS8: 0 | CT8: 0 | CU8: 0 | CV8: 0 | CW8: 0 | CX8: 0 | CY8: 0 | CZ8: 0 | DA8: 0 | DB8: 0 | DC8: 0 | DD8: 0 | DE8: 0 | DF8: 0 | DG8: 0 | DH8: 0 | DI8: 0 | DJ8: 0 | DK8: 0 | DL8: 0 | DM8: 0 | DN8: 0 | DO8: 0 | DP8: 0 | DQ8: 0 | DR8: 0 | DS8: 0 | DT8: 0 | DU8: 0 | DV8: 0 | DW8: 0 | DX8: 0 | DY8: 0 | DZ8: 0 | EA8: 0 | EB8: 0 | EC8: 0 | ED8: 0 | EE8: 0 | EF8: 0 | EG8: 0 | EH8: 0 | EI8: 0 | EJ8: 0 | EK8: 0 | EL8: 0 | EM8: 0 | EN8: 0 | EO8: =IF(EO6>EO7,1,0)*(EO4=FALSE) -> 0 | EP8: 0 | EQ8: 0 | ER8: 0 | ES8: 0 | ET8: 0 | EU8: 0 | EV8: 0 | EW8: 0 | EX8: 0 | EY8: 0 | EZ8: 0 | FA8: 0 | FB8: 0 | FC8: 0 | FD8: 0 | FE8: 0 | FF8: 0 | FG8: 0 | FH8: 0 | FI8: 0 | FJ8: 0 | FK8: 0 | FL8: 0 | FM8: 0 | FN8: 0 | FO8: 0 | FP8: 0 | FQ8: 0 | FR8: 0 | FS8: 0 | FT8: 0 | FU8: 0 | FV8: 0 | FW8: 0 | FX8: 0 | FY8: 0 | FZ8: 0 | GA8: 0 | GB8: 0 | GC8: 0 | GD8: 0 | GE8: 0 | GF8: 0 | GG8: 0 | GH8: 0 | GI8: 0 | GJ8: 0 | GK8: 0 | GL8: 0 | GM8: 0 | GN8: 0 | GO8: 0 | GP8: 0 | GQ8: 0 | GR8: 0 | GS8: 0 | GT8: 0 | GU8: 0 | GV8: 0 | GW8: 0 | GX8: 0 | GY8: 0 | GZ8: 0 | HA8: =IF(HA6>HA7,1,0)*(HA4=FALSE) -> 0 | HB8: 0 | HC8: 0 | HD8: 0 | HE8: 0 | HF8: 0 | HG8: 0
B9: =MAX(B$5:B8)+1 -> 4 | C9: Has at least one unit been entered? | D9: =IF(SUM(sysUnitID)=0,1,0) -> 1
B10: =MAX(B$5:B9)+1 -> 5 | C10: Has heating been selected? | E10: =IF(COUNTIF(sysHeating,TRUE)>0,TRUE,FALSE) -> FALSE | N10: Cooling Demand | P10: =SUM('Unit>>>:<<<Unit'!L13) -> 0 | Q10: =SUM('Unit>>>:<<<Unit'!M13) -> 0 | R10: =SUM('Unit>>>:<<<Unit'!N13) -> 0 | S10: =SUM('Unit>>>:<<<Unit'!O13) -> 0 | T10: =SUM('Unit>>>:<<<Unit'!P13) -> 0 | U10: =SUM('Unit>>>:<<<Unit'!Q13) -> 0 | V10: =SUM('Unit>>>:<<<Unit'!R13) -> 0 | W10: =SUM('Unit>>>:<<<Unit'!S13) -> 0 | X10: =SUM('Unit>>>:<<<Unit'!T13) -> 0 | Y10: =SUM('Unit>>>:<<<Unit'!U13) -> 0 | Z10: =SUM('Unit>>>:<<<Unit'!V13) -> 0 | AA10: =SUM('Unit>>>:<<<Unit'!W13) -> 0 | AB10: =SUM('Unit>>>:<<<Unit'!X13) -> 0 | AC10: =SUM('Unit>>>:<<<Unit'!Y13) -> 0 | AD10: =SUM('Unit>>>:<<<Unit'!Z13) -> 0 | AE10: =SUM('Unit>>>:<<<Unit'!AA13) -> 0 | AF10: =SUM('Unit>>>:<<<Unit'!AB13) -> 0 | AG10: =SUM('Unit>>>:<<<Unit'!AC13) -> 0 | AH10: =SUM('Unit>>>:<<<Unit'!AD13) -> 0 | AI10: =SUM('Unit>>>:<<<Unit'!AE13) -> 0 | AJ10: =SUM('Unit>>>:<<<Unit'!AF13) -> 0 | AK10: =SUM('Unit>>>:<<<Unit'!AG13) -> 0 | AL10: =SUM('Unit>>>:<<<Unit'!AH13) -> 0 | AM10: =SUM('Unit>>>:<<<Unit'!AI13) -> 0 | AN10: =SUM('Unit>>>:<<<Unit'!AJ13) -> 0 | AO10: =SUM('Unit>>>:<<<Unit'!AK13) -> 0 | AP10: =SUM('Unit>>>:<<<Unit'!AL13) -> 0 | AQ10: =SUM('Unit>>>:<<<Unit'!AM13) -> 0 | AR10: =SUM('Unit>>>:<<<Unit'!AN13) -> 0 | AS10: =SUM('Unit>>>:<<<Unit'!AO13) -> 0 | AT10: =SUM('Unit>>>:<<<Unit'!AP13) -> 0 | AU10: =SUM('Unit>>>:<<<Unit'!AQ13) -> 0 | AV10: =SUM('Unit>>>:<<<Unit'!AR13) -> 0 | AW10: =SUM('Unit>>>:<<<Unit'!AS13) -> 0 | AX10: =SUM('Unit>>>:<<<Unit'!AT13) -> 0 | AY10: =SUM('Unit>>>:<<<Unit'!AU13) -> 0 | AZ10: =SUM('Unit>>>:<<<Unit'!AV13) -> 0 | BA10: =SUM('Unit>>>:<<<Unit'!AW13) -> 0 | BB10: =SUM('Unit>>>:<<<Unit'!AX13) -> 0 | BC10: =SUM('Unit>>>:<<<Unit'!AY13) -> 0 | BD10: =SUM('Unit>>>:<<<Unit'!AZ13) -> 0 | BE10: =SUM('Unit>>>:<<<Unit'!BA13) -> 0 | BF10: =SUM('Unit>>>:<<<Unit'!BB13) -> 0 | BG10: =SUM('Unit>>>:<<<Unit'!BC13) -> 0 | BH10: =SUM('Unit>>>:<<<Unit'!BD13) -> 0 | BI10: =SUM('Unit>>>:<<<Unit'!BE13) -> 0 | BJ10: =SUM('Unit>>>:<<<Unit'!BF13) -> 0 | BK10: =SUM('Unit>>>:<<<Unit'!BG13) -> 0 | BL10: =SUM('Unit>>>:<<<Unit'!BH13) -> 0 | BM10: =SUM('Unit>>>:<<<Unit'!BI13) -> 0 | BN10: =SUM('Unit>>>:<<<Unit'!BJ13) -> 0 | BO10: =SUM('Unit>>>:<<<Unit'!BK13) -> 0 | BP10: =SUM('Unit>>>:<<<Unit'!BL13) -> 0 | BQ10: =SUM('Unit>>>:<<<Unit'!BM13) -> 0 | BR10: =SUM('Unit>>>:<<<Unit'!BN13) -> 0 | BS10: =SUM('Unit>>>:<<<Unit'!BO13) -> 0 | BT10: =SUM('Unit>>>:<<<Unit'!BP13) -> 0 | BU10: =SUM('Unit>>>:<<<Unit'!BQ13) -> 0 | BV10: =SUM('Unit>>>:<<<Unit'!BR13) -> 0 | BW10: =SUM('Unit>>>:<<<Unit'!BS13) -> 0 | BX10: =SUM('Unit>>>:<<<Unit'!BT13) -> 0 | BY10: =SUM('Unit>>>:<<<Unit'!BU13) -> 0 | BZ10: =SUM('Unit>>>:<<<Unit'!BV13) -> 0 | CA10: =SUM('Unit>>>:<<<Unit'!BW13) -> 0 | CB10: =SUM('Unit>>>:<<<Unit'!BX13) -> 0 | CC10: =SUM('Unit>>>:<<<Unit'!BY13) -> 0 | CD10: =SUM('Unit>>>:<<<Unit'!BZ13) -> 0 | CE10: =SUM('Unit>>>:<<<Unit'!CA13) -> 0 | CF10: =SUM('Unit>>>:<<<Unit'!CB13) -> 0 | CG10: =SUM('Unit>>>:<<<Unit'!CC13) -> 0 | CH10: =SUM('Unit>>>:<<<Unit'!CD13) -> 0 | CI10: =SUM('Unit>>>:<<<Unit'!CE13) -> 0 | CJ10: =SUM('Unit>>>:<<<Unit'!CF13) -> 0 | CK10: =SUM('Unit>>>:<<<Unit'!CG13) -> 0 | CL10: =SUM('Unit>>>:<<<Unit'!CH13) -> 0 | CM10: =SUM('Unit>>>:<<<Unit'!CI13) -> 0 | CN10: =SUM('Unit>>>:<<<Unit'!CJ13) -> 0 | CO10: =SUM('Unit>>>:<<<Unit'!CK13) -> 0 | CP10: =SUM('Unit>>>:<<<Unit'!CL13) -> 0 | CQ10: =SUM('Unit>>>:<<<Unit'!CM13) -> 0 | CR10: =SUM('Unit>>>:<<<Unit'!CN13) -> 0 | CS10: =SUM('Unit>>>:<<<Unit'!CO13) -> 0 | CT10: =SUM('Unit>>>:<<<Unit'!CP13) -> 0 | CU10: =SUM('Unit>>>:<<<Unit'!CQ13) -> 0 | CV10: =SUM('Unit>>>:<<<Unit'!CR13) -> 0 | CW10: =SUM('Unit>>>:<<<Unit'!CS13) -> 0 | CX10: =SUM('Unit>>>:<<<Unit'!CT13) -> 0 | CY10: =SUM('Unit>>>:<<<Unit'!CU13) -> 0 | CZ10: =SUM('Unit>>>:<<<Unit'!CV13) -> 0 | DA10: =SUM('Unit>>>:<<<Unit'!CW13) -> 0 | DB10: =SUM('Unit>>>:<<<Unit'!CX13) -> 0 | DC10: =SUM('Unit>>>:<<<Unit'!CY13) -> 0 | DD10: =SUM('Unit>>>:<<<Unit'!CZ13) -> 0 | DE10: =SUM('Unit>>>:<<<Unit'!DA13) -> 0 | DF10: =SUM('Unit>>>:<<<Unit'!DB13) -> 0 | DG10: =SUM('Unit>>>:<<<Unit'!DC13) -> 0 | DH10: =SUM('Unit>>>:<<<Unit'!DD13) -> 0 | DI10: =SUM('Unit>>>:<<<Unit'!DE13) -> 0 | DJ10: =SUM('Unit>>>:<<<Unit'!DF13) -> 0 | DK10: =SUM('Unit>>>:<<<Unit'!DG13) -> 0 | DL10: =SUM('Unit>>>:<<<Unit'!DH13) -> 0 | DM10: =SUM('Unit>>>:<<<Unit'!DI13) -> 0 | DN10: =SUM('Unit>>>:<<<Unit'!DJ13) -> 0 | DO10: =SUM('Unit>>>:<<<Unit'!DK13) -> 0 | DP10: =SUM('Unit>>>:<<<Unit'!DL13) -> 0 | DQ10: =SUM('Unit>>>:<<<Unit'!DM13) -> 0 | DR10: =SUM('Unit>>>:<<<Unit'!DN13) -> 0 | DS10: =SUM('Unit>>>:<<<Unit'!DO13) -> 0 | DT10: =SUM('Unit>>>:<<<Unit'!DP13) -> 0 | DU10: =SUM('Unit>>>:<<<Unit'!DQ13) -> 0 | DV10: =SUM('Unit>>>:<<<Unit'!DR13) -> 0 | DW10: =SUM('Unit>>>:<<<Unit'!DS13) -> 0 | DX10: =SUM('Unit>>>:<<<Unit'!DT13) -> 0 | DY10: =SUM('Unit>>>:<<<Unit'!DU13) -> 0 | DZ10: =SUM('Unit>>>:<<<Unit'!DV13) -> 0 | EA10: =SUM('Unit>>>:<<<Unit'!DW13) -> 0 | EB10: =SUM('Unit>>>:<<<Unit'!DX13) -> 0 | EC10: =SUM('Unit>>>:<<<Unit'!DY13) -> 0 | ED10: =SUM('Unit>>>:<<<Unit'!DZ13) -> 0 | EE10: =SUM('Unit>>>:<<<Unit'!EA13) -> 0 | EF10: =SUM('Unit>>>:<<<Unit'!EB13) -> 0 | EG10: =SUM('Unit>>>:<<<Unit'!EC13) -> 0 | EH10: =SUM('Unit>>>:<<<Unit'!ED13) -> 0 | EI10: =SUM('Unit>>>:<<<Unit'!EE13) -> 0 | EJ10: =SUM('Unit>>>:<<<Unit'!EF13) -> 0 | EK10: =SUM('Unit>>>:<<<Unit'!EG13) -> 0 | EL10: =SUM('Unit>>>:<<<Unit'!EH13) -> 0 | EM10: =SUM('Unit>>>:<<<Unit'!EI13) -> 0 | EN10: =SUM('Unit>>>:<<<Unit'!EJ13) -> 0 | EO10: =SUM('Unit>>>:<<<Unit'!EK13) -> 0 | EP10: =SUM('Unit>>>:<<<Unit'!EL13) -> 0 | EQ10: =SUM('Unit>>>:<<<Unit'!EM13) -> 0 | ER10: =SUM('Unit>>>:<<<Unit'!EN13) -> 0 | ES10: =SUM('Unit>>>:<<<Unit'!EO13) -> 0 | ET10: =SUM('Unit>>>:<<<Unit'!EP13) -> 0 | EU10: =SUM('Unit>>>:<<<Unit'!EQ13) -> 0 | EV10: =SUM('Unit>>>:<<<Unit'!ER13) -> 0 | EW10: =SUM('Unit>>>:<<<Unit'!ES13) -> 0 | EX10: =SUM('Unit>>>:<<<Unit'!ET13) -> 0 | EY10: =SUM('Unit>>>:<<<Unit'!EU13) -> 0 | EZ10: =SUM('Unit>>>:<<<Unit'!EV13) -> 0 | FA10: =SUM('Unit>>>:<<<Unit'!EW13) -> 0 | FB10: =SUM('Unit>>>:<<<Unit'!EX13) -> 0 | FC10: =SUM('Unit>>>:<<<Unit'!EY13) -> 0 | FD10: =SUM('Unit>>>:<<<Unit'!EZ13) -> 0 | FE10: =SUM('Unit>>>:<<<Unit'!FA13) -> 0 | FF10: =SUM('Unit>>>:<<<Unit'!FB13) -> 0 | FG10: =SUM('Unit>>>:<<<Unit'!FC13) -> 0 | FH10: =SUM('Unit>>>:<<<Unit'!FD13) -> 0 | FI10: =SUM('Unit>>>:<<<Unit'!FE13) -> 0 | FJ10: =SUM('Unit>>>:<<<Unit'!FF13) -> 0 | FK10: =SUM('Unit>>>:<<<Unit'!FG13) -> 0 | FL10: =SUM('Unit>>>:<<<Unit'!FH13) -> 0 | FM10: =SUM('Unit>>>:<<<Unit'!FI13) -> 0 | FN10: =SUM('Unit>>>:<<<Unit'!FJ13) -> 0 | FO10: =SUM('Unit>>>:<<<Unit'!FK13) -> 0 | FP10: =SUM('Unit>>>:<<<Unit'!FL13) -> 0 | FQ10: =SUM('Unit>>>:<<<Unit'!FM13) -> 0 | FR10: =SUM('Unit>>>:<<<Unit'!FN13) -> 0 | FS10: =SUM('Unit>>>:<<<Unit'!FO13) -> 0 | FT10: =SUM('Unit>>>:<<<Unit'!FP13) -> 0 | FU10: =SUM('Unit>>>:<<<Unit'!FQ13) -> 0 | FV10: =SUM('Unit>>>:<<<Unit'!FR13) -> 0 | FW10: =SUM('Unit>>>:<<<Unit'!FS13) -> 0 | FX10: =SUM('Unit>>>:<<<Unit'!FT13) -> 0 | FY10: =SUM('Unit>>>:<<<Unit'!FU13) -> 0 | FZ10: =SUM('Unit>>>:<<<Unit'!FV13) -> 0 | GA10: =SUM('Unit>>>:<<<Unit'!FW13) -> 0 | GB10: =SUM('Unit>>>:<<<Unit'!FX13) -> 0 | GC10: =SUM('Unit>>>:<<<Unit'!FY13) -> 0 | GD10: =SUM('Unit>>>:<<<Unit'!FZ13) -> 0 | GE10: =SUM('Unit>>>:<<<Unit'!GA13) -> 0 | GF10: =SUM('Unit>>>:<<<Unit'!GB13) -> 0 | GG10: =SUM('Unit>>>:<<<Unit'!GC13) -> 0 | GH10: =SUM('Unit>>>:<<<Unit'!GD13) -> 0 | GI10: =SUM('Unit>>>:<<<Unit'!GE13) -> 0 | GJ10: =SUM('Unit>>>:<<<Unit'!GF13) -> 0 | GK10: =SUM('Unit>>>:<<<Unit'!GG13) -> 0 | GL10: =SUM('Unit>>>:<<<Unit'!GH13) -> 0 | GM10: =SUM('Unit>>>:<<<Unit'!GI13) -> 0 | GN10: =SUM('Unit>>>:<<<Unit'!GJ13) -> 0 | GO10: =SUM('Unit>>>:<<<Unit'!GK13) -> 0 | GP10: =SUM('Unit>>>:<<<Unit'!GL13) -> 0 | GQ10: =SUM('Unit>>>:<<<Unit'!GM13) -> 0 | GR10: =SUM('Unit>>>:<<<Unit'!GN13) -> 0 | GS10: =SUM('Unit>>>:<<<Unit'!GO13) -> 0 | GT10: =SUM('Unit>>>:<<<Unit'!GP13) -> 0 | GU10: =SUM('Unit>>>:<<<Unit'!GQ13) -> 0 | GV10: =SUM('Unit>>>:<<<Unit'!GR13) -> 0 | GW10: =SUM('Unit>>>:<<<Unit'!GS13) -> 0 | GX10: =SUM('Unit>>>:<<<Unit'!GT13) -> 0 | GY10: =SUM('Unit>>>:<<<Unit'!GU13) -> 0 | GZ10: =SUM('Unit>>>:<<<Unit'!GV13) -> 0 | HA10: =SUM('Unit>>>:<<<Unit'!GW13) -> 0 | HB10: =SUM('Unit>>>:<<<Unit'!GX13) -> 0 | HC10: =SUM('Unit>>>:<<<Unit'!GY13) -> 0 | HD10: =SUM('Unit>>>:<<<Unit'!GZ13) -> 0 | HE10: =SUM('Unit>>>:<<<Unit'!HA13) -> 0 | HF10: =SUM('Unit>>>:<<<Unit'!HB13) -> 0 | HG10: =SUM('Unit>>>:<<<Unit'!HC13) -> 0
B11: =MAX(B$5:B10)+1 -> 6 | C11: Has cooling been selected? | E11: =IF(COUNTIF(sysCooling,TRUE)>0,TRUE,FALSE) -> FALSE | N11: Cooling Supply | P11: =SUM('Plant>>>:<<<Plant'!L5) -> 0 | Q11: =SUM('Plant>>>:<<<Plant'!M5) -> 0 | R11: =SUM('Plant>>>:<<<Plant'!N5) -> 0 | S11: =SUM('Plant>>>:<<<Plant'!O5) -> 0 | T11: =SUM('Plant>>>:<<<Plant'!P5) -> 0 | U11: =SUM('Plant>>>:<<<Plant'!Q5) -> 0 | V11: =SUM('Plant>>>:<<<Plant'!R5) -> 0 | W11: =SUM('Plant>>>:<<<Plant'!S5) -> 0 | X11: =SUM('Plant>>>:<<<Plant'!T5) -> 0 | Y11: =SUM('Plant>>>:<<<Plant'!U5) -> 0 | Z11: =SUM('Plant>>>:<<<Plant'!V5) -> 0 | AA11: =SUM('Plant>>>:<<<Plant'!W5) -> 0 | AB11: =SUM('Plant>>>:<<<Plant'!X5) -> 0 | AC11: =SUM('Plant>>>:<<<Plant'!Y5) -> 0 | AD11: =SUM('Plant>>>:<<<Plant'!Z5) -> 0 | AE11: =SUM('Plant>>>:<<<Plant'!AA5) -> 0 | AF11: =SUM('Plant>>>:<<<Plant'!AB5) -> 0 | AG11: =SUM('Plant>>>:<<<Plant'!AC5) -> 0 | AH11: =SUM('Plant>>>:<<<Plant'!AD5) -> 0 | AI11: =SUM('Plant>>>:<<<Plant'!AE5) -> 0 | AJ11: =SUM('Plant>>>:<<<Plant'!AF5) -> 0 | AK11: =SUM('Plant>>>:<<<Plant'!AG5) -> 0 | AL11: =SUM('Plant>>>:<<<Plant'!AH5) -> 0 | AM11: =SUM('Plant>>>:<<<Plant'!AI5) -> 0 | AN11: =SUM('Plant>>>:<<<Plant'!AJ5) -> 0 | AO11: =SUM('Plant>>>:<<<Plant'!AK5) -> 0 | AP11: =SUM('Plant>>>:<<<Plant'!AL5) -> 0 | AQ11: =SUM('Plant>>>:<<<Plant'!AM5) -> 0 | AR11: =SUM('Plant>>>:<<<Plant'!AN5) -> 0 | AS11: =SUM('Plant>>>:<<<Plant'!AO5) -> 0 | AT11: =SUM('Plant>>>:<<<Plant'!AP5) -> 0 | AU11: =SUM('Plant>>>:<<<Plant'!AQ5) -> 0 | AV11: =SUM('Plant>>>:<<<Plant'!AR5) -> 0 | AW11: =SUM('Plant>>>:<<<Plant'!AS5) -> 0 | AX11: =SUM('Plant>>>:<<<Plant'!AT5) -> 0 | AY11: =SUM('Plant>>>:<<<Plant'!AU5) -> 0 | AZ11: =SUM('Plant>>>:<<<Plant'!AV5) -> 0 | BA11: =SUM('Plant>>>:<<<Plant'!AW5) -> 0 | BB11: =SUM('Plant>>>:<<<Plant'!AX5) -> 0 | BC11: =SUM('Plant>>>:<<<Plant'!AY5) -> 0 | BD11: =SUM('Plant>>>:<<<Plant'!AZ5) -> 0 | BE11: =SUM('Plant>>>:<<<Plant'!BA5) -> 0 | BF11: =SUM('Plant>>>:<<<Plant'!BB5) -> 0 | BG11: =SUM('Plant>>>:<<<Plant'!BC5) -> 0 | BH11: =SUM('Plant>>>:<<<Plant'!BD5) -> 0 | BI11: =SUM('Plant>>>:<<<Plant'!BE5) -> 0 | BJ11: =SUM('Plant>>>:<<<Plant'!BF5) -> 0 | BK11: =SUM('Plant>>>:<<<Plant'!BG5) -> 0 | BL11: =SUM('Plant>>>:<<<Plant'!BH5) -> 0 | BM11: =SUM('Plant>>>:<<<Plant'!BI5) -> 0 | BN11: =SUM('Plant>>>:<<<Plant'!BJ5) -> 0 | BO11: =SUM('Plant>>>:<<<Plant'!BK5) -> 0 | BP11: =SUM('Plant>>>:<<<Plant'!BL5) -> 0 | BQ11: =SUM('Plant>>>:<<<Plant'!BM5) -> 0 | BR11: =SUM('Plant>>>:<<<Plant'!BN5) -> 0 | BS11: =SUM('Plant>>>:<<<Plant'!BO5) -> 0 | BT11: =SUM('Plant>>>:<<<Plant'!BP5) -> 0 | BU11: =SUM('Plant>>>:<<<Plant'!BQ5) -> 0 | BV11: =SUM('Plant>>>:<<<Plant'!BR5) -> 0 | BW11: =SUM('Plant>>>:<<<Plant'!BS5) -> 0 | BX11: =SUM('Plant>>>:<<<Plant'!BT5) -> 0 | BY11: =SUM('Plant>>>:<<<Plant'!BU5) -> 0 | BZ11: =SUM('Plant>>>:<<<Plant'!BV5) -> 0 | CA11: =SUM('Plant>>>:<<<Plant'!BW5) -> 0 | CB11: =SUM('Plant>>>:<<<Plant'!BX5) -> 0 | CC11: =SUM('Plant>>>:<<<Plant'!BY5) -> 0 | CD11: =SUM('Plant>>>:<<<Plant'!BZ5) -> 0 | CE11: =SUM('Plant>>>:<<<Plant'!CA5) -> 0 | CF11: =SUM('Plant>>>:<<<Plant'!CB5) -> 0 | CG11: =SUM('Plant>>>:<<<Plant'!CC5) -> 0 | CH11: =SUM('Plant>>>:<<<Plant'!CD5) -> 0 | CI11: =SUM('Plant>>>:<<<Plant'!CE5) -> 0 | CJ11: =SUM('Plant>>>:<<<Plant'!CF5) -> 0 | CK11: =SUM('Plant>>>:<<<Plant'!CG5) -> 0 | CL11: =SUM('Plant>>>:<<<Plant'!CH5) -> 0 | CM11: =SUM('Plant>>>:<<<Plant'!CI5) -> 0 | CN11: =SUM('Plant>>>:<<<Plant'!CJ5) -> 0 | CO11: =SUM('Plant>>>:<<<Plant'!CK5) -> 0 | CP11: =SUM('Plant>>>:<<<Plant'!CL5) -> 0 | CQ11: =SUM('Plant>>>:<<<Plant'!CM5) -> 0 | CR11: =SUM('Plant>>>:<<<Plant'!CN5) -> 0 | CS11: =SUM('Plant>>>:<<<Plant'!CO5) -> 0 | CT11: =SUM('Plant>>>:<<<Plant'!CP5) -> 0 | CU11: =SUM('Plant>>>:<<<Plant'!CQ5) -> 0 | CV11: =SUM('Plant>>>:<<<Plant'!CR5) -> 0 | CW11: =SUM('Plant>>>:<<<Plant'!CS5) -> 0 | CX11: =SUM('Plant>>>:<<<Plant'!CT5) -> 0 | CY11: =SUM('Plant>>>:<<<Plant'!CU5) -> 0 | CZ11: =SUM('Plant>>>:<<<Plant'!CV5) -> 0 | DA11: =SUM('Plant>>>:<<<Plant'!CW5) -> 0 | DB11: =SUM('Plant>>>:<<<Plant'!CX5) -> 0 | DC11: =SUM('Plant>>>:<<<Plant'!CY5) -> 0 | DD11: =SUM('Plant>>>:<<<Plant'!CZ5) -> 0 | DE11: =SUM('Plant>>>:<<<Plant'!DA5) -> 0 | DF11: =SUM('Plant>>>:<<<Plant'!DB5) -> 0 | DG11: =SUM('Plant>>>:<<<Plant'!DC5) -> 0 | DH11: =SUM('Plant>>>:<<<Plant'!DD5) -> 0 | DI11: =SUM('Plant>>>:<<<Plant'!DE5) -> 0 | DJ11: =SUM('Plant>>>:<<<Plant'!DF5) -> 0 | DK11: =SUM('Plant>>>:<<<Plant'!DG5) -> 0 | DL11: =SUM('Plant>>>:<<<Plant'!DH5) -> 0 | DM11: =SUM('Plant>>>:<<<Plant'!DI5) -> 0 | DN11: =SUM('Plant>>>:<<<Plant'!DJ5) -> 0 | DO11: =SUM('Plant>>>:<<<Plant'!DK5) -> 0 | DP11: =SUM('Plant>>>:<<<Plant'!DL5) -> 0 | DQ11: =SUM('Plant>>>:<<<Plant'!DM5) -> 0 | DR11: =SUM('Plant>>>:<<<Plant'!DN5) -> 0 | DS11: =SUM('Plant>>>:<<<Plant'!DO5) -> 0 | DT11: =SUM('Plant>>>:<<<Plant'!DP5) -> 0 | DU11: =SUM('Plant>>>:<<<Plant'!DQ5) -> 0 | DV11: =SUM('Plant>>>:<<<Plant'!DR5) -> 0 | DW11: =SUM('Plant>>>:<<<Plant'!DS5) -> 0 | DX11: =SUM('Plant>>>:<<<Plant'!DT5) -> 0 | DY11: =SUM('Plant>>>:<<<Plant'!DU5) -> 0 | DZ11: =SUM('Plant>>>:<<<Plant'!DV5) -> 0 | EA11: =SUM('Plant>>>:<<<Plant'!DW5) -> 0 | EB11: =SUM('Plant>>>:<<<Plant'!DX5) -> 0 | EC11: =SUM('Plant>>>:<<<Plant'!DY5) -> 0 | ED11: =SUM('Plant>>>:<<<Plant'!DZ5) -> 0 | EE11: =SUM('Plant>>>:<<<Plant'!EA5) -> 0 | EF11: =SUM('Plant>>>:<<<Plant'!EB5) -> 0 | EG11: =SUM('Plant>>>:<<<Plant'!EC5) -> 0 | EH11: =SUM('Plant>>>:<<<Plant'!ED5) -> 0 | EI11: =SUM('Plant>>>:<<<Plant'!EE5) -> 0 | EJ11: =SUM('Plant>>>:<<<Plant'!EF5) -> 0 | EK11: =SUM('Plant>>>:<<<Plant'!EG5) -> 0 | EL11: =SUM('Plant>>>:<<<Plant'!EH5) -> 0 | EM11: =SUM('Plant>>>:<<<Plant'!EI5) -> 0 | EN11: =SUM('Plant>>>:<<<Plant'!EJ5) -> 0 | EO11: =SUM('Plant>>>:<<<Plant'!EK5) -> 0 | EP11: =SUM('Plant>>>:<<<Plant'!EL5) -> 0 | EQ11: =SUM('Plant>>>:<<<Plant'!EM5) -> 0 | ER11: =SUM('Plant>>>:<<<Plant'!EN5) -> 0 | ES11: =SUM('Plant>>>:<<<Plant'!EO5) -> 0 | ET11: =SUM('Plant>>>:<<<Plant'!EP5) -> 0 | EU11: =SUM('Plant>>>:<<<Plant'!EQ5) -> 0 | EV11: =SUM('Plant>>>:<<<Plant'!ER5) -> 0 | EW11: =SUM('Plant>>>:<<<Plant'!ES5) -> 0 | EX11: =SUM('Plant>>>:<<<Plant'!ET5) -> 0 | EY11: =SUM('Plant>>>:<<<Plant'!EU5) -> 0 | EZ11: =SUM('Plant>>>:<<<Plant'!EV5) -> 0 | FA11: =SUM('Plant>>>:<<<Plant'!EW5) -> 0 | FB11: =SUM('Plant>>>:<<<Plant'!EX5) -> 0 | FC11: =SUM('Plant>>>:<<<Plant'!EY5) -> 0 | FD11: =SUM('Plant>>>:<<<Plant'!EZ5) -> 0 | FE11: =SUM('Plant>>>:<<<Plant'!FA5) -> 0 | FF11: =SUM('Plant>>>:<<<Plant'!FB5) -> 0 | FG11: =SUM('Plant>>>:<<<Plant'!FC5) -> 0 | FH11: =SUM('Plant>>>:<<<Plant'!FD5) -> 0 | FI11: =SUM('Plant>>>:<<<Plant'!FE5) -> 0 | FJ11: =SUM('Plant>>>:<<<Plant'!FF5) -> 0 | FK11: =SUM('Plant>>>:<<<Plant'!FG5) -> 0 | FL11: =SUM('Plant>>>:<<<Plant'!FH5) -> 0 | FM11: =SUM('Plant>>>:<<<Plant'!FI5) -> 0 | FN11: =SUM('Plant>>>:<<<Plant'!FJ5) -> 0 | FO11: =SUM('Plant>>>:<<<Plant'!FK5) -> 0 | FP11: =SUM('Plant>>>:<<<Plant'!FL5) -> 0 | FQ11: =SUM('Plant>>>:<<<Plant'!FM5) -> 0 | FR11: =SUM('Plant>>>:<<<Plant'!FN5) -> 0 | FS11: =SUM('Plant>>>:<<<Plant'!FO5) -> 0 | FT11: =SUM('Plant>>>:<<<Plant'!FP5) -> 0 | FU11: =SUM('Plant>>>:<<<Plant'!FQ5) -> 0 | FV11: =SUM('Plant>>>:<<<Plant'!FR5) -> 0 | FW11: =SUM('Plant>>>:<<<Plant'!FS5) -> 0 | FX11: =SUM('Plant>>>:<<<Plant'!FT5) -> 0 | FY11: =SUM('Plant>>>:<<<Plant'!FU5) -> 0 | FZ11: =SUM('Plant>>>:<<<Plant'!FV5) -> 0 | GA11: =SUM('Plant>>>:<<<Plant'!FW5) -> 0 | GB11: =SUM('Plant>>>:<<<Plant'!FX5) -> 0 | GC11: =SUM('Plant>>>:<<<Plant'!FY5) -> 0 | GD11: =SUM('Plant>>>:<<<Plant'!FZ5) -> 0 | GE11: =SUM('Plant>>>:<<<Plant'!GA5) -> 0 | GF11: =SUM('Plant>>>:<<<Plant'!GB5) -> 0 | GG11: =SUM('Plant>>>:<<<Plant'!GC5) -> 0 | GH11: =SUM('Plant>>>:<<<Plant'!GD5) -> 0 | GI11: =SUM('Plant>>>:<<<Plant'!GE5) -> 0 | GJ11: =SUM('Plant>>>:<<<Plant'!GF5) -> 0 | GK11: =SUM('Plant>>>:<<<Plant'!GG5) -> 0 | GL11: =SUM('Plant>>>:<<<Plant'!GH5) -> 0 | GM11: =SUM('Plant>>>:<<<Plant'!GI5) -> 0 | GN11: =SUM('Plant>>>:<<<Plant'!GJ5) -> 0 | GO11: =SUM('Plant>>>:<<<Plant'!GK5) -> 0 | GP11: =SUM('Plant>>>:<<<Plant'!GL5) -> 0 | GQ11: =SUM('Plant>>>:<<<Plant'!GM5) -> 0 | GR11: =SUM('Plant>>>:<<<Plant'!GN5) -> 0 | GS11: =SUM('Plant>>>:<<<Plant'!GO5) -> 0 | GT11: =SUM('Plant>>>:<<<Plant'!GP5) -> 0 | GU11: =SUM('Plant>>>:<<<Plant'!GQ5) -> 0 | GV11: =SUM('Plant>>>:<<<Plant'!GR5) -> 0 | GW11: =SUM('Plant>>>:<<<Plant'!GS5) -> 0 | GX11: =SUM('Plant>>>:<<<Plant'!GT5) -> 0 | GY11: =SUM('Plant>>>:<<<Plant'!GU5) -> 0 | GZ11: =SUM('Plant>>>:<<<Plant'!GV5) -> 0 | HA11: =SUM('Plant>>>:<<<Plant'!GW5) -> 0 | HB11: =SUM('Plant>>>:<<<Plant'!GX5) -> 0 | HC11: =SUM('Plant>>>:<<<Plant'!GY5) -> 0 | HD11: =SUM('Plant>>>:<<<Plant'!GZ5) -> 0 | HE11: =SUM('Plant>>>:<<<Plant'!HA5) -> 0 | HF11: =SUM('Plant>>>:<<<Plant'!HB5) -> 0 | HG11: =SUM('Plant>>>:<<<Plant'!HC5) -> 0
B12: =MAX(B$5:B11)+1 -> 7 | C12: Has at least one energy type been entered in the tool? | D12: =IF(AND(E10=FALSE,E11=FALSE),1,0) -> 1 | N12: Error | P12: =IF(P10>P11,1,0)*(P4=FALSE) -> 0 | Q12: =IF(Q10>Q11,1,0)*(Q4=FALSE) -> 0 | R12: 0 | S12: 0 | T12: 0 | U12: 0 | V12: 0 | W12: 0 | X12: 0 | Y12: 0 | Z12: 0 | AA12: 0 | AB12: 0 | AC12: 0 | AD12: 0 | AE12: 0 | AF12: 0 | AG12: 0 | AH12: 0 | AI12: 0 | AJ12: 0 | AK12: 0 | AL12: 0 | AM12: 0 | AN12: 0 | AO12: 0 | AP12: 0 | AQ12: 0 | AR12: 0 | AS12: 0 | AT12: 0 | AU12: 0 | AV12: 0 | AW12: 0 | AX12: 0 | AY12: 0 | AZ12: 0 | BA12: 0 | BB12: 0 | BC12: 0 | BD12: 0 | BE12: 0 | BF12: 0 | BG12: 0 | BH12: 0 | BI12: 0 | BJ12: 0 | BK12: 0 | BL12: 0 | BM12: 0 | BN12: 0 | BO12: 0 | BP12: 0 | BQ12: 0 | BR12: 0 | BS12: 0 | BT12: 0 | BU12: 0 | BV12: 0 | BW12: 0 | BX12: 0 | BY12: 0 | BZ12: 0 | CA12: 0 | CB12: 0 | CC12: =IF(CC10>CC11,1,0)*(CC4=FALSE) -> 0 | CD12: 0 | CE12: 0 | CF12: 0 | CG12: 0 | CH12: 0 | CI12: 0 | CJ12: 0 | CK12: 0 | CL12: 0 | CM12: 0 | CN12: 0 | CO12: 0 | CP12: 0 | CQ12: 0 | CR12: 0 | CS12: 0 | CT12: 0 | CU12: 0 | CV12: 0 | CW12: 0 | CX12: 0 | CY12: 0 | CZ12: 0 | DA12: 0 | DB12: 0 | DC12: 0 | DD12: 0 | DE12: 0 | DF12: 0 | DG12: 0 | DH12: 0 | DI12: 0 | DJ12: 0 | DK12: 0 | DL12: 0 | DM12: 0 | DN12: 0 | DO12: 0 | DP12: 0 | DQ12: 0 | DR12: 0 | DS12: 0 | DT12: 0 | DU12: 0 | DV12: 0 | DW12: 0 | DX12: 0 | DY12: 0 | DZ12: 0 | EA12: 0 | EB12: 0 | EC12: 0 | ED12: 0 | EE12: 0 | EF12: 0 | EG12: 0 | EH12: 0 | EI12: 0 | EJ12: 0 | EK12: 0 | EL12: 0 | EM12: 0 | EN12: 0 | EO12: =IF(EO10>EO11,1,0)*(EO4=FALSE) -> 0 | EP12: 0 | EQ12: 0 | ER12: 0 | ES12: 0 | ET12: 0 | EU12: 0 | EV12: 0 | EW12: 0 | EX12: 0 | EY12: 0 | EZ12: 0 | FA12: 0 | FB12: 0 | FC12: 0 | FD12: 0 | FE12: 0 | FF12: 0 | FG12: 0 | FH12: 0 | FI12: 0 | FJ12: 0 | FK12: 0 | FL12: 0 | FM12: 0 | FN12: 0 | FO12: 0 | FP12: 0 | FQ12: 0 | FR12: 0 | FS12: 0 | FT12: 0 | FU12: 0 | FV12: 0 | FW12: 0 | FX12: 0 | FY12: 0 | FZ12: 0 | GA12: 0 | GB12: 0 | GC12: 0 | GD12: 0 | GE12: 0 | GF12: 0 | GG12: 0 | GH12: 0 | GI12: 0 | GJ12: 0 | GK12: 0 | GL12: 0 | GM12: 0 | GN12: 0 | GO12: 0 | GP12: 0 | GQ12: 0 | GR12: 0 | GS12: 0 | GT12: 0 | GU12: 0 | GV12: 0 | GW12: 0 | GX12: 0 | GY12: 0 | GZ12: 0 | HA12: =IF(HA10>HA11,1,0)*(HA4=FALSE) -> 0 | HB12: 0 | HC12: 0 | HD12: 0 | HE12: 0 | HF12: 0 | HG12: 0
B13: =MAX(B$5:B12)+1 -> 8 | C13: Where fuel costs have not been supplied has plant been entered? | D13: =SUM(P14:HG14) -> 0
B14: =MAX(B$5:B13)+1 -> 9 | C14: Is the heat generating capacity sufficient to meet all demand with availability assumptions? | D14: =SUM(P8:HG8)*E10 -> 0 | G14: =IF(D14>0,INDEX($P$6:$HG$6,1,P17),0) -> 0 | H14: =IF(D14>0,INDEX($P$7:$HG$7,1,P17),0) -> 0 | N14: Has plant been entered? | P14: =(SUM(P7,P11)=0)*1*(P4=FALSE) -> 0 | Q14: =(SUM(Q7,Q11)=0)*1*(Q4=FALSE) -> 0 | R14: 0 | S14: 0 | T14: 0 | U14: 0 | V14: 0 | W14: 0 | X14: 0 | Y14: 0 | Z14: 0 | AA14: 0 | AB14: 0 | AC14: 0 | AD14: 0 | AE14: 0 | AF14: 0 | AG14: 0 | AH14: 0 | AI14: 0 | AJ14: 0 | AK14: 0 | AL14: 0 | AM14: 0 | AN14: 0 | AO14: 0 | AP14: 0 | AQ14: 0 | AR14: 0 | AS14: 0 | AT14: 0 | AU14: 0 | AV14: 0 | AW14: 0 | AX14: 0 | AY14: 0 | AZ14: 0 | BA14: 0 | BB14: 0 | BC14: 0 | BD14: 0 | BE14: 0 | BF14: 0 | BG14: 0 | BH14: 0 | BI14: 0 | BJ14: 0 | BK14: 0 | BL14: 0 | BM14: 0 | BN14: 0 | BO14: 0 | BP14: 0 | BQ14: 0 | BR14: 0 | BS14: 0 | BT14: 0 | BU14: 0 | BV14: 0 | BW14: 0 | BX14: 0 | BY14: 0 | BZ14: 0 | CA14: 0 | CB14: 0 | CC14: =(SUM(CC7,CC11)=0)*1*(CC4=FALSE) -> 0 | CD14: 0 | CE14: 0 | CF14: 0 | CG14: 0 | CH14: 0 | CI14: 0 | CJ14: 0 | CK14: 0 | CL14: 0 | CM14: 0 | CN14: 0 | CO14: 0 | CP14: 0 | CQ14: 0 | CR14: 0 | CS14: 0 | CT14: 0 | CU14: 0 | CV14: 0 | CW14: 0 | CX14: 0 | CY14: 0 | CZ14: 0 | DA14: 0 | DB14: 0 | DC14: 0 | DD14: 0 | DE14: 0 | DF14: 0 | DG14: 0 | DH14: 0 | DI14: 0 | DJ14: 0 | DK14: 0 | DL14: 0 | DM14: 0 | DN14: 0 | DO14: 0 | DP14: 0 | DQ14: 0 | DR14: 0 | DS14: 0 | DT14: 0 | DU14: 0 | DV14: 0 | DW14: 0 | DX14: 0 | DY14: 0 | DZ14: 0 | EA14: 0 | EB14: 0 | EC14: 0 | ED14: 0 | EE14: 0 | EF14: 0 | EG14: 0 | EH14: 0 | EI14: 0 | EJ14: 0 | EK14: 0 | EL14: 0 | EM14: 0 | EN14: 0 | EO14: =(SUM(EO7,EO11)=0)*1*(EO4=FALSE) -> 0 | EP14: 0 | EQ14: 0 | ER14: 0 | ES14: 0 | ET14: 0 | EU14: 0 | EV14: 0 | EW14: 0 | EX14: 0 | EY14: 0 | EZ14: 0 | FA14: 0 | FB14: 0 | FC14: 0 | FD14: 0 | FE14: 0 | FF14: 0 | FG14: 0 | FH14: 0 | FI14: 0 | FJ14: 0 | FK14: 0 | FL14: 0 | FM14: 0 | FN14: 0 | FO14: 0 | FP14: 0 | FQ14: 0 | FR14: 0 | FS14: 0 | FT14: 0 | FU14: 0 | FV14: 0 | FW14: 0 | FX14: 0 | FY14: 0 | FZ14: 0 | GA14: 0 | GB14: 0 | GC14: 0 | GD14: 0 | GE14: 0 | GF14: 0 | GG14: 0 | GH14: 0 | GI14: 0 | GJ14: 0 | GK14: 0 | GL14: 0 | GM14: 0 | GN14: 0 | GO14: 0 | GP14: 0 | GQ14: 0 | GR14: 0 | GS14: 0 | GT14: 0 | GU14: 0 | GV14: 0 | GW14: 0 | GX14: 0 | GY14: 0 | GZ14: 0 | HA14: =(SUM(HA7,HA11)=0)*1*(HA4=FALSE) -> 0 | HB14: 0 | HC14: 0 | HD14: 0 | HE14: 0 | HF14: 0 | HG14: 0
B15: =MAX(B$5:B14)+1 -> 10 | C15: Is the cooling generating capacity sufficient to meet all demand with availability assumptions? | D15: =SUM(P12:HG12)*E11 -> 0 | J15: =IF(D15>0,INDEX($P$10:$HG$10,1,P18),0) -> 0 | K15: =IF(D15>0,INDEX($P$11:$HG$11,1,P18),0) -> 0
C17: Total tool integrity checks: | D17: =SUM(D6:D16) -> 5 | N17: First heat error: | P17: =IFERROR(MATCH(1,$P$8:$HG$8,0),0) -> 0
N18: First chill error: | P18: =IFERROR(MATCH(1,$P$12:$HG$12,0),0) -> 0

Sheet OUTP; Appraisal (hidden)
A1: =RIGHT(CELL("filename", A1), LEN(CELL("filename", A1)) - SEARCH("]", CELL("filename", A1))) -> OUTP; Appraisal
B3: ='INPT; User Input Form'!F7 -> 0 | D3: Meter Assessment | G3: Heat Cost Allocator | J3: Estimated Heat demand | K3: Total Cooling demand | L3: Total Fuel consumed | M3: Heat Meters | N3: Data Monitoring | O3: HCAs | P3: Water Meters
D4: £ NPV / (£NPC) | E4: Meters required? | G4: £ NPV / (£NPC) | H4: HCA required? | J4: kWh/Y | K4: kWh/Y | L4: kWh/Y | M4: # | N4: # | O4: # | P4: # | R4: #
B6: ='CALC; EconomicApp'!B11 -> 0 | D6: ='CALC; EconomicApp'!E11 -> 0 | E6: =IF(AND(D6>0,B6<>0),TRUE,FALSE) -> FALSE | G6: ='CALC; EconomicApp'!F11 -> 0 | H6: =IF(AND(G6>0,E6=FALSE,B6<>0),TRUE,FALSE) -> FALSE | J6: =INDEX('CALC; EconomicApp'!$E$217:$GV$217,1,$R6) -> 0 | K6: =INDEX('CALC; EconomicApp'!$E$218:$GV$218,1,$R6) -> 0 | L6: =INDEX('CALC; EconomicApp'!$E$279:$GV$279,1,$R6) -> 0 | M6: ='CALC; EconomicApp'!G11*(H6=FALSE) -> 0 | N6: ='CALC; EconomicApp'!H11 -> 0 | O6: ='CALC; EconomicApp'!J11*(H6) -> 0 | P6: ='CALC; EconomicApp'!K11*H6 -> 0 | R6: =R5+1 -> 1

Sheet OUTP; Recalculation (hidden)
A1: =RIGHT(CELL("filename", A1), LEN(CELL("filename", A1)) - SEARCH("]", CELL("filename", A1))) -> OUTP; Recalculation
B3: Select building for Appraisal NPV reconciliation: | S3: Building Match | T3: =MATCH(D3,sysBuild,0) -> 
S4: Building ID | T4: =INDEX(sysBuildID,T3,1) -> 
B5: RECONCILIATION
B6: Year | H6: 1 | I6: 2 | J6: 3 | K6: 4 | L6: 5 | M6: 6 | N6: 7 | O6: 8 | P6: 9 | Q6: 10
C8: Heat meter CBA
C9: =Lists!$B$109 -> Total value of fuel saving in building | D9: £ | H9: =SUMIF('CALC; EconomicApp'!$U$317:$U$49628,$S9,'CALC; EconomicApp'!I$317:I$49628) -> 0 | I9: =SUMIF('CALC; EconomicApp'!$U$317:$U$49628,$S9,'CALC; EconomicApp'!J$317:J$49628) -> 0 | J9: =SUMIF('CALC; EconomicApp'!$U$317:$U$49628,$S9,'CALC; EconomicApp'!K$317:K$49628) -> 0 | K9: =SUMIF('CALC; EconomicApp'!$U$317:$U$49628,$S9,'CALC; EconomicApp'!L$317:L$49628) -> 0 | L9: =SUMIF('CALC; EconomicApp'!$U$317:$U$49628,$S9,'CALC; EconomicApp'!M$317:M$49628) -> 0 | M9: =SUMIF('CALC; EconomicApp'!$U$317:$U$49628,$S9,'CALC; EconomicApp'!N$317:N$49628) -> 0 | N9: =SUMIF('CALC; EconomicApp'!$U$317:$U$49628,$S9,'CALC; EconomicApp'!O$317:O$49628) -> 0 | O9: =SUMIF('CALC; EconomicApp'!$U$317:$U$49628,$S9,'CALC; EconomicApp'!P$317:P$49628) -> 0 | P9: =SUMIF('CALC; EconomicApp'!$U$317:$U$49628,$S9,'CALC; EconomicApp'!Q$317:Q$49628) -> 0 | Q9: =SUMIF('CALC; EconomicApp'!$U$317:$U$49628,$S9,'CALC; EconomicApp'!R$317:R$49628) -> 0 | S9: =$T$4&C9 -> 
C10: ='INPT; BEIS'!$B$27 -> Heat meter cost and installation | D10: £ | H10: =SUMIF('CALC; EconomicApp'!$U$317:$U$49628,$S10,'CALC; EconomicApp'!I$317:I$49628) -> 0 | I10: =SUMIF('CALC; EconomicApp'!$U$317:$U$49628,$S10,'CALC; EconomicApp'!J$317:J$49628) -> 0 | J10: =SUMIF('CALC; EconomicApp'!$U$317:$U$49628,$S10,'CALC; EconomicApp'!K$317:K$49628) -> 0 | K10: =SUMIF('CALC; EconomicApp'!$U$317:$U$49628,$S10,'CALC; EconomicApp'!L$317:L$49628) -> 0 | L10: =SUMIF('CALC; EconomicApp'!$U$317:$U$49628,$S10,'CALC; EconomicApp'!M$317:M$49628) -> 0 | M10: =SUMIF('CALC; EconomicApp'!$U$317:$U$49628,$S10,'CALC; EconomicApp'!N$317:N$49628) -> 0 | N10: =SUMIF('CALC; EconomicApp'!$U$317:$U$49628,$S10,'CALC; EconomicApp'!O$317:O$49628) -> 0 | O10: =SUMIF('CALC; EconomicApp'!$U$317:$U$49628,$S10,'CALC; EconomicApp'!P$317:P$49628) -> 0 | P10: =SUMIF('CALC; EconomicApp'!$U$317:$U$49628,$S10,'CALC; EconomicApp'!Q$317:Q$49628) -> 0 | Q10: =SUMIF('CALC; EconomicApp'!$U$317:$U$49628,$S10,'CALC; EconomicApp'!R$317:R$49628) -> 0 | S10: =$T$4&C10 -> 
C11: ='INPT; BEIS'!$B$28 -> Cost and installation of data gathering equipment | D11: £ | H11: =SUMIF('CALC; EconomicApp'!$U$317:$U$49628,$S11,'CALC; EconomicApp'!I$317:I$49628) -> 0 | I11: =SUMIF('CALC; EconomicApp'!$U$317:$U$49628,$S11,'CALC; EconomicApp'!J$317:J$49628) -> 0 | J11: =SUMIF('CALC; EconomicApp'!$U$317:$U$49628,$S11,'CALC; EconomicApp'!K$317:K$49628) -> 0 | K11: =SUMIF('CALC; EconomicApp'!$U$317:$U$49628,$S11,'CALC; EconomicApp'!L$317:L$49628) -> 0 | L11: =SUMIF('CALC; EconomicApp'!$U$317:$U$49628,$S11,'CALC; EconomicApp'!M$317:M$49628) -> 0 | M11: =SUMIF('CALC; EconomicApp'!$U$317:$U$49628,$S11,'CALC; EconomicApp'!N$317:N$49628) -> 0 | N11: =SUMIF('CALC; EconomicApp'!$U$317:$U$49628,$S11,'CALC; EconomicApp'!O$317:O$49628) -> 0 | O11: =SUMIF('CALC; EconomicApp'!$U$317:$U$49628,$S11,'CALC; EconomicApp'!P$317:P$49628) -> 0 | P11: =SUMIF('CALC; EconomicApp'!$U$317:$U$49628,$S11,'CALC; EconomicApp'!Q$317:Q$49628) -> 0 | Q11: =SUMIF('CALC; EconomicApp'!$U$317:$U$49628,$S11,'CALC; EconomicApp'!R$317:R$49628) -> 0 | S11: =$T$4&C11 -> 
C12: ='INPT; BEIS'!$B$29 -> Annual heat meter operational costs (incl. billing) | D12: £ | H12: =SUMIF('CALC; EconomicApp'!$U$317:$U$49628,$S12,'CALC; EconomicApp'!I$317:I$49628) -> 0 | I12: =SUMIF('CALC; EconomicApp'!$U$317:$U$49628,$S12,'CALC; EconomicApp'!J$317:J$49628) -> 0 | J12: =SUMIF('CALC; EconomicApp'!$U$317:$U$49628,$S12,'CALC; EconomicApp'!K$317:K$49628) -> 0 | K12: =SUMIF('CALC; EconomicApp'!$U$317:$U$49628,$S12,'CALC; EconomicApp'!L$317:L$49628) -> 0 | L12: =SUMIF('CALC; EconomicApp'!$U$317:$U$49628,$S12,'CALC; EconomicApp'!M$317:M$49628) -> 0 | M12: =SUMIF('CALC; EconomicApp'!$U$317:$U$49628,$S12,'CALC; EconomicApp'!N$317:N$49628) -> 0 | N12: =SUMIF('CALC; EconomicApp'!$U$317:$U$49628,$S12,'CALC; EconomicApp'!O$317:O$49628) -> 0 | O12: =SUMIF('CALC; EconomicApp'!$U$317:$U$49628,$S12,'CALC; EconomicApp'!P$317:P$49628) -> 0 | P12: =SUMIF('CALC; EconomicApp'!$U$317:$U$49628,$S12,'CALC; EconomicApp'!Q$317:Q$49628) -> 0 | Q12: =SUMIF('CALC; EconomicApp'!$U$317:$U$49628,$S12,'CALC; EconomicApp'!R$317:R$49628) -> 0 | S12: =$T$4&C12 -> 
C13: User entered additional costs not included in tool | D13: £
C15: 10 year cash flows | D15: £ | H15: =SUM(H9:H13) -> 0 | I15: =SUM(I9:I13) -> 0 | J15: 0 | K15: 0 | L15: 0 | M15: 0 | N15: 0 | O15: 0 | P15: 0 | Q15: 0
C16: Discount rate | D16: Factor | H16: ='CALC; EconomicApp'!I$315 -> 0.9661835749 | I16: ='CALC; EconomicApp'!J$315 -> 0.9335107004 | J16: ='CALC; EconomicApp'!K$315 -> 0.9019427057 | K16: ='CALC; EconomicApp'!L$315 -> 0.8714422277 | L16: ='CALC; EconomicApp'!M$315 -> 0.8419731669 | M16: ='CALC; EconomicApp'!N$315 -> 0.8135006443 | N16: ='CALC; EconomicApp'!O$315 -> 0.7859909607 | O16: ='CALC; EconomicApp'!P$315 -> 0.7594115562 | P16: ='CALC; EconomicApp'!Q$315 -> 0.7337309722 | Q16: ='CALC; EconomicApp'!R$315 -> 0.7089188137
C17: Discounted 10 year cash flows | D17: £ NPV | F17: =SUM(H17:Q17) -> 0 | H17: =H15*H16 -> 0 | I17: =I15*I16 -> 0 | J17: 0 | K17: 0 | L17: 0 | M17: 0 | N17: 0 | O17: 0 | P17: 0 | Q17: 0
C19: Heat cost allocator CBA
C20: =Lists!$B$109 -> Total value of fuel saving in building | D20: £ | H20: =H9 -> 0 | I20: =I9 -> 0 | J20: 0 | K20: 0 | L20: 0 | M20: 0 | N20: 0 | O20: 0 | P20: 0 | Q20: 0
C21: ='INPT; BEIS'!$B$31 -> Heat Cost Allocator cost and installation | D21: £ | H21: =SUMIF('CALC; EconomicApp'!$U$317:$U$49628,$S21,'CALC; EconomicApp'!I$317:I$49628) -> 0 | I21: =SUMIF('CALC; EconomicApp'!$U$317:$U$49628,$S21,'CALC; EconomicApp'!J$317:J$49628) -> 0 | J21: =SUMIF('CALC; EconomicApp'!$U$317:$U$49628,$S21,'CALC; EconomicApp'!K$317:K$49628) -> 0 | K21: =SUMIF('CALC; EconomicApp'!$U$317:$U$49628,$S21,'CALC; EconomicApp'!L$317:L$49628) -> 0 | L21: =SUMIF('CALC; EconomicApp'!$U$317:$U$49628,$S21,'CALC; EconomicApp'!M$317:M$49628) -> 0 | M21: =SUMIF('CALC; EconomicApp'!$U$317:$U$49628,$S21,'CALC; EconomicApp'!N$317:N$49628) -> 0 | N21: =SUMIF('CALC; EconomicApp'!$U$317:$U$49628,$S21,'CALC; EconomicApp'!O$317:O$49628) -> 0 | O21: =SUMIF('CALC; EconomicApp'!$U$317:$U$49628,$S21,'CALC; EconomicApp'!P$317:P$49628) -> 0 | P21: =SUMIF('CALC; EconomicApp'!$U$317:$U$49628,$S21,'CALC; EconomicApp'!Q$317:Q$49628) -> 0 | Q21: =SUMIF('CALC; EconomicApp'!$U$317:$U$49628,$S21,'CALC; EconomicApp'!R$317:R$49628) -> 0 | S21: =$T$4&C21 -> 
C22: ='INPT; BEIS'!$B$32 -> Hot water meter cost and installation | D22: £ | H22: =SUMIF('CALC; EconomicApp'!$U$317:$U$49628,$S22,'CALC; EconomicApp'!I$317:I$49628) -> 0 | I22: =SUMIF('CALC; EconomicApp'!$U$317:$U$49628,$S22,'CALC; EconomicApp'!J$317:J$49628) -> 0 | J22: =SUMIF('CALC; EconomicApp'!$U$317:$U$49628,$S22,'CALC; EconomicApp'!K$317:K$49628) -> 0 | K22: =SUMIF('CALC; EconomicApp'!$U$317:$U$49628,$S22,'CALC; EconomicApp'!L$317:L$49628) -> 0 | L22: =SUMIF('CALC; EconomicApp'!$U$317:$U$49628,$S22,'CALC; EconomicApp'!M$317:M$49628) -> 0 | M22: =SUMIF('CALC; EconomicApp'!$U$317:$U$49628,$S22,'CALC; EconomicApp'!N$317:N$49628) -> 0 | N22: =SUMIF('CALC; EconomicApp'!$U$317:$U$49628,$S22,'CALC; EconomicApp'!O$317:O$49628) -> 0 | O22: =SUMIF('CALC; EconomicApp'!$U$317:$U$49628,$S22,'CALC; EconomicApp'!P$317:P$49628) -> 0 | P22: =SUMIF('CALC; EconomicApp'!$U$317:$U$49628,$S22,'CALC; EconomicApp'!Q$317:Q$49628) -> 0 | Q22: =SUMIF('CALC; EconomicApp'!$U$317:$U$49628,$S22,'CALC; EconomicApp'!R$317:R$49628) -> 0 | S22: =$T$4&C22 -> 
C23: ='INPT; BEIS'!$B$33 -> HCA Cost of data gathering equipment | D23: £ | H23: =SUMIF('CALC; EconomicApp'!$U$317:$U$49628,$S23,'CALC; EconomicApp'!I$317:I$49628) -> 0 | I23: =SUMIF('CALC; EconomicApp'!$U$317:$U$49628,$S23,'CALC; EconomicApp'!J$317:J$49628) -> 0 | J23: =SUMIF('CALC; EconomicApp'!$U$317:$U$49628,$S23,'CALC; EconomicApp'!K$317:K$49628) -> 0 | K23: =SUMIF('CALC; EconomicApp'!$U$317:$U$49628,$S23,'CALC; EconomicApp'!L$317:L$49628) -> 0 | L23: =SUMIF('CALC; EconomicApp'!$U$317:$U$49628,$S23,'CALC; EconomicApp'!M$317:M$49628) -> 0 | M23: =SUMIF('CALC; EconomicApp'!$U$317:$U$49628,$S23,'CALC; EconomicApp'!N$317:N$49628) -> 0 | N23: =SUMIF('CALC; EconomicApp'!$U$317:$U$49628,$S23,'CALC; EconomicApp'!O$317:O$49628) -> 0 | O23: =SUMIF('CALC; EconomicApp'!$U$317:$U$49628,$S23,'CALC; EconomicApp'!P$317:P$49628) -> 0 | P23: =SUMIF('CALC; EconomicApp'!$U$317:$U$49628,$S23,'CALC; EconomicApp'!Q$317:Q$49628) -> 0 | Q23: =SUMIF('CALC; EconomicApp'!$U$317:$U$49628,$S23,'CALC; EconomicApp'!R$317:R$49628) -> 0 | S23: =$T$4&C23 -> 
C24: ='INPT; BEIS'!$B$22 -> HCA Cost of TRVs | D24: £ | H24: =SUMIF('CALC; EconomicApp'!$U$317:$U$49628,$S24,'CALC; EconomicApp'!I$317:I$49628) -> 0 | I24: =SUMIF('CALC; EconomicApp'!$U$317:$U$49628,$S24,'CALC; EconomicApp'!J$317:J$49628) -> 0 | J24: =SUMIF('CALC; EconomicApp'!$U$317:$U$49628,$S24,'CALC; EconomicApp'!K$317:K$49628) -> 0 | K24: =SUMIF('CALC; EconomicApp'!$U$317:$U$49628,$S24,'CALC; EconomicApp'!L$317:L$49628) -> 0 | L24: =SUMIF('CALC; EconomicApp'!$U$317:$U$49628,$S24,'CALC; EconomicApp'!M$317:M$49628) -> 0 | M24: =SUMIF('CALC; EconomicApp'!$U$317:$U$49628,$S24,'CALC; EconomicApp'!N$317:N$49628) -> 0 | N24: =SUMIF('CALC; EconomicApp'!$U$317:$U$49628,$S24,'CALC; EconomicApp'!O$317:O$49628) -> 0 | O24: =SUMIF('CALC; EconomicApp'!$U$317:$U$49628,$S24,'CALC; EconomicApp'!P$317:P$49628) -> 0 | P24: =SUMIF('CALC; EconomicApp'!$U$317:$U$49628,$S24,'CALC; EconomicApp'!Q$317:Q$49628) -> 0 | Q24: =SUMIF('CALC; EconomicApp'!$U$317:$U$49628,$S24,'CALC; EconomicApp'!R$317:R$49628) -> 0 | S24: =$T$4&C24 -> 
C25: ='INPT; BEIS'!$B$35 -> Annual HCA operational costs (incl. billing) | D25: £ | H25: =SUMIF('CALC; EconomicApp'!$U$317:$U$49628,$S25,'CALC; EconomicApp'!I$317:I$49628) -> 0 | I25: =SUMIF('CALC; EconomicApp'!$U$317:$U$49628,$S25,'CALC; EconomicApp'!J$317:J$49628) -> 0 | J25: =SUMIF('CALC; EconomicApp'!$U$317:$U$49628,$S25,'CALC; EconomicApp'!K$317:K$49628) -> 0 | K25: =SUMIF('CALC; EconomicApp'!$U$317:$U$49628,$S25,'CALC; EconomicApp'!L$317:L$49628) -> 0 | L25: =SUMIF('CALC; EconomicApp'!$U$317:$U$49628,$S25,'CALC; EconomicApp'!M$317:M$49628) -> 0 | M25: =SUMIF('CALC; EconomicApp'!$U$317:$U$49628,$S25,'CALC; EconomicApp'!N$317:N$49628) -> 0 | N25: =SUMIF('CALC; EconomicApp'!$U$317:$U$49628,$S25,'CALC; EconomicApp'!O$317:O$49628) -> 0 | O25: =SUMIF('CALC; EconomicApp'!$U$317:$U$49628,$S25,'CALC; EconomicApp'!P$317:P$49628) -> 0 | P25: =SUMIF('CALC; EconomicApp'!$U$317:$U$49628,$S25,'CALC; EconomicApp'!Q$317:Q$49628) -> 0 | Q25: =SUMIF('CALC; EconomicApp'!$U$317:$U$49628,$S25,'CALC; EconomicApp'!R$317:R$49628) -> 0 | S25: =$T$4&C25 -> 
C26: User entered additional costs not included in tool | D26: £
C28: 10 year cash flows | D28: £ | H28: =SUM(H20:H26) -> 0 | I28: =SUM(I20:I26) -> 0 | J28: 0 | K28: 0 | L28: 0 | M28: 0 | N28: 0 | O28: 0 | P28: 0 | Q28: 0
C29: Discount rate | D29: Factor | H29: ='CALC; EconomicApp'!I$315 -> 0.9661835749 | I29: ='CALC; EconomicApp'!J$315 -> 0.9335107004 | J29: ='CALC; EconomicApp'!K$315 -> 0.9019427057 | K29: ='CALC; EconomicApp'!L$315 -> 0.8714422277 | L29: ='CALC; EconomicApp'!M$315 -> 0.8419731669 | M29: ='CALC; EconomicApp'!N$315 -> 0.8135006443 | N29: ='CALC; EconomicApp'!O$315 -> 0.7859909607 | O29: ='CALC; EconomicApp'!P$315 -> 0.7594115562 | P29: ='CALC; EconomicApp'!Q$315 -> 0.7337309722 | Q29: ='CALC; EconomicApp'!R$315 -> 0.7089188137
C30: Discounted 10 year cash flows | D30: £ NPV | F30: =SUM(H30:Q30) -> 0 | H30: =H28*H29 -> 0 | I30: =I28*I29 -> 0 | J30: =J28*J29 -> 0 | K30: =K28*K29 -> 0 | L30: =L28*L29 -> 0 | M30: =M28*M29 -> 0 | N30: =N28*N29 -> 0 | O30: =O28*O29 -> 0 | P30: =P28*P29 -> 0 | Q30: =Q28*Q29 -> 0

Sheet OUTP; OPSS (hidden)
A1: =RIGHT(CELL("filename", A1), LEN(CELL("filename", A1)) - SEARCH("]", CELL("filename", A1))) -> OUTP; OPSS
B3: SUMMARY
E4: Variance | F4: Highlighted?
B6: Demand vs. fuel check | D6: kWh | E6: =F24 -> 0 | F6: =J24 -> 0
B7: Cost of fuel entered | D7: £ | E7: =F82 -> 0 | F7: =J82 -> 0
B10: CALCULATIONS
B12: Building # | C12: # | L12: =K12+1 -> 1 | M12: =L12+1 -> 2 | N12: 3 | O12: 4 | P12: 5 | Q12: 6 | R12: 7 | S12: 8 | T12: 9 | U12: 10 | V12: 11 | W12: 12 | X12: 13 | Y12: 14 | Z12: 15 | AA12: 16 | AB12: 17 | AC12: 18 | AD12: 19 | AE12: 20 | AF12: 21 | AG12: 22 | AH12: 23 | AI12: 24 | AJ12: 25 | AK12: 26 | AL12: 27 | AM12: 28 | AN12: 29 | AO12: 30 | AP12: 31 | AQ12: 32 | AR12: 33 | AS12: 34 | AT12: 35 | AU12: 36 | AV12: 37 | AW12: 38 | AX12: 39 | AY12: 40 | AZ12: 41 | BA12: 42 | BB12: 43 | BC12: 44 | BD12: 45 | BE12: 46 | BF12: 47 | BG12: 48 | BH12: 49 | BI12: 50 | BJ12: 51 | BK12: 52 | BL12: 53 | BM12: 54 | BN12: 55 | BO12: 56 | BP12: 57 | BQ12: 58 | BR12: 59 | BS12: 60 | BT12: 61 | BU12: 62 | BV12: 63 | BW12: 64 | BX12: 65 | BY12: =BX12+1 -> 66 | BZ12: 67 | CA12: 68 | CB12: 69 | CC12: 70 | CD12: 71 | CE12: 72 | CF12: 73 | CG12: 74 | CH12: 75 | CI12: 76 | CJ12: 77 | CK12: 78 | CL12: 79 | CM12: 80 | CN12: 81 | CO12: 82 | CP12: 83 | CQ12: 84 | CR12: 85 | CS12: 86 | CT12: 87 | CU12: 88 | CV12: 89 | CW12: 90 | CX12: 91 | CY12: 92 | CZ12: 93 | DA12: 94 | DB12: 95 | DC12: 96 | DD12: 97 | DE12: 98 | DF12: 99 | DG12: 100 | DH12: 101 | DI12: 102 | DJ12: 103 | DK12: 104 | DL12: 105 | DM12: 106 | DN12: 107 | DO12: 108 | DP12: 109 | DQ12: 110 | DR12: 111 | DS12: 112 | DT12: 113 | DU12: 114 | DV12: 115 | DW12: 116 | DX12: 117 | DY12: 118 | DZ12: 119 | EA12: 120 | EB12: 121 | EC12: 122 | ED12: 123 | EE12: 124 | EF12: 125 | EG12: 126 | EH12: 127 | EI12: 128 | EJ12: 129 | EK12: =EJ12+1 -> 130 | EL12: 131 | EM12: 132 | EN12: 133 | EO12: 134 | EP12: 135 | EQ12: 136 | ER12: 137 | ES12: 138 | ET12: 139 | EU12: 140 | EV12: 141 | EW12: 142 | EX12: 143 | EY12: 144 | EZ12: 145 | FA12: 146 | FB12: 147 | FC12: 148 | FD12: 149 | FE12: 150 | FF12: 151 | FG12: 152 | FH12: 153 | FI12: 154 | FJ12: 155 | FK12: 156 | FL12: 157 | FM12: 158 | FN12: 159 | FO12: 160 | FP12: 161 | FQ12: 162 | FR12: 163 | FS12: 164 | FT12: 165 | FU12: 166 | FV12: 167 | FW12: 168 | FX12: 169 | FY12: 170 | FZ12: 171 | GA12: 172 | GB12: 173 | GC12: 174 | GD12: 175 | GE12: 176 | GF12: 177 | GG12: 178 | GH12: 179 | GI12: 180 | GJ12: 181 | GK12: 182 | GL12: 183 | GM12: 184 | GN12: 185 | GO12: 186 | GP12: 187 | GQ12: 188 | GR12: 189 | GS12: 190 | GT12: 191 | GU12: 192 | GV12: 193 | GW12: =GV12+1 -> 194 | GX12: 195 | GY12: 196 | GZ12: 197 | HA12: 198 | HB12: 199 | HC12: 200
B13: Has fuel been entered by user? | C13: T/F | L13: ='OUTP; Integrity'!P4 -> 0 | M13: ='OUTP; Integrity'!Q4 -> 0 | N13: ='OUTP; Integrity'!R4 -> 0 | O13: ='OUTP; Integrity'!S4 -> 0 | P13: ='OUTP; Integrity'!T4 -> 0 | Q13: ='OUTP; Integrity'!U4 -> 0 | R13: ='OUTP; Integrity'!V4 -> 0 | S13: ='OUTP; Integrity'!W4 -> 0 | T13: ='OUTP; Integrity'!X4 -> 0 | U13: ='OUTP; Integrity'!Y4 -> 0 | V13: ='OUTP; Integrity'!Z4 -> 0 | W13: ='OUTP; Integrity'!AA4 -> 0 | X13: ='OUTP; Integrity'!AB4 -> 0 | Y13: ='OUTP; Integrity'!AC4 -> 0 | Z13: ='OUTP; Integrity'!AD4 -> 0 | AA13: ='OUTP; Integrity'!AE4 -> 0 | AB13: ='OUTP; Integrity'!AF4 -> 0 | AC13: ='OUTP; Integrity'!AG4 -> 0 | AD13: ='OUTP; Integrity'!AH4 -> 0 | AE13: ='OUTP; Integrity'!AI4 -> 0 | AF13: ='OUTP; Integrity'!AJ4 -> 0 | AG13: ='OUTP; Integrity'!AK4 -> 0 | AH13: ='OUTP; Integrity'!AL4 -> 0 | AI13: ='OUTP; Integrity'!AM4 -> 0 | AJ13: ='OUTP; Integrity'!AN4 -> 0 | AK13: ='OUTP; Integrity'!AO4 -> 0 | AL13: ='OUTP; Integrity'!AP4 -> 0 | AM13: ='OUTP; Integrity'!AQ4 -> 0 | AN13: ='OUTP; Integrity'!AR4 -> 0 | AO13: ='OUTP; Integrity'!AS4 -> 0 | AP13: ='OUTP; Integrity'!AT4 -> 0 | AQ13: ='OUTP; Integrity'!AU4 -> 0 | AR13: ='OUTP; Integrity'!AV4 -> 0 | AS13: ='OUTP; Integrity'!AW4 -> 0 | AT13: ='OUTP; Integrity'!AX4 -> 0 | AU13: ='OUTP; Integrity'!AY4 -> 0 | AV13: ='OUTP; Integrity'!AZ4 -> 0 | AW13: ='OUTP; Integrity'!BA4 -> 0 | AX13: ='OUTP; Integrity'!BB4 -> 0 | AY13: ='OUTP; Integrity'!BC4 -> 0 | AZ13: ='OUTP; Integrity'!BD4 -> 0 | BA13: ='OUTP; Integrity'!BE4 -> 0 | BB13: ='OUTP; Integrity'!BF4 -> 0 | BC13: ='OUTP; Integrity'!BG4 -> 0 | BD13: ='OUTP; Integrity'!BH4 -> 0 | BE13: ='OUTP; Integrity'!BI4 -> 0 | BF13: ='OUTP; Integrity'!BJ4 -> 0 | BG13: ='OUTP; Integrity'!BK4 -> 0 | BH13: ='OUTP; Integrity'!BL4 -> 0 | BI13: ='OUTP; Integrity'!BM4 -> 0 | BJ13: ='OUTP; Integrity'!BN4 -> 0 | BK13: ='OUTP; Integrity'!BO4 -> 0 | BL13: ='OUTP; Integrity'!BP4 -> 0 | BM13: ='OUTP; Integrity'!BQ4 -> 0 | BN13: ='OUTP; Integrity'!BR4 -> 0 | BO13: ='OUTP; Integrity'!BS4 -> 0 | BP13: ='OUTP; Integrity'!BT4 -> 0 | BQ13: ='OUTP; Integrity'!BU4 -> 0 | BR13: ='OUTP; Integrity'!BV4 -> 0 | BS13: ='OUTP; Integrity'!BW4 -> 0 | BT13: ='OUTP; Integrity'!BX4 -> 0 | BU13: ='OUTP; Integrity'!BY4 -> 0 | BV13: ='OUTP; Integrity'!BZ4 -> 0 | BW13: ='OUTP; Integrity'!CA4 -> 0 | BX13: ='OUTP; Integrity'!CB4 -> 0 | BY13: ='OUTP; Integrity'!CC4 -> 0 | BZ13: ='OUTP; Integrity'!CD4 -> 0 | CA13: ='OUTP; Integrity'!CE4 -> 0 | CB13: ='OUTP; Integrity'!CF4 -> 0 | CC13: ='OUTP; Integrity'!CG4 -> 0 | CD13: ='OUTP; Integrity'!CH4 -> 0 | CE13: ='OUTP; Integrity'!CI4 -> 0 | CF13: ='OUTP; Integrity'!CJ4 -> 0 | CG13: ='OUTP; Integrity'!CK4 -> 0 | CH13: ='OUTP; Integrity'!CL4 -> 0 | CI13: ='OUTP; Integrity'!CM4 -> 0 | CJ13: ='OUTP; Integrity'!CN4 -> 0 | CK13: ='OUTP; Integrity'!CO4 -> 0 | CL13: ='OUTP; Integrity'!CP4 -> 0 | CM13: ='OUTP; Integrity'!CQ4 -> 0 | CN13: ='OUTP; Integrity'!CR4 -> 0 | CO13: ='OUTP; Integrity'!CS4 -> 0 | CP13: ='OUTP; Integrity'!CT4 -> 0 | CQ13: ='OUTP; Integrity'!CU4 -> 0 | CR13: ='OUTP; Integrity'!CV4 -> 0 | CS13: ='OUTP; Integrity'!CW4 -> 0 | CT13: ='OUTP; Integrity'!CX4 -> 0 | CU13: ='OUTP; Integrity'!CY4 -> 0 | CV13: ='OUTP; Integrity'!CZ4 -> 0 | CW13: ='OUTP; Integrity'!DA4 -> 0 | CX13: ='OUTP; Integrity'!DB4 -> 0 | CY13: ='OUTP; Integrity'!DC4 -> 0 | CZ13: ='OUTP; Integrity'!DD4 -> 0 | DA13: ='OUTP; Integrity'!DE4 -> 0 | DB13: ='OUTP; Integrity'!DF4 -> 0 | DC13: ='OUTP; Integrity'!DG4 -> 0 | DD13: ='OUTP; Integrity'!DH4 -> 0 | DE13: ='OUTP; Integrity'!DI4 -> 0 | DF13: ='OUTP; Integrity'!DJ4 -> 0 | DG13: ='OUTP; Integrity'!DK4 -> 0 | DH13: ='OUTP; Integrity'!DL4 -> 0 | DI13: ='OUTP; Integrity'!DM4 -> 0 | DJ13: ='OUTP; Integrity'!DN4 -> 0 | DK13: ='OUTP; Integrity'!DO4 -> 0 | DL13: ='OUTP; Integrity'!DP4 -> 0 | DM13: ='OUTP; Integrity'!DQ4 -> 0 | DN13: ='OUTP; Integrity'!DR4 -> 0 | DO13: ='OUTP; Integrity'!DS4 -> 0 | DP13: ='OUTP; Integrity'!DT4 -> 0 | DQ13: ='OUTP; Integrity'!DU4 -> 0 | DR13: ='OUTP; Integrity'!DV4 -> 0 | DS13: ='OUTP; Integrity'!DW4 -> 0 | DT13: ='OUTP; Integrity'!DX4 -> 0 | DU13: ='OUTP; Integrity'!DY4 -> 0 | DV13: ='OUTP; Integrity'!DZ4 -> 0 | DW13: ='OUTP; Integrity'!EA4 -> 0 | DX13: ='OUTP; Integrity'!EB4 -> 0 | DY13: ='OUTP; Integrity'!EC4 -> 0 | DZ13: ='OUTP; Integrity'!ED4 -> 0 | EA13: ='OUTP; Integrity'!EE4 -> 0 | EB13: ='OUTP; Integrity'!EF4 -> 0 | EC13: ='OUTP; Integrity'!EG4 -> 0 | ED13: ='OUTP; Integrity'!EH4 -> 0 | EE13: ='OUTP; Integrity'!EI4 -> 0 | EF13: ='OUTP; Integrity'!EJ4 -> 0 | EG13: ='OUTP; Integrity'!EK4 -> 0 | EH13: ='OUTP; Integrity'!EL4 -> 0 | EI13: ='OUTP; Integrity'!EM4 -> 0 | EJ13: ='OUTP; Integrity'!EN4 -> 0 | EK13: ='OUTP; Integrity'!EO4 -> 0 | EL13: ='OUTP; Integrity'!EP4 -> 0 | EM13: ='OUTP; Integrity'!EQ4 -> 0 | EN13: ='OUTP; Integrity'!ER4 -> 0 | EO13: ='OUTP; Integrity'!ES4 -> 0 | EP13: ='OUTP; Integrity'!ET4 -> 0 | EQ13: ='OUTP; Integrity'!EU4 -> 0 | ER13: ='OUTP; Integrity'!EV4 -> 0 | ES13: ='OUTP; Integrity'!EW4 -> 0 | ET13: ='OUTP; Integrity'!EX4 -> 0 | EU13: ='OUTP; Integrity'!EY4 -> 0 | EV13: ='OUTP; Integrity'!EZ4 -> 0 | EW13: ='OUTP; Integrity'!FA4 -> 0 | EX13: ='OUTP; Integrity'!FB4 -> 0 | EY13: ='OUTP; Integrity'!FC4 -> 0 | EZ13: ='OUTP; Integrity'!FD4 -> 0 | FA13: ='OUTP; Integrity'!FE4 -> 0 | FB13: ='OUTP; Integrity'!FF4 -> 0 | FC13: ='OUTP; Integrity'!FG4 -> 0 | FD13: ='OUTP; Integrity'!FH4 -> 0 | FE13: ='OUTP; Integrity'!FI4 -> 0 | FF13: ='OUTP; Integrity'!FJ4 -> 0 | FG13: ='OUTP; Integrity'!FK4 -> 0 | FH13: ='OUTP; Integrity'!FL4 -> 0 | FI13: ='OUTP; Integrity'!FM4 -> 0 | FJ13: ='OUTP; Integrity'!FN4 -> 0 | FK13: ='OUTP; Integrity'!FO4 -> 0 | FL13: ='OUTP; Integrity'!FP4 -> 0 | FM13: ='OUTP; Integrity'!FQ4 -> 0 | FN13: ='OUTP; Integrity'!FR4 -> 0 | FO13: ='OUTP; Integrity'!FS4 -> 0 | FP13: ='OUTP; Integrity'!FT4 -> 0 | FQ13: ='OUTP; Integrity'!FU4 -> 0 | FR13: ='OUTP; Integrity'!FV4 -> 0 | FS13: ='OUTP; Integrity'!FW4 -> 0 | FT13: ='OUTP; Integrity'!FX4 -> 0 | FU13: ='OUTP; Integrity'!FY4 -> 0 | FV13: ='OUTP; Integrity'!FZ4 -> 0 | FW13: ='OUTP; Integrity'!GA4 -> 0 | FX13: ='OUTP; Integrity'!GB4 -> 0 | FY13: ='OUTP; Integrity'!GC4 -> 0 | FZ13: ='OUTP; Integrity'!GD4 -> 0 | GA13: ='OUTP; Integrity'!GE4 -> 0 | GB13: ='OUTP; Integrity'!GF4 -> 0 | GC13: ='OUTP; Integrity'!GG4 -> 0 | GD13: ='OUTP; Integrity'!GH4 -> 0 | GE13: ='OUTP; Integrity'!GI4 -> 0 | GF13: ='OUTP; Integrity'!GJ4 -> 0 | GG13: ='OUTP; Integrity'!GK4 -> 0 | GH13: ='OUTP; Integrity'!GL4 -> 0 | GI13: ='OUTP; Integrity'!GM4 -> 0 | GJ13: ='OUTP; Integrity'!GN4 -> 0 | GK13: ='OUTP; Integrity'!GO4 -> 0 | GL13: ='OUTP; Integrity'!GP4 -> 0 | GM13: ='OUTP; Integrity'!GQ4 -> 0 | GN13: ='OUTP; Integrity'!GR4 -> 0 | GO13: ='OUTP; Integrity'!GS4 -> 0 | GP13: ='OUTP; Integrity'!GT4 -> 0 | GQ13: ='OUTP; Integrity'!GU4 -> 0 | GR13: ='OUTP; Integrity'!GV4 -> 0 | GS13: ='OUTP; Integrity'!GW4 -> 0 | GT13: ='OUTP; Integrity'!GX4 -> 0 | GU13: ='OUTP; Integrity'!GY4 -> 0 | GV13: ='OUTP; Integrity'!GZ4 -> 0 | GW13: ='OUTP; Integrity'!HA4 -> 0 | GX13: ='OUTP; Integrity'!HB4 -> 0 | GY13: ='OUTP; Integrity'!HC4 -> 0 | GZ13: ='OUTP; Integrity'!HD4 -> 0 | HA13: ='OUTP; Integrity'!HE4 -> 0 | HB13: ='OUTP; Integrity'!HF4 -> 0 | HC13: ='OUTP; Integrity'!HG4 -> 0
B15: DEMAND VS USER FUEL INPUT
B17: Estimated building heat demand | C17: kWh | L17: ='OUTP; Integrity'!P6 -> 0 | M17: ='OUTP; Integrity'!Q6 -> 0 | N17: ='OUTP; Integrity'!R6 -> 0 | O17: ='OUTP; Integrity'!S6 -> 0 | P17: ='OUTP; Integrity'!T6 -> 0 | Q17: ='OUTP; Integrity'!U6 -> 0 | R17: ='OUTP; Integrity'!V6 -> 0 | S17: ='OUTP; Integrity'!W6 -> 0 | T17: ='OUTP; Integrity'!X6 -> 0 | U17: ='OUTP; Integrity'!Y6 -> 0 | V17: ='OUTP; Integrity'!Z6 -> 0 | W17: ='OUTP; Integrity'!AA6 -> 0 | X17: ='OUTP; Integrity'!AB6 -> 0 | Y17: ='OUTP; Integrity'!AC6 -> 0 | Z17: ='OUTP; Integrity'!AD6 -> 0 | AA17: ='OUTP; Integrity'!AE6 -> 0 | AB17: ='OUTP; Integrity'!AF6 -> 0 | AC17: ='OUTP; Integrity'!AG6 -> 0 | AD17: ='OUTP; Integrity'!AH6 -> 0 | AE17: ='OUTP; Integrity'!AI6 -> 0 | AF17: ='OUTP; Integrity'!AJ6 -> 0 | AG17: ='OUTP; Integrity'!AK6 -> 0 | AH17: ='OUTP; Integrity'!AL6 -> 0 | AI17: ='OUTP; Integrity'!AM6 -> 0 | AJ17: ='OUTP; Integrity'!AN6 -> 0 | AK17: ='OUTP; Integrity'!AO6 -> 0 | AL17: ='OUTP; Integrity'!AP6 -> 0 | AM17: ='OUTP; Integrity'!AQ6 -> 0 | AN17: ='OUTP; Integrity'!AR6 -> 0 | AO17: ='OUTP; Integrity'!AS6 -> 0 | AP17: ='OUTP; Integrity'!AT6 -> 0 | AQ17: ='OUTP; Integrity'!AU6 -> 0 | AR17: ='OUTP; Integrity'!AV6 -> 0 | AS17: ='OUTP; Integrity'!AW6 -> 0 | AT17: ='OUTP; Integrity'!AX6 -> 0 | AU17: ='OUTP; Integrity'!AY6 -> 0 | AV17: ='OUTP; Integrity'!AZ6 -> 0 | AW17: ='OUTP; Integrity'!BA6 -> 0 | AX17: ='OUTP; Integrity'!BB6 -> 0 | AY17: ='OUTP; Integrity'!BC6 -> 0 | AZ17: ='OUTP; Integrity'!BD6 -> 0 | BA17: ='OUTP; Integrity'!BE6 -> 0 | BB17: ='OUTP; Integrity'!BF6 -> 0 | BC17: ='OUTP; Integrity'!BG6 -> 0 | BD17: ='OUTP; Integrity'!BH6 -> 0 | BE17: ='OUTP; Integrity'!BI6 -> 0 | BF17: ='OUTP; Integrity'!BJ6 -> 0 | BG17: ='OUTP; Integrity'!BK6 -> 0 | BH17: ='OUTP; Integrity'!BL6 -> 0 | BI17: ='OUTP; Integrity'!BM6 -> 0 | BJ17: ='OUTP; Integrity'!BN6 -> 0 | BK17: ='OUTP; Integrity'!BO6 -> 0 | BL17: ='OUTP; Integrity'!BP6 -> 0 | BM17: ='OUTP; Integrity'!BQ6 -> 0 | BN17: ='OUTP; Integrity'!BR6 -> 0 | BO17: ='OUTP; Integrity'!BS6 -> 0 | BP17: ='OUTP; Integrity'!BT6 -> 0 | BQ17: ='OUTP; Integrity'!BU6 -> 0 | BR17: ='OUTP; Integrity'!BV6 -> 0 | BS17: ='OUTP; Integrity'!BW6 -> 0 | BT17: ='OUTP; Integrity'!BX6 -> 0 | BU17: ='OUTP; Integrity'!BY6 -> 0 | BV17: ='OUTP; Integrity'!BZ6 -> 0 | BW17: ='OUTP; Integrity'!CA6 -> 0 | BX17: ='OUTP; Integrity'!CB6 -> 0 | BY17: ='OUTP; Integrity'!CC6 -> 0 | BZ17: ='OUTP; Integrity'!CD6 -> 0 | CA17: ='OUTP; Integrity'!CE6 -> 0 | CB17: ='OUTP; Integrity'!CF6 -> 0 | CC17: ='OUTP; Integrity'!CG6 -> 0 | CD17: ='OUTP; Integrity'!CH6 -> 0 | CE17: ='OUTP; Integrity'!CI6 -> 0 | CF17: ='OUTP; Integrity'!CJ6 -> 0 | CG17: ='OUTP; Integrity'!CK6 -> 0 | CH17: ='OUTP; Integrity'!CL6 -> 0 | CI17: ='OUTP; Integrity'!CM6 -> 0 | CJ17: ='OUTP; Integrity'!CN6 -> 0 | CK17: ='OUTP; Integrity'!CO6 -> 0 | CL17: ='OUTP; Integrity'!CP6 -> 0 | CM17: ='OUTP; Integrity'!CQ6 -> 0 | CN17: ='OUTP; Integrity'!CR6 -> 0 | CO17: ='OUTP; Integrity'!CS6 -> 0 | CP17: ='OUTP; Integrity'!CT6 -> 0 | CQ17: ='OUTP; Integrity'!CU6 -> 0 | CR17: ='OUTP; Integrity'!CV6 -> 0 | CS17: ='OUTP; Integrity'!CW6 -> 0 | CT17: ='OUTP; Integrity'!CX6 -> 0 | CU17: ='OUTP; Integrity'!CY6 -> 0 | CV17: ='OUTP; Integrity'!CZ6 -> 0 | CW17: ='OUTP; Integrity'!DA6 -> 0 | CX17: ='OUTP; Integrity'!DB6 -> 0 | CY17: ='OUTP; Integrity'!DC6 -> 0 | CZ17: ='OUTP; Integrity'!DD6 -> 0 | DA17: ='OUTP; Integrity'!DE6 -> 0 | DB17: ='OUTP; Integrity'!DF6 -> 0 | DC17: ='OUTP; Integrity'!DG6 -> 0 | DD17: ='OUTP; Integrity'!DH6 -> 0 | DE17: ='OUTP; Integrity'!DI6 -> 0 | DF17: ='OUTP; Integrity'!DJ6 -> 0 | DG17: ='OUTP; Integrity'!DK6 -> 0 | DH17: ='OUTP; Integrity'!DL6 -> 0 | DI17: ='OUTP; Integrity'!DM6 -> 0 | DJ17: ='OUTP; Integrity'!DN6 -> 0 | DK17: ='OUTP; Integrity'!DO6 -> 0 | DL17: ='OUTP; Integrity'!DP6 -> 0 | DM17: ='OUTP; Integrity'!DQ6 -> 0 | DN17: ='OUTP; Integrity'!DR6 -> 0 | DO17: ='OUTP; Integrity'!DS6 -> 0 | DP17: ='OUTP; Integrity'!DT6 -> 0 | DQ17: ='OUTP; Integrity'!DU6 -> 0 | DR17: ='OUTP; Integrity'!DV6 -> 0 | DS17: ='OUTP; Integrity'!DW6 -> 0 | DT17: ='OUTP; Integrity'!DX6 -> 0 | DU17: ='OUTP; Integrity'!DY6 -> 0 | DV17: ='OUTP; Integrity'!DZ6 -> 0 | DW17: ='OUTP; Integrity'!EA6 -> 0 | DX17: ='OUTP; Integrity'!EB6 -> 0 | DY17: ='OUTP; Integrity'!EC6 -> 0 | DZ17: ='OUTP; Integrity'!ED6 -> 0 | EA17: ='OUTP; Integrity'!EE6 -> 0 | EB17: ='OUTP; Integrity'!EF6 -> 0 | EC17: ='OUTP; Integrity'!EG6 -> 0 | ED17: ='OUTP; Integrity'!EH6 -> 0 | EE17: ='OUTP; Integrity'!EI6 -> 0 | EF17: ='OUTP; Integrity'!EJ6 -> 0 | EG17: ='OUTP; Integrity'!EK6 -> 0 | EH17: ='OUTP; Integrity'!EL6 -> 0 | EI17: ='OUTP; Integrity'!EM6 -> 0 | EJ17: ='OUTP; Integrity'!EN6 -> 0 | EK17: ='OUTP; Integrity'!EO6 -> 0 | EL17: ='OUTP; Integrity'!EP6 -> 0 | EM17: ='OUTP; Integrity'!EQ6 -> 0 | EN17: ='OUTP; Integrity'!ER6 -> 0 | EO17: ='OUTP; Integrity'!ES6 -> 0 | EP17: ='OUTP; Integrity'!ET6 -> 0 | EQ17: ='OUTP; Integrity'!EU6 -> 0 | ER17: ='OUTP; Integrity'!EV6 -> 0 | ES17: ='OUTP; Integrity'!EW6 -> 0 | ET17: ='OUTP; Integrity'!EX6 -> 0 | EU17: ='OUTP; Integrity'!EY6 -> 0 | EV17: ='OUTP; Integrity'!EZ6 -> 0 | EW17: ='OUTP; Integrity'!FA6 -> 0 | EX17: ='OUTP; Integrity'!FB6 -> 0 | EY17: ='OUTP; Integrity'!FC6 -> 0 | EZ17: ='OUTP; Integrity'!FD6 -> 0 | FA17: ='OUTP; Integrity'!FE6 -> 0 | FB17: ='OUTP; Integrity'!FF6 -> 0 | FC17: ='OUTP; Integrity'!FG6 -> 0 | FD17: ='OUTP; Integrity'!FH6 -> 0 | FE17: ='OUTP; Integrity'!FI6 -> 0 | FF17: ='OUTP; Integrity'!FJ6 -> 0 | FG17: ='OUTP; Integrity'!FK6 -> 0 | FH17: ='OUTP; Integrity'!FL6 -> 0 | FI17: ='OUTP; Integrity'!FM6 -> 0 | FJ17: ='OUTP; Integrity'!FN6 -> 0 | FK17: ='OUTP; Integrity'!FO6 -> 0 | FL17: ='OUTP; Integrity'!FP6 -> 0 | FM17: ='OUTP; Integrity'!FQ6 -> 0 | FN17: ='OUTP; Integrity'!FR6 -> 0 | FO17: ='OUTP; Integrity'!FS6 -> 0 | FP17: ='OUTP; Integrity'!FT6 -> 0 | FQ17: ='OUTP; Integrity'!FU6 -> 0 | FR17: ='OUTP; Integrity'!FV6 -> 0 | FS17: ='OUTP; Integrity'!FW6 -> 0 | FT17: ='OUTP; Integrity'!FX6 -> 0 | FU17: ='OUTP; Integrity'!FY6 -> 0 | FV17: ='OUTP; Integrity'!FZ6 -> 0 | FW17: ='OUTP; Integrity'!GA6 -> 0 | FX17: ='OUTP; Integrity'!GB6 -> 0 | FY17: ='OUTP; Integrity'!GC6 -> 0 | FZ17: ='OUTP; Integrity'!GD6 -> 0 | GA17: ='OUTP; Integrity'!GE6 -> 0 | GB17: ='OUTP; Integrity'!GF6 -> 0 | GC17: ='OUTP; Integrity'!GG6 -> 0 | GD17: ='OUTP; Integrity'!GH6 -> 0 | GE17: ='OUTP; Integrity'!GI6 -> 0 | GF17: ='OUTP; Integrity'!GJ6 -> 0 | GG17: ='OUTP; Integrity'!GK6 -> 0 | GH17: ='OUTP; Integrity'!GL6 -> 0 | GI17: ='OUTP; Integrity'!GM6 -> 0 | GJ17: ='OUTP; Integrity'!GN6 -> 0 | GK17: ='OUTP; Integrity'!GO6 -> 0 | GL17: ='OUTP; Integrity'!GP6 -> 0 | GM17: ='OUTP; Integrity'!GQ6 -> 0 | GN17: ='OUTP; Integrity'!GR6 -> 0 | GO17: ='OUTP; Integrity'!GS6 -> 0 | GP17: ='OUTP; Integrity'!GT6 -> 0 | GQ17: ='OUTP; Integrity'!GU6 -> 0 | GR17: ='OUTP; Integrity'!GV6 -> 0 | GS17: ='OUTP; Integrity'!GW6 -> 0 | GT17: ='OUTP; Integrity'!GX6 -> 0 | GU17: ='OUTP; Integrity'!GY6 -> 0 | GV17: ='OUTP; Integrity'!GZ6 -> 0 | GW17: ='OUTP; Integrity'!HA6 -> 0 | GX17: ='OUTP; Integrity'!HB6 -> 0 | GY17: ='OUTP; Integrity'!HC6 -> 0 | GZ17: ='OUTP; Integrity'!HD6 -> 0 | HA17: ='OUTP; Integrity'!HE6 -> 0 | HB17: ='OUTP; Integrity'!HF6 -> 0 | HC17: ='OUTP; Integrity'!HG6 -> 0
B18: Estimated building cooling demand | C18: kWh | L18: ='OUTP; Integrity'!P10 -> 0 | M18: ='OUTP; Integrity'!Q10 -> 0 | N18: ='OUTP; Integrity'!R10 -> 0 | O18: ='OUTP; Integrity'!S10 -> 0 | P18: ='OUTP; Integrity'!T10 -> 0 | Q18: ='OUTP; Integrity'!U10 -> 0 | R18: ='OUTP; Integrity'!V10 -> 0 | S18: ='OUTP; Integrity'!W10 -> 0 | T18: ='OUTP; Integrity'!X10 -> 0 | U18: ='OUTP; Integrity'!Y10 -> 0 | V18: ='OUTP; Integrity'!Z10 -> 0 | W18: ='OUTP; Integrity'!AA10 -> 0 | X18: ='OUTP; Integrity'!AB10 -> 0 | Y18: ='OUTP; Integrity'!AC10 -> 0 | Z18: ='OUTP; Integrity'!AD10 -> 0 | AA18: ='OUTP; Integrity'!AE10 -> 0 | AB18: ='OUTP; Integrity'!AF10 -> 0 | AC18: ='OUTP; Integrity'!AG10 -> 0 | AD18: ='OUTP; Integrity'!AH10 -> 0 | AE18: ='OUTP; Integrity'!AI10 -> 0 | AF18: ='OUTP; Integrity'!AJ10 -> 0 | AG18: ='OUTP; Integrity'!AK10 -> 0 | AH18: ='OUTP; Integrity'!AL10 -> 0 | AI18: ='OUTP; Integrity'!AM10 -> 0 | AJ18: ='OUTP; Integrity'!AN10 -> 0 | AK18: ='OUTP; Integrity'!AO10 -> 0 | AL18: ='OUTP; Integrity'!AP10 -> 0 | AM18: ='OUTP; Integrity'!AQ10 -> 0 | AN18: ='OUTP; Integrity'!AR10 -> 0 | AO18: ='OUTP; Integrity'!AS10 -> 0 | AP18: ='OUTP; Integrity'!AT10 -> 0 | AQ18: ='OUTP; Integrity'!AU10 -> 0 | AR18: ='OUTP; Integrity'!AV10 -> 0 | AS18: ='OUTP; Integrity'!AW10 -> 0 | AT18: ='OUTP; Integrity'!AX10 -> 0 | AU18: ='OUTP; Integrity'!AY10 -> 0 | AV18: ='OUTP; Integrity'!AZ10 -> 0 | AW18: ='OUTP; Integrity'!BA10 -> 0 | AX18: ='OUTP; Integrity'!BB10 -> 0 | AY18: ='OUTP; Integrity'!BC10 -> 0 | AZ18: ='OUTP; Integrity'!BD10 -> 0 | BA18: ='OUTP; Integrity'!BE10 -> 0 | BB18: ='OUTP; Integrity'!BF10 -> 0 | BC18: ='OUTP; Integrity'!BG10 -> 0 | BD18: ='OUTP; Integrity'!BH10 -> 0 | BE18: ='OUTP; Integrity'!BI10 -> 0 | BF18: ='OUTP; Integrity'!BJ10 -> 0 | BG18: ='OUTP; Integrity'!BK10 -> 0 | BH18: ='OUTP; Integrity'!BL10 -> 0 | BI18: ='OUTP; Integrity'!BM10 -> 0 | BJ18: ='OUTP; Integrity'!BN10 -> 0 | BK18: ='OUTP; Integrity'!BO10 -> 0 | BL18: ='OUTP; Integrity'!BP10 -> 0 | BM18: ='OUTP; Integrity'!BQ10 -> 0 | BN18: ='OUTP; Integrity'!BR10 -> 0 | BO18: ='OUTP; Integrity'!BS10 -> 0 | BP18: ='OUTP; Integrity'!BT10 -> 0 | BQ18: ='OUTP; Integrity'!BU10 -> 0 | BR18: ='OUTP; Integrity'!BV10 -> 0 | BS18: ='OUTP; Integrity'!BW10 -> 0 | BT18: ='OUTP; Integrity'!BX10 -> 0 | BU18: ='OUTP; Integrity'!BY10 -> 0 | BV18: ='OUTP; Integrity'!BZ10 -> 0 | BW18: ='OUTP; Integrity'!CA10 -> 0 | BX18: ='OUTP; Integrity'!CB10 -> 0 | BY18: ='OUTP; Integrity'!CC10 -> 0 | BZ18: ='OUTP; Integrity'!CD10 -> 0 | CA18: ='OUTP; Integrity'!CE10 -> 0 | CB18: ='OUTP; Integrity'!CF10 -> 0 | CC18: ='OUTP; Integrity'!CG10 -> 0 | CD18: ='OUTP; Integrity'!CH10 -> 0 | CE18: ='OUTP; Integrity'!CI10 -> 0 | CF18: ='OUTP; Integrity'!CJ10 -> 0 | CG18: ='OUTP; Integrity'!CK10 -> 0 | CH18: ='OUTP; Integrity'!CL10 -> 0 | CI18: ='OUTP; Integrity'!CM10 -> 0 | CJ18: ='OUTP; Integrity'!CN10 -> 0 | CK18: ='OUTP; Integrity'!CO10 -> 0 | CL18: ='OUTP; Integrity'!CP10 -> 0 | CM18: ='OUTP; Integrity'!CQ10 -> 0 | CN18: ='OUTP; Integrity'!CR10 -> 0 | CO18: ='OUTP; Integrity'!CS10 -> 0 | CP18: ='OUTP; Integrity'!CT10 -> 0 | CQ18: ='OUTP; Integrity'!CU10 -> 0 | CR18: ='OUTP; Integrity'!CV10 -> 0 | CS18: ='OUTP; Integrity'!CW10 -> 0 | CT18: ='OUTP; Integrity'!CX10 -> 0 | CU18: ='OUTP; Integrity'!CY10 -> 0 | CV18: ='OUTP; Integrity'!CZ10 -> 0 | CW18: ='OUTP; Integrity'!DA10 -> 0 | CX18: ='OUTP; Integrity'!DB10 -> 0 | CY18: ='OUTP; Integrity'!DC10 -> 0 | CZ18: ='OUTP; Integrity'!DD10 -> 0 | DA18: ='OUTP; Integrity'!DE10 -> 0 | DB18: ='OUTP; Integrity'!DF10 -> 0 | DC18: ='OUTP; Integrity'!DG10 -> 0 | DD18: ='OUTP; Integrity'!DH10 -> 0 | DE18: ='OUTP; Integrity'!DI10 -> 0 | DF18: ='OUTP; Integrity'!DJ10 -> 0 | DG18: ='OUTP; Integrity'!DK10 -> 0 | DH18: ='OUTP; Integrity'!DL10 -> 0 | DI18: ='OUTP; Integrity'!DM10 -> 0 | DJ18: ='OUTP; Integrity'!DN10 -> 0 | DK18: ='OUTP; Integrity'!DO10 -> 0 | DL18: ='OUTP; Integrity'!DP10 -> 0 | DM18: ='OUTP; Integrity'!DQ10 -> 0 | DN18: ='OUTP; Integrity'!DR10 -> 0 | DO18: ='OUTP; Integrity'!DS10 -> 0 | DP18: ='OUTP; Integrity'!DT10 -> 0 | DQ18: ='OUTP; Integrity'!DU10 -> 0 | DR18: ='OUTP; Integrity'!DV10 -> 0 | DS18: ='OUTP; Integrity'!DW10 -> 0 | DT18: ='OUTP; Integrity'!DX10 -> 0 | DU18: ='OUTP; Integrity'!DY10 -> 0 | DV18: ='OUTP; Integrity'!DZ10 -> 0 | DW18: ='OUTP; Integrity'!EA10 -> 0 | DX18: ='OUTP; Integrity'!EB10 -> 0 | DY18: ='OUTP; Integrity'!EC10 -> 0 | DZ18: ='OUTP; Integrity'!ED10 -> 0 | EA18: ='OUTP; Integrity'!EE10 -> 0 | EB18: ='OUTP; Integrity'!EF10 -> 0 | EC18: ='OUTP; Integrity'!EG10 -> 0 | ED18: ='OUTP; Integrity'!EH10 -> 0 | EE18: ='OUTP; Integrity'!EI10 -> 0 | EF18: ='OUTP; Integrity'!EJ10 -> 0 | EG18: ='OUTP; Integrity'!EK10 -> 0 | EH18: ='OUTP; Integrity'!EL10 -> 0 | EI18: ='OUTP; Integrity'!EM10 -> 0 | EJ18: ='OUTP; Integrity'!EN10 -> 0 | EK18: ='OUTP; Integrity'!EO10 -> 0 | EL18: ='OUTP; Integrity'!EP10 -> 0 | EM18: ='OUTP; Integrity'!EQ10 -> 0 | EN18: ='OUTP; Integrity'!ER10 -> 0 | EO18: ='OUTP; Integrity'!ES10 -> 0 | EP18: ='OUTP; Integrity'!ET10 -> 0 | EQ18: ='OUTP; Integrity'!EU10 -> 0 | ER18: ='OUTP; Integrity'!EV10 -> 0 | ES18: ='OUTP; Integrity'!EW10 -> 0 | ET18: ='OUTP; Integrity'!EX10 -> 0 | EU18: ='OUTP; Integrity'!EY10 -> 0 | EV18: ='OUTP; Integrity'!EZ10 -> 0 | EW18: ='OUTP; Integrity'!FA10 -> 0 | EX18: ='OUTP; Integrity'!FB10 -> 0 | EY18: ='OUTP; Integrity'!FC10 -> 0 | EZ18: ='OUTP; Integrity'!FD10 -> 0 | FA18: ='OUTP; Integrity'!FE10 -> 0 | FB18: ='OUTP; Integrity'!FF10 -> 0 | FC18: ='OUTP; Integrity'!FG10 -> 0 | FD18: ='OUTP; Integrity'!FH10 -> 0 | FE18: ='OUTP; Integrity'!FI10 -> 0 | FF18: ='OUTP; Integrity'!FJ10 -> 0 | FG18: ='OUTP; Integrity'!FK10 -> 0 | FH18: ='OUTP; Integrity'!FL10 -> 0 | FI18: ='OUTP; Integrity'!FM10 -> 0 | FJ18: ='OUTP; Integrity'!FN10 -> 0 | FK18: ='OUTP; Integrity'!FO10 -> 0 | FL18: ='OUTP; Integrity'!FP10 -> 0 | FM18: ='OUTP; Integrity'!FQ10 -> 0 | FN18: ='OUTP; Integrity'!FR10 -> 0 | FO18: ='OUTP; Integrity'!FS10 -> 0 | FP18: ='OUTP; Integrity'!FT10 -> 0 | FQ18: ='OUTP; Integrity'!FU10 -> 0 | FR18: ='OUTP; Integrity'!FV10 -> 0 | FS18: ='OUTP; Integrity'!FW10 -> 0 | FT18: ='OUTP; Integrity'!FX10 -> 0 | FU18: ='OUTP; Integrity'!FY10 -> 0 | FV18: ='OUTP; Integrity'!FZ10 -> 0 | FW18: ='OUTP; Integrity'!GA10 -> 0 | FX18: ='OUTP; Integrity'!GB10 -> 0 | FY18: ='OUTP; Integrity'!GC10 -> 0 | FZ18: ='OUTP; Integrity'!GD10 -> 0 | GA18: ='OUTP; Integrity'!GE10 -> 0 | GB18: ='OUTP; Integrity'!GF10 -> 0 | GC18: ='OUTP; Integrity'!GG10 -> 0 | GD18: ='OUTP; Integrity'!GH10 -> 0 | GE18: ='OUTP; Integrity'!GI10 -> 0 | GF18: ='OUTP; Integrity'!GJ10 -> 0 | GG18: ='OUTP; Integrity'!GK10 -> 0 | GH18: ='OUTP; Integrity'!GL10 -> 0 | GI18: ='OUTP; Integrity'!GM10 -> 0 | GJ18: ='OUTP; Integrity'!GN10 -> 0 | GK18: ='OUTP; Integrity'!GO10 -> 0 | GL18: ='OUTP; Integrity'!GP10 -> 0 | GM18: ='OUTP; Integrity'!GQ10 -> 0 | GN18: ='OUTP; Integrity'!GR10 -> 0 | GO18: ='OUTP; Integrity'!GS10 -> 0 | GP18: ='OUTP; Integrity'!GT10 -> 0 | GQ18: ='OUTP; Integrity'!GU10 -> 0 | GR18: ='OUTP; Integrity'!GV10 -> 0 | GS18: ='OUTP; Integrity'!GW10 -> 0 | GT18: ='OUTP; Integrity'!GX10 -> 0 | GU18: ='OUTP; Integrity'!GY10 -> 0 | GV18: ='OUTP; Integrity'!GZ10 -> 0 | GW18: ='OUTP; Integrity'!HA10 -> 0 | GX18: ='OUTP; Integrity'!HB10 -> 0 | GY18: ='OUTP; Integrity'!HC10 -> 0 | GZ18: ='OUTP; Integrity'!HD10 -> 0 | HA18: ='OUTP; Integrity'!HE10 -> 0 | HB18: ='OUTP; Integrity'!HF10 -> 0 | HC18: ='OUTP; Integrity'!HG10 -> 0
B19: Total estimated energy demand | C19: kWh | F19: =SUMIF($L$13:$HC$13,TRUE,$L19:$HC19) -> 0 | L19: =SUM(L17:L18) -> 0 | M19: =SUM(M17:M18) -> 0 | N19: 0 | O19: 0 | P19: 0 | Q19: 0 | R19: 0 | S19: 0 | T19: 0 | U19: 0 | V19: 0 | W19: 0 | X19: 0 | Y19: 0 | Z19: 0 | AA19: 0 | AB19: 0 | AC19: 0 | AD19: 0 | AE19: 0 | AF19: 0 | AG19: 0 | AH19: 0 | AI19: 0 | AJ19: 0 | AK19: 0 | AL19: 0 | AM19: 0 | AN19: 0 | AO19: 0 | AP19: 0 | AQ19: 0 | AR19: 0 | AS19: 0 | AT19: 0 | AU19: 0 | AV19: 0 | AW19: 0 | AX19: 0 | AY19: 0 | AZ19: 0 | BA19: 0 | BB19: 0 | BC19: 0 | BD19: 0 | BE19: 0 | BF19: 0 | BG19: 0 | BH19: 0 | BI19: 0 | BJ19: 0 | BK19: 0 | BL19: 0 | BM19: 0 | BN19: 0 | BO19: 0 | BP19: 0 | BQ19: 0 | BR19: 0 | BS19: 0 | BT19: 0 | BU19: 0 | BV19: 0 | BW19: 0 | BX19: 0 | BY19: =SUM(BY17:BY18) -> 0 | BZ19: 0 | CA19: 0 | CB19: 0 | CC19: 0 | CD19: 0 | CE19: 0 | CF19: 0 | CG19: 0 | CH19: 0 | CI19: 0 | CJ19: 0 | CK19: 0 | CL19: 0 | CM19: 0 | CN19: 0 | CO19: 0 | CP19: 0 | CQ19: 0 | CR19: 0 | CS19: 0 | CT19: 0 | CU19: 0 | CV19: 0 | CW19: 0 | CX19: 0 | CY19: 0 | CZ19: 0 | DA19: 0 | DB19: 0 | DC19: 0 | DD19: 0 | DE19: 0 | DF19: 0 | DG19: 0 | DH19: 0 | DI19: 0 | DJ19: 0 | DK19: 0 | DL19: 0 | DM19: 0 | DN19: 0 | DO19: 0 | DP19: 0 | DQ19: 0 | DR19: 0 | DS19: 0 | DT19: 0 | DU19: 0 | DV19: 0 | DW19: 0 | DX19: 0 | DY19: 0 | DZ19: 0 | EA19: 0 | EB19: 0 | EC19: 0 | ED19: 0 | EE19: 0 | EF19: 0 | EG19: 0 | EH19: 0 | EI19: 0 | EJ19: 0 | EK19: =SUM(EK17:EK18) -> 0 | EL19: 0 | EM19: 0 | EN19: 0 | EO19: 0 | EP19: 0 | EQ19: 0 | ER19: 0 | ES19: 0 | ET19: 0 | EU19: 0 | EV19: 0 | EW19: 0 | EX19: 0 | EY19: 0 | EZ19: 0 | FA19: 0 | FB19: 0 | FC19: 0 | FD19: 0 | FE19: 0 | FF19: 0 | FG19: 0 | FH19: 0 | FI19: 0 | FJ19: 0 | FK19: 0 | FL19: 0 | FM19: 0 | FN19: 0 | FO19: 0 | FP19: 0 | FQ19: 0 | FR19: 0 | FS19: 0 | FT19: 0 | FU19: 0 | FV19: 0 | FW19: 0 | FX19: 0 | FY19: 0 | FZ19: 0 | GA19: 0 | GB19: 0 | GC19: 0 | GD19: 0 | GE19: 0 | GF19: 0 | GG19: 0 | GH19: 0 | GI19: 0 | GJ19: 0 | GK19: 0 | GL19: 0 | GM19: 0 | GN19: 0 | GO19: 0 | GP19: 0 | GQ19: 0 | GR19: 0 | GS19: 0 | GT19: 0 | GU19: 0 | GV19: 0 | GW19: =SUM(GW17:GW18) -> 0 | GX19: 0 | GY19: 0 | GZ19: 0 | HA19: 0 | HB19: 0 | HC19: 0
B21: Fuel demand (per user) | C21: kWh | L21: =SUMIFS(sysFuelkWh,sysFuelBuildNum,L$12) -> 0 | M21: =SUMIFS(sysFuelkWh,sysFuelBuildNum,M$12) -> 0 | N21: =SUMIFS(sysFuelkWh,sysFuelBuildNum,N$12) -> 0 | O21: =SUMIFS(sysFuelkWh,sysFuelBuildNum,O$12) -> 0 | P21: =SUMIFS(sysFuelkWh,sysFuelBuildNum,P$12) -> 0 | Q21: =SUMIFS(sysFuelkWh,sysFuelBuildNum,Q$12) -> 0 | R21: =SUMIFS(sysFuelkWh,sysFuelBuildNum,R$12) -> 0 | S21: =SUMIFS(sysFuelkWh,sysFuelBuildNum,S$12) -> 0 | T21: =SUMIFS(sysFuelkWh,sysFuelBuildNum,T$12) -> 0 | U21: =SUMIFS(sysFuelkWh,sysFuelBuildNum,U$12) -> 0 | V21: =SUMIFS(sysFuelkWh,sysFuelBuildNum,V$12) -> 0 | W21: =SUMIFS(sysFuelkWh,sysFuelBuildNum,W$12) -> 0 | X21: =SUMIFS(sysFuelkWh,sysFuelBuildNum,X$12) -> 0 | Y21: =SUMIFS(sysFuelkWh,sysFuelBuildNum,Y$12) -> 0 | Z21: =SUMIFS(sysFuelkWh,sysFuelBuildNum,Z$12) -> 0 | AA21: =SUMIFS(sysFuelkWh,sysFuelBuildNum,AA$12) -> 0 | AB21: =SUMIFS(sysFuelkWh,sysFuelBuildNum,AB$12) -> 0 | AC21: =SUMIFS(sysFuelkWh,sysFuelBuildNum,AC$12) -> 0 | AD21: =SUMIFS(sysFuelkWh,sysFuelBuildNum,AD$12) -> 0 | AE21: =SUMIFS(sysFuelkWh,sysFuelBuildNum,AE$12) -> 0 | AF21: =SUMIFS(sysFuelkWh,sysFuelBuildNum,AF$12) -> 0 | AG21: =SUMIFS(sysFuelkWh,sysFuelBuildNum,AG$12) -> 0 | AH21: =SUMIFS(sysFuelkWh,sysFuelBuildNum,AH$12) -> 0 | AI21: =SUMIFS(sysFuelkWh,sysFuelBuildNum,AI$12) -> 0 | AJ21: =SUMIFS(sysFuelkWh,sysFuelBuildNum,AJ$12) -> 0 | AK21: =SUMIFS(sysFuelkWh,sysFuelBuildNum,AK$12) -> 0 | AL21: =SUMIFS(sysFuelkWh,sysFuelBuildNum,AL$12) -> 0 | AM21: =SUMIFS(sysFuelkWh,sysFuelBuildNum,AM$12) -> 0 | AN21: =SUMIFS(sysFuelkWh,sysFuelBuildNum,AN$12) -> 0 | AO21: =SUMIFS(sysFuelkWh,sysFuelBuildNum,AO$12) -> 0 | AP21: =SUMIFS(sysFuelkWh,sysFuelBuildNum,AP$12) -> 0 | AQ21: =SUMIFS(sysFuelkWh,sysFuelBuildNum,AQ$12) -> 0 | AR21: =SUMIFS(sysFuelkWh,sysFuelBuildNum,AR$12) -> 0 | AS21: =SUMIFS(sysFuelkWh,sysFuelBuildNum,AS$12) -> 0 | AT21: =SUMIFS(sysFuelkWh,sysFuelBuildNum,AT$12) -> 0 | AU21: =SUMIFS(sysFuelkWh,sysFuelBuildNum,AU$12) -> 0 | AV21: =SUMIFS(sysFuelkWh,sysFuelBuildNum,AV$12) -> 0 | AW21: =SUMIFS(sysFuelkWh,sysFuelBuildNum,AW$12) -> 0 | AX21: =SUMIFS(sysFuelkWh,sysFuelBuildNum,AX$12) -> 0 | AY21: =SUMIFS(sysFuelkWh,sysFuelBuildNum,AY$12) -> 0 | AZ21: =SUMIFS(sysFuelkWh,sysFuelBuildNum,AZ$12) -> 0 | BA21: =SUMIFS(sysFuelkWh,sysFuelBuildNum,BA$12) -> 0 | BB21: =SUMIFS(sysFuelkWh,sysFuelBuildNum,BB$12) -> 0 | BC21: =SUMIFS(sysFuelkWh,sysFuelBuildNum,BC$12) -> 0 | BD21: =SUMIFS(sysFuelkWh,sysFuelBuildNum,BD$12) -> 0 | BE21: =SUMIFS(sysFuelkWh,sysFuelBuildNum,BE$12) -> 0 | BF21: =SUMIFS(sysFuelkWh,sysFuelBuildNum,BF$12) -> 0 | BG21: =SUMIFS(sysFuelkWh,sysFuelBuildNum,BG$12) -> 0 | BH21: =SUMIFS(sysFuelkWh,sysFuelBuildNum,BH$12) -> 0 | BI21: =SUMIFS(sysFuelkWh,sysFuelBuildNum,BI$12) -> 0 | BJ21: =SUMIFS(sysFuelkWh,sysFuelBuildNum,BJ$12) -> 0 | BK21: =SUMIFS(sysFuelkWh,sysFuelBuildNum,BK$12) -> 0 | BL21: =SUMIFS(sysFuelkWh,sysFuelBuildNum,BL$12) -> 0 | BM21: =SUMIFS(sysFuelkWh,sysFuelBuildNum,BM$12) -> 0 | BN21: =SUMIFS(sysFuelkWh,sysFuelBuildNum,BN$12) -> 0 | BO21: =SUMIFS(sysFuelkWh,sysFuelBuildNum,BO$12) -> 0 | BP21: =SUMIFS(sysFuelkWh,sysFuelBuildNum,BP$12) -> 0 | BQ21: =SUMIFS(sysFuelkWh,sysFuelBuildNum,BQ$12) -> 0 | BR21: =SUMIFS(sysFuelkWh,sysFuelBuildNum,BR$12) -> 0 | BS21: =SUMIFS(sysFuelkWh,sysFuelBuildNum,BS$12) -> 0 | BT21: =SUMIFS(sysFuelkWh,sysFuelBuildNum,BT$12) -> 0 | BU21: =SUMIFS(sysFuelkWh,sysFuelBuildNum,BU$12) -> 0 | BV21: =SUMIFS(sysFuelkWh,sysFuelBuildNum,BV$12) -> 0 | BW21: =SUMIFS(sysFuelkWh,sysFuelBuildNum,BW$12) -> 0 | BX21: =SUMIFS(sysFuelkWh,sysFuelBuildNum,BX$12) -> 0 | BY21: =SUMIFS(sysFuelkWh,sysFuelBuildNum,BY$12) -> 0 | BZ21: =SUMIFS(sysFuelkWh,sysFuelBuildNum,BZ$12) -> 0 | CA21: =SUMIFS(sysFuelkWh,sysFuelBuildNum,CA$12) -> 0 | CB21: =SUMIFS(sysFuelkWh,sysFuelBuildNum,CB$12) -> 0 | CC21: =SUMIFS(sysFuelkWh,sysFuelBuildNum,CC$12) -> 0 | CD21: =SUMIFS(sysFuelkWh,sysFuelBuildNum,CD$12) -> 0 | CE21: =SUMIFS(sysFuelkWh,sysFuelBuildNum,CE$12) -> 0 | CF21: =SUMIFS(sysFuelkWh,sysFuelBuildNum,CF$12) -> 0 | CG21: =SUMIFS(sysFuelkWh,sysFuelBuildNum,CG$12) -> 0 | CH21: =SUMIFS(sysFuelkWh,sysFuelBuildNum,CH$12) -> 0 | CI21: =SUMIFS(sysFuelkWh,sysFuelBuildNum,CI$12) -> 0 | CJ21: =SUMIFS(sysFuelkWh,sysFuelBuildNum,CJ$12) -> 0 | CK21: =SUMIFS(sysFuelkWh,sysFuelBuildNum,CK$12) -> 0 | CL21: =SUMIFS(sysFuelkWh,sysFuelBuildNum,CL$12) -> 0 | CM21: =SUMIFS(sysFuelkWh,sysFuelBuildNum,CM$12) -> 0 | CN21: =SUMIFS(sysFuelkWh,sysFuelBuildNum,CN$12) -> 0 | CO21: =SUMIFS(sysFuelkWh,sysFuelBuildNum,CO$12) -> 0 | CP21: =SUMIFS(sysFuelkWh,sysFuelBuildNum,CP$12) -> 0 | CQ21: =SUMIFS(sysFuelkWh,sysFuelBuildNum,CQ$12) -> 0 | CR21: =SUMIFS(sysFuelkWh,sysFuelBuildNum,CR$12) -> 0 | CS21: =SUMIFS(sysFuelkWh,sysFuelBuildNum,CS$12) -> 0 | CT21: =SUMIFS(sysFuelkWh,sysFuelBuildNum,CT$12) -> 0 | CU21: =SUMIFS(sysFuelkWh,sysFuelBuildNum,CU$12) -> 0 | CV21: =SUMIFS(sysFuelkWh,sysFuelBuildNum,CV$12) -> 0 | CW21: =SUMIFS(sysFuelkWh,sysFuelBuildNum,CW$12) -> 0 | CX21: =SUMIFS(sysFuelkWh,sysFuelBuildNum,CX$12) -> 0 | CY21: =SUMIFS(sysFuelkWh,sysFuelBuildNum,CY$12) -> 0 | CZ21: =SUMIFS(sysFuelkWh,sysFuelBuildNum,CZ$12) -> 0 | DA21: =SUMIFS(sysFuelkWh,sysFuelBuildNum,DA$12) -> 0 | DB21: =SUMIFS(sysFuelkWh,sysFuelBuildNum,DB$12) -> 0 | DC21: =SUMIFS(sysFuelkWh,sysFuelBuildNum,DC$12) -> 0 | DD21: =SUMIFS(sysFuelkWh,sysFuelBuildNum,DD$12) -> 0 | DE21: =SUMIFS(sysFuelkWh,sysFuelBuildNum,DE$12) -> 0 | DF21: =SUMIFS(sysFuelkWh,sysFuelBuildNum,DF$12) -> 0 | DG21: =SUMIFS(sysFuelkWh,sysFuelBuildNum,DG$12) -> 0 | DH21: =SUMIFS(sysFuelkWh,sysFuelBuildNum,DH$12) -> 0 | DI21: =SUMIFS(sysFuelkWh,sysFuelBuildNum,DI$12) -> 0 | DJ21: =SUMIFS(sysFuelkWh,sysFuelBuildNum,DJ$12) -> 0 | DK21: =SUMIFS(sysFuelkWh,sysFuelBuildNum,DK$12) -> 0 | DL21: =SUMIFS(sysFuelkWh,sysFuelBuildNum,DL$12) -> 0 | DM21: =SUMIFS(sysFuelkWh,sysFuelBuildNum,DM$12) -> 0 | DN21: =SUMIFS(sysFuelkWh,sysFuelBuildNum,DN$12) -> 0 | DO21: =SUMIFS(sysFuelkWh,sysFuelBuildNum,DO$12) -> 0 | DP21: =SUMIFS(sysFuelkWh,sysFuelBuildNum,DP$12) -> 0 | DQ21: =SUMIFS(sysFuelkWh,sysFuelBuildNum,DQ$12) -> 0 | DR21: =SUMIFS(sysFuelkWh,sysFuelBuildNum,DR$12) -> 0 | DS21: =SUMIFS(sysFuelkWh,sysFuelBuildNum,DS$12) -> 0 | DT21: =SUMIFS(sysFuelkWh,sysFuelBuildNum,DT$12) -> 0 | DU21: =SUMIFS(sysFuelkWh,sysFuelBuildNum,DU$12) -> 0 | DV21: =SUMIFS(sysFuelkWh,sysFuelBuildNum,DV$12) -> 0 | DW21: =SUMIFS(sysFuelkWh,sysFuelBuildNum,DW$12) -> 0 | DX21: =SUMIFS(sysFuelkWh,sysFuelBuildNum,DX$12) -> 0 | DY21: =SUMIFS(sysFuelkWh,sysFuelBuildNum,DY$12) -> 0 | DZ21: =SUMIFS(sysFuelkWh,sysFuelBuildNum,DZ$12) -> 0 | EA21: =SUMIFS(sysFuelkWh,sysFuelBuildNum,EA$12) -> 0 | EB21: =SUMIFS(sysFuelkWh,sysFuelBuildNum,EB$12) -> 0 | EC21: =SUMIFS(sysFuelkWh,sysFuelBuildNum,EC$12) -> 0 | ED21: =SUMIFS(sysFuelkWh,sysFuelBuildNum,ED$12) -> 0 | EE21: =SUMIFS(sysFuelkWh,sysFuelBuildNum,EE$12) -> 0 | EF21: =SUMIFS(sysFuelkWh,sysFuelBuildNum,EF$12) -> 0 | EG21: =SUMIFS(sysFuelkWh,sysFuelBuildNum,EG$12) -> 0 | EH21: =SUMIFS(sysFuelkWh,sysFuelBuildNum,EH$12) -> 0 | EI21: =SUMIFS(sysFuelkWh,sysFuelBuildNum,EI$12) -> 0 | EJ21: =SUMIFS(sysFuelkWh,sysFuelBuildNum,EJ$12) -> 0 | EK21: =SUMIFS(sysFuelkWh,sysFuelBuildNum,EK$12) -> 0 | EL21: =SUMIFS(sysFuelkWh,sysFuelBuildNum,EL$12) -> 0 | EM21: =SUMIFS(sysFuelkWh,sysFuelBuildNum,EM$12) -> 0 | EN21: =SUMIFS(sysFuelkWh,sysFuelBuildNum,EN$12) -> 0 | EO21: =SUMIFS(sysFuelkWh,sysFuelBuildNum,EO$12) -> 0 | EP21: =SUMIFS(sysFuelkWh,sysFuelBuildNum,EP$12) -> 0 | EQ21: =SUMIFS(sysFuelkWh,sysFuelBuildNum,EQ$12) -> 0 | ER21: =SUMIFS(sysFuelkWh,sysFuelBuildNum,ER$12) -> 0 | ES21: =SUMIFS(sysFuelkWh,sysFuelBuildNum,ES$12) -> 0 | ET21: =SUMIFS(sysFuelkWh,sysFuelBuildNum,ET$12) -> 0 | EU21: =SUMIFS(sysFuelkWh,sysFuelBuildNum,EU$12) -> 0 | EV21: =SUMIFS(sysFuelkWh,sysFuelBuildNum,EV$12) -> 0 | EW21: =SUMIFS(sysFuelkWh,sysFuelBuildNum,EW$12) -> 0 | EX21: =SUMIFS(sysFuelkWh,sysFuelBuildNum,EX$12) -> 0 | EY21: =SUMIFS(sysFuelkWh,sysFuelBuildNum,EY$12) -> 0 | EZ21: =SUMIFS(sysFuelkWh,sysFuelBuildNum,EZ$12) -> 0 | FA21: =SUMIFS(sysFuelkWh,sysFuelBuildNum,FA$12) -> 0 | FB21: =SUMIFS(sysFuelkWh,sysFuelBuildNum,FB$12) -> 0 | FC21: =SUMIFS(sysFuelkWh,sysFuelBuildNum,FC$12) -> 0 | FD21: =SUMIFS(sysFuelkWh,sysFuelBuildNum,FD$12) -> 0 | FE21: =SUMIFS(sysFuelkWh,sysFuelBuildNum,FE$12) -> 0 | FF21: =SUMIFS(sysFuelkWh,sysFuelBuildNum,FF$12) -> 0 | FG21: =SUMIFS(sysFuelkWh,sysFuelBuildNum,FG$12) -> 0 | FH21: =SUMIFS(sysFuelkWh,sysFuelBuildNum,FH$12) -> 0 | FI21: =SUMIFS(sysFuelkWh,sysFuelBuildNum,FI$12) -> 0 | FJ21: =SUMIFS(sysFuelkWh,sysFuelBuildNum,FJ$12) -> 0 | FK21: =SUMIFS(sysFuelkWh,sysFuelBuildNum,FK$12) -> 0 | FL21: =SUMIFS(sysFuelkWh,sysFuelBuildNum,FL$12) -> 0 | FM21: =SUMIFS(sysFuelkWh,sysFuelBuildNum,FM$12) -> 0 | FN21: =SUMIFS(sysFuelkWh,sysFuelBuildNum,FN$12) -> 0 | FO21: =SUMIFS(sysFuelkWh,sysFuelBuildNum,FO$12) -> 0 | FP21: =SUMIFS(sysFuelkWh,sysFuelBuildNum,FP$12) -> 0 | FQ21: =SUMIFS(sysFuelkWh,sysFuelBuildNum,FQ$12) -> 0 | FR21: =SUMIFS(sysFuelkWh,sysFuelBuildNum,FR$12) -> 0 | FS21: =SUMIFS(sysFuelkWh,sysFuelBuildNum,FS$12) -> 0 | FT21: =SUMIFS(sysFuelkWh,sysFuelBuildNum,FT$12) -> 0 | FU21: =SUMIFS(sysFuelkWh,sysFuelBuildNum,FU$12) -> 0 | FV21: =SUMIFS(sysFuelkWh,sysFuelBuildNum,FV$12) -> 0 | FW21: =SUMIFS(sysFuelkWh,sysFuelBuildNum,FW$12) -> 0 | FX21: =SUMIFS(sysFuelkWh,sysFuelBuildNum,FX$12) -> 0 | FY21: =SUMIFS(sysFuelkWh,sysFuelBuildNum,FY$12) -> 0 | FZ21: =SUMIFS(sysFuelkWh,sysFuelBuildNum,FZ$12) -> 0 | GA21: =SUMIFS(sysFuelkWh,sysFuelBuildNum,GA$12) -> 0 | GB21: =SUMIFS(sysFuelkWh,sysFuelBuildNum,GB$12) -> 0 | GC21: =SUMIFS(sysFuelkWh,sysFuelBuildNum,GC$12) -> 0 | GD21: =SUMIFS(sysFuelkWh,sysFuelBuildNum,GD$12) -> 0 | GE21: =SUMIFS(sysFuelkWh,sysFuelBuildNum,GE$12) -> 0 | GF21: =SUMIFS(sysFuelkWh,sysFuelBuildNum,GF$12) -> 0 | GG21: =SUMIFS(sysFuelkWh,sysFuelBuildNum,GG$12) -> 0 | GH21: =SUMIFS(sysFuelkWh,sysFuelBuildNum,GH$12) -> 0 | GI21: =SUMIFS(sysFuelkWh,sysFuelBuildNum,GI$12) -> 0 | GJ21: =SUMIFS(sysFuelkWh,sysFuelBuildNum,GJ$12) -> 0 | GK21: =SUMIFS(sysFuelkWh,sysFuelBuildNum,GK$12) -> 0 | GL21: =SUMIFS(sysFuelkWh,sysFuelBuildNum,GL$12) -> 0 | GM21: =SUMIFS(sysFuelkWh,sysFuelBuildNum,GM$12) -> 0 | GN21: =SUMIFS(sysFuelkWh,sysFuelBuildNum,GN$12) -> 0 | GO21: =SUMIFS(sysFuelkWh,sysFuelBuildNum,GO$12) -> 0 | GP21: =SUMIFS(sysFuelkWh,sysFuelBuildNum,GP$12) -> 0 | GQ21: =SUMIFS(sysFuelkWh,sysFuelBuildNum,GQ$12) -> 0 | GR21: =SUMIFS(sysFuelkWh,sysFuelBuildNum,GR$12) -> 0 | GS21: =SUMIFS(sysFuelkWh,sysFuelBuildNum,GS$12) -> 0 | GT21: =SUMIFS(sysFuelkWh,sysFuelBuildNum,GT$12) -> 0 | GU21: =SUMIFS(sysFuelkWh,sysFuelBuildNum,GU$12) -> 0 | GV21: =SUMIFS(sysFuelkWh,sysFuelBuildNum,GV$12) -> 0 | GW21: =SUMIFS(sysFuelkWh,sysFuelBuildNum,GW$12) -> 0 | GX21: =SUMIFS(sysFuelkWh,sysFuelBuildNum,GX$12) -> 0 | GY21: =SUMIFS(sysFuelkWh,sysFuelBuildNum,GY$12) -> 0 | GZ21: =SUMIFS(sysFuelkWh,sysFuelBuildNum,GZ$12) -> 0 | HA21: =SUMIFS(sysFuelkWh,sysFuelBuildNum,HA$12) -> 0 | HB21: =SUMIFS(sysFuelkWh,sysFuelBuildNum,HB$12) -> 0 | HC21: =SUMIFS(sysFuelkWh,sysFuelBuildNum,HC$12) -> 0
B22: Demand (incl dist. losses) estimated | C22: kWh | D22: 0.8 | F22: =SUMIF($L$13:$HC$13,TRUE,$L22:$HC22) -> 0 | L22: =L21*$D22 -> 0 | M22: =M21*$D22 -> 0 | N22: 0 | O22: 0 | P22: 0 | Q22: 0 | R22: 0 | S22: 0 | T22: 0 | U22: 0 | V22: 0 | W22: 0 | X22: 0 | Y22: 0 | Z22: 0 | AA22: 0 | AB22: 0 | AC22: 0 | AD22: 0 | AE22: 0 | AF22: 0 | AG22: 0 | AH22: 0 | AI22: 0 | AJ22: 0 | AK22: 0 | AL22: 0 | AM22: 0 | AN22: 0 | AO22: 0 | AP22: 0 | AQ22: 0 | AR22: 0 | AS22: 0 | AT22: 0 | AU22: 0 | AV22: 0 | AW22: 0 | AX22: 0 | AY22: 0 | AZ22: 0 | BA22: 0 | BB22: 0 | BC22: 0 | BD22: 0 | BE22: 0 | BF22: 0 | BG22: 0 | BH22: 0 | BI22: 0 | BJ22: 0 | BK22: 0 | BL22: 0 | BM22: 0 | BN22: 0 | BO22: 0 | BP22: 0 | BQ22: 0 | BR22: 0 | BS22: 0 | BT22: 0 | BU22: 0 | BV22: 0 | BW22: 0 | BX22: 0 | BY22: =BY21*$D22 -> 0 | BZ22: 0 | CA22: 0 | CB22: 0 | CC22: 0 | CD22: 0 | CE22: 0 | CF22: 0 | CG22: 0 | CH22: 0 | CI22: 0 | CJ22: 0 | CK22: 0 | CL22: 0 | CM22: 0 | CN22: 0 | CO22: 0 | CP22: 0 | CQ22: 0 | CR22: 0 | CS22: 0 | CT22: 0 | CU22: 0 | CV22: 0 | CW22: 0 | CX22: 0 | CY22: 0 | CZ22: 0 | DA22: 0 | DB22: 0 | DC22: 0 | DD22: 0 | DE22: 0 | DF22: 0 | DG22: 0 | DH22: 0 | DI22: 0 | DJ22: 0 | DK22: 0 | DL22: 0 | DM22: 0 | DN22: 0 | DO22: 0 | DP22: 0 | DQ22: 0 | DR22: 0 | DS22: 0 | DT22: 0 | DU22: 0 | DV22: 0 | DW22: 0 | DX22: 0 | DY22: 0 | DZ22: 0 | EA22: 0 | EB22: 0 | EC22: 0 | ED22: 0 | EE22: 0 | EF22: 0 | EG22: 0 | EH22: 0 | EI22: 0 | EJ22: 0 | EK22: =EK21*$D22 -> 0 | EL22: 0 | EM22: 0 | EN22: 0 | EO22: 0 | EP22: 0 | EQ22: 0 | ER22: 0 | ES22: 0 | ET22: 0 | EU22: 0 | EV22: 0 | EW22: 0 | EX22: 0 | EY22: 0 | EZ22: 0 | FA22: 0 | FB22: 0 | FC22: 0 | FD22: 0 | FE22: 0 | FF22: 0 | FG22: 0 | FH22: 0 | FI22: 0 | FJ22: 0 | FK22: 0 | FL22: 0 | FM22: 0 | FN22: 0 | FO22: 0 | FP22: 0 | FQ22: 0 | FR22: 0 | FS22: 0 | FT22: 0 | FU22: 0 | FV22: 0 | FW22: 0 | FX22: 0 | FY22: 0 | FZ22: 0 | GA22: 0 | GB22: 0 | GC22: 0 | GD22: 0 | GE22: 0 | GF22: 0 | GG22: 0 | GH22: 0 | GI22: 0 | GJ22: 0 | GK22: 0 | GL22: 0 | GM22: 0 | GN22: 0 | GO22: 0 | GP22: 0 | GQ22: 0 | GR22: 0 | GS22: 0 | GT22: 0 | GU22: 0 | GV22: 0 | GW22: =GW21*$D22 -> 0 | GX22: 0 | GY22: 0 | GZ22: 0 | HA22: 0 | HB22: 0 | HC22: 0
B24: Estimated demand vs user entered fuel demand | C24: kWh | F24: =F22-F19 -> 0 | J24: =SUM(L24:HC24) -> 0 | L24: =(AND(L13,L22<L19))*1 -> 0 | M24: =(AND(M13,M22<M19))*1 -> 0 | N24: 0 | O24: 0 | P24: 0 | Q24: 0 | R24: 0 | S24: 0 | T24: 0 | U24: 0 | V24: 0 | W24: 0 | X24: 0 | Y24: 0 | Z24: 0 | AA24: 0 | AB24: 0 | AC24: 0 | AD24: 0 | AE24: 0 | AF24: 0 | AG24: 0 | AH24: 0 | AI24: 0 | AJ24: 0 | AK24: 0 | AL24: 0 | AM24: 0 | AN24: 0 | AO24: 0 | AP24: 0 | AQ24: 0 | AR24: 0 | AS24: 0 | AT24: 0 | AU24: 0 | AV24: 0 | AW24: 0 | AX24: 0 | AY24: 0 | AZ24: 0 | BA24: 0 | BB24: 0 | BC24: 0 | BD24: 0 | BE24: 0 | BF24: 0 | BG24: 0 | BH24: 0 | BI24: 0 | BJ24: 0 | BK24: 0 | BL24: 0 | BM24: 0 | BN24: 0 | BO24: 0 | BP24: 0 | BQ24: 0 | BR24: 0 | BS24: 0 | BT24: 0 | BU24: 0 | BV24: 0 | BW24: 0 | BX24: 0 | BY24: =(AND(BY13,BY22<BY19))*1 -> 0 | BZ24: 0 | CA24: 0 | CB24: 0 | CC24: 0 | CD24: 0 | CE24: 0 | CF24: 0 | CG24: 0 | CH24: 0 | CI24: 0 | CJ24: 0 | CK24: 0 | CL24: 0 | CM24: 0 | CN24: 0 | CO24: 0 | CP24: 0 | CQ24: 0 | CR24: 0 | CS24: 0 | CT24: 0 | CU24: 0 | CV24: 0 | CW24: 0 | CX24: 0 | CY24: 0 | CZ24: 0 | DA24: 0 | DB24: 0 | DC24: 0 | DD24: 0 | DE24: 0 | DF24: 0 | DG24: 0 | DH24: 0 | DI24: 0 | DJ24: 0 | DK24: 0 | DL24: 0 | DM24: 0 | DN24: 0 | DO24: 0 | DP24: 0 | DQ24: 0 | DR24: 0 | DS24: 0 | DT24: 0 | DU24: 0 | DV24: 0 | DW24: 0 | DX24: 0 | DY24: 0 | DZ24: 0 | EA24: 0 | EB24: 0 | EC24: 0 | ED24: 0 | EE24: 0 | EF24: 0 | EG24: 0 | EH24: 0 | EI24: 0 | EJ24: 0 | EK24: =(AND(EK13,EK22<EK19))*1 -> 0 | EL24: 0 | EM24: 0 | EN24: 0 | EO24: 0 | EP24: 0 | EQ24: 0 | ER24: 0 | ES24: 0 | ET24: 0 | EU24: 0 | EV24: 0 | EW24: 0 | EX24: 0 | EY24: 0 | EZ24: 0 | FA24: 0 | FB24: 0 | FC24: 0 | FD24: 0 | FE24: 0 | FF24: 0 | FG24: 0 | FH24: 0 | FI24: 0 | FJ24: 0 | FK24: 0 | FL24: 0 | FM24: 0 | FN24: 0 | FO24: 0 | FP24: 0 | FQ24: 0 | FR24: 0 | FS24: 0 | FT24: 0 | FU24: 0 | FV24: 0 | FW24: 0 | FX24: 0 | FY24: 0 | FZ24: 0 | GA24: 0 | GB24: 0 | GC24: 0 | GD24: 0 | GE24: 0 | GF24: 0 | GG24: 0 | GH24: 0 | GI24: 0 | GJ24: 0 | GK24: 0 | GL24: 0 | GM24: 0 | GN24: 0 | GO24: 0 | GP24: 0 | GQ24: 0 | GR24: 0 | GS24: 0 | GT24: 0 | GU24: 0 | GV24: 0 | GW24: =(AND(GW13,GW22<GW19))*1 -> 0 | GX24: 0 | GY24: 0 | GZ24: 0 | HA24: 0 | HB24: 0 | HC24: 0
B26: BEIS QUOTED FUEL COST CHECK
B28: Fuel entered by user
B29: =Lists!$C$4 -> Biofuel | C29: kWh | L29: =SUMIFS(sysFuelkWh,sysFuelType,$B29,sysFuelBuildNum,L$12) -> 0 | M29: =SUMIFS(sysFuelkWh,sysFuelType,$B29,sysFuelBuildNum,M$12) -> 0 | N29: =SUMIFS(sysFuelkWh,sysFuelType,$B29,sysFuelBuildNum,N$12) -> 0 | O29: =SUMIFS(sysFuelkWh,sysFuelType,$B29,sysFuelBuildNum,O$12) -> 0 | P29: =SUMIFS(sysFuelkWh,sysFuelType,$B29,sysFuelBuildNum,P$12) -> 0 | Q29: =SUMIFS(sysFuelkWh,sysFuelType,$B29,sysFuelBuildNum,Q$12) -> 0 | R29: =SUMIFS(sysFuelkWh,sysFuelType,$B29,sysFuelBuildNum,R$12) -> 0 | S29: =SUMIFS(sysFuelkWh,sysFuelType,$B29,sysFuelBuildNum,S$12) -> 0 | T29: =SUMIFS(sysFuelkWh,sysFuelType,$B29,sysFuelBuildNum,T$12) -> 0 | U29: =SUMIFS(sysFuelkWh,sysFuelType,$B29,sysFuelBuildNum,U$12) -> 0 | V29: =SUMIFS(sysFuelkWh,sysFuelType,$B29,sysFuelBuildNum,V$12) -> 0 | W29: =SUMIFS(sysFuelkWh,sysFuelType,$B29,sysFuelBuildNum,W$12) -> 0 | X29: =SUMIFS(sysFuelkWh,sysFuelType,$B29,sysFuelBuildNum,X$12) -> 0 | Y29: =SUMIFS(sysFuelkWh,sysFuelType,$B29,sysFuelBuildNum,Y$12) -> 0 | Z29: =SUMIFS(sysFuelkWh,sysFuelType,$B29,sysFuelBuildNum,Z$12) -> 0 | AA29: =SUMIFS(sysFuelkWh,sysFuelType,$B29,sysFuelBuildNum,AA$12) -> 0 | AB29: =SUMIFS(sysFuelkWh,sysFuelType,$B29,sysFuelBuildNum,AB$12) -> 0 | AC29: =SUMIFS(sysFuelkWh,sysFuelType,$B29,sysFuelBuildNum,AC$12) -> 0 | AD29: =SUMIFS(sysFuelkWh,sysFuelType,$B29,sysFuelBuildNum,AD$12) -> 0 | AE29: =SUMIFS(sysFuelkWh,sysFuelType,$B29,sysFuelBuildNum,AE$12) -> 0 | AF29: =SUMIFS(sysFuelkWh,sysFuelType,$B29,sysFuelBuildNum,AF$12) -> 0 | AG29: =SUMIFS(sysFuelkWh,sysFuelType,$B29,sysFuelBuildNum,AG$12) -> 0 | AH29: =SUMIFS(sysFuelkWh,sysFuelType,$B29,sysFuelBuildNum,AH$12) -> 0 | AI29: =SUMIFS(sysFuelkWh,sysFuelType,$B29,sysFuelBuildNum,AI$12) -> 0 | AJ29: =SUMIFS(sysFuelkWh,sysFuelType,$B29,sysFuelBuildNum,AJ$12) -> 0 | AK29: =SUMIFS(sysFuelkWh,sysFuelType,$B29,sysFuelBuildNum,AK$12) -> 0 | AL29: =SUMIFS(sysFuelkWh,sysFuelType,$B29,sysFuelBuildNum,AL$12) -> 0 | AM29: =SUMIFS(sysFuelkWh,sysFuelType,$B29,sysFuelBuildNum,AM$12) -> 0 | AN29: =SUMIFS(sysFuelkWh,sysFuelType,$B29,sysFuelBuildNum,AN$12) -> 0 | AO29: =SUMIFS(sysFuelkWh,sysFuelType,$B29,sysFuelBuildNum,AO$12) -> 0 | AP29: =SUMIFS(sysFuelkWh,sysFuelType,$B29,sysFuelBuildNum,AP$12) -> 0 | AQ29: =SUMIFS(sysFuelkWh,sysFuelType,$B29,sysFuelBuildNum,AQ$12) -> 0 | AR29: =SUMIFS(sysFuelkWh,sysFuelType,$B29,sysFuelBuildNum,AR$12) -> 0 | AS29: =SUMIFS(sysFuelkWh,sysFuelType,$B29,sysFuelBuildNum,AS$12) -> 0 | AT29: =SUMIFS(sysFuelkWh,sysFuelType,$B29,sysFuelBuildNum,AT$12) -> 0 | AU29: =SUMIFS(sysFuelkWh,sysFuelType,$B29,sysFuelBuildNum,AU$12) -> 0 | AV29: =SUMIFS(sysFuelkWh,sysFuelType,$B29,sysFuelBuildNum,AV$12) -> 0 | AW29: =SUMIFS(sysFuelkWh,sysFuelType,$B29,sysFuelBuildNum,AW$12) -> 0 | AX29: =SUMIFS(sysFuelkWh,sysFuelType,$B29,sysFuelBuildNum,AX$12) -> 0 | AY29: =SUMIFS(sysFuelkWh,sysFuelType,$B29,sysFuelBuildNum,AY$12) -> 0 | AZ29: =SUMIFS(sysFuelkWh,sysFuelType,$B29,sysFuelBuildNum,AZ$12) -> 0 | BA29: =SUMIFS(sysFuelkWh,sysFuelType,$B29,sysFuelBuildNum,BA$12) -> 0 | BB29: =SUMIFS(sysFuelkWh,sysFuelType,$B29,sysFuelBuildNum,BB$12) -> 0 | BC29: =SUMIFS(sysFuelkWh,sysFuelType,$B29,sysFuelBuildNum,BC$12) -> 0 | BD29: =SUMIFS(sysFuelkWh,sysFuelType,$B29,sysFuelBuildNum,BD$12) -> 0 | BE29: =SUMIFS(sysFuelkWh,sysFuelType,$B29,sysFuelBuildNum,BE$12) -> 0 | BF29: =SUMIFS(sysFuelkWh,sysFuelType,$B29,sysFuelBuildNum,BF$12) -> 0 | BG29: =SUMIFS(sysFuelkWh,sysFuelType,$B29,sysFuelBuildNum,BG$12) -> 0 | BH29: =SUMIFS(sysFuelkWh,sysFuelType,$B29,sysFuelBuildNum,BH$12) -> 0 | BI29: =SUMIFS(sysFuelkWh,sysFuelType,$B29,sysFuelBuildNum,BI$12) -> 0 | BJ29: =SUMIFS(sysFuelkWh,sysFuelType,$B29,sysFuelBuildNum,BJ$12) -> 0 | BK29: =SUMIFS(sysFuelkWh,sysFuelType,$B29,sysFuelBuildNum,BK$12) -> 0 | BL29: =SUMIFS(sysFuelkWh,sysFuelType,$B29,sysFuelBuildNum,BL$12) -> 0 | BM29: =SUMIFS(sysFuelkWh,sysFuelType,$B29,sysFuelBuildNum,BM$12) -> 0 | BN29: =SUMIFS(sysFuelkWh,sysFuelType,$B29,sysFuelBuildNum,BN$12) -> 0 | BO29: =SUMIFS(sysFuelkWh,sysFuelType,$B29,sysFuelBuildNum,BO$12) -> 0 | BP29: =SUMIFS(sysFuelkWh,sysFuelType,$B29,sysFuelBuildNum,BP$12) -> 0 | BQ29: =SUMIFS(sysFuelkWh,sysFuelType,$B29,sysFuelBuildNum,BQ$12) -> 0 | BR29: =SUMIFS(sysFuelkWh,sysFuelType,$B29,sysFuelBuildNum,BR$12) -> 0 | BS29: =SUMIFS(sysFuelkWh,sysFuelType,$B29,sysFuelBuildNum,BS$12) -> 0 | BT29: =SUMIFS(sysFuelkWh,sysFuelType,$B29,sysFuelBuildNum,BT$12) -> 0 | BU29: =SUMIFS(sysFuelkWh,sysFuelType,$B29,sysFuelBuildNum,BU$12) -> 0 | BV29: =SUMIFS(sysFuelkWh,sysFuelType,$B29,sysFuelBuildNum,BV$12) -> 0 | BW29: =SUMIFS(sysFuelkWh,sysFuelType,$B29,sysFuelBuildNum,BW$12) -> 0 | BX29: =SUMIFS(sysFuelkWh,sysFuelType,$B29,sysFuelBuildNum,BX$12) -> 0 | BY29: =SUMIFS(sysFuelkWh,sysFuelType,$B29,sysFuelBuildNum,BY$12) -> 0 | BZ29: =SUMIFS(sysFuelkWh,sysFuelType,$B29,sysFuelBuildNum,BZ$12) -> 0 | CA29: =SUMIFS(sysFuelkWh,sysFuelType,$B29,sysFuelBuildNum,CA$12) -> 0 | CB29: =SUMIFS(sysFuelkWh,sysFuelType,$B29,sysFuelBuildNum,CB$12) -> 0 | CC29: =SUMIFS(sysFuelkWh,sysFuelType,$B29,sysFuelBuildNum,CC$12) -> 0 | CD29: =SUMIFS(sysFuelkWh,sysFuelType,$B29,sysFuelBuildNum,CD$12) -> 0 | CE29: =SUMIFS(sysFuelkWh,sysFuelType,$B29,sysFuelBuildNum,CE$12) -> 0 | CF29: =SUMIFS(sysFuelkWh,sysFuelType,$B29,sysFuelBuildNum,CF$12) -> 0 | CG29: =SUMIFS(sysFuelkWh,sysFuelType,$B29,sysFuelBuildNum,CG$12) -> 0 | CH29: =SUMIFS(sysFuelkWh,sysFuelType,$B29,sysFuelBuildNum,CH$12) -> 0 | CI29: =SUMIFS(sysFuelkWh,sysFuelType,$B29,sysFuelBuildNum,CI$12) -> 0 | CJ29: =SUMIFS(sysFuelkWh,sysFuelType,$B29,sysFuelBuildNum,CJ$12) -> 0 | CK29: =SUMIFS(sysFuelkWh,sysFuelType,$B29,sysFuelBuildNum,CK$12) -> 0 | CL29: =SUMIFS(sysFuelkWh,sysFuelType,$B29,sysFuelBuildNum,CL$12) -> 0 | CM29: =SUMIFS(sysFuelkWh,sysFuelType,$B29,sysFuelBuildNum,CM$12) -> 0 | CN29: =SUMIFS(sysFuelkWh,sysFuelType,$B29,sysFuelBuildNum,CN$12) -> 0 | CO29: =SUMIFS(sysFuelkWh,sysFuelType,$B29,sysFuelBuildNum,CO$12) -> 0 | CP29: =SUMIFS(sysFuelkWh,sysFuelType,$B29,sysFuelBuildNum,CP$12) -> 0 | CQ29: =SUMIFS(sysFuelkWh,sysFuelType,$B29,sysFuelBuildNum,CQ$12) -> 0 | CR29: =SUMIFS(sysFuelkWh,sysFuelType,$B29,sysFuelBuildNum,CR$12) -> 0 | CS29: =SUMIFS(sysFuelkWh,sysFuelType,$B29,sysFuelBuildNum,CS$12) -> 0 | CT29: =SUMIFS(sysFuelkWh,sysFuelType,$B29,sysFuelBuildNum,CT$12) -> 0 | CU29: =SUMIFS(sysFuelkWh,sysFuelType,$B29,sysFuelBuildNum,CU$12) -> 0 | CV29: =SUMIFS(sysFuelkWh,sysFuelType,$B29,sysFuelBuildNum,CV$12) -> 0 | CW29: =SUMIFS(sysFuelkWh,sysFuelType,$B29,sysFuelBuildNum,CW$12) -> 0 | CX29: =SUMIFS(sysFuelkWh,sysFuelType,$B29,sysFuelBuildNum,CX$12) -> 0 | CY29: =SUMIFS(sysFuelkWh,sysFuelType,$B29,sysFuelBuildNum,CY$12) -> 0 | CZ29: =SUMIFS(sysFuelkWh,sysFuelType,$B29,sysFuelBuildNum,CZ$12) -> 0 | DA29: =SUMIFS(sysFuelkWh,sysFuelType,$B29,sysFuelBuildNum,DA$12) -> 0 | DB29: =SUMIFS(sysFuelkWh,sysFuelType,$B29,sysFuelBuildNum,DB$12) -> 0 | DC29: =SUMIFS(sysFuelkWh,sysFuelType,$B29,sysFuelBuildNum,DC$12) -> 0 | DD29: =SUMIFS(sysFuelkWh,sysFuelType,$B29,sysFuelBuildNum,DD$12) -> 0 | DE29: =SUMIFS(sysFuelkWh,sysFuelType,$B29,sysFuelBuildNum,DE$12) -> 0 | DF29: =SUMIFS(sysFuelkWh,sysFuelType,$B29,sysFuelBuildNum,DF$12) -> 0 | DG29: =SUMIFS(sysFuelkWh,sysFuelType,$B29,sysFuelBuildNum,DG$12) -> 0 | DH29: =SUMIFS(sysFuelkWh,sysFuelType,$B29,sysFuelBuildNum,DH$12) -> 0 | DI29: =SUMIFS(sysFuelkWh,sysFuelType,$B29,sysFuelBuildNum,DI$12) -> 0 | DJ29: =SUMIFS(sysFuelkWh,sysFuelType,$B29,sysFuelBuildNum,DJ$12) -> 0 | DK29: =SUMIFS(sysFuelkWh,sysFuelType,$B29,sysFuelBuildNum,DK$12) -> 0 | DL29: =SUMIFS(sysFuelkWh,sysFuelType,$B29,sysFuelBuildNum,DL$12) -> 0 | DM29: =SUMIFS(sysFuelkWh,sysFuelType,$B29,sysFuelBuildNum,DM$12) -> 0 | DN29: =SUMIFS(sysFuelkWh,sysFuelType,$B29,sysFuelBuildNum,DN$12) -> 0 | DO29: =SUMIFS(sysFuelkWh,sysFuelType,$B29,sysFuelBuildNum,DO$12) -> 0 | DP29: =SUMIFS(sysFuelkWh,sysFuelType,$B29,sysFuelBuildNum,DP$12) -> 0 | DQ29: =SUMIFS(sysFuelkWh,sysFuelType,$B29,sysFuelBuildNum,DQ$12) -> 0 | DR29: =SUMIFS(sysFuelkWh,sysFuelType,$B29,sysFuelBuildNum,DR$12) -> 0 | DS29: =SUMIFS(sysFuelkWh,sysFuelType,$B29,sysFuelBuildNum,DS$12) -> 0 | DT29: =SUMIFS(sysFuelkWh,sysFuelType,$B29,sysFuelBuildNum,DT$12) -> 0 | DU29: =SUMIFS(sysFuelkWh,sysFuelType,$B29,sysFuelBuildNum,DU$12) -> 0 | DV29: =SUMIFS(sysFuelkWh,sysFuelType,$B29,sysFuelBuildNum,DV$12) -> 0 | DW29: =SUMIFS(sysFuelkWh,sysFuelType,$B29,sysFuelBuildNum,DW$12) -> 0 | DX29: =SUMIFS(sysFuelkWh,sysFuelType,$B29,sysFuelBuildNum,DX$12) -> 0 | DY29: =SUMIFS(sysFuelkWh,sysFuelType,$B29,sysFuelBuildNum,DY$12) -> 0 | DZ29: =SUMIFS(sysFuelkWh,sysFuelType,$B29,sysFuelBuildNum,DZ$12) -> 0 | EA29: =SUMIFS(sysFuelkWh,sysFuelType,$B29,sysFuelBuildNum,EA$12) -> 0 | EB29: =SUMIFS(sysFuelkWh,sysFuelType,$B29,sysFuelBuildNum,EB$12) -> 0 | EC29: =SUMIFS(sysFuelkWh,sysFuelType,$B29,sysFuelBuildNum,EC$12) -> 0 | ED29: =SUMIFS(sysFuelkWh,sysFuelType,$B29,sysFuelBuildNum,ED$12) -> 0 | EE29: =SUMIFS(sysFuelkWh,sysFuelType,$B29,sysFuelBuildNum,EE$12) -> 0 | EF29: =SUMIFS(sysFuelkWh,sysFuelType,$B29,sysFuelBuildNum,EF$12) -> 0 | EG29: =SUMIFS(sysFuelkWh,sysFuelType,$B29,sysFuelBuildNum,EG$12) -> 0 | EH29: =SUMIFS(sysFuelkWh,sysFuelType,$B29,sysFuelBuildNum,EH$12) -> 0 | EI29: =SUMIFS(sysFuelkWh,sysFuelType,$B29,sysFuelBuildNum,EI$12) -> 0 | EJ29: =SUMIFS(sysFuelkWh,sysFuelType,$B29,sysFuelBuildNum,EJ$12) -> 0 | EK29: =SUMIFS(sysFuelkWh,sysFuelType,$B29,sysFuelBuildNum,EK$12) -> 0 | EL29: =SUMIFS(sysFuelkWh,sysFuelType,$B29,sysFuelBuildNum,EL$12) -> 0 | EM29: =SUMIFS(sysFuelkWh,sysFuelType,$B29,sysFuelBuildNum,EM$12) -> 0 | EN29: =SUMIFS(sysFuelkWh,sysFuelType,$B29,sysFuelBuildNum,EN$12) -> 0 | EO29: =SUMIFS(sysFuelkWh,sysFuelType,$B29,sysFuelBuildNum,EO$12) -> 0 | EP29: =SUMIFS(sysFuelkWh,sysFuelType,$B29,sysFuelBuildNum,EP$12) -> 0 | EQ29: =SUMIFS(sysFuelkWh,sysFuelType,$B29,sysFuelBuildNum,EQ$12) -> 0 | ER29: =SUMIFS(sysFuelkWh,sysFuelType,$B29,sysFuelBuildNum,ER$12) -> 0 | ES29: =SUMIFS(sysFuelkWh,sysFuelType,$B29,sysFuelBuildNum,ES$12) -> 0 | ET29: =SUMIFS(sysFuelkWh,sysFuelType,$B29,sysFuelBuildNum,ET$12) -> 0 | EU29: =SUMIFS(sysFuelkWh,sysFuelType,$B29,sysFuelBuildNum,EU$12) -> 0 | EV29: =SUMIFS(sysFuelkWh,sysFuelType,$B29,sysFuelBuildNum,EV$12) -> 0 | EW29: =SUMIFS(sysFuelkWh,sysFuelType,$B29,sysFuelBuildNum,EW$12) -> 0 | EX29: =SUMIFS(sysFuelkWh,sysFuelType,$B29,sysFuelBuildNum,EX$12) -> 0 | EY29: =SUMIFS(sysFuelkWh,sysFuelType,$B29,sysFuelBuildNum,EY$12) -> 0 | EZ29: =SUMIFS(sysFuelkWh,sysFuelType,$B29,sysFuelBuildNum,EZ$12) -> 0 | FA29: =SUMIFS(sysFuelkWh,sysFuelType,$B29,sysFuelBuildNum,FA$12) -> 0 | FB29: =SUMIFS(sysFuelkWh,sysFuelType,$B29,sysFuelBuildNum,FB$12) -> 0 | FC29: =SUMIFS(sysFuelkWh,sysFuelType,$B29,sysFuelBuildNum,FC$12) -> 0 | FD29: =SUMIFS(sysFuelkWh,sysFuelType,$B29,sysFuelBuildNum,FD$12) -> 0 | FE29: =SUMIFS(sysFuelkWh,sysFuelType,$B29,sysFuelBuildNum,FE$12) -> 0 | FF29: =SUMIFS(sysFuelkWh,sysFuelType,$B29,sysFuelBuildNum,FF$12) -> 0 | FG29: =SUMIFS(sysFuelkWh,sysFuelType,$B29,sysFuelBuildNum,FG$12) -> 0 | FH29: =SUMIFS(sysFuelkWh,sysFuelType,$B29,sysFuelBuildNum,FH$12) -> 0 | FI29: =SUMIFS(sysFuelkWh,sysFuelType,$B29,sysFuelBuildNum,FI$12) -> 0 | FJ29: =SUMIFS(sysFuelkWh,sysFuelType,$B29,sysFuelBuildNum,FJ$12) -> 0 | FK29: =SUMIFS(sysFuelkWh,sysFuelType,$B29,sysFuelBuildNum,FK$12) -> 0 | FL29: =SUMIFS(sysFuelkWh,sysFuelType,$B29,sysFuelBuildNum,FL$12) -> 0 | FM29: =SUMIFS(sysFuelkWh,sysFuelType,$B29,sysFuelBuildNum,FM$12) -> 0 | FN29: =SUMIFS(sysFuelkWh,sysFuelType,$B29,sysFuelBuildNum,FN$12) -> 0 | FO29: =SUMIFS(sysFuelkWh,sysFuelType,$B29,sysFuelBuildNum,FO$12) -> 0 | FP29: =SUMIFS(sysFuelkWh,sysFuelType,$B29,sysFuelBuildNum,FP$12) -> 0 | FQ29: =SUMIFS(sysFuelkWh,sysFuelType,$B29,sysFuelBuildNum,FQ$12) -> 0 | FR29: =SUMIFS(sysFuelkWh,sysFuelType,$B29,sysFuelBuildNum,FR$12) -> 0 | FS29: =SUMIFS(sysFuelkWh,sysFuelType,$B29,sysFuelBuildNum,FS$12) -> 0 | FT29: =SUMIFS(sysFuelkWh,sysFuelType,$B29,sysFuelBuildNum,FT$12) -> 0 | FU29: =SUMIFS(sysFuelkWh,sysFuelType,$B29,sysFuelBuildNum,FU$12) -> 0 | FV29: =SUMIFS(sysFuelkWh,sysFuelType,$B29,sysFuelBuildNum,FV$12) -> 0 | FW29: =SUMIFS(sysFuelkWh,sysFuelType,$B29,sysFuelBuildNum,FW$12) -> 0 | FX29: =SUMIFS(sysFuelkWh,sysFuelType,$B29,sysFuelBuildNum,FX$12) -> 0 | FY29: =SUMIFS(sysFuelkWh,sysFuelType,$B29,sysFuelBuildNum,FY$12) -> 0 | FZ29: =SUMIFS(sysFuelkWh,sysFuelType,$B29,sysFuelBuildNum,FZ$12) -> 0 | GA29: =SUMIFS(sysFuelkWh,sysFuelType,$B29,sysFuelBuildNum,GA$12) -> 0 | GB29: =SUMIFS(sysFuelkWh,sysFuelType,$B29,sysFuelBuildNum,GB$12) -> 0 | GC29: =SUMIFS(sysFuelkWh,sysFuelType,$B29,sysFuelBuildNum,GC$12) -> 0 | GD29: =SUMIFS(sysFuelkWh,sysFuelType,$B29,sysFuelBuildNum,GD$12) -> 0 | GE29: =SUMIFS(sysFuelkWh,sysFuelType,$B29,sysFuelBuildNum,GE$12) -> 0 | GF29: =SUMIFS(sysFuelkWh,sysFuelType,$B29,sysFuelBuildNum,GF$12) -> 0 | GG29: =SUMIFS(sysFuelkWh,sysFuelType,$B29,sysFuelBuildNum,GG$12) -> 0 | GH29: =SUMIFS(sysFuelkWh,sysFuelType,$B29,sysFuelBuildNum,GH$12) -> 0 | GI29: =SUMIFS(sysFuelkWh,sysFuelType,$B29,sysFuelBuildNum,GI$12) -> 0 | GJ29: =SUMIFS(sysFuelkWh,sysFuelType,$B29,sysFuelBuildNum,GJ$12) -> 0 | GK29: =SUMIFS(sysFuelkWh,sysFuelType,$B29,sysFuelBuildNum,GK$12) -> 0 | GL29: =SUMIFS(sysFuelkWh,sysFuelType,$B29,sysFuelBuildNum,GL$12) -> 0 | GM29: =SUMIFS(sysFuelkWh,sysFuelType,$B29,sysFuelBuildNum,GM$12) -> 0 | GN29: =SUMIFS(sysFuelkWh,sysFuelType,$B29,sysFuelBuildNum,GN$12) -> 0 | GO29: =SUMIFS(sysFuelkWh,sysFuelType,$B29,sysFuelBuildNum,GO$12) -> 0 | GP29: =SUMIFS(sysFuelkWh,sysFuelType,$B29,sysFuelBuildNum,GP$12) -> 0 | GQ29: =SUMIFS(sysFuelkWh,sysFuelType,$B29,sysFuelBuildNum,GQ$12) -> 0 | GR29: =SUMIFS(sysFuelkWh,sysFuelType,$B29,sysFuelBuildNum,GR$12) -> 0 | GS29: =SUMIFS(sysFuelkWh,sysFuelType,$B29,sysFuelBuildNum,GS$12) -> 0 | GT29: =SUMIFS(sysFuelkWh,sysFuelType,$B29,sysFuelBuildNum,GT$12) -> 0 | GU29: =SUMIFS(sysFuelkWh,sysFuelType,$B29,sysFuelBuildNum,GU$12) -> 0 | GV29: =SUMIFS(sysFuelkWh,sysFuelType,$B29,sysFuelBuildNum,GV$12) -> 0 | GW29: =SUMIFS(sysFuelkWh,sysFuelType,$B29,sysFuelBuildNum,GW$12) -> 0 | GX29: =SUMIFS(sysFuelkWh,sysFuelType,$B29,sysFuelBuildNum,GX$12) -> 0 | GY29: =SUMIFS(sysFuelkWh,sysFuelType,$B29,sysFuelBuildNum,GY$12) -> 0 | GZ29: =SUMIFS(sysFuelkWh,sysFuelType,$B29,sysFuelBuildNum,GZ$12) -> 0 | HA29: =SUMIFS(sysFuelkWh,sysFuelType,$B29,sysFuelBuildNum,HA$12) -> 0 | HB29: =SUMIFS(sysFuelkWh,sysFuelType,$B29,sysFuelBuildNum,HB$12) -> 0 | HC29: =SUMIFS(sysFuelkWh,sysFuelType,$B29,sysFuelBuildNum,HC$12) -> 0
B30: =Lists!$C$5 -> Biomass | C30: kWh | L30: =SUMIFS(sysFuelkWh,sysFuelType,$B30,sysFuelBuildNum,L$12) -> 0 | M30: =SUMIFS(sysFuelkWh,sysFuelType,$B30,sysFuelBuildNum,M$12) -> 0 | N30: =SUMIFS(sysFuelkWh,sysFuelType,$B30,sysFuelBuildNum,N$12) -> 0 | O30: =SUMIFS(sysFuelkWh,sysFuelType,$B30,sysFuelBuildNum,O$12) -> 0 | P30: =SUMIFS(sysFuelkWh,sysFuelType,$B30,sysFuelBuildNum,P$12) -> 0 | Q30: =SUMIFS(sysFuelkWh,sysFuelType,$B30,sysFuelBuildNum,Q$12) -> 0 | R30: =SUMIFS(sysFuelkWh,sysFuelType,$B30,sysFuelBuildNum,R$12) -> 0 | S30: =SUMIFS(sysFuelkWh,sysFuelType,$B30,sysFuelBuildNum,S$12) -> 0 | T30: =SUMIFS(sysFuelkWh,sysFuelType,$B30,sysFuelBuildNum,T$12) -> 0 | U30: =SUMIFS(sysFuelkWh,sysFuelType,$B30,sysFuelBuildNum,U$12) -> 0 | V30: =SUMIFS(sysFuelkWh,sysFuelType,$B30,sysFuelBuildNum,V$12) -> 0 | W30: =SUMIFS(sysFuelkWh,sysFuelType,$B30,sysFuelBuildNum,W$12) -> 0 | X30: =SUMIFS(sysFuelkWh,sysFuelType,$B30,sysFuelBuildNum,X$12) -> 0 | Y30: =SUMIFS(sysFuelkWh,sysFuelType,$B30,sysFuelBuildNum,Y$12) -> 0 | Z30: =SUMIFS(sysFuelkWh,sysFuelType,$B30,sysFuelBuildNum,Z$12) -> 0 | AA30: =SUMIFS(sysFuelkWh,sysFuelType,$B30,sysFuelBuildNum,AA$12) -> 0 | AB30: =SUMIFS(sysFuelkWh,sysFuelType,$B30,sysFuelBuildNum,AB$12) -> 0 | AC30: =SUMIFS(sysFuelkWh,sysFuelType,$B30,sysFuelBuildNum,AC$12) -> 0 | AD30: =SUMIFS(sysFuelkWh,sysFuelType,$B30,sysFuelBuildNum,AD$12) -> 0 | AE30: =SUMIFS(sysFuelkWh,sysFuelType,$B30,sysFuelBuildNum,AE$12) -> 0 | AF30: =SUMIFS(sysFuelkWh,sysFuelType,$B30,sysFuelBuildNum,AF$12) -> 0 | AG30: =SUMIFS(sysFuelkWh,sysFuelType,$B30,sysFuelBuildNum,AG$12) -> 0 | AH30: =SUMIFS(sysFuelkWh,sysFuelType,$B30,sysFuelBuildNum,AH$12) -> 0 | AI30: =SUMIFS(sysFuelkWh,sysFuelType,$B30,sysFuelBuildNum,AI$12) -> 0 | AJ30: =SUMIFS(sysFuelkWh,sysFuelType,$B30,sysFuelBuildNum,AJ$12) -> 0 | AK30: =SUMIFS(sysFuelkWh,sysFuelType,$B30,sysFuelBuildNum,AK$12) -> 0 | AL30: =SUMIFS(sysFuelkWh,sysFuelType,$B30,sysFuelBuildNum,AL$12) -> 0 | AM30: =SUMIFS(sysFuelkWh,sysFuelType,$B30,sysFuelBuildNum,AM$12) -> 0 | AN30: =SUMIFS(sysFuelkWh,sysFuelType,$B30,sysFuelBuildNum,AN$12) -> 0 | AO30: =SUMIFS(sysFuelkWh,sysFuelType,$B30,sysFuelBuildNum,AO$12) -> 0 | AP30: =SUMIFS(sysFuelkWh,sysFuelType,$B30,sysFuelBuildNum,AP$12) -> 0 | AQ30: =SUMIFS(sysFuelkWh,sysFuelType,$B30,sysFuelBuildNum,AQ$12) -> 0 | AR30: =SUMIFS(sysFuelkWh,sysFuelType,$B30,sysFuelBuildNum,AR$12) -> 0 | AS30: =SUMIFS(sysFuelkWh,sysFuelType,$B30,sysFuelBuildNum,AS$12) -> 0 | AT30: =SUMIFS(sysFuelkWh,sysFuelType,$B30,sysFuelBuildNum,AT$12) -> 0 | AU30: =SUMIFS(sysFuelkWh,sysFuelType,$B30,sysFuelBuildNum,AU$12) -> 0 | AV30: =SUMIFS(sysFuelkWh,sysFuelType,$B30,sysFuelBuildNum,AV$12) -> 0 | AW30: =SUMIFS(sysFuelkWh,sysFuelType,$B30,sysFuelBuildNum,AW$12) -> 0 | AX30: =SUMIFS(sysFuelkWh,sysFuelType,$B30,sysFuelBuildNum,AX$12) -> 0 | AY30: =SUMIFS(sysFuelkWh,sysFuelType,$B30,sysFuelBuildNum,AY$12) -> 0 | AZ30: =SUMIFS(sysFuelkWh,sysFuelType,$B30,sysFuelBuildNum,AZ$12) -> 0 | BA30: =SUMIFS(sysFuelkWh,sysFuelType,$B30,sysFuelBuildNum,BA$12) -> 0 | BB30: =SUMIFS(sysFuelkWh,sysFuelType,$B30,sysFuelBuildNum,BB$12) -> 0 | BC30: =SUMIFS(sysFuelkWh,sysFuelType,$B30,sysFuelBuildNum,BC$12) -> 0 | BD30: =SUMIFS(sysFuelkWh,sysFuelType,$B30,sysFuelBuildNum,BD$12) -> 0 | BE30: =SUMIFS(sysFuelkWh,sysFuelType,$B30,sysFuelBuildNum,BE$12) -> 0 | BF30: =SUMIFS(sysFuelkWh,sysFuelType,$B30,sysFuelBuildNum,BF$12) -> 0 | BG30: =SUMIFS(sysFuelkWh,sysFuelType,$B30,sysFuelBuildNum,BG$12) -> 0 | BH30: =SUMIFS(sysFuelkWh,sysFuelType,$B30,sysFuelBuildNum,BH$12) -> 0 | BI30: =SUMIFS(sysFuelkWh,sysFuelType,$B30,sysFuelBuildNum,BI$12) -> 0 | BJ30: =SUMIFS(sysFuelkWh,sysFuelType,$B30,sysFuelBuildNum,BJ$12) -> 0 | BK30: =SUMIFS(sysFuelkWh,sysFuelType,$B30,sysFuelBuildNum,BK$12) -> 0 | BL30: =SUMIFS(sysFuelkWh,sysFuelType,$B30,sysFuelBuildNum,BL$12) -> 0 | BM30: =SUMIFS(sysFuelkWh,sysFuelType,$B30,sysFuelBuildNum,BM$12) -> 0 | BN30: =SUMIFS(sysFuelkWh,sysFuelType,$B30,sysFuelBuildNum,BN$12) -> 0 | BO30: =SUMIFS(sysFuelkWh,sysFuelType,$B30,sysFuelBuildNum,BO$12) -> 0 | BP30: =SUMIFS(sysFuelkWh,sysFuelType,$B30,sysFuelBuildNum,BP$12) -> 0 | BQ30: =SUMIFS(sysFuelkWh,sysFuelType,$B30,sysFuelBuildNum,BQ$12) -> 0 | BR30: =SUMIFS(sysFuelkWh,sysFuelType,$B30,sysFuelBuildNum,BR$12) -> 0 | BS30: =SUMIFS(sysFuelkWh,sysFuelType,$B30,sysFuelBuildNum,BS$12) -> 0 | BT30: =SUMIFS(sysFuelkWh,sysFuelType,$B30,sysFuelBuildNum,BT$12) -> 0 | BU30: =SUMIFS(sysFuelkWh,sysFuelType,$B30,sysFuelBuildNum,BU$12) -> 0 | BV30: =SUMIFS(sysFuelkWh,sysFuelType,$B30,sysFuelBuildNum,BV$12) -> 0 | BW30: =SUMIFS(sysFuelkWh,sysFuelType,$B30,sysFuelBuildNum,BW$12) -> 0 | BX30: =SUMIFS(sysFuelkWh,sysFuelType,$B30,sysFuelBuildNum,BX$12) -> 0 | BY30: =SUMIFS(sysFuelkWh,sysFuelType,$B30,sysFuelBuildNum,BY$12) -> 0 | BZ30: =SUMIFS(sysFuelkWh,sysFuelType,$B30,sysFuelBuildNum,BZ$12) -> 0 | CA30: =SUMIFS(sysFuelkWh,sysFuelType,$B30,sysFuelBuildNum,CA$12) -> 0 | CB30: =SUMIFS(sysFuelkWh,sysFuelType,$B30,sysFuelBuildNum,CB$12) -> 0 | CC30: =SUMIFS(sysFuelkWh,sysFuelType,$B30,sysFuelBuildNum,CC$12) -> 0 | CD30: =SUMIFS(sysFuelkWh,sysFuelType,$B30,sysFuelBuildNum,CD$12) -> 0 | CE30: =SUMIFS(sysFuelkWh,sysFuelType,$B30,sysFuelBuildNum,CE$12) -> 0 | CF30: =SUMIFS(sysFuelkWh,sysFuelType,$B30,sysFuelBuildNum,CF$12) -> 0 | CG30: =SUMIFS(sysFuelkWh,sysFuelType,$B30,sysFuelBuildNum,CG$12) -> 0 | CH30: =SUMIFS(sysFuelkWh,sysFuelType,$B30,sysFuelBuildNum,CH$12) -> 0 | CI30: =SUMIFS(sysFuelkWh,sysFuelType,$B30,sysFuelBuildNum,CI$12) -> 0 | CJ30: =SUMIFS(sysFuelkWh,sysFuelType,$B30,sysFuelBuildNum,CJ$12) -> 0 | CK30: =SUMIFS(sysFuelkWh,sysFuelType,$B30,sysFuelBuildNum,CK$12) -> 0 | CL30: =SUMIFS(sysFuelkWh,sysFuelType,$B30,sysFuelBuildNum,CL$12) -> 0 | CM30: =SUMIFS(sysFuelkWh,sysFuelType,$B30,sysFuelBuildNum,CM$12) -> 0 | CN30: =SUMIFS(sysFuelkWh,sysFuelType,$B30,sysFuelBuildNum,CN$12) -> 0 | CO30: =SUMIFS(sysFuelkWh,sysFuelType,$B30,sysFuelBuildNum,CO$12) -> 0 | CP30: =SUMIFS(sysFuelkWh,sysFuelType,$B30,sysFuelBuildNum,CP$12) -> 0 | CQ30: =SUMIFS(sysFuelkWh,sysFuelType,$B30,sysFuelBuildNum,CQ$12) -> 0 | CR30: =SUMIFS(sysFuelkWh,sysFuelType,$B30,sysFuelBuildNum,CR$12) -> 0 | CS30: =SUMIFS(sysFuelkWh,sysFuelType,$B30,sysFuelBuildNum,CS$12) -> 0 | CT30: =SUMIFS(sysFuelkWh,sysFuelType,$B30,sysFuelBuildNum,CT$12) -> 0 | CU30: =SUMIFS(sysFuelkWh,sysFuelType,$B30,sysFuelBuildNum,CU$12) -> 0 | CV30: =SUMIFS(sysFuelkWh,sysFuelType,$B30,sysFuelBuildNum,CV$12) -> 0 | CW30: =SUMIFS(sysFuelkWh,sysFuelType,$B30,sysFuelBuildNum,CW$12) -> 0 | CX30: =SUMIFS(sysFuelkWh,sysFuelType,$B30,sysFuelBuildNum,CX$12) -> 0 | CY30: =SUMIFS(sysFuelkWh,sysFuelType,$B30,sysFuelBuildNum,CY$12) -> 0 | CZ30: =SUMIFS(sysFuelkWh,sysFuelType,$B30,sysFuelBuildNum,CZ$12) -> 0 | DA30: =SUMIFS(sysFuelkWh,sysFuelType,$B30,sysFuelBuildNum,DA$12) -> 0 | DB30: =SUMIFS(sysFuelkWh,sysFuelType,$B30,sysFuelBuildNum,DB$12) -> 0 | DC30: =SUMIFS(sysFuelkWh,sysFuelType,$B30,sysFuelBuildNum,DC$12) -> 0 | DD30: =SUMIFS(sysFuelkWh,sysFuelType,$B30,sysFuelBuildNum,DD$12) -> 0 | DE30: =SUMIFS(sysFuelkWh,sysFuelType,$B30,sysFuelBuildNum,DE$12) -> 0 | DF30: =SUMIFS(sysFuelkWh,sysFuelType,$B30,sysFuelBuildNum,DF$12) -> 0 | DG30: =SUMIFS(sysFuelkWh,sysFuelType,$B30,sysFuelBuildNum,DG$12) -> 0 | DH30: =SUMIFS(sysFuelkWh,sysFuelType,$B30,sysFuelBuildNum,DH$12) -> 0 | DI30: =SUMIFS(sysFuelkWh,sysFuelType,$B30,sysFuelBuildNum,DI$12) -> 0 | DJ30: =SUMIFS(sysFuelkWh,sysFuelType,$B30,sysFuelBuildNum,DJ$12) -> 0 | DK30: =SUMIFS(sysFuelkWh,sysFuelType,$B30,sysFuelBuildNum,DK$12) -> 0 | DL30: =SUMIFS(sysFuelkWh,sysFuelType,$B30,sysFuelBuildNum,DL$12) -> 0 | DM30: =SUMIFS(sysFuelkWh,sysFuelType,$B30,sysFuelBuildNum,DM$12) -> 0 | DN30: =SUMIFS(sysFuelkWh,sysFuelType,$B30,sysFuelBuildNum,DN$12) -> 0 | DO30: =SUMIFS(sysFuelkWh,sysFuelType,$B30,sysFuelBuildNum,DO$12) -> 0 | DP30: =SUMIFS(sysFuelkWh,sysFuelType,$B30,sysFuelBuildNum,DP$12) -> 0 | DQ30: =SUMIFS(sysFuelkWh,sysFuelType,$B30,sysFuelBuildNum,DQ$12) -> 0 | DR30: =SUMIFS(sysFuelkWh,sysFuelType,$B30,sysFuelBuildNum,DR$12) -> 0 | DS30: =SUMIFS(sysFuelkWh,sysFuelType,$B30,sysFuelBuildNum,DS$12) -> 0 | DT30: =SUMIFS(sysFuelkWh,sysFuelType,$B30,sysFuelBuildNum,DT$12) -> 0 | DU30: =SUMIFS(sysFuelkWh,sysFuelType,$B30,sysFuelBuildNum,DU$12) -> 0 | DV30: =SUMIFS(sysFuelkWh,sysFuelType,$B30,sysFuelBuildNum,DV$12) -> 0 | DW30: =SUMIFS(sysFuelkWh,sysFuelType,$B30,sysFuelBuildNum,DW$12) -> 0 | DX30: =SUMIFS(sysFuelkWh,sysFuelType,$B30,sysFuelBuildNum,DX$12) -> 0 | DY30: =SUMIFS(sysFuelkWh,sysFuelType,$B30,sysFuelBuildNum,DY$12) -> 0 | DZ30: =SUMIFS(sysFuelkWh,sysFuelType,$B30,sysFuelBuildNum,DZ$12) -> 0 | EA30: =SUMIFS(sysFuelkWh,sysFuelType,$B30,sysFuelBuildNum,EA$12) -> 0 | EB30: =SUMIFS(sysFuelkWh,sysFuelType,$B30,sysFuelBuildNum,EB$12) -> 0 | EC30: =SUMIFS(sysFuelkWh,sysFuelType,$B30,sysFuelBuildNum,EC$12) -> 0 | ED30: =SUMIFS(sysFuelkWh,sysFuelType,$B30,sysFuelBuildNum,ED$12) -> 0 | EE30: =SUMIFS(sysFuelkWh,sysFuelType,$B30,sysFuelBuildNum,EE$12) -> 0 | EF30: =SUMIFS(sysFuelkWh,sysFuelType,$B30,sysFuelBuildNum,EF$12) -> 0 | EG30: =SUMIFS(sysFuelkWh,sysFuelType,$B30,sysFuelBuildNum,EG$12) -> 0 | EH30: =SUMIFS(sysFuelkWh,sysFuelType,$B30,sysFuelBuildNum,EH$12) -> 0 | EI30: =SUMIFS(sysFuelkWh,sysFuelType,$B30,sysFuelBuildNum,EI$12) -> 0 | EJ30: =SUMIFS(sysFuelkWh,sysFuelType,$B30,sysFuelBuildNum,EJ$12) -> 0 | EK30: =SUMIFS(sysFuelkWh,sysFuelType,$B30,sysFuelBuildNum,EK$12) -> 0 | EL30: =SUMIFS(sysFuelkWh,sysFuelType,$B30,sysFuelBuildNum,EL$12) -> 0 | EM30: =SUMIFS(sysFuelkWh,sysFuelType,$B30,sysFuelBuildNum,EM$12) -> 0 | EN30: =SUMIFS(sysFuelkWh,sysFuelType,$B30,sysFuelBuildNum,EN$12) -> 0 | EO30: =SUMIFS(sysFuelkWh,sysFuelType,$B30,sysFuelBuildNum,EO$12) -> 0 | EP30: =SUMIFS(sysFuelkWh,sysFuelType,$B30,sysFuelBuildNum,EP$12) -> 0 | EQ30: =SUMIFS(sysFuelkWh,sysFuelType,$B30,sysFuelBuildNum,EQ$12) -> 0 | ER30: =SUMIFS(sysFuelkWh,sysFuelType,$B30,sysFuelBuildNum,ER$12) -> 0 | ES30: =SUMIFS(sysFuelkWh,sysFuelType,$B30,sysFuelBuildNum,ES$12) -> 0 | ET30: =SUMIFS(sysFuelkWh,sysFuelType,$B30,sysFuelBuildNum,ET$12) -> 0 | EU30: =SUMIFS(sysFuelkWh,sysFuelType,$B30,sysFuelBuildNum,EU$12) -> 0 | EV30: =SUMIFS(sysFuelkWh,sysFuelType,$B30,sysFuelBuildNum,EV$12) -> 0 | EW30: =SUMIFS(sysFuelkWh,sysFuelType,$B30,sysFuelBuildNum,EW$12) -> 0 | EX30: =SUMIFS(sysFuelkWh,sysFuelType,$B30,sysFuelBuildNum,EX$12) -> 0 | EY30: =SUMIFS(sysFuelkWh,sysFuelType,$B30,sysFuelBuildNum,EY$12) -> 0 | EZ30: =SUMIFS(sysFuelkWh,sysFuelType,$B30,sysFuelBuildNum,EZ$12) -> 0 | FA30: =SUMIFS(sysFuelkWh,sysFuelType,$B30,sysFuelBuildNum,FA$12) -> 0 | FB30: =SUMIFS(sysFuelkWh,sysFuelType,$B30,sysFuelBuildNum,FB$12) -> 0 | FC30: =SUMIFS(sysFuelkWh,sysFuelType,$B30,sysFuelBuildNum,FC$12) -> 0 | FD30: =SUMIFS(sysFuelkWh,sysFuelType,$B30,sysFuelBuildNum,FD$12) -> 0 | FE30: =SUMIFS(sysFuelkWh,sysFuelType,$B30,sysFuelBuildNum,FE$12) -> 0 | FF30: =SUMIFS(sysFuelkWh,sysFuelType,$B30,sysFuelBuildNum,FF$12) -> 0 | FG30: =SUMIFS(sysFuelkWh,sysFuelType,$B30,sysFuelBuildNum,FG$12) -> 0 | FH30: =SUMIFS(sysFuelkWh,sysFuelType,$B30,sysFuelBuildNum,FH$12) -> 0 | FI30: =SUMIFS(sysFuelkWh,sysFuelType,$B30,sysFuelBuildNum,FI$12) -> 0 | FJ30: =SUMIFS(sysFuelkWh,sysFuelType,$B30,sysFuelBuildNum,FJ$12) -> 0 | FK30: =SUMIFS(sysFuelkWh,sysFuelType,$B30,sysFuelBuildNum,FK$12) -> 0 | FL30: =SUMIFS(sysFuelkWh,sysFuelType,$B30,sysFuelBuildNum,FL$12) -> 0 | FM30: =SUMIFS(sysFuelkWh,sysFuelType,$B30,sysFuelBuildNum,FM$12) -> 0 | FN30: =SUMIFS(sysFuelkWh,sysFuelType,$B30,sysFuelBuildNum,FN$12) -> 0 | FO30: =SUMIFS(sysFuelkWh,sysFuelType,$B30,sysFuelBuildNum,FO$12) -> 0 | FP30: =SUMIFS(sysFuelkWh,sysFuelType,$B30,sysFuelBuildNum,FP$12) -> 0 | FQ30: =SUMIFS(sysFuelkWh,sysFuelType,$B30,sysFuelBuildNum,FQ$12) -> 0 | FR30: =SUMIFS(sysFuelkWh,sysFuelType,$B30,sysFuelBuildNum,FR$12) -> 0 | FS30: =SUMIFS(sysFuelkWh,sysFuelType,$B30,sysFuelBuildNum,FS$12) -> 0 | FT30: =SUMIFS(sysFuelkWh,sysFuelType,$B30,sysFuelBuildNum,FT$12) -> 0 | FU30: =SUMIFS(sysFuelkWh,sysFuelType,$B30,sysFuelBuildNum,FU$12) -> 0 | FV30: =SUMIFS(sysFuelkWh,sysFuelType,$B30,sysFuelBuildNum,FV$12) -> 0 | FW30: =SUMIFS(sysFuelkWh,sysFuelType,$B30,sysFuelBuildNum,FW$12) -> 0 | FX30: =SUMIFS(sysFuelkWh,sysFuelType,$B30,sysFuelBuildNum,FX$12) -> 0 | FY30: =SUMIFS(sysFuelkWh,sysFuelType,$B30,sysFuelBuildNum,FY$12) -> 0 | FZ30: =SUMIFS(sysFuelkWh,sysFuelType,$B30,sysFuelBuildNum,FZ$12) -> 0 | GA30: =SUMIFS(sysFuelkWh,sysFuelType,$B30,sysFuelBuildNum,GA$12) -> 0 | GB30: =SUMIFS(sysFuelkWh,sysFuelType,$B30,sysFuelBuildNum,GB$12) -> 0 | GC30: =SUMIFS(sysFuelkWh,sysFuelType,$B30,sysFuelBuildNum,GC$12) -> 0 | GD30: =SUMIFS(sysFuelkWh,sysFuelType,$B30,sysFuelBuildNum,GD$12) -> 0 | GE30: =SUMIFS(sysFuelkWh,sysFuelType,$B30,sysFuelBuildNum,GE$12) -> 0 | GF30: =SUMIFS(sysFuelkWh,sysFuelType,$B30,sysFuelBuildNum,GF$12) -> 0 | GG30: =SUMIFS(sysFuelkWh,sysFuelType,$B30,sysFuelBuildNum,GG$12) -> 0 | GH30: =SUMIFS(sysFuelkWh,sysFuelType,$B30,sysFuelBuildNum,GH$12) -> 0 | GI30: =SUMIFS(sysFuelkWh,sysFuelType,$B30,sysFuelBuildNum,GI$12) -> 0 | GJ30: =SUMIFS(sysFuelkWh,sysFuelType,$B30,sysFuelBuildNum,GJ$12) -> 0 | GK30: =SUMIFS(sysFuelkWh,sysFuelType,$B30,sysFuelBuildNum,GK$12) -> 0 | GL30: =SUMIFS(sysFuelkWh,sysFuelType,$B30,sysFuelBuildNum,GL$12) -> 0 | GM30: =SUMIFS(sysFuelkWh,sysFuelType,$B30,sysFuelBuildNum,GM$12) -> 0 | GN30: =SUMIFS(sysFuelkWh,sysFuelType,$B30,sysFuelBuildNum,GN$12) -> 0 | GO30: =SUMIFS(sysFuelkWh,sysFuelType,$B30,sysFuelBuildNum,GO$12) -> 0 | GP30: =SUMIFS(sysFuelkWh,sysFuelType,$B30,sysFuelBuildNum,GP$12) -> 0 | GQ30: =SUMIFS(sysFuelkWh,sysFuelType,$B30,sysFuelBuildNum,GQ$12) -> 0 | GR30: =SUMIFS(sysFuelkWh,sysFuelType,$B30,sysFuelBuildNum,GR$12) -> 0 | GS30: =SUMIFS(sysFuelkWh,sysFuelType,$B30,sysFuelBuildNum,GS$12) -> 0 | GT30: =SUMIFS(sysFuelkWh,sysFuelType,$B30,sysFuelBuildNum,GT$12) -> 0 | GU30: =SUMIFS(sysFuelkWh,sysFuelType,$B30,sysFuelBuildNum,GU$12) -> 0 | GV30: =SUMIFS(sysFuelkWh,sysFuelType,$B30,sysFuelBuildNum,GV$12) -> 0 | GW30: =SUMIFS(sysFuelkWh,sysFuelType,$B30,sysFuelBuildNum,GW$12) -> 0 | GX30: =SUMIFS(sysFuelkWh,sysFuelType,$B30,sysFuelBuildNum,GX$12) -> 0 | GY30: =SUMIFS(sysFuelkWh,sysFuelType,$B30,sysFuelBuildNum,GY$12) -> 0 | GZ30: =SUMIFS(sysFuelkWh,sysFuelType,$B30,sysFuelBuildNum,GZ$12) -> 0 | HA30: =SUMIFS(sysFuelkWh,sysFuelType,$B30,sysFuelBuildNum,HA$12) -> 0 | HB30: =SUMIFS(sysFuelkWh,sysFuelType,$B30,sysFuelBuildNum,HB$12) -> 0 | HC30: =SUMIFS(sysFuelkWh,sysFuelType,$B30,sysFuelBuildNum,HC$12) -> 0
B31: =Lists!$C$6 -> Coal | C31: kWh | L31: =SUMIFS(sysFuelkWh,sysFuelType,$B31,sysFuelBuildNum,L$12) -> 0 | M31: =SUMIFS(sysFuelkWh,sysFuelType,$B31,sysFuelBuildNum,M$12) -> 0 | N31: =SUMIFS(sysFuelkWh,sysFuelType,$B31,sysFuelBuildNum,N$12) -> 0 | O31: =SUMIFS(sysFuelkWh,sysFuelType,$B31,sysFuelBuildNum,O$12) -> 0 | P31: =SUMIFS(sysFuelkWh,sysFuelType,$B31,sysFuelBuildNum,P$12) -> 0 | Q31: =SUMIFS(sysFuelkWh,sysFuelType,$B31,sysFuelBuildNum,Q$12) -> 0 | R31: =SUMIFS(sysFuelkWh,sysFuelType,$B31,sysFuelBuildNum,R$12) -> 0 | S31: =SUMIFS(sysFuelkWh,sysFuelType,$B31,sysFuelBuildNum,S$12) -> 0 | T31: =SUMIFS(sysFuelkWh,sysFuelType,$B31,sysFuelBuildNum,T$12) -> 0 | U31: =SUMIFS(sysFuelkWh,sysFuelType,$B31,sysFuelBuildNum,U$12) -> 0 | V31: =SUMIFS(sysFuelkWh,sysFuelType,$B31,sysFuelBuildNum,V$12) -> 0 | W31: =SUMIFS(sysFuelkWh,sysFuelType,$B31,sysFuelBuildNum,W$12) -> 0 | X31: =SUMIFS(sysFuelkWh,sysFuelType,$B31,sysFuelBuildNum,X$12) -> 0 | Y31: =SUMIFS(sysFuelkWh,sysFuelType,$B31,sysFuelBuildNum,Y$12) -> 0 | Z31: =SUMIFS(sysFuelkWh,sysFuelType,$B31,sysFuelBuildNum,Z$12) -> 0 | AA31: =SUMIFS(sysFuelkWh,sysFuelType,$B31,sysFuelBuildNum,AA$12) -> 0 | AB31: =SUMIFS(sysFuelkWh,sysFuelType,$B31,sysFuelBuildNum,AB$12) -> 0 | AC31: =SUMIFS(sysFuelkWh,sysFuelType,$B31,sysFuelBuildNum,AC$12) -> 0 | AD31: =SUMIFS(sysFuelkWh,sysFuelType,$B31,sysFuelBuildNum,AD$12) -> 0 | AE31: =SUMIFS(sysFuelkWh,sysFuelType,$B31,sysFuelBuildNum,AE$12) -> 0 | AF31: =SUMIFS(sysFuelkWh,sysFuelType,$B31,sysFuelBuildNum,AF$12) -> 0 | AG31: =SUMIFS(sysFuelkWh,sysFuelType,$B31,sysFuelBuildNum,AG$12) -> 0 | AH31: =SUMIFS(sysFuelkWh,sysFuelType,$B31,sysFuelBuildNum,AH$12) -> 0 | AI31: =SUMIFS(sysFuelkWh,sysFuelType,$B31,sysFuelBuildNum,AI$12) -> 0 | AJ31: =SUMIFS(sysFuelkWh,sysFuelType,$B31,sysFuelBuildNum,AJ$12) -> 0 | AK31: =SUMIFS(sysFuelkWh,sysFuelType,$B31,sysFuelBuildNum,AK$12) -> 0 | AL31: =SUMIFS(sysFuelkWh,sysFuelType,$B31,sysFuelBuildNum,AL$12) -> 0 | AM31: =SUMIFS(sysFuelkWh,sysFuelType,$B31,sysFuelBuildNum,AM$12) -> 0 | AN31: =SUMIFS(sysFuelkWh,sysFuelType,$B31,sysFuelBuildNum,AN$12) -> 0 | AO31: =SUMIFS(sysFuelkWh,sysFuelType,$B31,sysFuelBuildNum,AO$12) -> 0 | AP31: =SUMIFS(sysFuelkWh,sysFuelType,$B31,sysFuelBuildNum,AP$12) -> 0 | AQ31: =SUMIFS(sysFuelkWh,sysFuelType,$B31,sysFuelBuildNum,AQ$12) -> 0 | AR31: =SUMIFS(sysFuelkWh,sysFuelType,$B31,sysFuelBuildNum,AR$12) -> 0 | AS31: =SUMIFS(sysFuelkWh,sysFuelType,$B31,sysFuelBuildNum,AS$12) -> 0 | AT31: =SUMIFS(sysFuelkWh,sysFuelType,$B31,sysFuelBuildNum,AT$12) -> 0 | AU31: =SUMIFS(sysFuelkWh,sysFuelType,$B31,sysFuelBuildNum,AU$12) -> 0 | AV31: =SUMIFS(sysFuelkWh,sysFuelType,$B31,sysFuelBuildNum,AV$12) -> 0 | AW31: =SUMIFS(sysFuelkWh,sysFuelType,$B31,sysFuelBuildNum,AW$12) -> 0 | AX31: =SUMIFS(sysFuelkWh,sysFuelType,$B31,sysFuelBuildNum,AX$12) -> 0 | AY31: =SUMIFS(sysFuelkWh,sysFuelType,$B31,sysFuelBuildNum,AY$12) -> 0 | AZ31: =SUMIFS(sysFuelkWh,sysFuelType,$B31,sysFuelBuildNum,AZ$12) -> 0 | BA31: =SUMIFS(sysFuelkWh,sysFuelType,$B31,sysFuelBuildNum,BA$12) -> 0 | BB31: =SUMIFS(sysFuelkWh,sysFuelType,$B31,sysFuelBuildNum,BB$12) -> 0 | BC31: =SUMIFS(sysFuelkWh,sysFuelType,$B31,sysFuelBuildNum,BC$12) -> 0 | BD31: =SUMIFS(sysFuelkWh,sysFuelType,$B31,sysFuelBuildNum,BD$12) -> 0 | BE31: =SUMIFS(sysFuelkWh,sysFuelType,$B31,sysFuelBuildNum,BE$12) -> 0 | BF31: =SUMIFS(sysFuelkWh,sysFuelType,$B31,sysFuelBuildNum,BF$12) -> 0 | BG31: =SUMIFS(sysFuelkWh,sysFuelType,$B31,sysFuelBuildNum,BG$12) -> 0 | BH31: =SUMIFS(sysFuelkWh,sysFuelType,$B31,sysFuelBuildNum,BH$12) -> 0 | BI31: =SUMIFS(sysFuelkWh,sysFuelType,$B31,sysFuelBuildNum,BI$12) -> 0 | BJ31: =SUMIFS(sysFuelkWh,sysFuelType,$B31,sysFuelBuildNum,BJ$12) -> 0 | BK31: =SUMIFS(sysFuelkWh,sysFuelType,$B31,sysFuelBuildNum,BK$12) -> 0 | BL31: =SUMIFS(sysFuelkWh,sysFuelType,$B31,sysFuelBuildNum,BL$12) -> 0 | BM31: =SUMIFS(sysFuelkWh,sysFuelType,$B31,sysFuelBuildNum,BM$12) -> 0 | BN31: =SUMIFS(sysFuelkWh,sysFuelType,$B31,sysFuelBuildNum,BN$12) -> 0 | BO31: =SUMIFS(sysFuelkWh,sysFuelType,$B31,sysFuelBuildNum,BO$12) -> 0 | BP31: =SUMIFS(sysFuelkWh,sysFuelType,$B31,sysFuelBuildNum,BP$12) -> 0 | BQ31: =SUMIFS(sysFuelkWh,sysFuelType,$B31,sysFuelBuildNum,BQ$12) -> 0 | BR31: =SUMIFS(sysFuelkWh,sysFuelType,$B31,sysFuelBuildNum,BR$12) -> 0 | BS31: =SUMIFS(sysFuelkWh,sysFuelType,$B31,sysFuelBuildNum,BS$12) -> 0 | BT31: =SUMIFS(sysFuelkWh,sysFuelType,$B31,sysFuelBuildNum,BT$12) -> 0 | BU31: =SUMIFS(sysFuelkWh,sysFuelType,$B31,sysFuelBuildNum,BU$12) -> 0 | BV31: =SUMIFS(sysFuelkWh,sysFuelType,$B31,sysFuelBuildNum,BV$12) -> 0 | BW31: =SUMIFS(sysFuelkWh,sysFuelType,$B31,sysFuelBuildNum,BW$12) -> 0 | BX31: =SUMIFS(sysFuelkWh,sysFuelType,$B31,sysFuelBuildNum,BX$12) -> 0 | BY31: =SUMIFS(sysFuelkWh,sysFuelType,$B31,sysFuelBuildNum,BY$12) -> 0 | BZ31: =SUMIFS(sysFuelkWh,sysFuelType,$B31,sysFuelBuildNum,BZ$12) -> 0 | CA31: =SUMIFS(sysFuelkWh,sysFuelType,$B31,sysFuelBuildNum,CA$12) -> 0 | CB31: =SUMIFS(sysFuelkWh,sysFuelType,$B31,sysFuelBuildNum,CB$12) -> 0 | CC31: =SUMIFS(sysFuelkWh,sysFuelType,$B31,sysFuelBuildNum,CC$12) -> 0 | CD31: =SUMIFS(sysFuelkWh,sysFuelType,$B31,sysFuelBuildNum,CD$12) -> 0 | CE31: =SUMIFS(sysFuelkWh,sysFuelType,$B31,sysFuelBuildNum,CE$12) -> 0 | CF31: =SUMIFS(sysFuelkWh,sysFuelType,$B31,sysFuelBuildNum,CF$12) -> 0 | CG31: =SUMIFS(sysFuelkWh,sysFuelType,$B31,sysFuelBuildNum,CG$12) -> 0 | CH31: =SUMIFS(sysFuelkWh,sysFuelType,$B31,sysFuelBuildNum,CH$12) -> 0 | CI31: =SUMIFS(sysFuelkWh,sysFuelType,$B31,sysFuelBuildNum,CI$12) -> 0 | CJ31: =SUMIFS(sysFuelkWh,sysFuelType,$B31,sysFuelBuildNum,CJ$12) -> 0 | CK31: =SUMIFS(sysFuelkWh,sysFuelType,$B31,sysFuelBuildNum,CK$12) -> 0 | CL31: =SUMIFS(sysFuelkWh,sysFuelType,$B31,sysFuelBuildNum,CL$12) -> 0 | CM31: =SUMIFS(sysFuelkWh,sysFuelType,$B31,sysFuelBuildNum,CM$12) -> 0 | CN31: =SUMIFS(sysFuelkWh,sysFuelType,$B31,sysFuelBuildNum,CN$12) -> 0 | CO31: =SUMIFS(sysFuelkWh,sysFuelType,$B31,sysFuelBuildNum,CO$12) -> 0 | CP31: =SUMIFS(sysFuelkWh,sysFuelType,$B31,sysFuelBuildNum,CP$12) -> 0 | CQ31: =SUMIFS(sysFuelkWh,sysFuelType,$B31,sysFuelBuildNum,CQ$12) -> 0 | CR31: =SUMIFS(sysFuelkWh,sysFuelType,$B31,sysFuelBuildNum,CR$12) -> 0 | CS31: =SUMIFS(sysFuelkWh,sysFuelType,$B31,sysFuelBuildNum,CS$12) -> 0 | CT31: =SUMIFS(sysFuelkWh,sysFuelType,$B31,sysFuelBuildNum,CT$12) -> 0 | CU31: =SUMIFS(sysFuelkWh,sysFuelType,$B31,sysFuelBuildNum,CU$12) -> 0 | CV31: =SUMIFS(sysFuelkWh,sysFuelType,$B31,sysFuelBuildNum,CV$12) -> 0 | CW31: =SUMIFS(sysFuelkWh,sysFuelType,$B31,sysFuelBuildNum,CW$12) -> 0 | CX31: =SUMIFS(sysFuelkWh,sysFuelType,$B31,sysFuelBuildNum,CX$12) -> 0 | CY31: =SUMIFS(sysFuelkWh,sysFuelType,$B31,sysFuelBuildNum,CY$12) -> 0 | CZ31: =SUMIFS(sysFuelkWh,sysFuelType,$B31,sysFuelBuildNum,CZ$12) -> 0 | DA31: =SUMIFS(sysFuelkWh,sysFuelType,$B31,sysFuelBuildNum,DA$12) -> 0 | DB31: =SUMIFS(sysFuelkWh,sysFuelType,$B31,sysFuelBuildNum,DB$12) -> 0 | DC31: =SUMIFS(sysFuelkWh,sysFuelType,$B31,sysFuelBuildNum,DC$12) -> 0 | DD31: =SUMIFS(sysFuelkWh,sysFuelType,$B31,sysFuelBuildNum,DD$12) -> 0 | DE31: =SUMIFS(sysFuelkWh,sysFuelType,$B31,sysFuelBuildNum,DE$12) -> 0 | DF31: =SUMIFS(sysFuelkWh,sysFuelType,$B31,sysFuelBuildNum,DF$12) -> 0 | DG31: =SUMIFS(sysFuelkWh,sysFuelType,$B31,sysFuelBuildNum,DG$12) -> 0 | DH31: =SUMIFS(sysFuelkWh,sysFuelType,$B31,sysFuelBuildNum,DH$12) -> 0 | DI31: =SUMIFS(sysFuelkWh,sysFuelType,$B31,sysFuelBuildNum,DI$12) -> 0 | DJ31: =SUMIFS(sysFuelkWh,sysFuelType,$B31,sysFuelBuildNum,DJ$12) -> 0 | DK31: =SUMIFS(sysFuelkWh,sysFuelType,$B31,sysFuelBuildNum,DK$12) -> 0 | DL31: =SUMIFS(sysFuelkWh,sysFuelType,$B31,sysFuelBuildNum,DL$12) -> 0 | DM31: =SUMIFS(sysFuelkWh,sysFuelType,$B31,sysFuelBuildNum,DM$12) -> 0 | DN31: =SUMIFS(sysFuelkWh,sysFuelType,$B31,sysFuelBuildNum,DN$12) -> 0 | DO31: =SUMIFS(sysFuelkWh,sysFuelType,$B31,sysFuelBuildNum,DO$12) -> 0 | DP31: =SUMIFS(sysFuelkWh,sysFuelType,$B31,sysFuelBuildNum,DP$12) -> 0 | DQ31: =SUMIFS(sysFuelkWh,sysFuelType,$B31,sysFuelBuildNum,DQ$12) -> 0 | DR31: =SUMIFS(sysFuelkWh,sysFuelType,$B31,sysFuelBuildNum,DR$12) -> 0 | DS31: =SUMIFS(sysFuelkWh,sysFuelType,$B31,sysFuelBuildNum,DS$12) -> 0 | DT31: =SUMIFS(sysFuelkWh,sysFuelType,$B31,sysFuelBuildNum,DT$12) -> 0 | DU31: =SUMIFS(sysFuelkWh,sysFuelType,$B31,sysFuelBuildNum,DU$12) -> 0 | DV31: =SUMIFS(sysFuelkWh,sysFuelType,$B31,sysFuelBuildNum,DV$12) -> 0 | DW31: =SUMIFS(sysFuelkWh,sysFuelType,$B31,sysFuelBuildNum,DW$12) -> 0 | DX31: =SUMIFS(sysFuelkWh,sysFuelType,$B31,sysFuelBuildNum,DX$12) -> 0 | DY31: =SUMIFS(sysFuelkWh,sysFuelType,$B31,sysFuelBuildNum,DY$12) -> 0 | DZ31: =SUMIFS(sysFuelkWh,sysFuelType,$B31,sysFuelBuildNum,DZ$12) -> 0 | EA31: =SUMIFS(sysFuelkWh,sysFuelType,$B31,sysFuelBuildNum,EA$12) -> 0 | EB31: =SUMIFS(sysFuelkWh,sysFuelType,$B31,sysFuelBuildNum,EB$12) -> 0 | EC31: =SUMIFS(sysFuelkWh,sysFuelType,$B31,sysFuelBuildNum,EC$12) -> 0 | ED31: =SUMIFS(sysFuelkWh,sysFuelType,$B31,sysFuelBuildNum,ED$12) -> 0 | EE31: =SUMIFS(sysFuelkWh,sysFuelType,$B31,sysFuelBuildNum,EE$12) -> 0 | EF31: =SUMIFS(sysFuelkWh,sysFuelType,$B31,sysFuelBuildNum,EF$12) -> 0 | EG31: =SUMIFS(sysFuelkWh,sysFuelType,$B31,sysFuelBuildNum,EG$12) -> 0 | EH31: =SUMIFS(sysFuelkWh,sysFuelType,$B31,sysFuelBuildNum,EH$12) -> 0 | EI31: =SUMIFS(sysFuelkWh,sysFuelType,$B31,sysFuelBuildNum,EI$12) -> 0 | EJ31: =SUMIFS(sysFuelkWh,sysFuelType,$B31,sysFuelBuildNum,EJ$12) -> 0 | EK31: =SUMIFS(sysFuelkWh,sysFuelType,$B31,sysFuelBuildNum,EK$12) -> 0 | EL31: =SUMIFS(sysFuelkWh,sysFuelType,$B31,sysFuelBuildNum,EL$12) -> 0 | EM31: =SUMIFS(sysFuelkWh,sysFuelType,$B31,sysFuelBuildNum,EM$12) -> 0 | EN31: =SUMIFS(sysFuelkWh,sysFuelType,$B31,sysFuelBuildNum,EN$12) -> 0 | EO31: =SUMIFS(sysFuelkWh,sysFuelType,$B31,sysFuelBuildNum,EO$12) -> 0 | EP31: =SUMIFS(sysFuelkWh,sysFuelType,$B31,sysFuelBuildNum,EP$12) -> 0 | EQ31: =SUMIFS(sysFuelkWh,sysFuelType,$B31,sysFuelBuildNum,EQ$12) -> 0 | ER31: =SUMIFS(sysFuelkWh,sysFuelType,$B31,sysFuelBuildNum,ER$12) -> 0 | ES31: =SUMIFS(sysFuelkWh,sysFuelType,$B31,sysFuelBuildNum,ES$12) -> 0 | ET31: =SUMIFS(sysFuelkWh,sysFuelType,$B31,sysFuelBuildNum,ET$12) -> 0 | EU31: =SUMIFS(sysFuelkWh,sysFuelType,$B31,sysFuelBuildNum,EU$12) -> 0 | EV31: =SUMIFS(sysFuelkWh,sysFuelType,$B31,sysFuelBuildNum,EV$12) -> 0 | EW31: =SUMIFS(sysFuelkWh,sysFuelType,$B31,sysFuelBuildNum,EW$12) -> 0 | EX31: =SUMIFS(sysFuelkWh,sysFuelType,$B31,sysFuelBuildNum,EX$12) -> 0 | EY31: =SUMIFS(sysFuelkWh,sysFuelType,$B31,sysFuelBuildNum,EY$12) -> 0 | EZ31: =SUMIFS(sysFuelkWh,sysFuelType,$B31,sysFuelBuildNum,EZ$12) -> 0 | FA31: =SUMIFS(sysFuelkWh,sysFuelType,$B31,sysFuelBuildNum,FA$12) -> 0 | FB31: =SUMIFS(sysFuelkWh,sysFuelType,$B31,sysFuelBuildNum,FB$12) -> 0 | FC31: =SUMIFS(sysFuelkWh,sysFuelType,$B31,sysFuelBuildNum,FC$12) -> 0 | FD31: =SUMIFS(sysFuelkWh,sysFuelType,$B31,sysFuelBuildNum,FD$12) -> 0 | FE31: =SUMIFS(sysFuelkWh,sysFuelType,$B31,sysFuelBuildNum,FE$12) -> 0 | FF31: =SUMIFS(sysFuelkWh,sysFuelType,$B31,sysFuelBuildNum,FF$12) -> 0 | FG31: =SUMIFS(sysFuelkWh,sysFuelType,$B31,sysFuelBuildNum,FG$12) -> 0 | FH31: =SUMIFS(sysFuelkWh,sysFuelType,$B31,sysFuelBuildNum,FH$12) -> 0 | FI31: =SUMIFS(sysFuelkWh,sysFuelType,$B31,sysFuelBuildNum,FI$12) -> 0 | FJ31: =SUMIFS(sysFuelkWh,sysFuelType,$B31,sysFuelBuildNum,FJ$12) -> 0 | FK31: =SUMIFS(sysFuelkWh,sysFuelType,$B31,sysFuelBuildNum,FK$12) -> 0 | FL31: =SUMIFS(sysFuelkWh,sysFuelType,$B31,sysFuelBuildNum,FL$12) -> 0 | FM31: =SUMIFS(sysFuelkWh,sysFuelType,$B31,sysFuelBuildNum,FM$12) -> 0 | FN31: =SUMIFS(sysFuelkWh,sysFuelType,$B31,sysFuelBuildNum,FN$12) -> 0 | FO31: =SUMIFS(sysFuelkWh,sysFuelType,$B31,sysFuelBuildNum,FO$12) -> 0 | FP31: =SUMIFS(sysFuelkWh,sysFuelType,$B31,sysFuelBuildNum,FP$12) -> 0 | FQ31: =SUMIFS(sysFuelkWh,sysFuelType,$B31,sysFuelBuildNum,FQ$12) -> 0 | FR31: =SUMIFS(sysFuelkWh,sysFuelType,$B31,sysFuelBuildNum,FR$12) -> 0 | FS31: =SUMIFS(sysFuelkWh,sysFuelType,$B31,sysFuelBuildNum,FS$12) -> 0 | FT31: =SUMIFS(sysFuelkWh,sysFuelType,$B31,sysFuelBuildNum,FT$12) -> 0 | FU31: =SUMIFS(sysFuelkWh,sysFuelType,$B31,sysFuelBuildNum,FU$12) -> 0 | FV31: =SUMIFS(sysFuelkWh,sysFuelType,$B31,sysFuelBuildNum,FV$12) -> 0 | FW31: =SUMIFS(sysFuelkWh,sysFuelType,$B31,sysFuelBuildNum,FW$12) -> 0 | FX31: =SUMIFS(sysFuelkWh,sysFuelType,$B31,sysFuelBuildNum,FX$12) -> 0 | FY31: =SUMIFS(sysFuelkWh,sysFuelType,$B31,sysFuelBuildNum,FY$12) -> 0 | FZ31: =SUMIFS(sysFuelkWh,sysFuelType,$B31,sysFuelBuildNum,FZ$12) -> 0 | GA31: =SUMIFS(sysFuelkWh,sysFuelType,$B31,sysFuelBuildNum,GA$12) -> 0 | GB31: =SUMIFS(sysFuelkWh,sysFuelType,$B31,sysFuelBuildNum,GB$12) -> 0 | GC31: =SUMIFS(sysFuelkWh,sysFuelType,$B31,sysFuelBuildNum,GC$12) -> 0 | GD31: =SUMIFS(sysFuelkWh,sysFuelType,$B31,sysFuelBuildNum,GD$12) -> 0 | GE31: =SUMIFS(sysFuelkWh,sysFuelType,$B31,sysFuelBuildNum,GE$12) -> 0 | GF31: =SUMIFS(sysFuelkWh,sysFuelType,$B31,sysFuelBuildNum,GF$12) -> 0 | GG31: =SUMIFS(sysFuelkWh,sysFuelType,$B31,sysFuelBuildNum,GG$12) -> 0 | GH31: =SUMIFS(sysFuelkWh,sysFuelType,$B31,sysFuelBuildNum,GH$12) -> 0 | GI31: =SUMIFS(sysFuelkWh,sysFuelType,$B31,sysFuelBuildNum,GI$12) -> 0 | GJ31: =SUMIFS(sysFuelkWh,sysFuelType,$B31,sysFuelBuildNum,GJ$12) -> 0 | GK31: =SUMIFS(sysFuelkWh,sysFuelType,$B31,sysFuelBuildNum,GK$12) -> 0 | GL31: =SUMIFS(sysFuelkWh,sysFuelType,$B31,sysFuelBuildNum,GL$12) -> 0 | GM31: =SUMIFS(sysFuelkWh,sysFuelType,$B31,sysFuelBuildNum,GM$12) -> 0 | GN31: =SUMIFS(sysFuelkWh,sysFuelType,$B31,sysFuelBuildNum,GN$12) -> 0 | GO31: =SUMIFS(sysFuelkWh,sysFuelType,$B31,sysFuelBuildNum,GO$12) -> 0 | GP31: =SUMIFS(sysFuelkWh,sysFuelType,$B31,sysFuelBuildNum,GP$12) -> 0 | GQ31: =SUMIFS(sysFuelkWh,sysFuelType,$B31,sysFuelBuildNum,GQ$12) -> 0 | GR31: =SUMIFS(sysFuelkWh,sysFuelType,$B31,sysFuelBuildNum,GR$12) -> 0 | GS31: =SUMIFS(sysFuelkWh,sysFuelType,$B31,sysFuelBuildNum,GS$12) -> 0 | GT31: =SUMIFS(sysFuelkWh,sysFuelType,$B31,sysFuelBuildNum,GT$12) -> 0 | GU31: =SUMIFS(sysFuelkWh,sysFuelType,$B31,sysFuelBuildNum,GU$12) -> 0 | GV31: =SUMIFS(sysFuelkWh,sysFuelType,$B31,sysFuelBuildNum,GV$12) -> 0 | GW31: =SUMIFS(sysFuelkWh,sysFuelType,$B31,sysFuelBuildNum,GW$12) -> 0 | GX31: =SUMIFS(sysFuelkWh,sysFuelType,$B31,sysFuelBuildNum,GX$12) -> 0 | GY31: =SUMIFS(sysFuelkWh,sysFuelType,$B31,sysFuelBuildNum,GY$12) -> 0 | GZ31: =SUMIFS(sysFuelkWh,sysFuelType,$B31,sysFuelBuildNum,GZ$12) -> 0 | HA31: =SUMIFS(sysFuelkWh,sysFuelType,$B31,sysFuelBuildNum,HA$12) -> 0 | HB31: =SUMIFS(sysFuelkWh,sysFuelType,$B31,sysFuelBuildNum,HB$12) -> 0 | HC31: =SUMIFS(sysFuelkWh,sysFuelType,$B31,sysFuelBuildNum,HC$12) -> 0
B32: =Lists!$C$7 -> Electricity | C32: kWh | L32: =SUMIFS(sysFuelkWh,sysFuelType,$B32,sysFuelBuildNum,L$12) -> 0 | M32: =SUMIFS(sysFuelkWh,sysFuelType,$B32,sysFuelBuildNum,M$12) -> 0 | N32: =SUMIFS(sysFuelkWh,sysFuelType,$B32,sysFuelBuildNum,N$12) -> 0 | O32: =SUMIFS(sysFuelkWh,sysFuelType,$B32,sysFuelBuildNum,O$12) -> 0 | P32: =SUMIFS(sysFuelkWh,sysFuelType,$B32,sysFuelBuildNum,P$12) -> 0 | Q32: =SUMIFS(sysFuelkWh,sysFuelType,$B32,sysFuelBuildNum,Q$12) -> 0 | R32: =SUMIFS(sysFuelkWh,sysFuelType,$B32,sysFuelBuildNum,R$12) -> 0 | S32: =SUMIFS(sysFuelkWh,sysFuelType,$B32,sysFuelBuildNum,S$12) -> 0 | T32: =SUMIFS(sysFuelkWh,sysFuelType,$B32,sysFuelBuildNum,T$12) -> 0 | U32: =SUMIFS(sysFuelkWh,sysFuelType,$B32,sysFuelBuildNum,U$12) -> 0 | V32: =SUMIFS(sysFuelkWh,sysFuelType,$B32,sysFuelBuildNum,V$12) -> 0 | W32: =SUMIFS(sysFuelkWh,sysFuelType,$B32,sysFuelBuildNum,W$12) -> 0 | X32: =SUMIFS(sysFuelkWh,sysFuelType,$B32,sysFuelBuildNum,X$12) -> 0 | Y32: =SUMIFS(sysFuelkWh,sysFuelType,$B32,sysFuelBuildNum,Y$12) -> 0 | Z32: =SUMIFS(sysFuelkWh,sysFuelType,$B32,sysFuelBuildNum,Z$12) -> 0 | AA32: =SUMIFS(sysFuelkWh,sysFuelType,$B32,sysFuelBuildNum,AA$12) -> 0 | AB32: =SUMIFS(sysFuelkWh,sysFuelType,$B32,sysFuelBuildNum,AB$12) -> 0 | AC32: =SUMIFS(sysFuelkWh,sysFuelType,$B32,sysFuelBuildNum,AC$12) -> 0 | AD32: =SUMIFS(sysFuelkWh,sysFuelType,$B32,sysFuelBuildNum,AD$12) -> 0 | AE32: =SUMIFS(sysFuelkWh,sysFuelType,$B32,sysFuelBuildNum,AE$12) -> 0 | AF32: =SUMIFS(sysFuelkWh,sysFuelType,$B32,sysFuelBuildNum,AF$12) -> 0 | AG32: =SUMIFS(sysFuelkWh,sysFuelType,$B32,sysFuelBuildNum,AG$12) -> 0 | AH32: =SUMIFS(sysFuelkWh,sysFuelType,$B32,sysFuelBuildNum,AH$12) -> 0 | AI32: =SUMIFS(sysFuelkWh,sysFuelType,$B32,sysFuelBuildNum,AI$12) -> 0 | AJ32: =SUMIFS(sysFuelkWh,sysFuelType,$B32,sysFuelBuildNum,AJ$12) -> 0 | AK32: =SUMIFS(sysFuelkWh,sysFuelType,$B32,sysFuelBuildNum,AK$12) -> 0 | AL32: =SUMIFS(sysFuelkWh,sysFuelType,$B32,sysFuelBuildNum,AL$12) -> 0 | AM32: =SUMIFS(sysFuelkWh,sysFuelType,$B32,sysFuelBuildNum,AM$12) -> 0 | AN32: =SUMIFS(sysFuelkWh,sysFuelType,$B32,sysFuelBuildNum,AN$12) -> 0 | AO32: =SUMIFS(sysFuelkWh,sysFuelType,$B32,sysFuelBuildNum,AO$12) -> 0 | AP32: =SUMIFS(sysFuelkWh,sysFuelType,$B32,sysFuelBuildNum,AP$12) -> 0 | AQ32: =SUMIFS(sysFuelkWh,sysFuelType,$B32,sysFuelBuildNum,AQ$12) -> 0 | AR32: =SUMIFS(sysFuelkWh,sysFuelType,$B32,sysFuelBuildNum,AR$12) -> 0 | AS32: =SUMIFS(sysFuelkWh,sysFuelType,$B32,sysFuelBuildNum,AS$12) -> 0 | AT32: =SUMIFS(sysFuelkWh,sysFuelType,$B32,sysFuelBuildNum,AT$12) -> 0 | AU32: =SUMIFS(sysFuelkWh,sysFuelType,$B32,sysFuelBuildNum,AU$12) -> 0 | AV32: =SUMIFS(sysFuelkWh,sysFuelType,$B32,sysFuelBuildNum,AV$12) -> 0 | AW32: =SUMIFS(sysFuelkWh,sysFuelType,$B32,sysFuelBuildNum,AW$12) -> 0 | AX32: =SUMIFS(sysFuelkWh,sysFuelType,$B32,sysFuelBuildNum,AX$12) -> 0 | AY32: =SUMIFS(sysFuelkWh,sysFuelType,$B32,sysFuelBuildNum,AY$12) -> 0 | AZ32: =SUMIFS(sysFuelkWh,sysFuelType,$B32,sysFuelBuildNum,AZ$12) -> 0 | BA32: =SUMIFS(sysFuelkWh,sysFuelType,$B32,sysFuelBuildNum,BA$12) -> 0 | BB32: =SUMIFS(sysFuelkWh,sysFuelType,$B32,sysFuelBuildNum,BB$12) -> 0 | BC32: =SUMIFS(sysFuelkWh,sysFuelType,$B32,sysFuelBuildNum,BC$12) -> 0 | BD32: =SUMIFS(sysFuelkWh,sysFuelType,$B32,sysFuelBuildNum,BD$12) -> 0 | BE32: =SUMIFS(sysFuelkWh,sysFuelType,$B32,sysFuelBuildNum,BE$12) -> 0 | BF32: =SUMIFS(sysFuelkWh,sysFuelType,$B32,sysFuelBuildNum,BF$12) -> 0 | BG32: =SUMIFS(sysFuelkWh,sysFuelType,$B32,sysFuelBuildNum,BG$12) -> 0 | BH32: =SUMIFS(sysFuelkWh,sysFuelType,$B32,sysFuelBuildNum,BH$12) -> 0 | BI32: =SUMIFS(sysFuelkWh,sysFuelType,$B32,sysFuelBuildNum,BI$12) -> 0 | BJ32: =SUMIFS(sysFuelkWh,sysFuelType,$B32,sysFuelBuildNum,BJ$12) -> 0 | BK32: =SUMIFS(sysFuelkWh,sysFuelType,$B32,sysFuelBuildNum,BK$12) -> 0 | BL32: =SUMIFS(sysFuelkWh,sysFuelType,$B32,sysFuelBuildNum,BL$12) -> 0 | BM32: =SUMIFS(sysFuelkWh,sysFuelType,$B32,sysFuelBuildNum,BM$12) -> 0 | BN32: =SUMIFS(sysFuelkWh,sysFuelType,$B32,sysFuelBuildNum,BN$12) -> 0 | BO32: =SUMIFS(sysFuelkWh,sysFuelType,$B32,sysFuelBuildNum,BO$12) -> 0 | BP32: =SUMIFS(sysFuelkWh,sysFuelType,$B32,sysFuelBuildNum,BP$12) -> 0 | BQ32: =SUMIFS(sysFuelkWh,sysFuelType,$B32,sysFuelBuildNum,BQ$12) -> 0 | BR32: =SUMIFS(sysFuelkWh,sysFuelType,$B32,sysFuelBuildNum,BR$12) -> 0 | BS32: =SUMIFS(sysFuelkWh,sysFuelType,$B32,sysFuelBuildNum,BS$12) -> 0 | BT32: =SUMIFS(sysFuelkWh,sysFuelType,$B32,sysFuelBuildNum,BT$12) -> 0 | BU32: =SUMIFS(sysFuelkWh,sysFuelType,$B32,sysFuelBuildNum,BU$12) -> 0 | BV32: =SUMIFS(sysFuelkWh,sysFuelType,$B32,sysFuelBuildNum,BV$12) -> 0 | BW32: =SUMIFS(sysFuelkWh,sysFuelType,$B32,sysFuelBuildNum,BW$12) -> 0 | BX32: =SUMIFS(sysFuelkWh,sysFuelType,$B32,sysFuelBuildNum,BX$12) -> 0 | BY32: =SUMIFS(sysFuelkWh,sysFuelType,$B32,sysFuelBuildNum,BY$12) -> 0 | BZ32: =SUMIFS(sysFuelkWh,sysFuelType,$B32,sysFuelBuildNum,BZ$12) -> 0 | CA32: =SUMIFS(sysFuelkWh,sysFuelType,$B32,sysFuelBuildNum,CA$12) -> 0 | CB32: =SUMIFS(sysFuelkWh,sysFuelType,$B32,sysFuelBuildNum,CB$12) -> 0 | CC32: =SUMIFS(sysFuelkWh,sysFuelType,$B32,sysFuelBuildNum,CC$12) -> 0 | CD32: =SUMIFS(sysFuelkWh,sysFuelType,$B32,sysFuelBuildNum,CD$12) -> 0 | CE32: =SUMIFS(sysFuelkWh,sysFuelType,$B32,sysFuelBuildNum,CE$12) -> 0 | CF32: =SUMIFS(sysFuelkWh,sysFuelType,$B32,sysFuelBuildNum,CF$12) -> 0 | CG32: =SUMIFS(sysFuelkWh,sysFuelType,$B32,sysFuelBuildNum,CG$12) -> 0 | CH32: =SUMIFS(sysFuelkWh,sysFuelType,$B32,sysFuelBuildNum,CH$12) -> 0 | CI32: =SUMIFS(sysFuelkWh,sysFuelType,$B32,sysFuelBuildNum,CI$12) -> 0 | CJ32: =SUMIFS(sysFuelkWh,sysFuelType,$B32,sysFuelBuildNum,CJ$12) -> 0 | CK32: =SUMIFS(sysFuelkWh,sysFuelType,$B32,sysFuelBuildNum,CK$12) -> 0 | CL32: =SUMIFS(sysFuelkWh,sysFuelType,$B32,sysFuelBuildNum,CL$12) -> 0 | CM32: =SUMIFS(sysFuelkWh,sysFuelType,$B32,sysFuelBuildNum,CM$12) -> 0 | CN32: =SUMIFS(sysFuelkWh,sysFuelType,$B32,sysFuelBuildNum,CN$12) -> 0 | CO32: =SUMIFS(sysFuelkWh,sysFuelType,$B32,sysFuelBuildNum,CO$12) -> 0 | CP32: =SUMIFS(sysFuelkWh,sysFuelType,$B32,sysFuelBuildNum,CP$12) -> 0 | CQ32: =SUMIFS(sysFuelkWh,sysFuelType,$B32,sysFuelBuildNum,CQ$12) -> 0 | CR32: =SUMIFS(sysFuelkWh,sysFuelType,$B32,sysFuelBuildNum,CR$12) -> 0 | CS32: =SUMIFS(sysFuelkWh,sysFuelType,$B32,sysFuelBuildNum,CS$12) -> 0 | CT32: =SUMIFS(sysFuelkWh,sysFuelType,$B32,sysFuelBuildNum,CT$12) -> 0 | CU32: =SUMIFS(sysFuelkWh,sysFuelType,$B32,sysFuelBuildNum,CU$12) -> 0 | CV32: =SUMIFS(sysFuelkWh,sysFuelType,$B32,sysFuelBuildNum,CV$12) -> 0 | CW32: =SUMIFS(sysFuelkWh,sysFuelType,$B32,sysFuelBuildNum,CW$12) -> 0 | CX32: =SUMIFS(sysFuelkWh,sysFuelType,$B32,sysFuelBuildNum,CX$12) -> 0 | CY32: =SUMIFS(sysFuelkWh,sysFuelType,$B32,sysFuelBuildNum,CY$12) -> 0 | CZ32: =SUMIFS(sysFuelkWh,sysFuelType,$B32,sysFuelBuildNum,CZ$12) -> 0 | DA32: =SUMIFS(sysFuelkWh,sysFuelType,$B32,sysFuelBuildNum,DA$12) -> 0 | DB32: =SUMIFS(sysFuelkWh,sysFuelType,$B32,sysFuelBuildNum,DB$12) -> 0 | DC32: =SUMIFS(sysFuelkWh,sysFuelType,$B32,sysFuelBuildNum,DC$12) -> 0 | DD32: =SUMIFS(sysFuelkWh,sysFuelType,$B32,sysFuelBuildNum,DD$12) -> 0 | DE32: =SUMIFS(sysFuelkWh,sysFuelType,$B32,sysFuelBuildNum,DE$12) -> 0 | DF32: =SUMIFS(sysFuelkWh,sysFuelType,$B32,sysFuelBuildNum,DF$12) -> 0 | DG32: =SUMIFS(sysFuelkWh,sysFuelType,$B32,sysFuelBuildNum,DG$12) -> 0 | DH32: =SUMIFS(sysFuelkWh,sysFuelType,$B32,sysFuelBuildNum,DH$12) -> 0 | DI32: =SUMIFS(sysFuelkWh,sysFuelType,$B32,sysFuelBuildNum,DI$12) -> 0 | DJ32: =SUMIFS(sysFuelkWh,sysFuelType,$B32,sysFuelBuildNum,DJ$12) -> 0 | DK32: =SUMIFS(sysFuelkWh,sysFuelType,$B32,sysFuelBuildNum,DK$12) -> 0 | DL32: =SUMIFS(sysFuelkWh,sysFuelType,$B32,sysFuelBuildNum,DL$12) -> 0 | DM32: =SUMIFS(sysFuelkWh,sysFuelType,$B32,sysFuelBuildNum,DM$12) -> 0 | DN32: =SUMIFS(sysFuelkWh,sysFuelType,$B32,sysFuelBuildNum,DN$12) -> 0 | DO32: =SUMIFS(sysFuelkWh,sysFuelType,$B32,sysFuelBuildNum,DO$12) -> 0 | DP32: =SUMIFS(sysFuelkWh,sysFuelType,$B32,sysFuelBuildNum,DP$12) -> 0 | DQ32: =SUMIFS(sysFuelkWh,sysFuelType,$B32,sysFuelBuildNum,DQ$12) -> 0 | DR32: =SUMIFS(sysFuelkWh,sysFuelType,$B32,sysFuelBuildNum,DR$12) -> 0 | DS32: =SUMIFS(sysFuelkWh,sysFuelType,$B32,sysFuelBuildNum,DS$12) -> 0 | DT32: =SUMIFS(sysFuelkWh,sysFuelType,$B32,sysFuelBuildNum,DT$12) -> 0 | DU32: =SUMIFS(sysFuelkWh,sysFuelType,$B32,sysFuelBuildNum,DU$12) -> 0 | DV32: =SUMIFS(sysFuelkWh,sysFuelType,$B32,sysFuelBuildNum,DV$12) -> 0 | DW32: =SUMIFS(sysFuelkWh,sysFuelType,$B32,sysFuelBuildNum,DW$12) -> 0 | DX32: =SUMIFS(sysFuelkWh,sysFuelType,$B32,sysFuelBuildNum,DX$12) -> 0 | DY32: =SUMIFS(sysFuelkWh,sysFuelType,$B32,sysFuelBuildNum,DY$12) -> 0 | DZ32: =SUMIFS(sysFuelkWh,sysFuelType,$B32,sysFuelBuildNum,DZ$12) -> 0 | EA32: =SUMIFS(sysFuelkWh,sysFuelType,$B32,sysFuelBuildNum,EA$12) -> 0 | EB32: =SUMIFS(sysFuelkWh,sysFuelType,$B32,sysFuelBuildNum,EB$12) -> 0 | EC32: =SUMIFS(sysFuelkWh,sysFuelType,$B32,sysFuelBuildNum,EC$12) -> 0 | ED32: =SUMIFS(sysFuelkWh,sysFuelType,$B32,sysFuelBuildNum,ED$12) -> 0 | EE32: =SUMIFS(sysFuelkWh,sysFuelType,$B32,sysFuelBuildNum,EE$12) -> 0 | EF32: =SUMIFS(sysFuelkWh,sysFuelType,$B32,sysFuelBuildNum,EF$12) -> 0 | EG32: =SUMIFS(sysFuelkWh,sysFuelType,$B32,sysFuelBuildNum,EG$12) -> 0 | EH32: =SUMIFS(sysFuelkWh,sysFuelType,$B32,sysFuelBuildNum,EH$12) -> 0 | EI32: =SUMIFS(sysFuelkWh,sysFuelType,$B32,sysFuelBuildNum,EI$12) -> 0 | EJ32: =SUMIFS(sysFuelkWh,sysFuelType,$B32,sysFuelBuildNum,EJ$12) -> 0 | EK32: =SUMIFS(sysFuelkWh,sysFuelType,$B32,sysFuelBuildNum,EK$12) -> 0 | EL32: =SUMIFS(sysFuelkWh,sysFuelType,$B32,sysFuelBuildNum,EL$12) -> 0 | EM32: =SUMIFS(sysFuelkWh,sysFuelType,$B32,sysFuelBuildNum,EM$12) -> 0 | EN32: =SUMIFS(sysFuelkWh,sysFuelType,$B32,sysFuelBuildNum,EN$12) -> 0 | EO32: =SUMIFS(sysFuelkWh,sysFuelType,$B32,sysFuelBuildNum,EO$12) -> 0 | EP32: =SUMIFS(sysFuelkWh,sysFuelType,$B32,sysFuelBuildNum,EP$12) -> 0 | EQ32: =SUMIFS(sysFuelkWh,sysFuelType,$B32,sysFuelBuildNum,EQ$12) -> 0 | ER32: =SUMIFS(sysFuelkWh,sysFuelType,$B32,sysFuelBuildNum,ER$12) -> 0 | ES32: =SUMIFS(sysFuelkWh,sysFuelType,$B32,sysFuelBuildNum,ES$12) -> 0 | ET32: =SUMIFS(sysFuelkWh,sysFuelType,$B32,sysFuelBuildNum,ET$12) -> 0 | EU32: =SUMIFS(sysFuelkWh,sysFuelType,$B32,sysFuelBuildNum,EU$12) -> 0 | EV32: =SUMIFS(sysFuelkWh,sysFuelType,$B32,sysFuelBuildNum,EV$12) -> 0 | EW32: =SUMIFS(sysFuelkWh,sysFuelType,$B32,sysFuelBuildNum,EW$12) -> 0 | EX32: =SUMIFS(sysFuelkWh,sysFuelType,$B32,sysFuelBuildNum,EX$12) -> 0 | EY32: =SUMIFS(sysFuelkWh,sysFuelType,$B32,sysFuelBuildNum,EY$12) -> 0 | EZ32: =SUMIFS(sysFuelkWh,sysFuelType,$B32,sysFuelBuildNum,EZ$12) -> 0 | FA32: =SUMIFS(sysFuelkWh,sysFuelType,$B32,sysFuelBuildNum,FA$12) -> 0 | FB32: =SUMIFS(sysFuelkWh,sysFuelType,$B32,sysFuelBuildNum,FB$12) -> 0 | FC32: =SUMIFS(sysFuelkWh,sysFuelType,$B32,sysFuelBuildNum,FC$12) -> 0 | FD32: =SUMIFS(sysFuelkWh,sysFuelType,$B32,sysFuelBuildNum,FD$12) -> 0 | FE32: =SUMIFS(sysFuelkWh,sysFuelType,$B32,sysFuelBuildNum,FE$12) -> 0 | FF32: =SUMIFS(sysFuelkWh,sysFuelType,$B32,sysFuelBuildNum,FF$12) -> 0 | FG32: =SUMIFS(sysFuelkWh,sysFuelType,$B32,sysFuelBuildNum,FG$12) -> 0 | FH32: =SUMIFS(sysFuelkWh,sysFuelType,$B32,sysFuelBuildNum,FH$12) -> 0 | FI32: =SUMIFS(sysFuelkWh,sysFuelType,$B32,sysFuelBuildNum,FI$12) -> 0 | FJ32: =SUMIFS(sysFuelkWh,sysFuelType,$B32,sysFuelBuildNum,FJ$12) -> 0 | FK32: =SUMIFS(sysFuelkWh,sysFuelType,$B32,sysFuelBuildNum,FK$12) -> 0 | FL32: =SUMIFS(sysFuelkWh,sysFuelType,$B32,sysFuelBuildNum,FL$12) -> 0 | FM32: =SUMIFS(sysFuelkWh,sysFuelType,$B32,sysFuelBuildNum,FM$12) -> 0 | FN32: =SUMIFS(sysFuelkWh,sysFuelType,$B32,sysFuelBuildNum,FN$12) -> 0 | FO32: =SUMIFS(sysFuelkWh,sysFuelType,$B32,sysFuelBuildNum,FO$12) -> 0 | FP32: =SUMIFS(sysFuelkWh,sysFuelType,$B32,sysFuelBuildNum,FP$12) -> 0 | FQ32: =SUMIFS(sysFuelkWh,sysFuelType,$B32,sysFuelBuildNum,FQ$12) -> 0 | FR32: =SUMIFS(sysFuelkWh,sysFuelType,$B32,sysFuelBuildNum,FR$12) -> 0 | FS32: =SUMIFS(sysFuelkWh,sysFuelType,$B32,sysFuelBuildNum,FS$12) -> 0 | FT32: =SUMIFS(sysFuelkWh,sysFuelType,$B32,sysFuelBuildNum,FT$12) -> 0 | FU32: =SUMIFS(sysFuelkWh,sysFuelType,$B32,sysFuelBuildNum,FU$12) -> 0 | FV32: =SUMIFS(sysFuelkWh,sysFuelType,$B32,sysFuelBuildNum,FV$12) -> 0 | FW32: =SUMIFS(sysFuelkWh,sysFuelType,$B32,sysFuelBuildNum,FW$12) -> 0 | FX32: =SUMIFS(sysFuelkWh,sysFuelType,$B32,sysFuelBuildNum,FX$12) -> 0 | FY32: =SUMIFS(sysFuelkWh,sysFuelType,$B32,sysFuelBuildNum,FY$12) -> 0 | FZ32: =SUMIFS(sysFuelkWh,sysFuelType,$B32,sysFuelBuildNum,FZ$12) -> 0 | GA32: =SUMIFS(sysFuelkWh,sysFuelType,$B32,sysFuelBuildNum,GA$12) -> 0 | GB32: =SUMIFS(sysFuelkWh,sysFuelType,$B32,sysFuelBuildNum,GB$12) -> 0 | GC32: =SUMIFS(sysFuelkWh,sysFuelType,$B32,sysFuelBuildNum,GC$12) -> 0 | GD32: =SUMIFS(sysFuelkWh,sysFuelType,$B32,sysFuelBuildNum,GD$12) -> 0 | GE32: =SUMIFS(sysFuelkWh,sysFuelType,$B32,sysFuelBuildNum,GE$12) -> 0 | GF32: =SUMIFS(sysFuelkWh,sysFuelType,$B32,sysFuelBuildNum,GF$12) -> 0 | GG32: =SUMIFS(sysFuelkWh,sysFuelType,$B32,sysFuelBuildNum,GG$12) -> 0 | GH32: =SUMIFS(sysFuelkWh,sysFuelType,$B32,sysFuelBuildNum,GH$12) -> 0 | GI32: =SUMIFS(sysFuelkWh,sysFuelType,$B32,sysFuelBuildNum,GI$12) -> 0 | GJ32: =SUMIFS(sysFuelkWh,sysFuelType,$B32,sysFuelBuildNum,GJ$12) -> 0 | GK32: =SUMIFS(sysFuelkWh,sysFuelType,$B32,sysFuelBuildNum,GK$12) -> 0 | GL32: =SUMIFS(sysFuelkWh,sysFuelType,$B32,sysFuelBuildNum,GL$12) -> 0 | GM32: =SUMIFS(sysFuelkWh,sysFuelType,$B32,sysFuelBuildNum,GM$12) -> 0 | GN32: =SUMIFS(sysFuelkWh,sysFuelType,$B32,sysFuelBuildNum,GN$12) -> 0 | GO32: =SUMIFS(sysFuelkWh,sysFuelType,$B32,sysFuelBuildNum,GO$12) -> 0 | GP32: =SUMIFS(sysFuelkWh,sysFuelType,$B32,sysFuelBuildNum,GP$12) -> 0 | GQ32: =SUMIFS(sysFuelkWh,sysFuelType,$B32,sysFuelBuildNum,GQ$12) -> 0 | GR32: =SUMIFS(sysFuelkWh,sysFuelType,$B32,sysFuelBuildNum,GR$12) -> 0 | GS32: =SUMIFS(sysFuelkWh,sysFuelType,$B32,sysFuelBuildNum,GS$12) -> 0 | GT32: =SUMIFS(sysFuelkWh,sysFuelType,$B32,sysFuelBuildNum,GT$12) -> 0 | GU32: =SUMIFS(sysFuelkWh,sysFuelType,$B32,sysFuelBuildNum,GU$12) -> 0 | GV32: =SUMIFS(sysFuelkWh,sysFuelType,$B32,sysFuelBuildNum,GV$12) -> 0 | GW32: =SUMIFS(sysFuelkWh,sysFuelType,$B32,sysFuelBuildNum,GW$12) -> 0 | GX32: =SUMIFS(sysFuelkWh,sysFuelType,$B32,sysFuelBuildNum,GX$12) -> 0 | GY32: =SUMIFS(sysFuelkWh,sysFuelType,$B32,sysFuelBuildNum,GY$12) -> 0 | GZ32: =SUMIFS(sysFuelkWh,sysFuelType,$B32,sysFuelBuildNum,GZ$12) -> 0 | HA32: =SUMIFS(sysFuelkWh,sysFuelType,$B32,sysFuelBuildNum,HA$12) -> 0 | HB32: =SUMIFS(sysFuelkWh,sysFuelType,$B32,sysFuelBuildNum,HB$12) -> 0 | HC32: =SUMIFS(sysFuelkWh,sysFuelType,$B32,sysFuelBuildNum,HC$12) -> 0
B33: =Lists!$C$8 -> Gas | C33: kWh | L33: =SUMIFS(sysFuelkWh,sysFuelType,$B33,sysFuelBuildNum,L$12) -> 0 | M33: =SUMIFS(sysFuelkWh,sysFuelType,$B33,sysFuelBuildNum,M$12) -> 0 | N33: =SUMIFS(sysFuelkWh,sysFuelType,$B33,sysFuelBuildNum,N$12) -> 0 | O33: =SUMIFS(sysFuelkWh,sysFuelType,$B33,sysFuelBuildNum,O$12) -> 0 | P33: =SUMIFS(sysFuelkWh,sysFuelType,$B33,sysFuelBuildNum,P$12) -> 0 | Q33: =SUMIFS(sysFuelkWh,sysFuelType,$B33,sysFuelBuildNum,Q$12) -> 0 | R33: =SUMIFS(sysFuelkWh,sysFuelType,$B33,sysFuelBuildNum,R$12) -> 0 | S33: =SUMIFS(sysFuelkWh,sysFuelType,$B33,sysFuelBuildNum,S$12) -> 0 | T33: =SUMIFS(sysFuelkWh,sysFuelType,$B33,sysFuelBuildNum,T$12) -> 0 | U33: =SUMIFS(sysFuelkWh,sysFuelType,$B33,sysFuelBuildNum,U$12) -> 0 | V33: =SUMIFS(sysFuelkWh,sysFuelType,$B33,sysFuelBuildNum,V$12) -> 0 | W33: =SUMIFS(sysFuelkWh,sysFuelType,$B33,sysFuelBuildNum,W$12) -> 0 | X33: =SUMIFS(sysFuelkWh,sysFuelType,$B33,sysFuelBuildNum,X$12) -> 0 | Y33: =SUMIFS(sysFuelkWh,sysFuelType,$B33,sysFuelBuildNum,Y$12) -> 0 | Z33: =SUMIFS(sysFuelkWh,sysFuelType,$B33,sysFuelBuildNum,Z$12) -> 0 | AA33: =SUMIFS(sysFuelkWh,sysFuelType,$B33,sysFuelBuildNum,AA$12) -> 0 | AB33: =SUMIFS(sysFuelkWh,sysFuelType,$B33,sysFuelBuildNum,AB$12) -> 0 | AC33: =SUMIFS(sysFuelkWh,sysFuelType,$B33,sysFuelBuildNum,AC$12) -> 0 | AD33: =SUMIFS(sysFuelkWh,sysFuelType,$B33,sysFuelBuildNum,AD$12) -> 0 | AE33: =SUMIFS(sysFuelkWh,sysFuelType,$B33,sysFuelBuildNum,AE$12) -> 0 | AF33: =SUMIFS(sysFuelkWh,sysFuelType,$B33,sysFuelBuildNum,AF$12) -> 0 | AG33: =SUMIFS(sysFuelkWh,sysFuelType,$B33,sysFuelBuildNum,AG$12) -> 0 | AH33: =SUMIFS(sysFuelkWh,sysFuelType,$B33,sysFuelBuildNum,AH$12) -> 0 | AI33: =SUMIFS(sysFuelkWh,sysFuelType,$B33,sysFuelBuildNum,AI$12) -> 0 | AJ33: =SUMIFS(sysFuelkWh,sysFuelType,$B33,sysFuelBuildNum,AJ$12) -> 0 | AK33: =SUMIFS(sysFuelkWh,sysFuelType,$B33,sysFuelBuildNum,AK$12) -> 0 | AL33: =SUMIFS(sysFuelkWh,sysFuelType,$B33,sysFuelBuildNum,AL$12) -> 0 | AM33: =SUMIFS(sysFuelkWh,sysFuelType,$B33,sysFuelBuildNum,AM$12) -> 0 | AN33: =SUMIFS(sysFuelkWh,sysFuelType,$B33,sysFuelBuildNum,AN$12) -> 0 | AO33: =SUMIFS(sysFuelkWh,sysFuelType,$B33,sysFuelBuildNum,AO$12) -> 0 | AP33: =SUMIFS(sysFuelkWh,sysFuelType,$B33,sysFuelBuildNum,AP$12) -> 0 | AQ33: =SUMIFS(sysFuelkWh,sysFuelType,$B33,sysFuelBuildNum,AQ$12) -> 0 | AR33: =SUMIFS(sysFuelkWh,sysFuelType,$B33,sysFuelBuildNum,AR$12) -> 0 | AS33: =SUMIFS(sysFuelkWh,sysFuelType,$B33,sysFuelBuildNum,AS$12) -> 0 | AT33: =SUMIFS(sysFuelkWh,sysFuelType,$B33,sysFuelBuildNum,AT$12) -> 0 | AU33: =SUMIFS(sysFuelkWh,sysFuelType,$B33,sysFuelBuildNum,AU$12) -> 0 | AV33: =SUMIFS(sysFuelkWh,sysFuelType,$B33,sysFuelBuildNum,AV$12) -> 0 | AW33: =SUMIFS(sysFuelkWh,sysFuelType,$B33,sysFuelBuildNum,AW$12) -> 0 | AX33: =SUMIFS(sysFuelkWh,sysFuelType,$B33,sysFuelBuildNum,AX$12) -> 0 | AY33: =SUMIFS(sysFuelkWh,sysFuelType,$B33,sysFuelBuildNum,AY$12) -> 0 | AZ33: =SUMIFS(sysFuelkWh,sysFuelType,$B33,sysFuelBuildNum,AZ$12) -> 0 | BA33: =SUMIFS(sysFuelkWh,sysFuelType,$B33,sysFuelBuildNum,BA$12) -> 0 | BB33: =SUMIFS(sysFuelkWh,sysFuelType,$B33,sysFuelBuildNum,BB$12) -> 0 | BC33: =SUMIFS(sysFuelkWh,sysFuelType,$B33,sysFuelBuildNum,BC$12) -> 0 | BD33: =SUMIFS(sysFuelkWh,sysFuelType,$B33,sysFuelBuildNum,BD$12) -> 0 | BE33: =SUMIFS(sysFuelkWh,sysFuelType,$B33,sysFuelBuildNum,BE$12) -> 0 | BF33: =SUMIFS(sysFuelkWh,sysFuelType,$B33,sysFuelBuildNum,BF$12) -> 0 | BG33: =SUMIFS(sysFuelkWh,sysFuelType,$B33,sysFuelBuildNum,BG$12) -> 0 | BH33: =SUMIFS(sysFuelkWh,sysFuelType,$B33,sysFuelBuildNum,BH$12) -> 0 | BI33: =SUMIFS(sysFuelkWh,sysFuelType,$B33,sysFuelBuildNum,BI$12) -> 0 | BJ33: =SUMIFS(sysFuelkWh,sysFuelType,$B33,sysFuelBuildNum,BJ$12) -> 0 | BK33: =SUMIFS(sysFuelkWh,sysFuelType,$B33,sysFuelBuildNum,BK$12) -> 0 | BL33: =SUMIFS(sysFuelkWh,sysFuelType,$B33,sysFuelBuildNum,BL$12) -> 0 | BM33: =SUMIFS(sysFuelkWh,sysFuelType,$B33,sysFuelBuildNum,BM$12) -> 0 | BN33: =SUMIFS(sysFuelkWh,sysFuelType,$B33,sysFuelBuildNum,BN$12) -> 0 | BO33: =SUMIFS(sysFuelkWh,sysFuelType,$B33,sysFuelBuildNum,BO$12) -> 0 | BP33: =SUMIFS(sysFuelkWh,sysFuelType,$B33,sysFuelBuildNum,BP$12) -> 0 | BQ33: =SUMIFS(sysFuelkWh,sysFuelType,$B33,sysFuelBuildNum,BQ$12) -> 0 | BR33: =SUMIFS(sysFuelkWh,sysFuelType,$B33,sysFuelBuildNum,BR$12) -> 0 | BS33: =SUMIFS(sysFuelkWh,sysFuelType,$B33,sysFuelBuildNum,BS$12) -> 0 | BT33: =SUMIFS(sysFuelkWh,sysFuelType,$B33,sysFuelBuildNum,BT$12) -> 0 | BU33: =SUMIFS(sysFuelkWh,sysFuelType,$B33,sysFuelBuildNum,BU$12) -> 0 | BV33: =SUMIFS(sysFuelkWh,sysFuelType,$B33,sysFuelBuildNum,BV$12) -> 0 | BW33: =SUMIFS(sysFuelkWh,sysFuelType,$B33,sysFuelBuildNum,BW$12) -> 0 | BX33: =SUMIFS(sysFuelkWh,sysFuelType,$B33,sysFuelBuildNum,BX$12) -> 0 | BY33: =SUMIFS(sysFuelkWh,sysFuelType,$B33,sysFuelBuildNum,BY$12) -> 0 | BZ33: =SUMIFS(sysFuelkWh,sysFuelType,$B33,sysFuelBuildNum,BZ$12) -> 0 | CA33: =SUMIFS(sysFuelkWh,sysFuelType,$B33,sysFuelBuildNum,CA$12) -> 0 | CB33: =SUMIFS(sysFuelkWh,sysFuelType,$B33,sysFuelBuildNum,CB$12) -> 0 | CC33: =SUMIFS(sysFuelkWh,sysFuelType,$B33,sysFuelBuildNum,CC$12) -> 0 | CD33: =SUMIFS(sysFuelkWh,sysFuelType,$B33,sysFuelBuildNum,CD$12) -> 0 | CE33: =SUMIFS(sysFuelkWh,sysFuelType,$B33,sysFuelBuildNum,CE$12) -> 0 | CF33: =SUMIFS(sysFuelkWh,sysFuelType,$B33,sysFuelBuildNum,CF$12) -> 0 | CG33: =SUMIFS(sysFuelkWh,sysFuelType,$B33,sysFuelBuildNum,CG$12) -> 0 | CH33: =SUMIFS(sysFuelkWh,sysFuelType,$B33,sysFuelBuildNum,CH$12) -> 0 | CI33: =SUMIFS(sysFuelkWh,sysFuelType,$B33,sysFuelBuildNum,CI$12) -> 0 | CJ33: =SUMIFS(sysFuelkWh,sysFuelType,$B33,sysFuelBuildNum,CJ$12) -> 0 | CK33: =SUMIFS(sysFuelkWh,sysFuelType,$B33,sysFuelBuildNum,CK$12) -> 0 | CL33: =SUMIFS(sysFuelkWh,sysFuelType,$B33,sysFuelBuildNum,CL$12) -> 0 | CM33: =SUMIFS(sysFuelkWh,sysFuelType,$B33,sysFuelBuildNum,CM$12) -> 0 | CN33: =SUMIFS(sysFuelkWh,sysFuelType,$B33,sysFuelBuildNum,CN$12) -> 0 | CO33: =SUMIFS(sysFuelkWh,sysFuelType,$B33,sysFuelBuildNum,CO$12) -> 0 | CP33: =SUMIFS(sysFuelkWh,sysFuelType,$B33,sysFuelBuildNum,CP$12) -> 0 | CQ33: =SUMIFS(sysFuelkWh,sysFuelType,$B33,sysFuelBuildNum,CQ$12) -> 0 | CR33: =SUMIFS(sysFuelkWh,sysFuelType,$B33,sysFuelBuildNum,CR$12) -> 0 | CS33: =SUMIFS(sysFuelkWh,sysFuelType,$B33,sysFuelBuildNum,CS$12) -> 0 | CT33: =SUMIFS(sysFuelkWh,sysFuelType,$B33,sysFuelBuildNum,CT$12) -> 0 | CU33: =SUMIFS(sysFuelkWh,sysFuelType,$B33,sysFuelBuildNum,CU$12) -> 0 | CV33: =SUMIFS(sysFuelkWh,sysFuelType,$B33,sysFuelBuildNum,CV$12) -> 0 | CW33: =SUMIFS(sysFuelkWh,sysFuelType,$B33,sysFuelBuildNum,CW$12) -> 0 | CX33: =SUMIFS(sysFuelkWh,sysFuelType,$B33,sysFuelBuildNum,CX$12) -> 0 | CY33: =SUMIFS(sysFuelkWh,sysFuelType,$B33,sysFuelBuildNum,CY$12) -> 0 | CZ33: =SUMIFS(sysFuelkWh,sysFuelType,$B33,sysFuelBuildNum,CZ$12) -> 0 | DA33: =SUMIFS(sysFuelkWh,sysFuelType,$B33,sysFuelBuildNum,DA$12) -> 0 | DB33: =SUMIFS(sysFuelkWh,sysFuelType,$B33,sysFuelBuildNum,DB$12) -> 0 | DC33: =SUMIFS(sysFuelkWh,sysFuelType,$B33,sysFuelBuildNum,DC$12) -> 0 | DD33: =SUMIFS(sysFuelkWh,sysFuelType,$B33,sysFuelBuildNum,DD$12) -> 0 | DE33: =SUMIFS(sysFuelkWh,sysFuelType,$B33,sysFuelBuildNum,DE$12) -> 0 | DF33: =SUMIFS(sysFuelkWh,sysFuelType,$B33,sysFuelBuildNum,DF$12) -> 0 | DG33: =SUMIFS(sysFuelkWh,sysFuelType,$B33,sysFuelBuildNum,DG$12) -> 0 | DH33: =SUMIFS(sysFuelkWh,sysFuelType,$B33,sysFuelBuildNum,DH$12) -> 0 | DI33: =SUMIFS(sysFuelkWh,sysFuelType,$B33,sysFuelBuildNum,DI$12) -> 0 | DJ33: =SUMIFS(sysFuelkWh,sysFuelType,$B33,sysFuelBuildNum,DJ$12) -> 0 | DK33: =SUMIFS(sysFuelkWh,sysFuelType,$B33,sysFuelBuildNum,DK$12) -> 0 | DL33: =SUMIFS(sysFuelkWh,sysFuelType,$B33,sysFuelBuildNum,DL$12) -> 0 | DM33: =SUMIFS(sysFuelkWh,sysFuelType,$B33,sysFuelBuildNum,DM$12) -> 0 | DN33: =SUMIFS(sysFuelkWh,sysFuelType,$B33,sysFuelBuildNum,DN$12) -> 0 | DO33: =SUMIFS(sysFuelkWh,sysFuelType,$B33,sysFuelBuildNum,DO$12) -> 0 | DP33: =SUMIFS(sysFuelkWh,sysFuelType,$B33,sysFuelBuildNum,DP$12) -> 0 | DQ33: =SUMIFS(sysFuelkWh,sysFuelType,$B33,sysFuelBuildNum,DQ$12) -> 0 | DR33: =SUMIFS(sysFuelkWh,sysFuelType,$B33,sysFuelBuildNum,DR$12) -> 0 | DS33: =SUMIFS(sysFuelkWh,sysFuelType,$B33,sysFuelBuildNum,DS$12) -> 0 | DT33: =SUMIFS(sysFuelkWh,sysFuelType,$B33,sysFuelBuildNum,DT$12) -> 0 | DU33: =SUMIFS(sysFuelkWh,sysFuelType,$B33,sysFuelBuildNum,DU$12) -> 0 | DV33: =SUMIFS(sysFuelkWh,sysFuelType,$B33,sysFuelBuildNum,DV$12) -> 0 | DW33: =SUMIFS(sysFuelkWh,sysFuelType,$B33,sysFuelBuildNum,DW$12) -> 0 | DX33: =SUMIFS(sysFuelkWh,sysFuelType,$B33,sysFuelBuildNum,DX$12) -> 0 | DY33: =SUMIFS(sysFuelkWh,sysFuelType,$B33,sysFuelBuildNum,DY$12) -> 0 | DZ33: =SUMIFS(sysFuelkWh,sysFuelType,$B33,sysFuelBuildNum,DZ$12) -> 0 | EA33: =SUMIFS(sysFuelkWh,sysFuelType,$B33,sysFuelBuildNum,EA$12) -> 0 | EB33: =SUMIFS(sysFuelkWh,sysFuelType,$B33,sysFuelBuildNum,EB$12) -> 0 | EC33: =SUMIFS(sysFuelkWh,sysFuelType,$B33,sysFuelBuildNum,EC$12) -> 0 | ED33: =SUMIFS(sysFuelkWh,sysFuelType,$B33,sysFuelBuildNum,ED$12) -> 0 | EE33: =SUMIFS(sysFuelkWh,sysFuelType,$B33,sysFuelBuildNum,EE$12) -> 0 | EF33: =SUMIFS(sysFuelkWh,sysFuelType,$B33,sysFuelBuildNum,EF$12) -> 0 | EG33: =SUMIFS(sysFuelkWh,sysFuelType,$B33,sysFuelBuildNum,EG$12) -> 0 | EH33: =SUMIFS(sysFuelkWh,sysFuelType,$B33,sysFuelBuildNum,EH$12) -> 0 | EI33: =SUMIFS(sysFuelkWh,sysFuelType,$B33,sysFuelBuildNum,EI$12) -> 0 | EJ33: =SUMIFS(sysFuelkWh,sysFuelType,$B33,sysFuelBuildNum,EJ$12) -> 0 | EK33: =SUMIFS(sysFuelkWh,sysFuelType,$B33,sysFuelBuildNum,EK$12) -> 0 | EL33: =SUMIFS(sysFuelkWh,sysFuelType,$B33,sysFuelBuildNum,EL$12) -> 0 | EM33: =SUMIFS(sysFuelkWh,sysFuelType,$B33,sysFuelBuildNum,EM$12) -> 0 | EN33: =SUMIFS(sysFuelkWh,sysFuelType,$B33,sysFuelBuildNum,EN$12) -> 0 | EO33: =SUMIFS(sysFuelkWh,sysFuelType,$B33,sysFuelBuildNum,EO$12) -> 0 | EP33: =SUMIFS(sysFuelkWh,sysFuelType,$B33,sysFuelBuildNum,EP$12) -> 0 | EQ33: =SUMIFS(sysFuelkWh,sysFuelType,$B33,sysFuelBuildNum,EQ$12) -> 0 | ER33: =SUMIFS(sysFuelkWh,sysFuelType,$B33,sysFuelBuildNum,ER$12) -> 0 | ES33: =SUMIFS(sysFuelkWh,sysFuelType,$B33,sysFuelBuildNum,ES$12) -> 0 | ET33: =SUMIFS(sysFuelkWh,sysFuelType,$B33,sysFuelBuildNum,ET$12) -> 0 | EU33: =SUMIFS(sysFuelkWh,sysFuelType,$B33,sysFuelBuildNum,EU$12) -> 0 | EV33: =SUMIFS(sysFuelkWh,sysFuelType,$B33,sysFuelBuildNum,EV$12) -> 0 | EW33: =SUMIFS(sysFuelkWh,sysFuelType,$B33,sysFuelBuildNum,EW$12) -> 0 | EX33: =SUMIFS(sysFuelkWh,sysFuelType,$B33,sysFuelBuildNum,EX$12) -> 0 | EY33: =SUMIFS(sysFuelkWh,sysFuelType,$B33,sysFuelBuildNum,EY$12) -> 0 | EZ33: =SUMIFS(sysFuelkWh,sysFuelType,$B33,sysFuelBuildNum,EZ$12) -> 0 | FA33: =SUMIFS(sysFuelkWh,sysFuelType,$B33,sysFuelBuildNum,FA$12) -> 0 | FB33: =SUMIFS(sysFuelkWh,sysFuelType,$B33,sysFuelBuildNum,FB$12) -> 0 | FC33: =SUMIFS(sysFuelkWh,sysFuelType,$B33,sysFuelBuildNum,FC$12) -> 0 | FD33: =SUMIFS(sysFuelkWh,sysFuelType,$B33,sysFuelBuildNum,FD$12) -> 0 | FE33: =SUMIFS(sysFuelkWh,sysFuelType,$B33,sysFuelBuildNum,FE$12) -> 0 | FF33: =SUMIFS(sysFuelkWh,sysFuelType,$B33,sysFuelBuildNum,FF$12) -> 0 | FG33: =SUMIFS(sysFuelkWh,sysFuelType,$B33,sysFuelBuildNum,FG$12) -> 0 | FH33: =SUMIFS(sysFuelkWh,sysFuelType,$B33,sysFuelBuildNum,FH$12) -> 0 | FI33: =SUMIFS(sysFuelkWh,sysFuelType,$B33,sysFuelBuildNum,FI$12) -> 0 | FJ33: =SUMIFS(sysFuelkWh,sysFuelType,$B33,sysFuelBuildNum,FJ$12) -> 0 | FK33: =SUMIFS(sysFuelkWh,sysFuelType,$B33,sysFuelBuildNum,FK$12) -> 0 | FL33: =SUMIFS(sysFuelkWh,sysFuelType,$B33,sysFuelBuildNum,FL$12) -> 0 | FM33: =SUMIFS(sysFuelkWh,sysFuelType,$B33,sysFuelBuildNum,FM$12) -> 0 | FN33: =SUMIFS(sysFuelkWh,sysFuelType,$B33,sysFuelBuildNum,FN$12) -> 0 | FO33: =SUMIFS(sysFuelkWh,sysFuelType,$B33,sysFuelBuildNum,FO$12) -> 0 | FP33: =SUMIFS(sysFuelkWh,sysFuelType,$B33,sysFuelBuildNum,FP$12) -> 0 | FQ33: =SUMIFS(sysFuelkWh,sysFuelType,$B33,sysFuelBuildNum,FQ$12) -> 0 | FR33: =SUMIFS(sysFuelkWh,sysFuelType,$B33,sysFuelBuildNum,FR$12) -> 0 | FS33: =SUMIFS(sysFuelkWh,sysFuelType,$B33,sysFuelBuildNum,FS$12) -> 0 | FT33: =SUMIFS(sysFuelkWh,sysFuelType,$B33,sysFuelBuildNum,FT$12) -> 0 | FU33: =SUMIFS(sysFuelkWh,sysFuelType,$B33,sysFuelBuildNum,FU$12) -> 0 | FV33: =SUMIFS(sysFuelkWh,sysFuelType,$B33,sysFuelBuildNum,FV$12) -> 0 | FW33: =SUMIFS(sysFuelkWh,sysFuelType,$B33,sysFuelBuildNum,FW$12) -> 0 | FX33: =SUMIFS(sysFuelkWh,sysFuelType,$B33,sysFuelBuildNum,FX$12) -> 0 | FY33: =SUMIFS(sysFuelkWh,sysFuelType,$B33,sysFuelBuildNum,FY$12) -> 0 | FZ33: =SUMIFS(sysFuelkWh,sysFuelType,$B33,sysFuelBuildNum,FZ$12) -> 0 | GA33: =SUMIFS(sysFuelkWh,sysFuelType,$B33,sysFuelBuildNum,GA$12) -> 0 | GB33: =SUMIFS(sysFuelkWh,sysFuelType,$B33,sysFuelBuildNum,GB$12) -> 0 | GC33: =SUMIFS(sysFuelkWh,sysFuelType,$B33,sysFuelBuildNum,GC$12) -> 0 | GD33: =SUMIFS(sysFuelkWh,sysFuelType,$B33,sysFuelBuildNum,GD$12) -> 0 | GE33: =SUMIFS(sysFuelkWh,sysFuelType,$B33,sysFuelBuildNum,GE$12) -> 0 | GF33: =SUMIFS(sysFuelkWh,sysFuelType,$B33,sysFuelBuildNum,GF$12) -> 0 | GG33: =SUMIFS(sysFuelkWh,sysFuelType,$B33,sysFuelBuildNum,GG$12) -> 0 | GH33: =SUMIFS(sysFuelkWh,sysFuelType,$B33,sysFuelBuildNum,GH$12) -> 0 | GI33: =SUMIFS(sysFuelkWh,sysFuelType,$B33,sysFuelBuildNum,GI$12) -> 0 | GJ33: =SUMIFS(sysFuelkWh,sysFuelType,$B33,sysFuelBuildNum,GJ$12) -> 0 | GK33: =SUMIFS(sysFuelkWh,sysFuelType,$B33,sysFuelBuildNum,GK$12) -> 0 | GL33: =SUMIFS(sysFuelkWh,sysFuelType,$B33,sysFuelBuildNum,GL$12) -> 0 | GM33: =SUMIFS(sysFuelkWh,sysFuelType,$B33,sysFuelBuildNum,GM$12) -> 0 | GN33: =SUMIFS(sysFuelkWh,sysFuelType,$B33,sysFuelBuildNum,GN$12) -> 0 | GO33: =SUMIFS(sysFuelkWh,sysFuelType,$B33,sysFuelBuildNum,GO$12) -> 0 | GP33: =SUMIFS(sysFuelkWh,sysFuelType,$B33,sysFuelBuildNum,GP$12) -> 0 | GQ33: =SUMIFS(sysFuelkWh,sysFuelType,$B33,sysFuelBuildNum,GQ$12) -> 0 | GR33: =SUMIFS(sysFuelkWh,sysFuelType,$B33,sysFuelBuildNum,GR$12) -> 0 | GS33: =SUMIFS(sysFuelkWh,sysFuelType,$B33,sysFuelBuildNum,GS$12) -> 0 | GT33: =SUMIFS(sysFuelkWh,sysFuelType,$B33,sysFuelBuildNum,GT$12) -> 0 | GU33: =SUMIFS(sysFuelkWh,sysFuelType,$B33,sysFuelBuildNum,GU$12) -> 0 | GV33: =SUMIFS(sysFuelkWh,sysFuelType,$B33,sysFuelBuildNum,GV$12) -> 0 | GW33: =SUMIFS(sysFuelkWh,sysFuelType,$B33,sysFuelBuildNum,GW$12) -> 0 | GX33: =SUMIFS(sysFuelkWh,sysFuelType,$B33,sysFuelBuildNum,GX$12) -> 0 | GY33: =SUMIFS(sysFuelkWh,sysFuelType,$B33,sysFuelBuildNum,GY$12) -> 0 | GZ33: =SUMIFS(sysFuelkWh,sysFuelType,$B33,sysFuelBuildNum,GZ$12) -> 0 | HA33: =SUMIFS(sysFuelkWh,sysFuelType,$B33,sysFuelBuildNum,HA$12) -> 0 | HB33: =SUMIFS(sysFuelkWh,sysFuelType,$B33,sysFuelBuildNum,HB$12) -> 0 | HC33: =SUMIFS(sysFuelkWh,sysFuelType,$B33,sysFuelBuildNum,HC$12) -> 0
B34: =Lists!$C$9 -> LPG | C34: kWh | L34: =SUMIFS(sysFuelkWh,sysFuelType,$B34,sysFuelBuildNum,L$12) -> 0 | M34: =SUMIFS(sysFuelkWh,sysFuelType,$B34,sysFuelBuildNum,M$12) -> 0 | N34: =SUMIFS(sysFuelkWh,sysFuelType,$B34,sysFuelBuildNum,N$12) -> 0 | O34: =SUMIFS(sysFuelkWh,sysFuelType,$B34,sysFuelBuildNum,O$12) -> 0 | P34: =SUMIFS(sysFuelkWh,sysFuelType,$B34,sysFuelBuildNum,P$12) -> 0 | Q34: =SUMIFS(sysFuelkWh,sysFuelType,$B34,sysFuelBuildNum,Q$12) -> 0 | R34: =SUMIFS(sysFuelkWh,sysFuelType,$B34,sysFuelBuildNum,R$12) -> 0 | S34: =SUMIFS(sysFuelkWh,sysFuelType,$B34,sysFuelBuildNum,S$12) -> 0 | T34: =SUMIFS(sysFuelkWh,sysFuelType,$B34,sysFuelBuildNum,T$12) -> 0 | U34: =SUMIFS(sysFuelkWh,sysFuelType,$B34,sysFuelBuildNum,U$12) -> 0 | V34: =SUMIFS(sysFuelkWh,sysFuelType,$B34,sysFuelBuildNum,V$12) -> 0 | W34: =SUMIFS(sysFuelkWh,sysFuelType,$B34,sysFuelBuildNum,W$12) -> 0 | X34: =SUMIFS(sysFuelkWh,sysFuelType,$B34,sysFuelBuildNum,X$12) -> 0 | Y34: =SUMIFS(sysFuelkWh,sysFuelType,$B34,sysFuelBuildNum,Y$12) -> 0 | Z34: =SUMIFS(sysFuelkWh,sysFuelType,$B34,sysFuelBuildNum,Z$12) -> 0 | AA34: =SUMIFS(sysFuelkWh,sysFuelType,$B34,sysFuelBuildNum,AA$12) -> 0 | AB34: =SUMIFS(sysFuelkWh,sysFuelType,$B34,sysFuelBuildNum,AB$12) -> 0 | AC34: =SUMIFS(sysFuelkWh,sysFuelType,$B34,sysFuelBuildNum,AC$12) -> 0 | AD34: =SUMIFS(sysFuelkWh,sysFuelType,$B34,sysFuelBuildNum,AD$12) -> 0 | AE34: =SUMIFS(sysFuelkWh,sysFuelType,$B34,sysFuelBuildNum,AE$12) -> 0 | AF34: =SUMIFS(sysFuelkWh,sysFuelType,$B34,sysFuelBuildNum,AF$12) -> 0 | AG34: =SUMIFS(sysFuelkWh,sysFuelType,$B34,sysFuelBuildNum,AG$12) -> 0 | AH34: =SUMIFS(sysFuelkWh,sysFuelType,$B34,sysFuelBuildNum,AH$12) -> 0 | AI34: =SUMIFS(sysFuelkWh,sysFuelType,$B34,sysFuelBuildNum,AI$12) -> 0 | AJ34: =SUMIFS(sysFuelkWh,sysFuelType,$B34,sysFuelBuildNum,AJ$12) -> 0 | AK34: =SUMIFS(sysFuelkWh,sysFuelType,$B34,sysFuelBuildNum,AK$12) -> 0 | AL34: =SUMIFS(sysFuelkWh,sysFuelType,$B34,sysFuelBuildNum,AL$12) -> 0 | AM34: =SUMIFS(sysFuelkWh,sysFuelType,$B34,sysFuelBuildNum,AM$12) -> 0 | AN34: =SUMIFS(sysFuelkWh,sysFuelType,$B34,sysFuelBuildNum,AN$12) -> 0 | AO34: =SUMIFS(sysFuelkWh,sysFuelType,$B34,sysFuelBuildNum,AO$12) -> 0 | AP34: =SUMIFS(sysFuelkWh,sysFuelType,$B34,sysFuelBuildNum,AP$12) -> 0 | AQ34: =SUMIFS(sysFuelkWh,sysFuelType,$B34,sysFuelBuildNum,AQ$12) -> 0 | AR34: =SUMIFS(sysFuelkWh,sysFuelType,$B34,sysFuelBuildNum,AR$12) -> 0 | AS34: =SUMIFS(sysFuelkWh,sysFuelType,$B34,sysFuelBuildNum,AS$12) -> 0 | AT34: =SUMIFS(sysFuelkWh,sysFuelType,$B34,sysFuelBuildNum,AT$12) -> 0 | AU34: =SUMIFS(sysFuelkWh,sysFuelType,$B34,sysFuelBuildNum,AU$12) -> 0 | AV34: =SUMIFS(sysFuelkWh,sysFuelType,$B34,sysFuelBuildNum,AV$12) -> 0 | AW34: =SUMIFS(sysFuelkWh,sysFuelType,$B34,sysFuelBuildNum,AW$12) -> 0 | AX34: =SUMIFS(sysFuelkWh,sysFuelType,$B34,sysFuelBuildNum,AX$12) -> 0 | AY34: =SUMIFS(sysFuelkWh,sysFuelType,$B34,sysFuelBuildNum,AY$12) -> 0 | AZ34: =SUMIFS(sysFuelkWh,sysFuelType,$B34,sysFuelBuildNum,AZ$12) -> 0 | BA34: =SUMIFS(sysFuelkWh,sysFuelType,$B34,sysFuelBuildNum,BA$12) -> 0 | BB34: =SUMIFS(sysFuelkWh,sysFuelType,$B34,sysFuelBuildNum,BB$12) -> 0 | BC34: =SUMIFS(sysFuelkWh,sysFuelType,$B34,sysFuelBuildNum,BC$12) -> 0 | BD34: =SUMIFS(sysFuelkWh,sysFuelType,$B34,sysFuelBuildNum,BD$12) -> 0 | BE34: =SUMIFS(sysFuelkWh,sysFuelType,$B34,sysFuelBuildNum,BE$12) -> 0 | BF34: =SUMIFS(sysFuelkWh,sysFuelType,$B34,sysFuelBuildNum,BF$12) -> 0 | BG34: =SUMIFS(sysFuelkWh,sysFuelType,$B34,sysFuelBuildNum,BG$12) -> 0 | BH34: =SUMIFS(sysFuelkWh,sysFuelType,$B34,sysFuelBuildNum,BH$12) -> 0 | BI34: =SUMIFS(sysFuelkWh,sysFuelType,$B34,sysFuelBuildNum,BI$12) -> 0 | BJ34: =SUMIFS(sysFuelkWh,sysFuelType,$B34,sysFuelBuildNum,BJ$12) -> 0 | BK34: =SUMIFS(sysFuelkWh,sysFuelType,$B34,sysFuelBuildNum,BK$12) -> 0 | BL34: =SUMIFS(sysFuelkWh,sysFuelType,$B34,sysFuelBuildNum,BL$12) -> 0 | BM34: =SUMIFS(sysFuelkWh,sysFuelType,$B34,sysFuelBuildNum,BM$12) -> 0 | BN34: =SUMIFS(sysFuelkWh,sysFuelType,$B34,sysFuelBuildNum,BN$12) -> 0 | BO34: =SUMIFS(sysFuelkWh,sysFuelType,$B34,sysFuelBuildNum,BO$12) -> 0 | BP34: =SUMIFS(sysFuelkWh,sysFuelType,$B34,sysFuelBuildNum,BP$12) -> 0 | BQ34: =SUMIFS(sysFuelkWh,sysFuelType,$B34,sysFuelBuildNum,BQ$12) -> 0 | BR34: =SUMIFS(sysFuelkWh,sysFuelType,$B34,sysFuelBuildNum,BR$12) -> 0 | BS34: =SUMIFS(sysFuelkWh,sysFuelType,$B34,sysFuelBuildNum,BS$12) -> 0 | BT34: =SUMIFS(sysFuelkWh,sysFuelType,$B34,sysFuelBuildNum,BT$12) -> 0 | BU34: =SUMIFS(sysFuelkWh,sysFuelType,$B34,sysFuelBuildNum,BU$12) -> 0 | BV34: =SUMIFS(sysFuelkWh,sysFuelType,$B34,sysFuelBuildNum,BV$12) -> 0 | BW34: =SUMIFS(sysFuelkWh,sysFuelType,$B34,sysFuelBuildNum,BW$12) -> 0 | BX34: =SUMIFS(sysFuelkWh,sysFuelType,$B34,sysFuelBuildNum,BX$12) -> 0 | BY34: =SUMIFS(sysFuelkWh,sysFuelType,$B34,sysFuelBuildNum,BY$12) -> 0 | BZ34: =SUMIFS(sysFuelkWh,sysFuelType,$B34,sysFuelBuildNum,BZ$12) -> 0 | CA34: =SUMIFS(sysFuelkWh,sysFuelType,$B34,sysFuelBuildNum,CA$12) -> 0 | CB34: =SUMIFS(sysFuelkWh,sysFuelType,$B34,sysFuelBuildNum,CB$12) -> 0 | CC34: =SUMIFS(sysFuelkWh,sysFuelType,$B34,sysFuelBuildNum,CC$12) -> 0 | CD34: =SUMIFS(sysFuelkWh,sysFuelType,$B34,sysFuelBuildNum,CD$12) -> 0 | CE34: =SUMIFS(sysFuelkWh,sysFuelType,$B34,sysFuelBuildNum,CE$12) -> 0 | CF34: =SUMIFS(sysFuelkWh,sysFuelType,$B34,sysFuelBuildNum,CF$12) -> 0 | CG34: =SUMIFS(sysFuelkWh,sysFuelType,$B34,sysFuelBuildNum,CG$12) -> 0 | CH34: =SUMIFS(sysFuelkWh,sysFuelType,$B34,sysFuelBuildNum,CH$12) -> 0 | CI34: =SUMIFS(sysFuelkWh,sysFuelType,$B34,sysFuelBuildNum,CI$12) -> 0 | CJ34: =SUMIFS(sysFuelkWh,sysFuelType,$B34,sysFuelBuildNum,CJ$12) -> 0 | CK34: =SUMIFS(sysFuelkWh,sysFuelType,$B34,sysFuelBuildNum,CK$12) -> 0 | CL34: =SUMIFS(sysFuelkWh,sysFuelType,$B34,sysFuelBuildNum,CL$12) -> 0 | CM34: =SUMIFS(sysFuelkWh,sysFuelType,$B34,sysFuelBuildNum,CM$12) -> 0 | CN34: =SUMIFS(sysFuelkWh,sysFuelType,$B34,sysFuelBuildNum,CN$12) -> 0 | CO34: =SUMIFS(sysFuelkWh,sysFuelType,$B34,sysFuelBuildNum,CO$12) -> 0 | CP34: =SUMIFS(sysFuelkWh,sysFuelType,$B34,sysFuelBuildNum,CP$12) -> 0 | CQ34: =SUMIFS(sysFuelkWh,sysFuelType,$B34,sysFuelBuildNum,CQ$12) -> 0 | CR34: =SUMIFS(sysFuelkWh,sysFuelType,$B34,sysFuelBuildNum,CR$12) -> 0 | CS34: =SUMIFS(sysFuelkWh,sysFuelType,$B34,sysFuelBuildNum,CS$12) -> 0 | CT34: =SUMIFS(sysFuelkWh,sysFuelType,$B34,sysFuelBuildNum,CT$12) -> 0 | CU34: =SUMIFS(sysFuelkWh,sysFuelType,$B34,sysFuelBuildNum,CU$12) -> 0 | CV34: =SUMIFS(sysFuelkWh,sysFuelType,$B34,sysFuelBuildNum,CV$12) -> 0 | CW34: =SUMIFS(sysFuelkWh,sysFuelType,$B34,sysFuelBuildNum,CW$12) -> 0 | CX34: =SUMIFS(sysFuelkWh,sysFuelType,$B34,sysFuelBuildNum,CX$12) -> 0 | CY34: =SUMIFS(sysFuelkWh,sysFuelType,$B34,sysFuelBuildNum,CY$12) -> 0 | CZ34: =SUMIFS(sysFuelkWh,sysFuelType,$B34,sysFuelBuildNum,CZ$12) -> 0 | DA34: =SUMIFS(sysFuelkWh,sysFuelType,$B34,sysFuelBuildNum,DA$12) -> 0 | DB34: =SUMIFS(sysFuelkWh,sysFuelType,$B34,sysFuelBuildNum,DB$12) -> 0 | DC34: =SUMIFS(sysFuelkWh,sysFuelType,$B34,sysFuelBuildNum,DC$12) -> 0 | DD34: =SUMIFS(sysFuelkWh,sysFuelType,$B34,sysFuelBuildNum,DD$12) -> 0 | DE34: =SUMIFS(sysFuelkWh,sysFuelType,$B34,sysFuelBuildNum,DE$12) -> 0 | DF34: =SUMIFS(sysFuelkWh,sysFuelType,$B34,sysFuelBuildNum,DF$12) -> 0 | DG34: =SUMIFS(sysFuelkWh,sysFuelType,$B34,sysFuelBuildNum,DG$12) -> 0 | DH34: =SUMIFS(sysFuelkWh,sysFuelType,$B34,sysFuelBuildNum,DH$12) -> 0 | DI34: =SUMIFS(sysFuelkWh,sysFuelType,$B34,sysFuelBuildNum,DI$12) -> 0 | DJ34: =SUMIFS(sysFuelkWh,sysFuelType,$B34,sysFuelBuildNum,DJ$12) -> 0 | DK34: =SUMIFS(sysFuelkWh,sysFuelType,$B34,sysFuelBuildNum,DK$12) -> 0 | DL34: =SUMIFS(sysFuelkWh,sysFuelType,$B34,sysFuelBuildNum,DL$12) -> 0 | DM34: =SUMIFS(sysFuelkWh,sysFuelType,$B34,sysFuelBuildNum,DM$12) -> 0 | DN34: =SUMIFS(sysFuelkWh,sysFuelType,$B34,sysFuelBuildNum,DN$12) -> 0 | DO34: =SUMIFS(sysFuelkWh,sysFuelType,$B34,sysFuelBuildNum,DO$12) -> 0 | DP34: =SUMIFS(sysFuelkWh,sysFuelType,$B34,sysFuelBuildNum,DP$12) -> 0 | DQ34: =SUMIFS(sysFuelkWh,sysFuelType,$B34,sysFuelBuildNum,DQ$12) -> 0 | DR34: =SUMIFS(sysFuelkWh,sysFuelType,$B34,sysFuelBuildNum,DR$12) -> 0 | DS34: =SUMIFS(sysFuelkWh,sysFuelType,$B34,sysFuelBuildNum,DS$12) -> 0 | DT34: =SUMIFS(sysFuelkWh,sysFuelType,$B34,sysFuelBuildNum,DT$12) -> 0 | DU34: =SUMIFS(sysFuelkWh,sysFuelType,$B34,sysFuelBuildNum,DU$12) -> 0 | DV34: =SUMIFS(sysFuelkWh,sysFuelType,$B34,sysFuelBuildNum,DV$12) -> 0 | DW34: =SUMIFS(sysFuelkWh,sysFuelType,$B34,sysFuelBuildNum,DW$12) -> 0 | DX34: =SUMIFS(sysFuelkWh,sysFuelType,$B34,sysFuelBuildNum,DX$12) -> 0 | DY34: =SUMIFS(sysFuelkWh,sysFuelType,$B34,sysFuelBuildNum,DY$12) -> 0 | DZ34: =SUMIFS(sysFuelkWh,sysFuelType,$B34,sysFuelBuildNum,DZ$12) -> 0 | EA34: =SUMIFS(sysFuelkWh,sysFuelType,$B34,sysFuelBuildNum,EA$12) -> 0 | EB34: =SUMIFS(sysFuelkWh,sysFuelType,$B34,sysFuelBuildNum,EB$12) -> 0 | EC34: =SUMIFS(sysFuelkWh,sysFuelType,$B34,sysFuelBuildNum,EC$12) -> 0 | ED34: =SUMIFS(sysFuelkWh,sysFuelType,$B34,sysFuelBuildNum,ED$12) -> 0 | EE34: =SUMIFS(sysFuelkWh,sysFuelType,$B34,sysFuelBuildNum,EE$12) -> 0 | EF34: =SUMIFS(sysFuelkWh,sysFuelType,$B34,sysFuelBuildNum,EF$12) -> 0 | EG34: =SUMIFS(sysFuelkWh,sysFuelType,$B34,sysFuelBuildNum,EG$12) -> 0 | EH34: =SUMIFS(sysFuelkWh,sysFuelType,$B34,sysFuelBuildNum,EH$12) -> 0 | EI34: =SUMIFS(sysFuelkWh,sysFuelType,$B34,sysFuelBuildNum,EI$12) -> 0 | EJ34: =SUMIFS(sysFuelkWh,sysFuelType,$B34,sysFuelBuildNum,EJ$12) -> 0 | EK34: =SUMIFS(sysFuelkWh,sysFuelType,$B34,sysFuelBuildNum,EK$12) -> 0 | EL34: =SUMIFS(sysFuelkWh,sysFuelType,$B34,sysFuelBuildNum,EL$12) -> 0 | EM34: =SUMIFS(sysFuelkWh,sysFuelType,$B34,sysFuelBuildNum,EM$12) -> 0 | EN34: =SUMIFS(sysFuelkWh,sysFuelType,$B34,sysFuelBuildNum,EN$12) -> 0 | EO34: =SUMIFS(sysFuelkWh,sysFuelType,$B34,sysFuelBuildNum,EO$12) -> 0 | EP34: =SUMIFS(sysFuelkWh,sysFuelType,$B34,sysFuelBuildNum,EP$12) -> 0 | EQ34: =SUMIFS(sysFuelkWh,sysFuelType,$B34,sysFuelBuildNum,EQ$12) -> 0 | ER34: =SUMIFS(sysFuelkWh,sysFuelType,$B34,sysFuelBuildNum,ER$12) -> 0 | ES34: =SUMIFS(sysFuelkWh,sysFuelType,$B34,sysFuelBuildNum,ES$12) -> 0 | ET34: =SUMIFS(sysFuelkWh,sysFuelType,$B34,sysFuelBuildNum,ET$12) -> 0 | EU34: =SUMIFS(sysFuelkWh,sysFuelType,$B34,sysFuelBuildNum,EU$12) -> 0 | EV34: =SUMIFS(sysFuelkWh,sysFuelType,$B34,sysFuelBuildNum,EV$12) -> 0 | EW34: =SUMIFS(sysFuelkWh,sysFuelType,$B34,sysFuelBuildNum,EW$12) -> 0 | EX34: =SUMIFS(sysFuelkWh,sysFuelType,$B34,sysFuelBuildNum,EX$12) -> 0 | EY34: =SUMIFS(sysFuelkWh,sysFuelType,$B34,sysFuelBuildNum,EY$12) -> 0 | EZ34: =SUMIFS(sysFuelkWh,sysFuelType,$B34,sysFuelBuildNum,EZ$12) -> 0 | FA34: =SUMIFS(sysFuelkWh,sysFuelType,$B34,sysFuelBuildNum,FA$12) -> 0 | FB34: =SUMIFS(sysFuelkWh,sysFuelType,$B34,sysFuelBuildNum,FB$12) -> 0 | FC34: =SUMIFS(sysFuelkWh,sysFuelType,$B34,sysFuelBuildNum,FC$12) -> 0 | FD34: =SUMIFS(sysFuelkWh,sysFuelType,$B34,sysFuelBuildNum,FD$12) -> 0 | FE34: =SUMIFS(sysFuelkWh,sysFuelType,$B34,sysFuelBuildNum,FE$12) -> 0 | FF34: =SUMIFS(sysFuelkWh,sysFuelType,$B34,sysFuelBuildNum,FF$12) -> 0 | FG34: =SUMIFS(sysFuelkWh,sysFuelType,$B34,sysFuelBuildNum,FG$12) -> 0 | FH34: =SUMIFS(sysFuelkWh,sysFuelType,$B34,sysFuelBuildNum,FH$12) -> 0 | FI34: =SUMIFS(sysFuelkWh,sysFuelType,$B34,sysFuelBuildNum,FI$12) -> 0 | FJ34: =SUMIFS(sysFuelkWh,sysFuelType,$B34,sysFuelBuildNum,FJ$12) -> 0 | FK34: =SUMIFS(sysFuelkWh,sysFuelType,$B34,sysFuelBuildNum,FK$12) -> 0 | FL34: =SUMIFS(sysFuelkWh,sysFuelType,$B34,sysFuelBuildNum,FL$12) -> 0 | FM34: =SUMIFS(sysFuelkWh,sysFuelType,$B34,sysFuelBuildNum,FM$12) -> 0 | FN34: =SUMIFS(sysFuelkWh,sysFuelType,$B34,sysFuelBuildNum,FN$12) -> 0 | FO34: =SUMIFS(sysFuelkWh,sysFuelType,$B34,sysFuelBuildNum,FO$12) -> 0 | FP34: =SUMIFS(sysFuelkWh,sysFuelType,$B34,sysFuelBuildNum,FP$12) -> 0 | FQ34: =SUMIFS(sysFuelkWh,sysFuelType,$B34,sysFuelBuildNum,FQ$12) -> 0 | FR34: =SUMIFS(sysFuelkWh,sysFuelType,$B34,sysFuelBuildNum,FR$12) -> 0 | FS34: =SUMIFS(sysFuelkWh,sysFuelType,$B34,sysFuelBuildNum,FS$12) -> 0 | FT34: =SUMIFS(sysFuelkWh,sysFuelType,$B34,sysFuelBuildNum,FT$12) -> 0 | FU34: =SUMIFS(sysFuelkWh,sysFuelType,$B34,sysFuelBuildNum,FU$12) -> 0 | FV34: =SUMIFS(sysFuelkWh,sysFuelType,$B34,sysFuelBuildNum,FV$12) -> 0 | FW34: =SUMIFS(sysFuelkWh,sysFuelType,$B34,sysFuelBuildNum,FW$12) -> 0 | FX34: =SUMIFS(sysFuelkWh,sysFuelType,$B34,sysFuelBuildNum,FX$12) -> 0 | FY34: =SUMIFS(sysFuelkWh,sysFuelType,$B34,sysFuelBuildNum,FY$12) -> 0 | FZ34: =SUMIFS(sysFuelkWh,sysFuelType,$B34,sysFuelBuildNum,FZ$12) -> 0 | GA34: =SUMIFS(sysFuelkWh,sysFuelType,$B34,sysFuelBuildNum,GA$12) -> 0 | GB34: =SUMIFS(sysFuelkWh,sysFuelType,$B34,sysFuelBuildNum,GB$12) -> 0 | GC34: =SUMIFS(sysFuelkWh,sysFuelType,$B34,sysFuelBuildNum,GC$12) -> 0 | GD34: =SUMIFS(sysFuelkWh,sysFuelType,$B34,sysFuelBuildNum,GD$12) -> 0 | GE34: =SUMIFS(sysFuelkWh,sysFuelType,$B34,sysFuelBuildNum,GE$12) -> 0 | GF34: =SUMIFS(sysFuelkWh,sysFuelType,$B34,sysFuelBuildNum,GF$12) -> 0 | GG34: =SUMIFS(sysFuelkWh,sysFuelType,$B34,sysFuelBuildNum,GG$12) -> 0 | GH34: =SUMIFS(sysFuelkWh,sysFuelType,$B34,sysFuelBuildNum,GH$12) -> 0 | GI34: =SUMIFS(sysFuelkWh,sysFuelType,$B34,sysFuelBuildNum,GI$12) -> 0 | GJ34: =SUMIFS(sysFuelkWh,sysFuelType,$B34,sysFuelBuildNum,GJ$12) -> 0 | GK34: =SUMIFS(sysFuelkWh,sysFuelType,$B34,sysFuelBuildNum,GK$12) -> 0 | GL34: =SUMIFS(sysFuelkWh,sysFuelType,$B34,sysFuelBuildNum,GL$12) -> 0 | GM34: =SUMIFS(sysFuelkWh,sysFuelType,$B34,sysFuelBuildNum,GM$12) -> 0 | GN34: =SUMIFS(sysFuelkWh,sysFuelType,$B34,sysFuelBuildNum,GN$12) -> 0 | GO34: =SUMIFS(sysFuelkWh,sysFuelType,$B34,sysFuelBuildNum,GO$12) -> 0 | GP34: =SUMIFS(sysFuelkWh,sysFuelType,$B34,sysFuelBuildNum,GP$12) -> 0 | GQ34: =SUMIFS(sysFuelkWh,sysFuelType,$B34,sysFuelBuildNum,GQ$12) -> 0 | GR34: =SUMIFS(sysFuelkWh,sysFuelType,$B34,sysFuelBuildNum,GR$12) -> 0 | GS34: =SUMIFS(sysFuelkWh,sysFuelType,$B34,sysFuelBuildNum,GS$12) -> 0 | GT34: =SUMIFS(sysFuelkWh,sysFuelType,$B34,sysFuelBuildNum,GT$12) -> 0 | GU34: =SUMIFS(sysFuelkWh,sysFuelType,$B34,sysFuelBuildNum,GU$12) -> 0 | GV34: =SUMIFS(sysFuelkWh,sysFuelType,$B34,sysFuelBuildNum,GV$12) -> 0 | GW34: =SUMIFS(sysFuelkWh,sysFuelType,$B34,sysFuelBuildNum,GW$12) -> 0 | GX34: =SUMIFS(sysFuelkWh,sysFuelType,$B34,sysFuelBuildNum,GX$12) -> 0 | GY34: =SUMIFS(sysFuelkWh,sysFuelType,$B34,sysFuelBuildNum,GY$12) -> 0 | GZ34: =SUMIFS(sysFuelkWh,sysFuelType,$B34,sysFuelBuildNum,GZ$12) -> 0 | HA34: =SUMIFS(sysFuelkWh,sysFuelType,$B34,sysFuelBuildNum,HA$12) -> 0 | HB34: =SUMIFS(sysFuelkWh,sysFuelType,$B34,sysFuelBuildNum,HB$12) -> 0 | HC34: =SUMIFS(sysFuelkWh,sysFuelType,$B34,sysFuelBuildNum,HC$12) -> 0
B35: =Lists!$C$10 -> Oil | C35: kWh | L35: =SUMIFS(sysFuelkWh,sysFuelType,$B35,sysFuelBuildNum,L$12) -> 0 | M35: =SUMIFS(sysFuelkWh,sysFuelType,$B35,sysFuelBuildNum,M$12) -> 0 | N35: =SUMIFS(sysFuelkWh,sysFuelType,$B35,sysFuelBuildNum,N$12) -> 0 | O35: =SUMIFS(sysFuelkWh,sysFuelType,$B35,sysFuelBuildNum,O$12) -> 0 | P35: =SUMIFS(sysFuelkWh,sysFuelType,$B35,sysFuelBuildNum,P$12) -> 0 | Q35: =SUMIFS(sysFuelkWh,sysFuelType,$B35,sysFuelBuildNum,Q$12) -> 0 | R35: =SUMIFS(sysFuelkWh,sysFuelType,$B35,sysFuelBuildNum,R$12) -> 0 | S35: =SUMIFS(sysFuelkWh,sysFuelType,$B35,sysFuelBuildNum,S$12) -> 0 | T35: =SUMIFS(sysFuelkWh,sysFuelType,$B35,sysFuelBuildNum,T$12) -> 0 | U35: =SUMIFS(sysFuelkWh,sysFuelType,$B35,sysFuelBuildNum,U$12) -> 0 | V35: =SUMIFS(sysFuelkWh,sysFuelType,$B35,sysFuelBuildNum,V$12) -> 0 | W35: =SUMIFS(sysFuelkWh,sysFuelType,$B35,sysFuelBuildNum,W$12) -> 0 | X35: =SUMIFS(sysFuelkWh,sysFuelType,$B35,sysFuelBuildNum,X$12) -> 0 | Y35: =SUMIFS(sysFuelkWh,sysFuelType,$B35,sysFuelBuildNum,Y$12) -> 0 | Z35: =SUMIFS(sysFuelkWh,sysFuelType,$B35,sysFuelBuildNum,Z$12) -> 0 | AA35: =SUMIFS(sysFuelkWh,sysFuelType,$B35,sysFuelBuildNum,AA$12) -> 0 | AB35: =SUMIFS(sysFuelkWh,sysFuelType,$B35,sysFuelBuildNum,AB$12) -> 0 | AC35: =SUMIFS(sysFuelkWh,sysFuelType,$B35,sysFuelBuildNum,AC$12) -> 0 | AD35: =SUMIFS(sysFuelkWh,sysFuelType,$B35,sysFuelBuildNum,AD$12) -> 0 | AE35: =SUMIFS(sysFuelkWh,sysFuelType,$B35,sysFuelBuildNum,AE$12) -> 0 | AF35: =SUMIFS(sysFuelkWh,sysFuelType,$B35,sysFuelBuildNum,AF$12) -> 0 | AG35: =SUMIFS(sysFuelkWh,sysFuelType,$B35,sysFuelBuildNum,AG$12) -> 0 | AH35: =SUMIFS(sysFuelkWh,sysFuelType,$B35,sysFuelBuildNum,AH$12) -> 0 | AI35: =SUMIFS(sysFuelkWh,sysFuelType,$B35,sysFuelBuildNum,AI$12) -> 0 | AJ35: =SUMIFS(sysFuelkWh,sysFuelType,$B35,sysFuelBuildNum,AJ$12) -> 0 | AK35: =SUMIFS(sysFuelkWh,sysFuelType,$B35,sysFuelBuildNum,AK$12) -> 0 | AL35: =SUMIFS(sysFuelkWh,sysFuelType,$B35,sysFuelBuildNum,AL$12) -> 0 | AM35: =SUMIFS(sysFuelkWh,sysFuelType,$B35,sysFuelBuildNum,AM$12) -> 0 | AN35: =SUMIFS(sysFuelkWh,sysFuelType,$B35,sysFuelBuildNum,AN$12) -> 0 | AO35: =SUMIFS(sysFuelkWh,sysFuelType,$B35,sysFuelBuildNum,AO$12) -> 0 | AP35: =SUMIFS(sysFuelkWh,sysFuelType,$B35,sysFuelBuildNum,AP$12) -> 0 | AQ35: =SUMIFS(sysFuelkWh,sysFuelType,$B35,sysFuelBuildNum,AQ$12) -> 0 | AR35: =SUMIFS(sysFuelkWh,sysFuelType,$B35,sysFuelBuildNum,AR$12) -> 0 | AS35: =SUMIFS(sysFuelkWh,sysFuelType,$B35,sysFuelBuildNum,AS$12) -> 0 | AT35: =SUMIFS(sysFuelkWh,sysFuelType,$B35,sysFuelBuildNum,AT$12) -> 0 | AU35: =SUMIFS(sysFuelkWh,sysFuelType,$B35,sysFuelBuildNum,AU$12) -> 0 | AV35: =SUMIFS(sysFuelkWh,sysFuelType,$B35,sysFuelBuildNum,AV$12) -> 0 | AW35: =SUMIFS(sysFuelkWh,sysFuelType,$B35,sysFuelBuildNum,AW$12) -> 0 | AX35: =SUMIFS(sysFuelkWh,sysFuelType,$B35,sysFuelBuildNum,AX$12) -> 0 | AY35: =SUMIFS(sysFuelkWh,sysFuelType,$B35,sysFuelBuildNum,AY$12) -> 0 | AZ35: =SUMIFS(sysFuelkWh,sysFuelType,$B35,sysFuelBuildNum,AZ$12) -> 0 | BA35: =SUMIFS(sysFuelkWh,sysFuelType,$B35,sysFuelBuildNum,BA$12) -> 0 | BB35: =SUMIFS(sysFuelkWh,sysFuelType,$B35,sysFuelBuildNum,BB$12) -> 0 | BC35: =SUMIFS(sysFuelkWh,sysFuelType,$B35,sysFuelBuildNum,BC$12) -> 0 | BD35: =SUMIFS(sysFuelkWh,sysFuelType,$B35,sysFuelBuildNum,BD$12) -> 0 | BE35: =SUMIFS(sysFuelkWh,sysFuelType,$B35,sysFuelBuildNum,BE$12) -> 0 | BF35: =SUMIFS(sysFuelkWh,sysFuelType,$B35,sysFuelBuildNum,BF$12) -> 0 | BG35: =SUMIFS(sysFuelkWh,sysFuelType,$B35,sysFuelBuildNum,BG$12) -> 0 | BH35: =SUMIFS(sysFuelkWh,sysFuelType,$B35,sysFuelBuildNum,BH$12) -> 0 | BI35: =SUMIFS(sysFuelkWh,sysFuelType,$B35,sysFuelBuildNum,BI$12) -> 0 | BJ35: =SUMIFS(sysFuelkWh,sysFuelType,$B35,sysFuelBuildNum,BJ$12) -> 0 | BK35: =SUMIFS(sysFuelkWh,sysFuelType,$B35,sysFuelBuildNum,BK$12) -> 0 | BL35: =SUMIFS(sysFuelkWh,sysFuelType,$B35,sysFuelBuildNum,BL$12) -> 0 | BM35: =SUMIFS(sysFuelkWh,sysFuelType,$B35,sysFuelBuildNum,BM$12) -> 0 | BN35: =SUMIFS(sysFuelkWh,sysFuelType,$B35,sysFuelBuildNum,BN$12) -> 0 | BO35: =SUMIFS(sysFuelkWh,sysFuelType,$B35,sysFuelBuildNum,BO$12) -> 0 | BP35: =SUMIFS(sysFuelkWh,sysFuelType,$B35,sysFuelBuildNum,BP$12) -> 0 | BQ35: =SUMIFS(sysFuelkWh,sysFuelType,$B35,sysFuelBuildNum,BQ$12) -> 0 | BR35: =SUMIFS(sysFuelkWh,sysFuelType,$B35,sysFuelBuildNum,BR$12) -> 0 | BS35: =SUMIFS(sysFuelkWh,sysFuelType,$B35,sysFuelBuildNum,BS$12) -> 0 | BT35: =SUMIFS(sysFuelkWh,sysFuelType,$B35,sysFuelBuildNum,BT$12) -> 0 | BU35: =SUMIFS(sysFuelkWh,sysFuelType,$B35,sysFuelBuildNum,BU$12) -> 0 | BV35: =SUMIFS(sysFuelkWh,sysFuelType,$B35,sysFuelBuildNum,BV$12) -> 0 | BW35: =SUMIFS(sysFuelkWh,sysFuelType,$B35,sysFuelBuildNum,BW$12) -> 0 | BX35: =SUMIFS(sysFuelkWh,sysFuelType,$B35,sysFuelBuildNum,BX$12) -> 0 | BY35: =SUMIFS(sysFuelkWh,sysFuelType,$B35,sysFuelBuildNum,BY$12) -> 0 | BZ35: =SUMIFS(sysFuelkWh,sysFuelType,$B35,sysFuelBuildNum,BZ$12) -> 0 | CA35: =SUMIFS(sysFuelkWh,sysFuelType,$B35,sysFuelBuildNum,CA$12) -> 0 | CB35: =SUMIFS(sysFuelkWh,sysFuelType,$B35,sysFuelBuildNum,CB$12) -> 0 | CC35: =SUMIFS(sysFuelkWh,sysFuelType,$B35,sysFuelBuildNum,CC$12) -> 0 | CD35: =SUMIFS(sysFuelkWh,sysFuelType,$B35,sysFuelBuildNum,CD$12) -> 0 | CE35: =SUMIFS(sysFuelkWh,sysFuelType,$B35,sysFuelBuildNum,CE$12) -> 0 | CF35: =SUMIFS(sysFuelkWh,sysFuelType,$B35,sysFuelBuildNum,CF$12) -> 0 | CG35: =SUMIFS(sysFuelkWh,sysFuelType,$B35,sysFuelBuildNum,CG$12) -> 0 | CH35: =SUMIFS(sysFuelkWh,sysFuelType,$B35,sysFuelBuildNum,CH$12) -> 0 | CI35: =SUMIFS(sysFuelkWh,sysFuelType,$B35,sysFuelBuildNum,CI$12) -> 0 | CJ35: =SUMIFS(sysFuelkWh,sysFuelType,$B35,sysFuelBuildNum,CJ$12) -> 0 | CK35: =SUMIFS(sysFuelkWh,sysFuelType,$B35,sysFuelBuildNum,CK$12) -> 0 | CL35: =SUMIFS(sysFuelkWh,sysFuelType,$B35,sysFuelBuildNum,CL$12) -> 0 | CM35: =SUMIFS(sysFuelkWh,sysFuelType,$B35,sysFuelBuildNum,CM$12) -> 0 | CN35: =SUMIFS(sysFuelkWh,sysFuelType,$B35,sysFuelBuildNum,CN$12) -> 0 | CO35: =SUMIFS(sysFuelkWh,sysFuelType,$B35,sysFuelBuildNum,CO$12) -> 0 | CP35: =SUMIFS(sysFuelkWh,sysFuelType,$B35,sysFuelBuildNum,CP$12) -> 0 | CQ35: =SUMIFS(sysFuelkWh,sysFuelType,$B35,sysFuelBuildNum,CQ$12) -> 0 | CR35: =SUMIFS(sysFuelkWh,sysFuelType,$B35,sysFuelBuildNum,CR$12) -> 0 | CS35: =SUMIFS(sysFuelkWh,sysFuelType,$B35,sysFuelBuildNum,CS$12) -> 0 | CT35: =SUMIFS(sysFuelkWh,sysFuelType,$B35,sysFuelBuildNum,CT$12) -> 0 | CU35: =SUMIFS(sysFuelkWh,sysFuelType,$B35,sysFuelBuildNum,CU$12) -> 0 | CV35: =SUMIFS(sysFuelkWh,sysFuelType,$B35,sysFuelBuildNum,CV$12) -> 0 | CW35: =SUMIFS(sysFuelkWh,sysFuelType,$B35,sysFuelBuildNum,CW$12) -> 0 | CX35: =SUMIFS(sysFuelkWh,sysFuelType,$B35,sysFuelBuildNum,CX$12) -> 0 | CY35: =SUMIFS(sysFuelkWh,sysFuelType,$B35,sysFuelBuildNum,CY$12) -> 0 | CZ35: =SUMIFS(sysFuelkWh,sysFuelType,$B35,sysFuelBuildNum,CZ$12) -> 0 | DA35: =SUMIFS(sysFuelkWh,sysFuelType,$B35,sysFuelBuildNum,DA$12) -> 0 | DB35: =SUMIFS(sysFuelkWh,sysFuelType,$B35,sysFuelBuildNum,DB$12) -> 0 | DC35: =SUMIFS(sysFuelkWh,sysFuelType,$B35,sysFuelBuildNum,DC$12) -> 0 | DD35: =SUMIFS(sysFuelkWh,sysFuelType,$B35,sysFuelBuildNum,DD$12) -> 0 | DE35: =SUMIFS(sysFuelkWh,sysFuelType,$B35,sysFuelBuildNum,DE$12) -> 0 | DF35: =SUMIFS(sysFuelkWh,sysFuelType,$B35,sysFuelBuildNum,DF$12) -> 0 | DG35: =SUMIFS(sysFuelkWh,sysFuelType,$B35,sysFuelBuildNum,DG$12) -> 0 | DH35: =SUMIFS(sysFuelkWh,sysFuelType,$B35,sysFuelBuildNum,DH$12) -> 0 | DI35: =SUMIFS(sysFuelkWh,sysFuelType,$B35,sysFuelBuildNum,DI$12) -> 0 | DJ35: =SUMIFS(sysFuelkWh,sysFuelType,$B35,sysFuelBuildNum,DJ$12) -> 0 | DK35: =SUMIFS(sysFuelkWh,sysFuelType,$B35,sysFuelBuildNum,DK$12) -> 0 | DL35: =SUMIFS(sysFuelkWh,sysFuelType,$B35,sysFuelBuildNum,DL$12) -> 0 | DM35: =SUMIFS(sysFuelkWh,sysFuelType,$B35,sysFuelBuildNum,DM$12) -> 0 | DN35: =SUMIFS(sysFuelkWh,sysFuelType,$B35,sysFuelBuildNum,DN$12) -> 0 | DO35: =SUMIFS(sysFuelkWh,sysFuelType,$B35,sysFuelBuildNum,DO$12) -> 0 | DP35: =SUMIFS(sysFuelkWh,sysFuelType,$B35,sysFuelBuildNum,DP$12) -> 0 | DQ35: =SUMIFS(sysFuelkWh,sysFuelType,$B35,sysFuelBuildNum,DQ$12) -> 0 | DR35: =SUMIFS(sysFuelkWh,sysFuelType,$B35,sysFuelBuildNum,DR$12) -> 0 | DS35: =SUMIFS(sysFuelkWh,sysFuelType,$B35,sysFuelBuildNum,DS$12) -> 0 | DT35: =SUMIFS(sysFuelkWh,sysFuelType,$B35,sysFuelBuildNum,DT$12) -> 0 | DU35: =SUMIFS(sysFuelkWh,sysFuelType,$B35,sysFuelBuildNum,DU$12) -> 0 | DV35: =SUMIFS(sysFuelkWh,sysFuelType,$B35,sysFuelBuildNum,DV$12) -> 0 | DW35: =SUMIFS(sysFuelkWh,sysFuelType,$B35,sysFuelBuildNum,DW$12) -> 0 | DX35: =SUMIFS(sysFuelkWh,sysFuelType,$B35,sysFuelBuildNum,DX$12) -> 0 | DY35: =SUMIFS(sysFuelkWh,sysFuelType,$B35,sysFuelBuildNum,DY$12) -> 0 | DZ35: =SUMIFS(sysFuelkWh,sysFuelType,$B35,sysFuelBuildNum,DZ$12) -> 0 | EA35: =SUMIFS(sysFuelkWh,sysFuelType,$B35,sysFuelBuildNum,EA$12) -> 0 | EB35: =SUMIFS(sysFuelkWh,sysFuelType,$B35,sysFuelBuildNum,EB$12) -> 0 | EC35: =SUMIFS(sysFuelkWh,sysFuelType,$B35,sysFuelBuildNum,EC$12) -> 0 | ED35: =SUMIFS(sysFuelkWh,sysFuelType,$B35,sysFuelBuildNum,ED$12) -> 0 | EE35: =SUMIFS(sysFuelkWh,sysFuelType,$B35,sysFuelBuildNum,EE$12) -> 0 | EF35: =SUMIFS(sysFuelkWh,sysFuelType,$B35,sysFuelBuildNum,EF$12) -> 0 | EG35: =SUMIFS(sysFuelkWh,sysFuelType,$B35,sysFuelBuildNum,EG$12) -> 0 | EH35: =SUMIFS(sysFuelkWh,sysFuelType,$B35,sysFuelBuildNum,EH$12) -> 0 | EI35: =SUMIFS(sysFuelkWh,sysFuelType,$B35,sysFuelBuildNum,EI$12) -> 0 | EJ35: =SUMIFS(sysFuelkWh,sysFuelType,$B35,sysFuelBuildNum,EJ$12) -> 0 | EK35: =SUMIFS(sysFuelkWh,sysFuelType,$B35,sysFuelBuildNum,EK$12) -> 0 | EL35: =SUMIFS(sysFuelkWh,sysFuelType,$B35,sysFuelBuildNum,EL$12) -> 0 | EM35: =SUMIFS(sysFuelkWh,sysFuelType,$B35,sysFuelBuildNum,EM$12) -> 0 | EN35: =SUMIFS(sysFuelkWh,sysFuelType,$B35,sysFuelBuildNum,EN$12) -> 0 | EO35: =SUMIFS(sysFuelkWh,sysFuelType,$B35,sysFuelBuildNum,EO$12) -> 0 | EP35: =SUMIFS(sysFuelkWh,sysFuelType,$B35,sysFuelBuildNum,EP$12) -> 0 | EQ35: =SUMIFS(sysFuelkWh,sysFuelType,$B35,sysFuelBuildNum,EQ$12) -> 0 | ER35: =SUMIFS(sysFuelkWh,sysFuelType,$B35,sysFuelBuildNum,ER$12) -> 0 | ES35: =SUMIFS(sysFuelkWh,sysFuelType,$B35,sysFuelBuildNum,ES$12) -> 0 | ET35: =SUMIFS(sysFuelkWh,sysFuelType,$B35,sysFuelBuildNum,ET$12) -> 0 | EU35: =SUMIFS(sysFuelkWh,sysFuelType,$B35,sysFuelBuildNum,EU$12) -> 0 | EV35: =SUMIFS(sysFuelkWh,sysFuelType,$B35,sysFuelBuildNum,EV$12) -> 0 | EW35: =SUMIFS(sysFuelkWh,sysFuelType,$B35,sysFuelBuildNum,EW$12) -> 0 | EX35: =SUMIFS(sysFuelkWh,sysFuelType,$B35,sysFuelBuildNum,EX$12) -> 0 | EY35: =SUMIFS(sysFuelkWh,sysFuelType,$B35,sysFuelBuildNum,EY$12) -> 0 | EZ35: =SUMIFS(sysFuelkWh,sysFuelType,$B35,sysFuelBuildNum,EZ$12) -> 0 | FA35: =SUMIFS(sysFuelkWh,sysFuelType,$B35,sysFuelBuildNum,FA$12) -> 0 | FB35: =SUMIFS(sysFuelkWh,sysFuelType,$B35,sysFuelBuildNum,FB$12) -> 0 | FC35: =SUMIFS(sysFuelkWh,sysFuelType,$B35,sysFuelBuildNum,FC$12) -> 0 | FD35: =SUMIFS(sysFuelkWh,sysFuelType,$B35,sysFuelBuildNum,FD$12) -> 0 | FE35: =SUMIFS(sysFuelkWh,sysFuelType,$B35,sysFuelBuildNum,FE$12) -> 0 | FF35: =SUMIFS(sysFuelkWh,sysFuelType,$B35,sysFuelBuildNum,FF$12) -> 0 | FG35: =SUMIFS(sysFuelkWh,sysFuelType,$B35,sysFuelBuildNum,FG$12) -> 0 | FH35: =SUMIFS(sysFuelkWh,sysFuelType,$B35,sysFuelBuildNum,FH$12) -> 0 | FI35: =SUMIFS(sysFuelkWh,sysFuelType,$B35,sysFuelBuildNum,FI$12) -> 0 | FJ35: =SUMIFS(sysFuelkWh,sysFuelType,$B35,sysFuelBuildNum,FJ$12) -> 0 | FK35: =SUMIFS(sysFuelkWh,sysFuelType,$B35,sysFuelBuildNum,FK$12) -> 0 | FL35: =SUMIFS(sysFuelkWh,sysFuelType,$B35,sysFuelBuildNum,FL$12) -> 0 | FM35: =SUMIFS(sysFuelkWh,sysFuelType,$B35,sysFuelBuildNum,FM$12) -> 0 | FN35: =SUMIFS(sysFuelkWh,sysFuelType,$B35,sysFuelBuildNum,FN$12) -> 0 | FO35: =SUMIFS(sysFuelkWh,sysFuelType,$B35,sysFuelBuildNum,FO$12) -> 0 | FP35: =SUMIFS(sysFuelkWh,sysFuelType,$B35,sysFuelBuildNum,FP$12) -> 0 | FQ35: =SUMIFS(sysFuelkWh,sysFuelType,$B35,sysFuelBuildNum,FQ$12) -> 0 | FR35: =SUMIFS(sysFuelkWh,sysFuelType,$B35,sysFuelBuildNum,FR$12) -> 0 | FS35: =SUMIFS(sysFuelkWh,sysFuelType,$B35,sysFuelBuildNum,FS$12) -> 0 | FT35: =SUMIFS(sysFuelkWh,sysFuelType,$B35,sysFuelBuildNum,FT$12) -> 0 | FU35: =SUMIFS(sysFuelkWh,sysFuelType,$B35,sysFuelBuildNum,FU$12) -> 0 | FV35: =SUMIFS(sysFuelkWh,sysFuelType,$B35,sysFuelBuildNum,FV$12) -> 0 | FW35: =SUMIFS(sysFuelkWh,sysFuelType,$B35,sysFuelBuildNum,FW$12) -> 0 | FX35: =SUMIFS(sysFuelkWh,sysFuelType,$B35,sysFuelBuildNum,FX$12) -> 0 | FY35: =SUMIFS(sysFuelkWh,sysFuelType,$B35,sysFuelBuildNum,FY$12) -> 0 | FZ35: =SUMIFS(sysFuelkWh,sysFuelType,$B35,sysFuelBuildNum,FZ$12) -> 0 | GA35: =SUMIFS(sysFuelkWh,sysFuelType,$B35,sysFuelBuildNum,GA$12) -> 0 | GB35: =SUMIFS(sysFuelkWh,sysFuelType,$B35,sysFuelBuildNum,GB$12) -> 0 | GC35: =SUMIFS(sysFuelkWh,sysFuelType,$B35,sysFuelBuildNum,GC$12) -> 0 | GD35: =SUMIFS(sysFuelkWh,sysFuelType,$B35,sysFuelBuildNum,GD$12) -> 0 | GE35: =SUMIFS(sysFuelkWh,sysFuelType,$B35,sysFuelBuildNum,GE$12) -> 0 | GF35: =SUMIFS(sysFuelkWh,sysFuelType,$B35,sysFuelBuildNum,GF$12) -> 0 | GG35: =SUMIFS(sysFuelkWh,sysFuelType,$B35,sysFuelBuildNum,GG$12) -> 0 | GH35: =SUMIFS(sysFuelkWh,sysFuelType,$B35,sysFuelBuildNum,GH$12) -> 0 | GI35: =SUMIFS(sysFuelkWh,sysFuelType,$B35,sysFuelBuildNum,GI$12) -> 0 | GJ35: =SUMIFS(sysFuelkWh,sysFuelType,$B35,sysFuelBuildNum,GJ$12) -> 0 | GK35: =SUMIFS(sysFuelkWh,sysFuelType,$B35,sysFuelBuildNum,GK$12) -> 0 | GL35: =SUMIFS(sysFuelkWh,sysFuelType,$B35,sysFuelBuildNum,GL$12) -> 0 | GM35: =SUMIFS(sysFuelkWh,sysFuelType,$B35,sysFuelBuildNum,GM$12) -> 0 | GN35: =SUMIFS(sysFuelkWh,sysFuelType,$B35,sysFuelBuildNum,GN$12) -> 0 | GO35: =SUMIFS(sysFuelkWh,sysFuelType,$B35,sysFuelBuildNum,GO$12) -> 0 | GP35: =SUMIFS(sysFuelkWh,sysFuelType,$B35,sysFuelBuildNum,GP$12) -> 0 | GQ35: =SUMIFS(sysFuelkWh,sysFuelType,$B35,sysFuelBuildNum,GQ$12) -> 0 | GR35: =SUMIFS(sysFuelkWh,sysFuelType,$B35,sysFuelBuildNum,GR$12) -> 0 | GS35: =SUMIFS(sysFuelkWh,sysFuelType,$B35,sysFuelBuildNum,GS$12) -> 0 | GT35: =SUMIFS(sysFuelkWh,sysFuelType,$B35,sysFuelBuildNum,GT$12) -> 0 | GU35: =SUMIFS(sysFuelkWh,sysFuelType,$B35,sysFuelBuildNum,GU$12) -> 0 | GV35: =SUMIFS(sysFuelkWh,sysFuelType,$B35,sysFuelBuildNum,GV$12) -> 0 | GW35: =SUMIFS(sysFuelkWh,sysFuelType,$B35,sysFuelBuildNum,GW$12) -> 0 | GX35: =SUMIFS(sysFuelkWh,sysFuelType,$B35,sysFuelBuildNum,GX$12) -> 0 | GY35: =SUMIFS(sysFuelkWh,sysFuelType,$B35,sysFuelBuildNum,GY$12) -> 0 | GZ35: =SUMIFS(sysFuelkWh,sysFuelType,$B35,sysFuelBuildNum,GZ$12) -> 0 | HA35: =SUMIFS(sysFuelkWh,sysFuelType,$B35,sysFuelBuildNum,HA$12) -> 0 | HB35: =SUMIFS(sysFuelkWh,sysFuelType,$B35,sysFuelBuildNum,HB$12) -> 0 | HC35: =SUMIFS(sysFuelkWh,sysFuelType,$B35,sysFuelBuildNum,HC$12) -> 0
B36: =Lists!$C$12 -> Waste Heat | C36: kWh | L36: =SUMIFS(sysFuelkWh,sysFuelType,$B36,sysFuelBuildNum,L$12) -> 0 | M36: =SUMIFS(sysFuelkWh,sysFuelType,$B36,sysFuelBuildNum,M$12) -> 0 | N36: =SUMIFS(sysFuelkWh,sysFuelType,$B36,sysFuelBuildNum,N$12) -> 0 | O36: =SUMIFS(sysFuelkWh,sysFuelType,$B36,sysFuelBuildNum,O$12) -> 0 | P36: =SUMIFS(sysFuelkWh,sysFuelType,$B36,sysFuelBuildNum,P$12) -> 0 | Q36: =SUMIFS(sysFuelkWh,sysFuelType,$B36,sysFuelBuildNum,Q$12) -> 0 | R36: =SUMIFS(sysFuelkWh,sysFuelType,$B36,sysFuelBuildNum,R$12) -> 0 | S36: =SUMIFS(sysFuelkWh,sysFuelType,$B36,sysFuelBuildNum,S$12) -> 0 | T36: =SUMIFS(sysFuelkWh,sysFuelType,$B36,sysFuelBuildNum,T$12) -> 0 | U36: =SUMIFS(sysFuelkWh,sysFuelType,$B36,sysFuelBuildNum,U$12) -> 0 | V36: =SUMIFS(sysFuelkWh,sysFuelType,$B36,sysFuelBuildNum,V$12) -> 0 | W36: =SUMIFS(sysFuelkWh,sysFuelType,$B36,sysFuelBuildNum,W$12) -> 0 | X36: =SUMIFS(sysFuelkWh,sysFuelType,$B36,sysFuelBuildNum,X$12) -> 0 | Y36: =SUMIFS(sysFuelkWh,sysFuelType,$B36,sysFuelBuildNum,Y$12) -> 0 | Z36: =SUMIFS(sysFuelkWh,sysFuelType,$B36,sysFuelBuildNum,Z$12) -> 0 | AA36: =SUMIFS(sysFuelkWh,sysFuelType,$B36,sysFuelBuildNum,AA$12) -> 0 | AB36: =SUMIFS(sysFuelkWh,sysFuelType,$B36,sysFuelBuildNum,AB$12) -> 0 | AC36: =SUMIFS(sysFuelkWh,sysFuelType,$B36,sysFuelBuildNum,AC$12) -> 0 | AD36: =SUMIFS(sysFuelkWh,sysFuelType,$B36,sysFuelBuildNum,AD$12) -> 0 | AE36: =SUMIFS(sysFuelkWh,sysFuelType,$B36,sysFuelBuildNum,AE$12) -> 0 | AF36: =SUMIFS(sysFuelkWh,sysFuelType,$B36,sysFuelBuildNum,AF$12) -> 0 | AG36: =SUMIFS(sysFuelkWh,sysFuelType,$B36,sysFuelBuildNum,AG$12) -> 0 | AH36: =SUMIFS(sysFuelkWh,sysFuelType,$B36,sysFuelBuildNum,AH$12) -> 0 | AI36: =SUMIFS(sysFuelkWh,sysFuelType,$B36,sysFuelBuildNum,AI$12) -> 0 | AJ36: =SUMIFS(sysFuelkWh,sysFuelType,$B36,sysFuelBuildNum,AJ$12) -> 0 | AK36: =SUMIFS(sysFuelkWh,sysFuelType,$B36,sysFuelBuildNum,AK$12) -> 0 | AL36: =SUMIFS(sysFuelkWh,sysFuelType,$B36,sysFuelBuildNum,AL$12) -> 0 | AM36: =SUMIFS(sysFuelkWh,sysFuelType,$B36,sysFuelBuildNum,AM$12) -> 0 | AN36: =SUMIFS(sysFuelkWh,sysFuelType,$B36,sysFuelBuildNum,AN$12) -> 0 | AO36: =SUMIFS(sysFuelkWh,sysFuelType,$B36,sysFuelBuildNum,AO$12) -> 0 | AP36: =SUMIFS(sysFuelkWh,sysFuelType,$B36,sysFuelBuildNum,AP$12) -> 0 | AQ36: =SUMIFS(sysFuelkWh,sysFuelType,$B36,sysFuelBuildNum,AQ$12) -> 0 | AR36: =SUMIFS(sysFuelkWh,sysFuelType,$B36,sysFuelBuildNum,AR$12) -> 0 | AS36: =SUMIFS(sysFuelkWh,sysFuelType,$B36,sysFuelBuildNum,AS$12) -> 0 | AT36: =SUMIFS(sysFuelkWh,sysFuelType,$B36,sysFuelBuildNum,AT$12) -> 0 | AU36: =SUMIFS(sysFuelkWh,sysFuelType,$B36,sysFuelBuildNum,AU$12) -> 0 | AV36: =SUMIFS(sysFuelkWh,sysFuelType,$B36,sysFuelBuildNum,AV$12) -> 0 | AW36: =SUMIFS(sysFuelkWh,sysFuelType,$B36,sysFuelBuildNum,AW$12) -> 0 | AX36: =SUMIFS(sysFuelkWh,sysFuelType,$B36,sysFuelBuildNum,AX$12) -> 0 | AY36: =SUMIFS(sysFuelkWh,sysFuelType,$B36,sysFuelBuildNum,AY$12) -> 0 | AZ36: =SUMIFS(sysFuelkWh,sysFuelType,$B36,sysFuelBuildNum,AZ$12) -> 0 | BA36: =SUMIFS(sysFuelkWh,sysFuelType,$B36,sysFuelBuildNum,BA$12) -> 0 | BB36: =SUMIFS(sysFuelkWh,sysFuelType,$B36,sysFuelBuildNum,BB$12) -> 0 | BC36: =SUMIFS(sysFuelkWh,sysFuelType,$B36,sysFuelBuildNum,BC$12) -> 0 | BD36: =SUMIFS(sysFuelkWh,sysFuelType,$B36,sysFuelBuildNum,BD$12) -> 0 | BE36: =SUMIFS(sysFuelkWh,sysFuelType,$B36,sysFuelBuildNum,BE$12) -> 0 | BF36: =SUMIFS(sysFuelkWh,sysFuelType,$B36,sysFuelBuildNum,BF$12) -> 0 | BG36: =SUMIFS(sysFuelkWh,sysFuelType,$B36,sysFuelBuildNum,BG$12) -> 0 | BH36: =SUMIFS(sysFuelkWh,sysFuelType,$B36,sysFuelBuildNum,BH$12) -> 0 | BI36: =SUMIFS(sysFuelkWh,sysFuelType,$B36,sysFuelBuildNum,BI$12) -> 0 | BJ36: =SUMIFS(sysFuelkWh,sysFuelType,$B36,sysFuelBuildNum,BJ$12) -> 0 | BK36: =SUMIFS(sysFuelkWh,sysFuelType,$B36,sysFuelBuildNum,BK$12) -> 0 | BL36: =SUMIFS(sysFuelkWh,sysFuelType,$B36,sysFuelBuildNum,BL$12) -> 0 | BM36: =SUMIFS(sysFuelkWh,sysFuelType,$B36,sysFuelBuildNum,BM$12) -> 0 | BN36: =SUMIFS(sysFuelkWh,sysFuelType,$B36,sysFuelBuildNum,BN$12) -> 0 | BO36: =SUMIFS(sysFuelkWh,sysFuelType,$B36,sysFuelBuildNum,BO$12) -> 0 | BP36: =SUMIFS(sysFuelkWh,sysFuelType,$B36,sysFuelBuildNum,BP$12) -> 0 | BQ36: =SUMIFS(sysFuelkWh,sysFuelType,$B36,sysFuelBuildNum,BQ$12) -> 0 | BR36: =SUMIFS(sysFuelkWh,sysFuelType,$B36,sysFuelBuildNum,BR$12) -> 0 | BS36: =SUMIFS(sysFuelkWh,sysFuelType,$B36,sysFuelBuildNum,BS$12) -> 0 | BT36: =SUMIFS(sysFuelkWh,sysFuelType,$B36,sysFuelBuildNum,BT$12) -> 0 | BU36: =SUMIFS(sysFuelkWh,sysFuelType,$B36,sysFuelBuildNum,BU$12) -> 0 | BV36: =SUMIFS(sysFuelkWh,sysFuelType,$B36,sysFuelBuildNum,BV$12) -> 0 | BW36: =SUMIFS(sysFuelkWh,sysFuelType,$B36,sysFuelBuildNum,BW$12) -> 0 | BX36: =SUMIFS(sysFuelkWh,sysFuelType,$B36,sysFuelBuildNum,BX$12) -> 0 | BY36: =SUMIFS(sysFuelkWh,sysFuelType,$B36,sysFuelBuildNum,BY$12) -> 0 | BZ36: =SUMIFS(sysFuelkWh,sysFuelType,$B36,sysFuelBuildNum,BZ$12) -> 0 | CA36: =SUMIFS(sysFuelkWh,sysFuelType,$B36,sysFuelBuildNum,CA$12) -> 0 | CB36: =SUMIFS(sysFuelkWh,sysFuelType,$B36,sysFuelBuildNum,CB$12) -> 0 | CC36: =SUMIFS(sysFuelkWh,sysFuelType,$B36,sysFuelBuildNum,CC$12) -> 0 | CD36: =SUMIFS(sysFuelkWh,sysFuelType,$B36,sysFuelBuildNum,CD$12) -> 0 | CE36: =SUMIFS(sysFuelkWh,sysFuelType,$B36,sysFuelBuildNum,CE$12) -> 0 | CF36: =SUMIFS(sysFuelkWh,sysFuelType,$B36,sysFuelBuildNum,CF$12) -> 0 | CG36: =SUMIFS(sysFuelkWh,sysFuelType,$B36,sysFuelBuildNum,CG$12) -> 0 | CH36: =SUMIFS(sysFuelkWh,sysFuelType,$B36,sysFuelBuildNum,CH$12) -> 0 | CI36: =SUMIFS(sysFuelkWh,sysFuelType,$B36,sysFuelBuildNum,CI$12) -> 0 | CJ36: =SUMIFS(sysFuelkWh,sysFuelType,$B36,sysFuelBuildNum,CJ$12) -> 0 | CK36: =SUMIFS(sysFuelkWh,sysFuelType,$B36,sysFuelBuildNum,CK$12) -> 0 | CL36: =SUMIFS(sysFuelkWh,sysFuelType,$B36,sysFuelBuildNum,CL$12) -> 0 | CM36: =SUMIFS(sysFuelkWh,sysFuelType,$B36,sysFuelBuildNum,CM$12) -> 0 | CN36: =SUMIFS(sysFuelkWh,sysFuelType,$B36,sysFuelBuildNum,CN$12) -> 0 | CO36: =SUMIFS(sysFuelkWh,sysFuelType,$B36,sysFuelBuildNum,CO$12) -> 0 | CP36: =SUMIFS(sysFuelkWh,sysFuelType,$B36,sysFuelBuildNum,CP$12) -> 0 | CQ36: =SUMIFS(sysFuelkWh,sysFuelType,$B36,sysFuelBuildNum,CQ$12) -> 0 | CR36: =SUMIFS(sysFuelkWh,sysFuelType,$B36,sysFuelBuildNum,CR$12) -> 0 | CS36: =SUMIFS(sysFuelkWh,sysFuelType,$B36,sysFuelBuildNum,CS$12) -> 0 | CT36: =SUMIFS(sysFuelkWh,sysFuelType,$B36,sysFuelBuildNum,CT$12) -> 0 | CU36: =SUMIFS(sysFuelkWh,sysFuelType,$B36,sysFuelBuildNum,CU$12) -> 0 | CV36: =SUMIFS(sysFuelkWh,sysFuelType,$B36,sysFuelBuildNum,CV$12) -> 0 | CW36: =SUMIFS(sysFuelkWh,sysFuelType,$B36,sysFuelBuildNum,CW$12) -> 0 | CX36: =SUMIFS(sysFuelkWh,sysFuelType,$B36,sysFuelBuildNum,CX$12) -> 0 | CY36: =SUMIFS(sysFuelkWh,sysFuelType,$B36,sysFuelBuildNum,CY$12) -> 0 | CZ36: =SUMIFS(sysFuelkWh,sysFuelType,$B36,sysFuelBuildNum,CZ$12) -> 0 | DA36: =SUMIFS(sysFuelkWh,sysFuelType,$B36,sysFuelBuildNum,DA$12) -> 0 | DB36: =SUMIFS(sysFuelkWh,sysFuelType,$B36,sysFuelBuildNum,DB$12) -> 0 | DC36: =SUMIFS(sysFuelkWh,sysFuelType,$B36,sysFuelBuildNum,DC$12) -> 0 | DD36: =SUMIFS(sysFuelkWh,sysFuelType,$B36,sysFuelBuildNum,DD$12) -> 0 | DE36: =SUMIFS(sysFuelkWh,sysFuelType,$B36,sysFuelBuildNum,DE$12) -> 0 | DF36: =SUMIFS(sysFuelkWh,sysFuelType,$B36,sysFuelBuildNum,DF$12) -> 0 | DG36: =SUMIFS(sysFuelkWh,sysFuelType,$B36,sysFuelBuildNum,DG$12) -> 0 | DH36: =SUMIFS(sysFuelkWh,sysFuelType,$B36,sysFuelBuildNum,DH$12) -> 0 | DI36: =SUMIFS(sysFuelkWh,sysFuelType,$B36,sysFuelBuildNum,DI$12) -> 0 | DJ36: =SUMIFS(sysFuelkWh,sysFuelType,$B36,sysFuelBuildNum,DJ$12) -> 0 | DK36: =SUMIFS(sysFuelkWh,sysFuelType,$B36,sysFuelBuildNum,DK$12) -> 0 | DL36: =SUMIFS(sysFuelkWh,sysFuelType,$B36,sysFuelBuildNum,DL$12) -> 0 | DM36: =SUMIFS(sysFuelkWh,sysFuelType,$B36,sysFuelBuildNum,DM$12) -> 0 | DN36: =SUMIFS(sysFuelkWh,sysFuelType,$B36,sysFuelBuildNum,DN$12) -> 0 | DO36: =SUMIFS(sysFuelkWh,sysFuelType,$B36,sysFuelBuildNum,DO$12) -> 0 | DP36: =SUMIFS(sysFuelkWh,sysFuelType,$B36,sysFuelBuildNum,DP$12) -> 0 | DQ36: =SUMIFS(sysFuelkWh,sysFuelType,$B36,sysFuelBuildNum,DQ$12) -> 0 | DR36: =SUMIFS(sysFuelkWh,sysFuelType,$B36,sysFuelBuildNum,DR$12) -> 0 | DS36: =SUMIFS(sysFuelkWh,sysFuelType,$B36,sysFuelBuildNum,DS$12) -> 0 | DT36: =SUMIFS(sysFuelkWh,sysFuelType,$B36,sysFuelBuildNum,DT$12) -> 0 | DU36: =SUMIFS(sysFuelkWh,sysFuelType,$B36,sysFuelBuildNum,DU$12) -> 0 | DV36: =SUMIFS(sysFuelkWh,sysFuelType,$B36,sysFuelBuildNum,DV$12) -> 0 | DW36: =SUMIFS(sysFuelkWh,sysFuelType,$B36,sysFuelBuildNum,DW$12) -> 0 | DX36: =SUMIFS(sysFuelkWh,sysFuelType,$B36,sysFuelBuildNum,DX$12) -> 0 | DY36: =SUMIFS(sysFuelkWh,sysFuelType,$B36,sysFuelBuildNum,DY$12) -> 0 | DZ36: =SUMIFS(sysFuelkWh,sysFuelType,$B36,sysFuelBuildNum,DZ$12) -> 0 | EA36: =SUMIFS(sysFuelkWh,sysFuelType,$B36,sysFuelBuildNum,EA$12) -> 0 | EB36: =SUMIFS(sysFuelkWh,sysFuelType,$B36,sysFuelBuildNum,EB$12) -> 0 | EC36: =SUMIFS(sysFuelkWh,sysFuelType,$B36,sysFuelBuildNum,EC$12) -> 0 | ED36: =SUMIFS(sysFuelkWh,sysFuelType,$B36,sysFuelBuildNum,ED$12) -> 0 | EE36: =SUMIFS(sysFuelkWh,sysFuelType,$B36,sysFuelBuildNum,EE$12) -> 0 | EF36: =SUMIFS(sysFuelkWh,sysFuelType,$B36,sysFuelBuildNum,EF$12) -> 0 | EG36: =SUMIFS(sysFuelkWh,sysFuelType,$B36,sysFuelBuildNum,EG$12) -> 0 | EH36: =SUMIFS(sysFuelkWh,sysFuelType,$B36,sysFuelBuildNum,EH$12) -> 0 | EI36: =SUMIFS(sysFuelkWh,sysFuelType,$B36,sysFuelBuildNum,EI$12) -> 0 | EJ36: =SUMIFS(sysFuelkWh,sysFuelType,$B36,sysFuelBuildNum,EJ$12) -> 0 | EK36: =SUMIFS(sysFuelkWh,sysFuelType,$B36,sysFuelBuildNum,EK$12) -> 0 | EL36: =SUMIFS(sysFuelkWh,sysFuelType,$B36,sysFuelBuildNum,EL$12) -> 0 | EM36: =SUMIFS(sysFuelkWh,sysFuelType,$B36,sysFuelBuildNum,EM$12) -> 0 | EN36: =SUMIFS(sysFuelkWh,sysFuelType,$B36,sysFuelBuildNum,EN$12) -> 0 | EO36: =SUMIFS(sysFuelkWh,sysFuelType,$B36,sysFuelBuildNum,EO$12) -> 0 | EP36: =SUMIFS(sysFuelkWh,sysFuelType,$B36,sysFuelBuildNum,EP$12) -> 0 | EQ36: =SUMIFS(sysFuelkWh,sysFuelType,$B36,sysFuelBuildNum,EQ$12) -> 0 | ER36: =SUMIFS(sysFuelkWh,sysFuelType,$B36,sysFuelBuildNum,ER$12) -> 0 | ES36: =SUMIFS(sysFuelkWh,sysFuelType,$B36,sysFuelBuildNum,ES$12) -> 0 | ET36: =SUMIFS(sysFuelkWh,sysFuelType,$B36,sysFuelBuildNum,ET$12) -> 0 | EU36: =SUMIFS(sysFuelkWh,sysFuelType,$B36,sysFuelBuildNum,EU$12) -> 0 | EV36: =SUMIFS(sysFuelkWh,sysFuelType,$B36,sysFuelBuildNum,EV$12) -> 0 | EW36: =SUMIFS(sysFuelkWh,sysFuelType,$B36,sysFuelBuildNum,EW$12) -> 0 | EX36: =SUMIFS(sysFuelkWh,sysFuelType,$B36,sysFuelBuildNum,EX$12) -> 0 | EY36: =SUMIFS(sysFuelkWh,sysFuelType,$B36,sysFuelBuildNum,EY$12) -> 0 | EZ36: =SUMIFS(sysFuelkWh,sysFuelType,$B36,sysFuelBuildNum,EZ$12) -> 0 | FA36: =SUMIFS(sysFuelkWh,sysFuelType,$B36,sysFuelBuildNum,FA$12) -> 0 | FB36: =SUMIFS(sysFuelkWh,sysFuelType,$B36,sysFuelBuildNum,FB$12) -> 0 | FC36: =SUMIFS(sysFuelkWh,sysFuelType,$B36,sysFuelBuildNum,FC$12) -> 0 | FD36: =SUMIFS(sysFuelkWh,sysFuelType,$B36,sysFuelBuildNum,FD$12) -> 0 | FE36: =SUMIFS(sysFuelkWh,sysFuelType,$B36,sysFuelBuildNum,FE$12) -> 0 | FF36: =SUMIFS(sysFuelkWh,sysFuelType,$B36,sysFuelBuildNum,FF$12) -> 0 | FG36: =SUMIFS(sysFuelkWh,sysFuelType,$B36,sysFuelBuildNum,FG$12) -> 0 | FH36: =SUMIFS(sysFuelkWh,sysFuelType,$B36,sysFuelBuildNum,FH$12) -> 0 | FI36: =SUMIFS(sysFuelkWh,sysFuelType,$B36,sysFuelBuildNum,FI$12) -> 0 | FJ36: =SUMIFS(sysFuelkWh,sysFuelType,$B36,sysFuelBuildNum,FJ$12) -> 0 | FK36: =SUMIFS(sysFuelkWh,sysFuelType,$B36,sysFuelBuildNum,FK$12) -> 0 | FL36: =SUMIFS(sysFuelkWh,sysFuelType,$B36,sysFuelBuildNum,FL$12) -> 0 | FM36: =SUMIFS(sysFuelkWh,sysFuelType,$B36,sysFuelBuildNum,FM$12) -> 0 | FN36: =SUMIFS(sysFuelkWh,sysFuelType,$B36,sysFuelBuildNum,FN$12) -> 0 | FO36: =SUMIFS(sysFuelkWh,sysFuelType,$B36,sysFuelBuildNum,FO$12) -> 0 | FP36: =SUMIFS(sysFuelkWh,sysFuelType,$B36,sysFuelBuildNum,FP$12) -> 0 | FQ36: =SUMIFS(sysFuelkWh,sysFuelType,$B36,sysFuelBuildNum,FQ$12) -> 0 | FR36: =SUMIFS(sysFuelkWh,sysFuelType,$B36,sysFuelBuildNum,FR$12) -> 0 | FS36: =SUMIFS(sysFuelkWh,sysFuelType,$B36,sysFuelBuildNum,FS$12) -> 0 | FT36: =SUMIFS(sysFuelkWh,sysFuelType,$B36,sysFuelBuildNum,FT$12) -> 0 | FU36: =SUMIFS(sysFuelkWh,sysFuelType,$B36,sysFuelBuildNum,FU$12) -> 0 | FV36: =SUMIFS(sysFuelkWh,sysFuelType,$B36,sysFuelBuildNum,FV$12) -> 0 | FW36: =SUMIFS(sysFuelkWh,sysFuelType,$B36,sysFuelBuildNum,FW$12) -> 0 | FX36: =SUMIFS(sysFuelkWh,sysFuelType,$B36,sysFuelBuildNum,FX$12) -> 0 | FY36: =SUMIFS(sysFuelkWh,sysFuelType,$B36,sysFuelBuildNum,FY$12) -> 0 | FZ36: =SUMIFS(sysFuelkWh,sysFuelType,$B36,sysFuelBuildNum,FZ$12) -> 0 | GA36: =SUMIFS(sysFuelkWh,sysFuelType,$B36,sysFuelBuildNum,GA$12) -> 0 | GB36: =SUMIFS(sysFuelkWh,sysFuelType,$B36,sysFuelBuildNum,GB$12) -> 0 | GC36: =SUMIFS(sysFuelkWh,sysFuelType,$B36,sysFuelBuildNum,GC$12) -> 0 | GD36: =SUMIFS(sysFuelkWh,sysFuelType,$B36,sysFuelBuildNum,GD$12) -> 0 | GE36: =SUMIFS(sysFuelkWh,sysFuelType,$B36,sysFuelBuildNum,GE$12) -> 0 | GF36: =SUMIFS(sysFuelkWh,sysFuelType,$B36,sysFuelBuildNum,GF$12) -> 0 | GG36: =SUMIFS(sysFuelkWh,sysFuelType,$B36,sysFuelBuildNum,GG$12) -> 0 | GH36: =SUMIFS(sysFuelkWh,sysFuelType,$B36,sysFuelBuildNum,GH$12) -> 0 | GI36: =SUMIFS(sysFuelkWh,sysFuelType,$B36,sysFuelBuildNum,GI$12) -> 0 | GJ36: =SUMIFS(sysFuelkWh,sysFuelType,$B36,sysFuelBuildNum,GJ$12) -> 0 | GK36: =SUMIFS(sysFuelkWh,sysFuelType,$B36,sysFuelBuildNum,GK$12) -> 0 | GL36: =SUMIFS(sysFuelkWh,sysFuelType,$B36,sysFuelBuildNum,GL$12) -> 0 | GM36: =SUMIFS(sysFuelkWh,sysFuelType,$B36,sysFuelBuildNum,GM$12) -> 0 | GN36: =SUMIFS(sysFuelkWh,sysFuelType,$B36,sysFuelBuildNum,GN$12) -> 0 | GO36: =SUMIFS(sysFuelkWh,sysFuelType,$B36,sysFuelBuildNum,GO$12) -> 0 | GP36: =SUMIFS(sysFuelkWh,sysFuelType,$B36,sysFuelBuildNum,GP$12) -> 0 | GQ36: =SUMIFS(sysFuelkWh,sysFuelType,$B36,sysFuelBuildNum,GQ$12) -> 0 | GR36: =SUMIFS(sysFuelkWh,sysFuelType,$B36,sysFuelBuildNum,GR$12) -> 0 | GS36: =SUMIFS(sysFuelkWh,sysFuelType,$B36,sysFuelBuildNum,GS$12) -> 0 | GT36: =SUMIFS(sysFuelkWh,sysFuelType,$B36,sysFuelBuildNum,GT$12) -> 0 | GU36: =SUMIFS(sysFuelkWh,sysFuelType,$B36,sysFuelBuildNum,GU$12) -> 0 | GV36: =SUMIFS(sysFuelkWh,sysFuelType,$B36,sysFuelBuildNum,GV$12) -> 0 | GW36: =SUMIFS(sysFuelkWh,sysFuelType,$B36,sysFuelBuildNum,GW$12) -> 0 | GX36: =SUMIFS(sysFuelkWh,sysFuelType,$B36,sysFuelBuildNum,GX$12) -> 0 | GY36: =SUMIFS(sysFuelkWh,sysFuelType,$B36,sysFuelBuildNum,GY$12) -> 0 | GZ36: =SUMIFS(sysFuelkWh,sysFuelType,$B36,sysFuelBuildNum,GZ$12) -> 0 | HA36: =SUMIFS(sysFuelkWh,sysFuelType,$B36,sysFuelBuildNum,HA$12) -> 0 | HB36: =SUMIFS(sysFuelkWh,sysFuelType,$B36,sysFuelBuildNum,HB$12) -> 0 | HC36: =SUMIFS(sysFuelkWh,sysFuelType,$B36,sysFuelBuildNum,HC$12) -> 0
B38: Expected fuel cost | G38: p/kWh
B39: =Lists!$C$4 -> Biofuel | C39: £ | E39: ='INPT; BEIS'!D72 -> FALSE | G39: ='INPT; BEIS'!J72 -> 0 | L39: =L29*$G39/100 -> 0 | M39: =M29*$G39/100 -> 0 | N39: 0 | O39: 0 | P39: 0 | Q39: 0 | R39: 0 | S39: 0 | T39: 0 | U39: 0 | V39: 0 | W39: 0 | X39: 0 | Y39: 0 | Z39: 0 | AA39: 0 | AB39: 0 | AC39: 0 | AD39: 0 | AE39: 0 | AF39: 0 | AG39: 0 | AH39: 0 | AI39: 0 | AJ39: 0 | AK39: 0 | AL39: 0 | AM39: 0 | AN39: 0 | AO39: 0 | AP39: 0 | AQ39: 0 | AR39: 0 | AS39: 0 | AT39: 0 | AU39: 0 | AV39: 0 | AW39: 0 | AX39: 0 | AY39: 0 | AZ39: 0 | BA39: 0 | BB39: 0 | BC39: 0 | BD39: 0 | BE39: 0 | BF39: 0 | BG39: 0 | BH39: 0 | BI39: 0 | BJ39: 0 | BK39: 0 | BL39: 0 | BM39: 0 | BN39: 0 | BO39: 0 | BP39: 0 | BQ39: 0 | BR39: 0 | BS39: 0 | BT39: 0 | BU39: 0 | BV39: 0 | BW39: 0 | BX39: 0 | BY39: =BY29*$G39/100 -> 0 | BZ39: 0 | CA39: 0 | CB39: 0 | CC39: 0 | CD39: 0 | CE39: 0 | CF39: 0 | CG39: 0 | CH39: 0 | CI39: 0 | CJ39: 0 | CK39: 0 | CL39: 0 | CM39: 0 | CN39: 0 | CO39: 0 | CP39: 0 | CQ39: 0 | CR39: 0 | CS39: 0 | CT39: 0 | CU39: 0 | CV39: 0 | CW39: 0 | CX39: 0 | CY39: 0 | CZ39: 0 | DA39: 0 | DB39: 0 | DC39: 0 | DD39: 0 | DE39: 0 | DF39: 0 | DG39: 0 | DH39: 0 | DI39: 0 | DJ39: 0 | DK39: 0 | DL39: 0 | DM39: 0 | DN39: 0 | DO39: 0 | DP39: 0 | DQ39: 0 | DR39: 0 | DS39: 0 | DT39: 0 | DU39: 0 | DV39: 0 | DW39: 0 | DX39: 0 | DY39: 0 | DZ39: 0 | EA39: 0 | EB39: 0 | EC39: 0 | ED39: 0 | EE39: 0 | EF39: 0 | EG39: 0 | EH39: 0 | EI39: 0 | EJ39: 0 | EK39: =EK29*$G39/100 -> 0 | EL39: 0 | EM39: 0 | EN39: 0 | EO39: 0 | EP39: 0 | EQ39: 0 | ER39: 0 | ES39: 0 | ET39: 0 | EU39: 0 | EV39: 0 | EW39: 0 | EX39: 0 | EY39: 0 | EZ39: 0 | FA39: 0 | FB39: 0 | FC39: 0 | FD39: 0 | FE39: 0 | FF39: 0 | FG39: 0 | FH39: 0 | FI39: 0 | FJ39: 0 | FK39: 0 | FL39: 0 | FM39: 0 | FN39: 0 | FO39: 0 | FP39: 0 | FQ39: 0 | FR39: 0 | FS39: 0 | FT39: 0 | FU39: 0 | FV39: 0 | FW39: 0 | FX39: 0 | FY39: 0 | FZ39: 0 | GA39: 0 | GB39: 0 | GC39: 0 | GD39: 0 | GE39: 0 | GF39: 0 | GG39: 0 | GH39: 0 | GI39: 0 | GJ39: 0 | GK39: 0 | GL39: 0 | GM39: 0 | GN39: 0 | GO39: 0 | GP39: 0 | GQ39: 0 | GR39: 0 | GS39: 0 | GT39: 0 | GU39: 0 | GV39: 0 | GW39: =GW29*$G39/100 -> 0 | GX39: 0 | GY39: 0 | GZ39: 0 | HA39: 0 | HB39: 0 | HC39: 0
B40: =Lists!$C$5 -> Biomass | C40: £ | E40: ='INPT; BEIS'!D73 -> FALSE | G40: ='INPT; BEIS'!J73 -> 0 | L40: =L30*$G40/100 -> 0 | M40: 0 | N40: 0 | O40: 0 | P40: 0 | Q40: 0 | R40: 0 | S40: 0 | T40: 0 | U40: 0 | V40: 0 | W40: 0 | X40: 0 | Y40: 0 | Z40: 0 | AA40: 0 | AB40: 0 | AC40: 0 | AD40: 0 | AE40: 0 | AF40: 0 | AG40: 0 | AH40: 0 | AI40: 0 | AJ40: 0 | AK40: 0 | AL40: 0 | AM40: 0 | AN40: 0 | AO40: 0 | AP40: 0 | AQ40: 0 | AR40: 0 | AS40: 0 | AT40: 0 | AU40: 0 | AV40: 0 | AW40: 0 | AX40: 0 | AY40: 0 | AZ40: 0 | BA40: 0 | BB40: 0 | BC40: 0 | BD40: 0 | BE40: 0 | BF40: 0 | BG40: 0 | BH40: 0 | BI40: 0 | BJ40: 0 | BK40: 0 | BL40: 0 | BM40: 0 | BN40: 0 | BO40: 0 | BP40: 0 | BQ40: 0 | BR40: 0 | BS40: 0 | BT40: 0 | BU40: 0 | BV40: 0 | BW40: 0 | BX40: =BX30*$G40/100 -> 0 | BY40: 0 | BZ40: 0 | CA40: 0 | CB40: 0 | CC40: 0 | CD40: 0 | CE40: 0 | CF40: 0 | CG40: 0 | CH40: 0 | CI40: 0 | CJ40: 0 | CK40: 0 | CL40: 0 | CM40: 0 | CN40: 0 | CO40: 0 | CP40: 0 | CQ40: 0 | CR40: 0 | CS40: 0 | CT40: 0 | CU40: 0 | CV40: 0 | CW40: 0 | CX40: 0 | CY40: 0 | CZ40: 0 | DA40: 0 | DB40: 0 | DC40: 0 | DD40: 0 | DE40: 0 | DF40: 0 | DG40: 0 | DH40: 0 | DI40: 0 | DJ40: 0 | DK40: 0 | DL40: 0 | DM40: 0 | DN40: 0 | DO40: 0 | DP40: 0 | DQ40: 0 | DR40: 0 | DS40: 0 | DT40: 0 | DU40: 0 | DV40: 0 | DW40: 0 | DX40: 0 | DY40: 0 | DZ40: 0 | EA40: 0 | EB40: 0 | EC40: 0 | ED40: 0 | EE40: 0 | EF40: 0 | EG40: 0 | EH40: 0 | EI40: 0 | EJ40: =EJ30*$G40/100 -> 0 | EK40: 0 | EL40: 0 | EM40: 0 | EN40: 0 | EO40: 0 | EP40: 0 | EQ40: 0 | ER40: 0 | ES40: 0 | ET40: 0 | EU40: 0 | EV40: 0 | EW40: 0 | EX40: 0 | EY40: 0 | EZ40: 0 | FA40: 0 | FB40: 0 | FC40: 0 | FD40: 0 | FE40: 0 | FF40: 0 | FG40: 0 | FH40: 0 | FI40: 0 | FJ40: 0 | FK40: 0 | FL40: 0 | FM40: 0 | FN40: 0 | FO40: 0 | FP40: 0 | FQ40: 0 | FR40: 0 | FS40: 0 | FT40: 0 | FU40: 0 | FV40: 0 | FW40: 0 | FX40: 0 | FY40: 0 | FZ40: 0 | GA40: 0 | GB40: 0 | GC40: 0 | GD40: 0 | GE40: 0 | GF40: 0 | GG40: 0 | GH40: 0 | GI40: 0 | GJ40: 0 | GK40: 0 | GL40: 0 | GM40: 0 | GN40: 0 | GO40: 0 | GP40: 0 | GQ40: 0 | GR40: 0 | GS40: 0 | GT40: 0 | GU40: 0 | GV40: =GV30*$G40/100 -> 0 | GW40: 0 | GX40: 0 | GY40: 0 | GZ40: 0 | HA40: 0 | HB40: 0 | HC40: 0
B41: =Lists!$C$6 -> Coal | C41: £ | E41: ='INPT; BEIS'!D74 -> TRUE | G41: ='INPT; BEIS'!J74 -> 1.68372526 | L41: =L31*$G41/100 -> 0 | M41: 0 | N41: 0 | O41: 0 | P41: 0 | Q41: 0 | R41: 0 | S41: 0 | T41: 0 | U41: 0 | V41: 0 | W41: 0 | X41: 0 | Y41: 0 | Z41: 0 | AA41: 0 | AB41: 0 | AC41: 0 | AD41: 0 | AE41: 0 | AF41: 0 | AG41: 0 | AH41: 0 | AI41: 0 | AJ41: 0 | AK41: 0 | AL41: 0 | AM41: 0 | AN41: 0 | AO41: 0 | AP41: 0 | AQ41: 0 | AR41: 0 | AS41: 0 | AT41: 0 | AU41: 0 | AV41: 0 | AW41: 0 | AX41: 0 | AY41: 0 | AZ41: 0 | BA41: 0 | BB41: 0 | BC41: 0 | BD41: 0 | BE41: 0 | BF41: 0 | BG41: 0 | BH41: 0 | BI41: 0 | BJ41: 0 | BK41: 0 | BL41: 0 | BM41: 0 | BN41: 0 | BO41: 0 | BP41: 0 | BQ41: 0 | BR41: 0 | BS41: 0 | BT41: 0 | BU41: 0 | BV41: 0 | BW41: 0 | BX41: =BX31*$G41/100 -> 0 | BY41: 0 | BZ41: 0 | CA41: 0 | CB41: 0 | CC41: 0 | CD41: 0 | CE41: 0 | CF41: 0 | CG41: 0 | CH41: 0 | CI41: 0 | CJ41: 0 | CK41: 0 | CL41: 0 | CM41: 0 | CN41: 0 | CO41: 0 | CP41: 0 | CQ41: 0 | CR41: 0 | CS41: 0 | CT41: 0 | CU41: 0 | CV41: 0 | CW41: 0 | CX41: 0 | CY41: 0 | CZ41: 0 | DA41: 0 | DB41: 0 | DC41: 0 | DD41: 0 | DE41: 0 | DF41: 0 | DG41: 0 | DH41: 0 | DI41: 0 | DJ41: 0 | DK41: 0 | DL41: 0 | DM41: 0 | DN41: 0 | DO41: 0 | DP41: 0 | DQ41: 0 | DR41: 0 | DS41: 0 | DT41: 0 | DU41: 0 | DV41: 0 | DW41: 0 | DX41: 0 | DY41: 0 | DZ41: 0 | EA41: 0 | EB41: 0 | EC41: 0 | ED41: 0 | EE41: 0 | EF41: 0 | EG41: 0 | EH41: 0 | EI41: 0 | EJ41: =EJ31*$G41/100 -> 0 | EK41: 0 | EL41: 0 | EM41: 0 | EN41: 0 | EO41: 0 | EP41: 0 | EQ41: 0 | ER41: 0 | ES41: 0 | ET41: 0 | EU41: 0 | EV41: 0 | EW41: 0 | EX41: 0 | EY41: 0 | EZ41: 0 | FA41: 0 | FB41: 0 | FC41: 0 | FD41: 0 | FE41: 0 | FF41: 0 | FG41: 0 | FH41: 0 | FI41: 0 | FJ41: 0 | FK41: 0 | FL41: 0 | FM41: 0 | FN41: 0 | FO41: 0 | FP41: 0 | FQ41: 0 | FR41: 0 | FS41: 0 | FT41: 0 | FU41: 0 | FV41: 0 | FW41: 0 | FX41: 0 | FY41: 0 | FZ41: 0 | GA41: 0 | GB41: 0 | GC41: 0 | GD41: 0 | GE41: 0 | GF41: 0 | GG41: 0 | GH41: 0 | GI41: 0 | GJ41: 0 | GK41: 0 | GL41: 0 | GM41: 0 | GN41: 0 | GO41: 0 | GP41: 0 | GQ41: 0 | GR41: 0 | GS41: 0 | GT41: 0 | GU41: 0 | GV41: =GV31*$G41/100 -> 0 | GW41: 0 | GX41: 0 | GY41: 0 | GZ41: 0 | HA41: 0 | HB41: 0 | HC41: 0
B42: =Lists!$C$7 -> Electricity | C42: £ | E42: ='INPT; BEIS'!D75 -> TRUE | G42: ='INPT; BEIS'!J75 -> 13.67450527 | L42: =L32*$G42/100 -> 0 | M42: 0 | N42: 0 | O42: 0 | P42: 0 | Q42: 0 | R42: 0 | S42: 0 | T42: 0 | U42: 0 | V42: 0 | W42: 0 | X42: 0 | Y42: 0 | Z42: 0 | AA42: 0 | AB42: 0 | AC42: 0 | AD42: 0 | AE42: 0 | AF42: 0 | AG42: 0 | AH42: 0 | AI42: 0 | AJ42: 0 | AK42: 0 | AL42: 0 | AM42: 0 | AN42: 0 | AO42: 0 | AP42: 0 | AQ42: 0 | AR42: 0 | AS42: 0 | AT42: 0 | AU42: 0 | AV42: 0 | AW42: 0 | AX42: 0 | AY42: 0 | AZ42: 0 | BA42: 0 | BB42: 0 | BC42: 0 | BD42: 0 | BE42: 0 | BF42: 0 | BG42: 0 | BH42: 0 | BI42: 0 | BJ42: 0 | BK42: 0 | BL42: 0 | BM42: 0 | BN42: 0 | BO42: 0 | BP42: 0 | BQ42: 0 | BR42: 0 | BS42: 0 | BT42: 0 | BU42: 0 | BV42: 0 | BW42: 0 | BX42: =BX32*$G42/100 -> 0 | BY42: 0 | BZ42: 0 | CA42: 0 | CB42: 0 | CC42: 0 | CD42: 0 | CE42: 0 | CF42: 0 | CG42: 0 | CH42: 0 | CI42: 0 | CJ42: 0 | CK42: 0 | CL42: 0 | CM42: 0 | CN42: 0 | CO42: 0 | CP42: 0 | CQ42: 0 | CR42: 0 | CS42: 0 | CT42: 0 | CU42: 0 | CV42: 0 | CW42: 0 | CX42: 0 | CY42: 0 | CZ42: 0 | DA42: 0 | DB42: 0 | DC42: 0 | DD42: 0 | DE42: 0 | DF42: 0 | DG42: 0 | DH42: 0 | DI42: 0 | DJ42: 0 | DK42: 0 | DL42: 0 | DM42: 0 | DN42: 0 | DO42: 0 | DP42: 0 | DQ42: 0 | DR42: 0 | DS42: 0 | DT42: 0 | DU42: 0 | DV42: 0 | DW42: 0 | DX42: 0 | DY42: 0 | DZ42: 0 | EA42: 0 | EB42: 0 | EC42: 0 | ED42: 0 | EE42: 0 | EF42: 0 | EG42: 0 | EH42: 0 | EI42: 0 | EJ42: =EJ32*$G42/100 -> 0 | EK42: 0 | EL42: 0 | EM42: 0 | EN42: 0 | EO42: 0 | EP42: 0 | EQ42: 0 | ER42: 0 | ES42: 0 | ET42: 0 | EU42: 0 | EV42: 0 | EW42: 0 | EX42: 0 | EY42: 0 | EZ42: 0 | FA42: 0 | FB42: 0 | FC42: 0 | FD42: 0 | FE42: 0 | FF42: 0 | FG42: 0 | FH42: 0 | FI42: 0 | FJ42: 0 | FK42: 0 | FL42: 0 | FM42: 0 | FN42: 0 | FO42: 0 | FP42: 0 | FQ42: 0 | FR42: 0 | FS42: 0 | FT42: 0 | FU42: 0 | FV42: 0 | FW42: 0 | FX42: 0 | FY42: 0 | FZ42: 0 | GA42: 0 | GB42: 0 | GC42: 0 | GD42: 0 | GE42: 0 | GF42: 0 | GG42: 0 | GH42: 0 | GI42: 0 | GJ42: 0 | GK42: 0 | GL42: 0 | GM42: 0 | GN42: 0 | GO42: 0 | GP42: 0 | GQ42: 0 | GR42: 0 | GS42: 0 | GT42: 0 | GU42: 0 | GV42: =GV32*$G42/100 -> 0 | GW42: 0 | GX42: 0 | GY42: 0 | GZ42: 0 | HA42: 0 | HB42: 0 | HC42: 0
B43: =Lists!$C$8 -> Gas | C43: £ | E43: ='INPT; BEIS'!D76 -> TRUE | G43: ='INPT; BEIS'!J76 -> 2.968477521 | L43: =L33*$G43/100 -> 0 | M43: 0 | N43: 0 | O43: 0 | P43: 0 | Q43: 0 | R43: 0 | S43: 0 | T43: 0 | U43: 0 | V43: 0 | W43: 0 | X43: 0 | Y43: 0 | Z43: 0 | AA43: 0 | AB43: 0 | AC43: 0 | AD43: 0 | AE43: 0 | AF43: 0 | AG43: 0 | AH43: 0 | AI43: 0 | AJ43: 0 | AK43: 0 | AL43: 0 | AM43: 0 | AN43: 0 | AO43: 0 | AP43: 0 | AQ43: 0 | AR43: 0 | AS43: 0 | AT43: 0 | AU43: 0 | AV43: 0 | AW43: 0 | AX43: 0 | AY43: 0 | AZ43: 0 | BA43: 0 | BB43: 0 | BC43: 0 | BD43: 0 | BE43: 0 | BF43: 0 | BG43: 0 | BH43: 0 | BI43: 0 | BJ43: 0 | BK43: 0 | BL43: 0 | BM43: 0 | BN43: 0 | BO43: 0 | BP43: 0 | BQ43: 0 | BR43: 0 | BS43: 0 | BT43: 0 | BU43: 0 | BV43: 0 | BW43: 0 | BX43: =BX33*$G43/100 -> 0 | BY43: 0 | BZ43: 0 | CA43: 0 | CB43: 0 | CC43: 0 | CD43: 0 | CE43: 0 | CF43: 0 | CG43: 0 | CH43: 0 | CI43: 0 | CJ43: 0 | CK43: 0 | CL43: 0 | CM43: 0 | CN43: 0 | CO43: 0 | CP43: 0 | CQ43: 0 | CR43: 0 | CS43: 0 | CT43: 0 | CU43: 0 | CV43: 0 | CW43: 0 | CX43: 0 | CY43: 0 | CZ43: 0 | DA43: 0 | DB43: 0 | DC43: 0 | DD43: 0 | DE43: 0 | DF43: 0 | DG43: 0 | DH43: 0 | DI43: 0 | DJ43: 0 | DK43: 0 | DL43: 0 | DM43: 0 | DN43: 0 | DO43: 0 | DP43: 0 | DQ43: 0 | DR43: 0 | DS43: 0 | DT43: 0 | DU43: 0 | DV43: 0 | DW43: 0 | DX43: 0 | DY43: 0 | DZ43: 0 | EA43: 0 | EB43: 0 | EC43: 0 | ED43: 0 | EE43: 0 | EF43: 0 | EG43: 0 | EH43: 0 | EI43: 0 | EJ43: =EJ33*$G43/100 -> 0 | EK43: 0 | EL43: 0 | EM43: 0 | EN43: 0 | EO43: 0 | EP43: 0 | EQ43: 0 | ER43: 0 | ES43: 0 | ET43: 0 | EU43: 0 | EV43: 0 | EW43: 0 | EX43: 0 | EY43: 0 | EZ43: 0 | FA43: 0 | FB43: 0 | FC43: 0 | FD43: 0 | FE43: 0 | FF43: 0 | FG43: 0 | FH43: 0 | FI43: 0 | FJ43: 0 | FK43: 0 | FL43: 0 | FM43: 0 | FN43: 0 | FO43: 0 | FP43: 0 | FQ43: 0 | FR43: 0 | FS43: 0 | FT43: 0 | FU43: 0 | FV43: 0 | FW43: 0 | FX43: 0 | FY43: 0 | FZ43: 0 | GA43: 0 | GB43: 0 | GC43: 0 | GD43: 0 | GE43: 0 | GF43: 0 | GG43: 0 | GH43: 0 | GI43: 0 | GJ43: 0 | GK43: 0 | GL43: 0 | GM43: 0 | GN43: 0 | GO43: 0 | GP43: 0 | GQ43: 0 | GR43: 0 | GS43: 0 | GT43: 0 | GU43: 0 | GV43: =GV33*$G43/100 -> 0 | GW43: 0 | GX43: 0 | GY43: 0 | GZ43: 0 | HA43: 0 | HB43: 0 | HC43: 0
B44: =Lists!$C$9 -> LPG | C44: £ | E44: ='INPT; BEIS'!D77 -> FALSE | G44: ='INPT; BEIS'!J77 -> 0 | L44: =L34*$G44/100 -> 0 | M44: 0 | N44: 0 | O44: 0 | P44: 0 | Q44: 0 | R44: 0 | S44: 0 | T44: 0 | U44: 0 | V44: 0 | W44: 0 | X44: 0 | Y44: 0 | Z44: 0 | AA44: 0 | AB44: 0 | AC44: 0 | AD44: 0 | AE44: 0 | AF44: 0 | AG44: 0 | AH44: 0 | AI44: 0 | AJ44: 0 | AK44: 0 | AL44: 0 | AM44: 0 | AN44: 0 | AO44: 0 | AP44: 0 | AQ44: 0 | AR44: 0 | AS44: 0 | AT44: 0 | AU44: 0 | AV44: 0 | AW44: 0 | AX44: 0 | AY44: 0 | AZ44: 0 | BA44: 0 | BB44: 0 | BC44: 0 | BD44: 0 | BE44: 0 | BF44: 0 | BG44: 0 | BH44: 0 | BI44: 0 | BJ44: 0 | BK44: 0 | BL44: 0 | BM44: 0 | BN44: 0 | BO44: 0 | BP44: 0 | BQ44: 0 | BR44: 0 | BS44: 0 | BT44: 0 | BU44: 0 | BV44: 0 | BW44: 0 | BX44: =BX34*$G44/100 -> 0 | BY44: 0 | BZ44: 0 | CA44: 0 | CB44: 0 | CC44: 0 | CD44: 0 | CE44: 0 | CF44: 0 | CG44: 0 | CH44: 0 | CI44: 0 | CJ44: 0 | CK44: 0 | CL44: 0 | CM44: 0 | CN44: 0 | CO44: 0 | CP44: 0 | CQ44: 0 | CR44: 0 | CS44: 0 | CT44: 0 | CU44: 0 | CV44: 0 | CW44: 0 | CX44: 0 | CY44: 0 | CZ44: 0 | DA44: 0 | DB44: 0 | DC44: 0 | DD44: 0 | DE44: 0 | DF44: 0 | DG44: 0 | DH44: 0 | DI44: 0 | DJ44: 0 | DK44: 0 | DL44: 0 | DM44: 0 | DN44: 0 | DO44: 0 | DP44: 0 | DQ44: 0 | DR44: 0 | DS44: 0 | DT44: 0 | DU44: 0 | DV44: 0 | DW44: 0 | DX44: 0 | DY44: 0 | DZ44: 0 | EA44: 0 | EB44: 0 | EC44: 0 | ED44: 0 | EE44: 0 | EF44: 0 | EG44: 0 | EH44: 0 | EI44: 0 | EJ44: =EJ34*$G44/100 -> 0 | EK44: 0 | EL44: 0 | EM44: 0 | EN44: 0 | EO44: 0 | EP44: 0 | EQ44: 0 | ER44: 0 | ES44: 0 | ET44: 0 | EU44: 0 | EV44: 0 | EW44: 0 | EX44: 0 | EY44: 0 | EZ44: 0 | FA44: 0 | FB44: 0 | FC44: 0 | FD44: 0 | FE44: 0 | FF44: 0 | FG44: 0 | FH44: 0 | FI44: 0 | FJ44: 0 | FK44: 0 | FL44: 0 | FM44: 0 | FN44: 0 | FO44: 0 | FP44: 0 | FQ44: 0 | FR44: 0 | FS44: 0 | FT44: 0 | FU44: 0 | FV44: 0 | FW44: 0 | FX44: 0 | FY44: 0 | FZ44: 0 | GA44: 0 | GB44: 0 | GC44: 0 | GD44: 0 | GE44: 0 | GF44: 0 | GG44: 0 | GH44: 0 | GI44: 0 | GJ44: 0 | GK44: 0 | GL44: 0 | GM44: 0 | GN44: 0 | GO44: 0 | GP44: 0 | GQ44: 0 | GR44: 0 | GS44: 0 | GT44: 0 | GU44: 0 | GV44: =GV34*$G44/100 -> 0 | GW44: 0 | GX44: 0 | GY44: 0 | GZ44: 0 | HA44: 0 | HB44: 0 | HC44: 0
B45: =Lists!$C$10 -> Oil | C45: £ | E45: ='INPT; BEIS'!D78 -> TRUE | G45: ='INPT; BEIS'!J78 -> 5.012746072 | L45: =L35*$G45/100 -> 0 | M45: 0 | N45: 0 | O45: 0 | P45: 0 | Q45: 0 | R45: 0 | S45: 0 | T45: 0 | U45: 0 | V45: 0 | W45: 0 | X45: 0 | Y45: 0 | Z45: 0 | AA45: 0 | AB45: 0 | AC45: 0 | AD45: 0 | AE45: 0 | AF45: 0 | AG45: 0 | AH45: 0 | AI45: 0 | AJ45: 0 | AK45: 0 | AL45: 0 | AM45: 0 | AN45: 0 | AO45: 0 | AP45: 0 | AQ45: 0 | AR45: 0 | AS45: 0 | AT45: 0 | AU45: 0 | AV45: 0 | AW45: 0 | AX45: 0 | AY45: 0 | AZ45: 0 | BA45: 0 | BB45: 0 | BC45: 0 | BD45: 0 | BE45: 0 | BF45: 0 | BG45: 0 | BH45: 0 | BI45: 0 | BJ45: 0 | BK45: 0 | BL45: 0 | BM45: 0 | BN45: 0 | BO45: 0 | BP45: 0 | BQ45: 0 | BR45: 0 | BS45: 0 | BT45: 0 | BU45: 0 | BV45: 0 | BW45: 0 | BX45: =BX35*$G45/100 -> 0 | BY45: 0 | BZ45: 0 | CA45: 0 | CB45: 0 | CC45: 0 | CD45: 0 | CE45: 0 | CF45: 0 | CG45: 0 | CH45: 0 | CI45: 0 | CJ45: 0 | CK45: 0 | CL45: 0 | CM45: 0 | CN45: 0 | CO45: 0 | CP45: 0 | CQ45: 0 | CR45: 0 | CS45: 0 | CT45: 0 | CU45: 0 | CV45: 0 | CW45: 0 | CX45: 0 | CY45: 0 | CZ45: 0 | DA45: 0 | DB45: 0 | DC45: 0 | DD45: 0 | DE45: 0 | DF45: 0 | DG45: 0 | DH45: 0 | DI45: 0 | DJ45: 0 | DK45: 0 | DL45: 0 | DM45: 0 | DN45: 0 | DO45: 0 | DP45: 0 | DQ45: 0 | DR45: 0 | DS45: 0 | DT45: 0 | DU45: 0 | DV45: 0 | DW45: 0 | DX45: 0 | DY45: 0 | DZ45: 0 | EA45: 0 | EB45: 0 | EC45: 0 | ED45: 0 | EE45: 0 | EF45: 0 | EG45: 0 | EH45: 0 | EI45: 0 | EJ45: =EJ35*$G45/100 -> 0 | EK45: 0 | EL45: 0 | EM45: 0 | EN45: 0 | EO45: 0 | EP45: 0 | EQ45: 0 | ER45: 0 | ES45: 0 | ET45: 0 | EU45: 0 | EV45: 0 | EW45: 0 | EX45: 0 | EY45: 0 | EZ45: 0 | FA45: 0 | FB45: 0 | FC45: 0 | FD45: 0 | FE45: 0 | FF45: 0 | FG45: 0 | FH45: 0 | FI45: 0 | FJ45: 0 | FK45: 0 | FL45: 0 | FM45: 0 | FN45: 0 | FO45: 0 | FP45: 0 | FQ45: 0 | FR45: 0 | FS45: 0 | FT45: 0 | FU45: 0 | FV45: 0 | FW45: 0 | FX45: 0 | FY45: 0 | FZ45: 0 | GA45: 0 | GB45: 0 | GC45: 0 | GD45: 0 | GE45: 0 | GF45: 0 | GG45: 0 | GH45: 0 | GI45: 0 | GJ45: 0 | GK45: 0 | GL45: 0 | GM45: 0 | GN45: 0 | GO45: 0 | GP45: 0 | GQ45: 0 | GR45: 0 | GS45: 0 | GT45: 0 | GU45: 0 | GV45: =GV35*$G45/100 -> 0 | GW45: 0 | GX45: 0 | GY45: 0 | GZ45: 0 | HA45: 0 | HB45: 0 | HC45: 0
B46: =Lists!$C$12 -> Waste Heat | C46: £ | E46: ='INPT; BEIS'!D79 -> FALSE | G46: ='INPT; BEIS'!J79 -> 0 | L46: =L36*$G46/100 -> 0 | M46: 0 | N46: 0 | O46: 0 | P46: 0 | Q46: 0 | R46: 0 | S46: 0 | T46: 0 | U46: 0 | V46: 0 | W46: 0 | X46: 0 | Y46: 0 | Z46: 0 | AA46: 0 | AB46: 0 | AC46: 0 | AD46: 0 | AE46: 0 | AF46: 0 | AG46: 0 | AH46: 0 | AI46: 0 | AJ46: 0 | AK46: 0 | AL46: 0 | AM46: 0 | AN46: 0 | AO46: 0 | AP46: 0 | AQ46: 0 | AR46: 0 | AS46: 0 | AT46: 0 | AU46: 0 | AV46: 0 | AW46: 0 | AX46: 0 | AY46: 0 | AZ46: 0 | BA46: 0 | BB46: 0 | BC46: 0 | BD46: 0 | BE46: 0 | BF46: 0 | BG46: 0 | BH46: 0 | BI46: 0 | BJ46: 0 | BK46: 0 | BL46: 0 | BM46: 0 | BN46: 0 | BO46: 0 | BP46: 0 | BQ46: 0 | BR46: 0 | BS46: 0 | BT46: 0 | BU46: 0 | BV46: 0 | BW46: 0 | BX46: =BX36*$G46/100 -> 0 | BY46: 0 | BZ46: 0 | CA46: 0 | CB46: 0 | CC46: 0 | CD46: 0 | CE46: 0 | CF46: 0 | CG46: 0 | CH46: 0 | CI46: 0 | CJ46: 0 | CK46: 0 | CL46: 0 | CM46: 0 | CN46: 0 | CO46: 0 | CP46: 0 | CQ46: 0 | CR46: 0 | CS46: 0 | CT46: 0 | CU46: 0 | CV46: 0 | CW46: 0 | CX46: 0 | CY46: 0 | CZ46: 0 | DA46: 0 | DB46: 0 | DC46: 0 | DD46: 0 | DE46: 0 | DF46: 0 | DG46: 0 | DH46: 0 | DI46: 0 | DJ46: 0 | DK46: 0 | DL46: 0 | DM46: 0 | DN46: 0 | DO46: 0 | DP46: 0 | DQ46: 0 | DR46: 0 | DS46: 0 | DT46: 0 | DU46: 0 | DV46: 0 | DW46: 0 | DX46: 0 | DY46: 0 | DZ46: 0 | EA46: 0 | EB46: 0 | EC46: 0 | ED46: 0 | EE46: 0 | EF46: 0 | EG46: 0 | EH46: 0 | EI46: 0 | EJ46: =EJ36*$G46/100 -> 0 | EK46: 0 | EL46: 0 | EM46: 0 | EN46: 0 | EO46: 0 | EP46: 0 | EQ46: 0 | ER46: 0 | ES46: 0 | ET46: 0 | EU46: 0 | EV46: 0 | EW46: 0 | EX46: 0 | EY46: 0 | EZ46: 0 | FA46: 0 | FB46: 0 | FC46: 0 | FD46: 0 | FE46: 0 | FF46: 0 | FG46: 0 | FH46: 0 | FI46: 0 | FJ46: 0 | FK46: 0 | FL46: 0 | FM46: 0 | FN46: 0 | FO46: 0 | FP46: 0 | FQ46: 0 | FR46: 0 | FS46: 0 | FT46: 0 | FU46: 0 | FV46: 0 | FW46: 0 | FX46: 0 | FY46: 0 | FZ46: 0 | GA46: 0 | GB46: 0 | GC46: 0 | GD46: 0 | GE46: 0 | GF46: 0 | GG46: 0 | GH46: 0 | GI46: 0 | GJ46: 0 | GK46: 0 | GL46: 0 | GM46: 0 | GN46: 0 | GO46: 0 | GP46: 0 | GQ46: 0 | GR46: 0 | GS46: 0 | GT46: 0 | GU46: 0 | GV46: =GV36*$G46/100 -> 0 | GW46: 0 | GX46: 0 | GY46: 0 | GZ46: 0 | HA46: 0 | HB46: 0 | HC46: 0
B48: Total fuel cost expected | C48: £ | F48: =SUMIF($L$13:$HC$13,TRUE,$L48:$HC48) -> 0 | L48: =SUM(L39:L46) -> 0 | M48: =SUM(M39:M46) -> 0 | N48: 0 | O48: 0 | P48: 0 | Q48: 0 | R48: 0 | S48: 0 | T48: 0 | U48: 0 | V48: 0 | W48: 0 | X48: 0 | Y48: 0 | Z48: 0 | AA48: 0 | AB48: 0 | AC48: 0 | AD48: 0 | AE48: 0 | AF48: 0 | AG48: 0 | AH48: 0 | AI48: 0 | AJ48: 0 | AK48: 0 | AL48: 0 | AM48: 0 | AN48: 0 | AO48: 0 | AP48: 0 | AQ48: 0 | AR48: 0 | AS48: 0 | AT48: 0 | AU48: 0 | AV48: 0 | AW48: 0 | AX48: 0 | AY48: 0 | AZ48: 0 | BA48: 0 | BB48: 0 | BC48: 0 | BD48: 0 | BE48: 0 | BF48: 0 | BG48: 0 | BH48: 0 | BI48: 0 | BJ48: 0 | BK48: 0 | BL48: 0 | BM48: 0 | BN48: 0 | BO48: 0 | BP48: 0 | BQ48: 0 | BR48: 0 | BS48: 0 | BT48: 0 | BU48: 0 | BV48: 0 | BW48: 0 | BX48: 0 | BY48: =SUM(BY39:BY46) -> 0 | BZ48: 0 | CA48: 0 | CB48: 0 | CC48: 0 | CD48: 0 | CE48: 0 | CF48: 0 | CG48: 0 | CH48: 0 | CI48: 0 | CJ48: 0 | CK48: 0 | CL48: 0 | CM48: 0 | CN48: 0 | CO48: 0 | CP48: 0 | CQ48: 0 | CR48: 0 | CS48: 0 | CT48: 0 | CU48: 0 | CV48: 0 | CW48: 0 | CX48: 0 | CY48: 0 | CZ48: 0 | DA48: 0 | DB48: 0 | DC48: 0 | DD48: 0 | DE48: 0 | DF48: 0 | DG48: 0 | DH48: 0 | DI48: 0 | DJ48: 0 | DK48: 0 | DL48: 0 | DM48: 0 | DN48: 0 | DO48: 0 | DP48: 0 | DQ48: 0 | DR48: 0 | DS48: 0 | DT48: 0 | DU48: 0 | DV48: 0 | DW48: 0 | DX48: 0 | DY48: 0 | DZ48: 0 | EA48: 0 | EB48: 0 | EC48: 0 | ED48: 0 | EE48: 0 | EF48: 0 | EG48: 0 | EH48: 0 | EI48: 0 | EJ48: 0 | EK48: =SUM(EK39:EK46) -> 0 | EL48: 0 | EM48: 0 | EN48: 0 | EO48: 0 | EP48: 0 | EQ48: 0 | ER48: 0 | ES48: 0 | ET48: 0 | EU48: 0 | EV48: 0 | EW48: 0 | EX48: 0 | EY48: 0 | EZ48: 0 | FA48: 0 | FB48: 0 | FC48: 0 | FD48: 0 | FE48: 0 | FF48: 0 | FG48: 0 | FH48: 0 | FI48: 0 | FJ48: 0 | FK48: 0 | FL48: 0 | FM48: 0 | FN48: 0 | FO48: 0 | FP48: 0 | FQ48: 0 | FR48: 0 | FS48: 0 | FT48: 0 | FU48: 0 | FV48: 0 | FW48: 0 | FX48: 0 | FY48: 0 | FZ48: 0 | GA48: 0 | GB48: 0 | GC48: 0 | GD48: 0 | GE48: 0 | GF48: 0 | GG48: 0 | GH48: 0 | GI48: 0 | GJ48: 0 | GK48: 0 | GL48: 0 | GM48: 0 | GN48: 0 | GO48: 0 | GP48: 0 | GQ48: 0 | GR48: 0 | GS48: 0 | GT48: 0 | GU48: 0 | GV48: 0 | GW48: =SUM(GW39:GW46) -> 0 | GX48: 0 | GY48: 0 | GZ48: 0 | HA48: 0 | HB48: 0 | HC48: 0
B50: User stated total fuel cost
B51: =Lists!$C$4 -> Biofuel | C51: £ | L51: =SUMIFS(sysFuelTotalCost,sysFuelType,$B51,sysFuelBuildNum,L$12) -> 0 | M51: =SUMIFS(sysFuelTotalCost,sysFuelType,$B51,sysFuelBuildNum,M$12) -> 0 | N51: =SUMIFS(sysFuelTotalCost,sysFuelType,$B51,sysFuelBuildNum,N$12) -> 0 | O51: =SUMIFS(sysFuelTotalCost,sysFuelType,$B51,sysFuelBuildNum,O$12) -> 0 | P51: =SUMIFS(sysFuelTotalCost,sysFuelType,$B51,sysFuelBuildNum,P$12) -> 0 | Q51: =SUMIFS(sysFuelTotalCost,sysFuelType,$B51,sysFuelBuildNum,Q$12) -> 0 | R51: =SUMIFS(sysFuelTotalCost,sysFuelType,$B51,sysFuelBuildNum,R$12) -> 0 | S51: =SUMIFS(sysFuelTotalCost,sysFuelType,$B51,sysFuelBuildNum,S$12) -> 0 | T51: =SUMIFS(sysFuelTotalCost,sysFuelType,$B51,sysFuelBuildNum,T$12) -> 0 | U51: =SUMIFS(sysFuelTotalCost,sysFuelType,$B51,sysFuelBuildNum,U$12) -> 0 | V51: =SUMIFS(sysFuelTotalCost,sysFuelType,$B51,sysFuelBuildNum,V$12) -> 0 | W51: =SUMIFS(sysFuelTotalCost,sysFuelType,$B51,sysFuelBuildNum,W$12) -> 0 | X51: =SUMIFS(sysFuelTotalCost,sysFuelType,$B51,sysFuelBuildNum,X$12) -> 0 | Y51: =SUMIFS(sysFuelTotalCost,sysFuelType,$B51,sysFuelBuildNum,Y$12) -> 0 | Z51: =SUMIFS(sysFuelTotalCost,sysFuelType,$B51,sysFuelBuildNum,Z$12) -> 0 | AA51: =SUMIFS(sysFuelTotalCost,sysFuelType,$B51,sysFuelBuildNum,AA$12) -> 0 | AB51: =SUMIFS(sysFuelTotalCost,sysFuelType,$B51,sysFuelBuildNum,AB$12) -> 0 | AC51: =SUMIFS(sysFuelTotalCost,sysFuelType,$B51,sysFuelBuildNum,AC$12) -> 0 | AD51: =SUMIFS(sysFuelTotalCost,sysFuelType,$B51,sysFuelBuildNum,AD$12) -> 0 | AE51: =SUMIFS(sysFuelTotalCost,sysFuelType,$B51,sysFuelBuildNum,AE$12) -> 0 | AF51: =SUMIFS(sysFuelTotalCost,sysFuelType,$B51,sysFuelBuildNum,AF$12) -> 0 | AG51: =SUMIFS(sysFuelTotalCost,sysFuelType,$B51,sysFuelBuildNum,AG$12) -> 0 | AH51: =SUMIFS(sysFuelTotalCost,sysFuelType,$B51,sysFuelBuildNum,AH$12) -> 0 | AI51: =SUMIFS(sysFuelTotalCost,sysFuelType,$B51,sysFuelBuildNum,AI$12) -> 0 | AJ51: =SUMIFS(sysFuelTotalCost,sysFuelType,$B51,sysFuelBuildNum,AJ$12) -> 0 | AK51: =SUMIFS(sysFuelTotalCost,sysFuelType,$B51,sysFuelBuildNum,AK$12) -> 0 | AL51: =SUMIFS(sysFuelTotalCost,sysFuelType,$B51,sysFuelBuildNum,AL$12) -> 0 | AM51: =SUMIFS(sysFuelTotalCost,sysFuelType,$B51,sysFuelBuildNum,AM$12) -> 0 | AN51: =SUMIFS(sysFuelTotalCost,sysFuelType,$B51,sysFuelBuildNum,AN$12) -> 0 | AO51: =SUMIFS(sysFuelTotalCost,sysFuelType,$B51,sysFuelBuildNum,AO$12) -> 0 | AP51: =SUMIFS(sysFuelTotalCost,sysFuelType,$B51,sysFuelBuildNum,AP$12) -> 0 | AQ51: =SUMIFS(sysFuelTotalCost,sysFuelType,$B51,sysFuelBuildNum,AQ$12) -> 0 | AR51: =SUMIFS(sysFuelTotalCost,sysFuelType,$B51,sysFuelBuildNum,AR$12) -> 0 | AS51: =SUMIFS(sysFuelTotalCost,sysFuelType,$B51,sysFuelBuildNum,AS$12) -> 0 | AT51: =SUMIFS(sysFuelTotalCost,sysFuelType,$B51,sysFuelBuildNum,AT$12) -> 0 | AU51: =SUMIFS(sysFuelTotalCost,sysFuelType,$B51,sysFuelBuildNum,AU$12) -> 0 | AV51: =SUMIFS(sysFuelTotalCost,sysFuelType,$B51,sysFuelBuildNum,AV$12) -> 0 | AW51: =SUMIFS(sysFuelTotalCost,sysFuelType,$B51,sysFuelBuildNum,AW$12) -> 0 | AX51: =SUMIFS(sysFuelTotalCost,sysFuelType,$B51,sysFuelBuildNum,AX$12) -> 0 | AY51: =SUMIFS(sysFuelTotalCost,sysFuelType,$B51,sysFuelBuildNum,AY$12) -> 0 | AZ51: =SUMIFS(sysFuelTotalCost,sysFuelType,$B51,sysFuelBuildNum,AZ$12) -> 0 | BA51: =SUMIFS(sysFuelTotalCost,sysFuelType,$B51,sysFuelBuildNum,BA$12) -> 0 | BB51: =SUMIFS(sysFuelTotalCost,sysFuelType,$B51,sysFuelBuildNum,BB$12) -> 0 | BC51: =SUMIFS(sysFuelTotalCost,sysFuelType,$B51,sysFuelBuildNum,BC$12) -> 0 | BD51: =SUMIFS(sysFuelTotalCost,sysFuelType,$B51,sysFuelBuildNum,BD$12) -> 0 | BE51: =SUMIFS(sysFuelTotalCost,sysFuelType,$B51,sysFuelBuildNum,BE$12) -> 0 | BF51: =SUMIFS(sysFuelTotalCost,sysFuelType,$B51,sysFuelBuildNum,BF$12) -> 0 | BG51: =SUMIFS(sysFuelTotalCost,sysFuelType,$B51,sysFuelBuildNum,BG$12) -> 0 | BH51: =SUMIFS(sysFuelTotalCost,sysFuelType,$B51,sysFuelBuildNum,BH$12) -> 0 | BI51: =SUMIFS(sysFuelTotalCost,sysFuelType,$B51,sysFuelBuildNum,BI$12) -> 0 | BJ51: =SUMIFS(sysFuelTotalCost,sysFuelType,$B51,sysFuelBuildNum,BJ$12) -> 0 | BK51: =SUMIFS(sysFuelTotalCost,sysFuelType,$B51,sysFuelBuildNum,BK$12) -> 0 | BL51: =SUMIFS(sysFuelTotalCost,sysFuelType,$B51,sysFuelBuildNum,BL$12) -> 0 | BM51: =SUMIFS(sysFuelTotalCost,sysFuelType,$B51,sysFuelBuildNum,BM$12) -> 0 | BN51: =SUMIFS(sysFuelTotalCost,sysFuelType,$B51,sysFuelBuildNum,BN$12) -> 0 | BO51: =SUMIFS(sysFuelTotalCost,sysFuelType,$B51,sysFuelBuildNum,BO$12) -> 0 | BP51: =SUMIFS(sysFuelTotalCost,sysFuelType,$B51,sysFuelBuildNum,BP$12) -> 0 | BQ51: =SUMIFS(sysFuelTotalCost,sysFuelType,$B51,sysFuelBuildNum,BQ$12) -> 0 | BR51: =SUMIFS(sysFuelTotalCost,sysFuelType,$B51,sysFuelBuildNum,BR$12) -> 0 | BS51: =SUMIFS(sysFuelTotalCost,sysFuelType,$B51,sysFuelBuildNum,BS$12) -> 0 | BT51: =SUMIFS(sysFuelTotalCost,sysFuelType,$B51,sysFuelBuildNum,BT$12) -> 0 | BU51: =SUMIFS(sysFuelTotalCost,sysFuelType,$B51,sysFuelBuildNum,BU$12) -> 0 | BV51: =SUMIFS(sysFuelTotalCost,sysFuelType,$B51,sysFuelBuildNum,BV$12) -> 0 | BW51: =SUMIFS(sysFuelTotalCost,sysFuelType,$B51,sysFuelBuildNum,BW$12) -> 0 | BX51: =SUMIFS(sysFuelTotalCost,sysFuelType,$B51,sysFuelBuildNum,BX$12) -> 0 | BY51: =SUMIFS(sysFuelTotalCost,sysFuelType,$B51,sysFuelBuildNum,BY$12) -> 0 | BZ51: =SUMIFS(sysFuelTotalCost,sysFuelType,$B51,sysFuelBuildNum,BZ$12) -> 0 | CA51: =SUMIFS(sysFuelTotalCost,sysFuelType,$B51,sysFuelBuildNum,CA$12) -> 0 | CB51: =SUMIFS(sysFuelTotalCost,sysFuelType,$B51,sysFuelBuildNum,CB$12) -> 0 | CC51: =SUMIFS(sysFuelTotalCost,sysFuelType,$B51,sysFuelBuildNum,CC$12) -> 0 | CD51: =SUMIFS(sysFuelTotalCost,sysFuelType,$B51,sysFuelBuildNum,CD$12) -> 0 | CE51: =SUMIFS(sysFuelTotalCost,sysFuelType,$B51,sysFuelBuildNum,CE$12) -> 0 | CF51: =SUMIFS(sysFuelTotalCost,sysFuelType,$B51,sysFuelBuildNum,CF$12) -> 0 | CG51: =SUMIFS(sysFuelTotalCost,sysFuelType,$B51,sysFuelBuildNum,CG$12) -> 0 | CH51: =SUMIFS(sysFuelTotalCost,sysFuelType,$B51,sysFuelBuildNum,CH$12) -> 0 | CI51: =SUMIFS(sysFuelTotalCost,sysFuelType,$B51,sysFuelBuildNum,CI$12) -> 0 | CJ51: =SUMIFS(sysFuelTotalCost,sysFuelType,$B51,sysFuelBuildNum,CJ$12) -> 0 | CK51: =SUMIFS(sysFuelTotalCost,sysFuelType,$B51,sysFuelBuildNum,CK$12) -> 0 | CL51: =SUMIFS(sysFuelTotalCost,sysFuelType,$B51,sysFuelBuildNum,CL$12) -> 0 | CM51: =SUMIFS(sysFuelTotalCost,sysFuelType,$B51,sysFuelBuildNum,CM$12) -> 0 | CN51: =SUMIFS(sysFuelTotalCost,sysFuelType,$B51,sysFuelBuildNum,CN$12) -> 0 | CO51: =SUMIFS(sysFuelTotalCost,sysFuelType,$B51,sysFuelBuildNum,CO$12) -> 0 | CP51: =SUMIFS(sysFuelTotalCost,sysFuelType,$B51,sysFuelBuildNum,CP$12) -> 0 | CQ51: =SUMIFS(sysFuelTotalCost,sysFuelType,$B51,sysFuelBuildNum,CQ$12) -> 0 | CR51: =SUMIFS(sysFuelTotalCost,sysFuelType,$B51,sysFuelBuildNum,CR$12) -> 0 | CS51: =SUMIFS(sysFuelTotalCost,sysFuelType,$B51,sysFuelBuildNum,CS$12) -> 0 | CT51: =SUMIFS(sysFuelTotalCost,sysFuelType,$B51,sysFuelBuildNum,CT$12) -> 0 | CU51: =SUMIFS(sysFuelTotalCost,sysFuelType,$B51,sysFuelBuildNum,CU$12) -> 0 | CV51: =SUMIFS(sysFuelTotalCost,sysFuelType,$B51,sysFuelBuildNum,CV$12) -> 0 | CW51: =SUMIFS(sysFuelTotalCost,sysFuelType,$B51,sysFuelBuildNum,CW$12) -> 0 | CX51: =SUMIFS(sysFuelTotalCost,sysFuelType,$B51,sysFuelBuildNum,CX$12) -> 0 | CY51: =SUMIFS(sysFuelTotalCost,sysFuelType,$B51,sysFuelBuildNum,CY$12) -> 0 | CZ51: =SUMIFS(sysFuelTotalCost,sysFuelType,$B51,sysFuelBuildNum,CZ$12) -> 0 | DA51: =SUMIFS(sysFuelTotalCost,sysFuelType,$B51,sysFuelBuildNum,DA$12) -> 0 | DB51: =SUMIFS(sysFuelTotalCost,sysFuelType,$B51,sysFuelBuildNum,DB$12) -> 0 | DC51: =SUMIFS(sysFuelTotalCost,sysFuelType,$B51,sysFuelBuildNum,DC$12) -> 0 | DD51: =SUMIFS(sysFuelTotalCost,sysFuelType,$B51,sysFuelBuildNum,DD$12) -> 0 | DE51: =SUMIFS(sysFuelTotalCost,sysFuelType,$B51,sysFuelBuildNum,DE$12) -> 0 | DF51: =SUMIFS(sysFuelTotalCost,sysFuelType,$B51,sysFuelBuildNum,DF$12) -> 0 | DG51: =SUMIFS(sysFuelTotalCost,sysFuelType,$B51,sysFuelBuildNum,DG$12) -> 0 | DH51: =SUMIFS(sysFuelTotalCost,sysFuelType,$B51,sysFuelBuildNum,DH$12) -> 0 | DI51: =SUMIFS(sysFuelTotalCost,sysFuelType,$B51,sysFuelBuildNum,DI$12) -> 0 | DJ51: =SUMIFS(sysFuelTotalCost,sysFuelType,$B51,sysFuelBuildNum,DJ$12) -> 0 | DK51: =SUMIFS(sysFuelTotalCost,sysFuelType,$B51,sysFuelBuildNum,DK$12) -> 0 | DL51: =SUMIFS(sysFuelTotalCost,sysFuelType,$B51,sysFuelBuildNum,DL$12) -> 0 | DM51: =SUMIFS(sysFuelTotalCost,sysFuelType,$B51,sysFuelBuildNum,DM$12) -> 0 | DN51: =SUMIFS(sysFuelTotalCost,sysFuelType,$B51,sysFuelBuildNum,DN$12) -> 0 | DO51: =SUMIFS(sysFuelTotalCost,sysFuelType,$B51,sysFuelBuildNum,DO$12) -> 0 | DP51: =SUMIFS(sysFuelTotalCost,sysFuelType,$B51,sysFuelBuildNum,DP$12) -> 0 | DQ51: =SUMIFS(sysFuelTotalCost,sysFuelType,$B51,sysFuelBuildNum,DQ$12) -> 0 | DR51: =SUMIFS(sysFuelTotalCost,sysFuelType,$B51,sysFuelBuildNum,DR$12) -> 0 | DS51: =SUMIFS(sysFuelTotalCost,sysFuelType,$B51,sysFuelBuildNum,DS$12) -> 0 | DT51: =SUMIFS(sysFuelTotalCost,sysFuelType,$B51,sysFuelBuildNum,DT$12) -> 0 | DU51: =SUMIFS(sysFuelTotalCost,sysFuelType,$B51,sysFuelBuildNum,DU$12) -> 0 | DV51: =SUMIFS(sysFuelTotalCost,sysFuelType,$B51,sysFuelBuildNum,DV$12) -> 0 | DW51: =SUMIFS(sysFuelTotalCost,sysFuelType,$B51,sysFuelBuildNum,DW$12) -> 0 | DX51: =SUMIFS(sysFuelTotalCost,sysFuelType,$B51,sysFuelBuildNum,DX$12) -> 0 | DY51: =SUMIFS(sysFuelTotalCost,sysFuelType,$B51,sysFuelBuildNum,DY$12) -> 0 | DZ51: =SUMIFS(sysFuelTotalCost,sysFuelType,$B51,sysFuelBuildNum,DZ$12) -> 0 | EA51: =SUMIFS(sysFuelTotalCost,sysFuelType,$B51,sysFuelBuildNum,EA$12) -> 0 | EB51: =SUMIFS(sysFuelTotalCost,sysFuelType,$B51,sysFuelBuildNum,EB$12) -> 0 | EC51: =SUMIFS(sysFuelTotalCost,sysFuelType,$B51,sysFuelBuildNum,EC$12) -> 0 | ED51: =SUMIFS(sysFuelTotalCost,sysFuelType,$B51,sysFuelBuildNum,ED$12) -> 0 | EE51: =SUMIFS(sysFuelTotalCost,sysFuelType,$B51,sysFuelBuildNum,EE$12) -> 0 | EF51: =SUMIFS(sysFuelTotalCost,sysFuelType,$B51,sysFuelBuildNum,EF$12) -> 0 | EG51: =SUMIFS(sysFuelTotalCost,sysFuelType,$B51,sysFuelBuildNum,EG$12) -> 0 | EH51: =SUMIFS(sysFuelTotalCost,sysFuelType,$B51,sysFuelBuildNum,EH$12) -> 0 | EI51: =SUMIFS(sysFuelTotalCost,sysFuelType,$B51,sysFuelBuildNum,EI$12) -> 0 | EJ51: =SUMIFS(sysFuelTotalCost,sysFuelType,$B51,sysFuelBuildNum,EJ$12) -> 0 | EK51: =SUMIFS(sysFuelTotalCost,sysFuelType,$B51,sysFuelBuildNum,EK$12) -> 0 | EL51: =SUMIFS(sysFuelTotalCost,sysFuelType,$B51,sysFuelBuildNum,EL$12) -> 0 | EM51: =SUMIFS(sysFuelTotalCost,sysFuelType,$B51,sysFuelBuildNum,EM$12) -> 0 | EN51: =SUMIFS(sysFuelTotalCost,sysFuelType,$B51,sysFuelBuildNum,EN$12) -> 0 | EO51: =SUMIFS(sysFuelTotalCost,sysFuelType,$B51,sysFuelBuildNum,EO$12) -> 0 | EP51: =SUMIFS(sysFuelTotalCost,sysFuelType,$B51,sysFuelBuildNum,EP$12) -> 0 | EQ51: =SUMIFS(sysFuelTotalCost,sysFuelType,$B51,sysFuelBuildNum,EQ$12) -> 0 | ER51: =SUMIFS(sysFuelTotalCost,sysFuelType,$B51,sysFuelBuildNum,ER$12) -> 0 | ES51: =SUMIFS(sysFuelTotalCost,sysFuelType,$B51,sysFuelBuildNum,ES$12) -> 0 | ET51: =SUMIFS(sysFuelTotalCost,sysFuelType,$B51,sysFuelBuildNum,ET$12) -> 0 | EU51: =SUMIFS(sysFuelTotalCost,sysFuelType,$B51,sysFuelBuildNum,EU$12) -> 0 | EV51: =SUMIFS(sysFuelTotalCost,sysFuelType,$B51,sysFuelBuildNum,EV$12) -> 0 | EW51: =SUMIFS(sysFuelTotalCost,sysFuelType,$B51,sysFuelBuildNum,EW$12) -> 0 | EX51: =SUMIFS(sysFuelTotalCost,sysFuelType,$B51,sysFuelBuildNum,EX$12) -> 0 | EY51: =SUMIFS(sysFuelTotalCost,sysFuelType,$B51,sysFuelBuildNum,EY$12) -> 0 | EZ51: =SUMIFS(sysFuelTotalCost,sysFuelType,$B51,sysFuelBuildNum,EZ$12) -> 0 | FA51: =SUMIFS(sysFuelTotalCost,sysFuelType,$B51,sysFuelBuildNum,FA$12) -> 0 | FB51: =SUMIFS(sysFuelTotalCost,sysFuelType,$B51,sysFuelBuildNum,FB$12) -> 0 | FC51: =SUMIFS(sysFuelTotalCost,sysFuelType,$B51,sysFuelBuildNum,FC$12) -> 0 | FD51: =SUMIFS(sysFuelTotalCost,sysFuelType,$B51,sysFuelBuildNum,FD$12) -> 0 | FE51: =SUMIFS(sysFuelTotalCost,sysFuelType,$B51,sysFuelBuildNum,FE$12) -> 0 | FF51: =SUMIFS(sysFuelTotalCost,sysFuelType,$B51,sysFuelBuildNum,FF$12) -> 0 | FG51: =SUMIFS(sysFuelTotalCost,sysFuelType,$B51,sysFuelBuildNum,FG$12) -> 0 | FH51: =SUMIFS(sysFuelTotalCost,sysFuelType,$B51,sysFuelBuildNum,FH$12) -> 0 | FI51: =SUMIFS(sysFuelTotalCost,sysFuelType,$B51,sysFuelBuildNum,FI$12) -> 0 | FJ51: =SUMIFS(sysFuelTotalCost,sysFuelType,$B51,sysFuelBuildNum,FJ$12) -> 0 | FK51: =SUMIFS(sysFuelTotalCost,sysFuelType,$B51,sysFuelBuildNum,FK$12) -> 0 | FL51: =SUMIFS(sysFuelTotalCost,sysFuelType,$B51,sysFuelBuildNum,FL$12) -> 0 | FM51: =SUMIFS(sysFuelTotalCost,sysFuelType,$B51,sysFuelBuildNum,FM$12) -> 0 | FN51: =SUMIFS(sysFuelTotalCost,sysFuelType,$B51,sysFuelBuildNum,FN$12) -> 0 | FO51: =SUMIFS(sysFuelTotalCost,sysFuelType,$B51,sysFuelBuildNum,FO$12) -> 0 | FP51: =SUMIFS(sysFuelTotalCost,sysFuelType,$B51,sysFuelBuildNum,FP$12) -> 0 | FQ51: =SUMIFS(sysFuelTotalCost,sysFuelType,$B51,sysFuelBuildNum,FQ$12) -> 0 | FR51: =SUMIFS(sysFuelTotalCost,sysFuelType,$B51,sysFuelBuildNum,FR$12) -> 0 | FS51: =SUMIFS(sysFuelTotalCost,sysFuelType,$B51,sysFuelBuildNum,FS$12) -> 0 | FT51: =SUMIFS(sysFuelTotalCost,sysFuelType,$B51,sysFuelBuildNum,FT$12) -> 0 | FU51: =SUMIFS(sysFuelTotalCost,sysFuelType,$B51,sysFuelBuildNum,FU$12) -> 0 | FV51: =SUMIFS(sysFuelTotalCost,sysFuelType,$B51,sysFuelBuildNum,FV$12) -> 0 | FW51: =SUMIFS(sysFuelTotalCost,sysFuelType,$B51,sysFuelBuildNum,FW$12) -> 0 | FX51: =SUMIFS(sysFuelTotalCost,sysFuelType,$B51,sysFuelBuildNum,FX$12) -> 0 | FY51: =SUMIFS(sysFuelTotalCost,sysFuelType,$B51,sysFuelBuildNum,FY$12) -> 0 | FZ51: =SUMIFS(sysFuelTotalCost,sysFuelType,$B51,sysFuelBuildNum,FZ$12) -> 0 | GA51: =SUMIFS(sysFuelTotalCost,sysFuelType,$B51,sysFuelBuildNum,GA$12) -> 0 | GB51: =SUMIFS(sysFuelTotalCost,sysFuelType,$B51,sysFuelBuildNum,GB$12) -> 0 | GC51: =SUMIFS(sysFuelTotalCost,sysFuelType,$B51,sysFuelBuildNum,GC$12) -> 0 | GD51: =SUMIFS(sysFuelTotalCost,sysFuelType,$B51,sysFuelBuildNum,GD$12) -> 0 | GE51: =SUMIFS(sysFuelTotalCost,sysFuelType,$B51,sysFuelBuildNum,GE$12) -> 0 | GF51: =SUMIFS(sysFuelTotalCost,sysFuelType,$B51,sysFuelBuildNum,GF$12) -> 0 | GG51: =SUMIFS(sysFuelTotalCost,sysFuelType,$B51,sysFuelBuildNum,GG$12) -> 0 | GH51: =SUMIFS(sysFuelTotalCost,sysFuelType,$B51,sysFuelBuildNum,GH$12) -> 0 | GI51: =SUMIFS(sysFuelTotalCost,sysFuelType,$B51,sysFuelBuildNum,GI$12) -> 0 | GJ51: =SUMIFS(sysFuelTotalCost,sysFuelType,$B51,sysFuelBuildNum,GJ$12) -> 0 | GK51: =SUMIFS(sysFuelTotalCost,sysFuelType,$B51,sysFuelBuildNum,GK$12) -> 0 | GL51: =SUMIFS(sysFuelTotalCost,sysFuelType,$B51,sysFuelBuildNum,GL$12) -> 0 | GM51: =SUMIFS(sysFuelTotalCost,sysFuelType,$B51,sysFuelBuildNum,GM$12) -> 0 | GN51: =SUMIFS(sysFuelTotalCost,sysFuelType,$B51,sysFuelBuildNum,GN$12) -> 0 | GO51: =SUMIFS(sysFuelTotalCost,sysFuelType,$B51,sysFuelBuildNum,GO$12) -> 0 | GP51: =SUMIFS(sysFuelTotalCost,sysFuelType,$B51,sysFuelBuildNum,GP$12) -> 0 | GQ51: =SUMIFS(sysFuelTotalCost,sysFuelType,$B51,sysFuelBuildNum,GQ$12) -> 0 | GR51: =SUMIFS(sysFuelTotalCost,sysFuelType,$B51,sysFuelBuildNum,GR$12) -> 0 | GS51: =SUMIFS(sysFuelTotalCost,sysFuelType,$B51,sysFuelBuildNum,GS$12) -> 0 | GT51: =SUMIFS(sysFuelTotalCost,sysFuelType,$B51,sysFuelBuildNum,GT$12) -> 0 | GU51: =SUMIFS(sysFuelTotalCost,sysFuelType,$B51,sysFuelBuildNum,GU$12) -> 0 | GV51: =SUMIFS(sysFuelTotalCost,sysFuelType,$B51,sysFuelBuildNum,GV$12) -> 0 | GW51: =SUMIFS(sysFuelTotalCost,sysFuelType,$B51,sysFuelBuildNum,GW$12) -> 0 | GX51: =SUMIFS(sysFuelTotalCost,sysFuelType,$B51,sysFuelBuildNum,GX$12) -> 0 | GY51: =SUMIFS(sysFuelTotalCost,sysFuelType,$B51,sysFuelBuildNum,GY$12) -> 0 | GZ51: =SUMIFS(sysFuelTotalCost,sysFuelType,$B51,sysFuelBuildNum,GZ$12) -> 0 | HA51: =SUMIFS(sysFuelTotalCost,sysFuelType,$B51,sysFuelBuildNum,HA$12) -> 0 | HB51: =SUMIFS(sysFuelTotalCost,sysFuelType,$B51,sysFuelBuildNum,HB$12) -> 0 | HC51: =SUMIFS(sysFuelTotalCost,sysFuelType,$B51,sysFuelBuildNum,HC$12) -> 0
B52: =Lists!$C$5 -> Biomass | C52: £ | L52: =SUMIFS(sysFuelTotalCost,sysFuelType,$B52,sysFuelBuildNum,L$12) -> 0 | M52: =SUMIFS(sysFuelTotalCost,sysFuelType,$B52,sysFuelBuildNum,M$12) -> 0 | N52: =SUMIFS(sysFuelTotalCost,sysFuelType,$B52,sysFuelBuildNum,N$12) -> 0 | O52: =SUMIFS(sysFuelTotalCost,sysFuelType,$B52,sysFuelBuildNum,O$12) -> 0 | P52: =SUMIFS(sysFuelTotalCost,sysFuelType,$B52,sysFuelBuildNum,P$12) -> 0 | Q52: =SUMIFS(sysFuelTotalCost,sysFuelType,$B52,sysFuelBuildNum,Q$12) -> 0 | R52: =SUMIFS(sysFuelTotalCost,sysFuelType,$B52,sysFuelBuildNum,R$12) -> 0 | S52: =SUMIFS(sysFuelTotalCost,sysFuelType,$B52,sysFuelBuildNum,S$12) -> 0 | T52: =SUMIFS(sysFuelTotalCost,sysFuelType,$B52,sysFuelBuildNum,T$12) -> 0 | U52: =SUMIFS(sysFuelTotalCost,sysFuelType,$B52,sysFuelBuildNum,U$12) -> 0 | V52: =SUMIFS(sysFuelTotalCost,sysFuelType,$B52,sysFuelBuildNum,V$12) -> 0 | W52: =SUMIFS(sysFuelTotalCost,sysFuelType,$B52,sysFuelBuildNum,W$12) -> 0 | X52: =SUMIFS(sysFuelTotalCost,sysFuelType,$B52,sysFuelBuildNum,X$12) -> 0 | Y52: =SUMIFS(sysFuelTotalCost,sysFuelType,$B52,sysFuelBuildNum,Y$12) -> 0 | Z52: =SUMIFS(sysFuelTotalCost,sysFuelType,$B52,sysFuelBuildNum,Z$12) -> 0 | AA52: =SUMIFS(sysFuelTotalCost,sysFuelType,$B52,sysFuelBuildNum,AA$12) -> 0 | AB52: =SUMIFS(sysFuelTotalCost,sysFuelType,$B52,sysFuelBuildNum,AB$12) -> 0 | AC52: =SUMIFS(sysFuelTotalCost,sysFuelType,$B52,sysFuelBuildNum,AC$12) -> 0 | AD52: =SUMIFS(sysFuelTotalCost,sysFuelType,$B52,sysFuelBuildNum,AD$12) -> 0 | AE52: =SUMIFS(sysFuelTotalCost,sysFuelType,$B52,sysFuelBuildNum,AE$12) -> 0 | AF52: =SUMIFS(sysFuelTotalCost,sysFuelType,$B52,sysFuelBuildNum,AF$12) -> 0 | AG52: =SUMIFS(sysFuelTotalCost,sysFuelType,$B52,sysFuelBuildNum,AG$12) -> 0 | AH52: =SUMIFS(sysFuelTotalCost,sysFuelType,$B52,sysFuelBuildNum,AH$12) -> 0 | AI52: =SUMIFS(sysFuelTotalCost,sysFuelType,$B52,sysFuelBuildNum,AI$12) -> 0 | AJ52: =SUMIFS(sysFuelTotalCost,sysFuelType,$B52,sysFuelBuildNum,AJ$12) -> 0 | AK52: =SUMIFS(sysFuelTotalCost,sysFuelType,$B52,sysFuelBuildNum,AK$12) -> 0 | AL52: =SUMIFS(sysFuelTotalCost,sysFuelType,$B52,sysFuelBuildNum,AL$12) -> 0 | AM52: =SUMIFS(sysFuelTotalCost,sysFuelType,$B52,sysFuelBuildNum,AM$12) -> 0 | AN52: =SUMIFS(sysFuelTotalCost,sysFuelType,$B52,sysFuelBuildNum,AN$12) -> 0 | AO52: =SUMIFS(sysFuelTotalCost,sysFuelType,$B52,sysFuelBuildNum,AO$12) -> 0 | AP52: =SUMIFS(sysFuelTotalCost,sysFuelType,$B52,sysFuelBuildNum,AP$12) -> 0 | AQ52: =SUMIFS(sysFuelTotalCost,sysFuelType,$B52,sysFuelBuildNum,AQ$12) -> 0 | AR52: =SUMIFS(sysFuelTotalCost,sysFuelType,$B52,sysFuelBuildNum,AR$12) -> 0 | AS52: =SUMIFS(sysFuelTotalCost,sysFuelType,$B52,sysFuelBuildNum,AS$12) -> 0 | AT52: =SUMIFS(sysFuelTotalCost,sysFuelType,$B52,sysFuelBuildNum,AT$12) -> 0 | AU52: =SUMIFS(sysFuelTotalCost,sysFuelType,$B52,sysFuelBuildNum,AU$12) -> 0 | AV52: =SUMIFS(sysFuelTotalCost,sysFuelType,$B52,sysFuelBuildNum,AV$12) -> 0 | AW52: =SUMIFS(sysFuelTotalCost,sysFuelType,$B52,sysFuelBuildNum,AW$12) -> 0 | AX52: =SUMIFS(sysFuelTotalCost,sysFuelType,$B52,sysFuelBuildNum,AX$12) -> 0 | AY52: =SUMIFS(sysFuelTotalCost,sysFuelType,$B52,sysFuelBuildNum,AY$12) -> 0 | AZ52: =SUMIFS(sysFuelTotalCost,sysFuelType,$B52,sysFuelBuildNum,AZ$12) -> 0 | BA52: =SUMIFS(sysFuelTotalCost,sysFuelType,$B52,sysFuelBuildNum,BA$12) -> 0 | BB52: =SUMIFS(sysFuelTotalCost,sysFuelType,$B52,sysFuelBuildNum,BB$12) -> 0 | BC52: =SUMIFS(sysFuelTotalCost,sysFuelType,$B52,sysFuelBuildNum,BC$12) -> 0 | BD52: =SUMIFS(sysFuelTotalCost,sysFuelType,$B52,sysFuelBuildNum,BD$12) -> 0 | BE52: =SUMIFS(sysFuelTotalCost,sysFuelType,$B52,sysFuelBuildNum,BE$12) -> 0 | BF52: =SUMIFS(sysFuelTotalCost,sysFuelType,$B52,sysFuelBuildNum,BF$12) -> 0 | BG52: =SUMIFS(sysFuelTotalCost,sysFuelType,$B52,sysFuelBuildNum,BG$12) -> 0 | BH52: =SUMIFS(sysFuelTotalCost,sysFuelType,$B52,sysFuelBuildNum,BH$12) -> 0 | BI52: =SUMIFS(sysFuelTotalCost,sysFuelType,$B52,sysFuelBuildNum,BI$12) -> 0 | BJ52: =SUMIFS(sysFuelTotalCost,sysFuelType,$B52,sysFuelBuildNum,BJ$12) -> 0 | BK52: =SUMIFS(sysFuelTotalCost,sysFuelType,$B52,sysFuelBuildNum,BK$12) -> 0 | BL52: =SUMIFS(sysFuelTotalCost,sysFuelType,$B52,sysFuelBuildNum,BL$12) -> 0 | BM52: =SUMIFS(sysFuelTotalCost,sysFuelType,$B52,sysFuelBuildNum,BM$12) -> 0 | BN52: =SUMIFS(sysFuelTotalCost,sysFuelType,$B52,sysFuelBuildNum,BN$12) -> 0 | BO52: =SUMIFS(sysFuelTotalCost,sysFuelType,$B52,sysFuelBuildNum,BO$12) -> 0 | BP52: =SUMIFS(sysFuelTotalCost,sysFuelType,$B52,sysFuelBuildNum,BP$12) -> 0 | BQ52: =SUMIFS(sysFuelTotalCost,sysFuelType,$B52,sysFuelBuildNum,BQ$12) -> 0 | BR52: =SUMIFS(sysFuelTotalCost,sysFuelType,$B52,sysFuelBuildNum,BR$12) -> 0 | BS52: =SUMIFS(sysFuelTotalCost,sysFuelType,$B52,sysFuelBuildNum,BS$12) -> 0 | BT52: =SUMIFS(sysFuelTotalCost,sysFuelType,$B52,sysFuelBuildNum,BT$12) -> 0 | BU52: =SUMIFS(sysFuelTotalCost,sysFuelType,$B52,sysFuelBuildNum,BU$12) -> 0 | BV52: =SUMIFS(sysFuelTotalCost,sysFuelType,$B52,sysFuelBuildNum,BV$12) -> 0 | BW52: =SUMIFS(sysFuelTotalCost,sysFuelType,$B52,sysFuelBuildNum,BW$12) -> 0 | BX52: =SUMIFS(sysFuelTotalCost,sysFuelType,$B52,sysFuelBuildNum,BX$12) -> 0 | BY52: =SUMIFS(sysFuelTotalCost,sysFuelType,$B52,sysFuelBuildNum,BY$12) -> 0 | BZ52: =SUMIFS(sysFuelTotalCost,sysFuelType,$B52,sysFuelBuildNum,BZ$12) -> 0 | CA52: =SUMIFS(sysFuelTotalCost,sysFuelType,$B52,sysFuelBuildNum,CA$12) -> 0 | CB52: =SUMIFS(sysFuelTotalCost,sysFuelType,$B52,sysFuelBuildNum,CB$12) -> 0 | CC52: =SUMIFS(sysFuelTotalCost,sysFuelType,$B52,sysFuelBuildNum,CC$12) -> 0 | CD52: =SUMIFS(sysFuelTotalCost,sysFuelType,$B52,sysFuelBuildNum,CD$12) -> 0 | CE52: =SUMIFS(sysFuelTotalCost,sysFuelType,$B52,sysFuelBuildNum,CE$12) -> 0 | CF52: =SUMIFS(sysFuelTotalCost,sysFuelType,$B52,sysFuelBuildNum,CF$12) -> 0 | CG52: =SUMIFS(sysFuelTotalCost,sysFuelType,$B52,sysFuelBuildNum,CG$12) -> 0 | CH52: =SUMIFS(sysFuelTotalCost,sysFuelType,$B52,sysFuelBuildNum,CH$12) -> 0 | CI52: =SUMIFS(sysFuelTotalCost,sysFuelType,$B52,sysFuelBuildNum,CI$12) -> 0 | CJ52: =SUMIFS(sysFuelTotalCost,sysFuelType,$B52,sysFuelBuildNum,CJ$12) -> 0 | CK52: =SUMIFS(sysFuelTotalCost,sysFuelType,$B52,sysFuelBuildNum,CK$12) -> 0 | CL52: =SUMIFS(sysFuelTotalCost,sysFuelType,$B52,sysFuelBuildNum,CL$12) -> 0 | CM52: =SUMIFS(sysFuelTotalCost,sysFuelType,$B52,sysFuelBuildNum,CM$12) -> 0 | CN52: =SUMIFS(sysFuelTotalCost,sysFuelType,$B52,sysFuelBuildNum,CN$12) -> 0 | CO52: =SUMIFS(sysFuelTotalCost,sysFuelType,$B52,sysFuelBuildNum,CO$12) -> 0 | CP52: =SUMIFS(sysFuelTotalCost,sysFuelType,$B52,sysFuelBuildNum,CP$12) -> 0 | CQ52: =SUMIFS(sysFuelTotalCost,sysFuelType,$B52,sysFuelBuildNum,CQ$12) -> 0 | CR52: =SUMIFS(sysFuelTotalCost,sysFuelType,$B52,sysFuelBuildNum,CR$12) -> 0 | CS52: =SUMIFS(sysFuelTotalCost,sysFuelType,$B52,sysFuelBuildNum,CS$12) -> 0 | CT52: =SUMIFS(sysFuelTotalCost,sysFuelType,$B52,sysFuelBuildNum,CT$12) -> 0 | CU52: =SUMIFS(sysFuelTotalCost,sysFuelType,$B52,sysFuelBuildNum,CU$12) -> 0 | CV52: =SUMIFS(sysFuelTotalCost,sysFuelType,$B52,sysFuelBuildNum,CV$12) -> 0 | CW52: =SUMIFS(sysFuelTotalCost,sysFuelType,$B52,sysFuelBuildNum,CW$12) -> 0 | CX52: =SUMIFS(sysFuelTotalCost,sysFuelType,$B52,sysFuelBuildNum,CX$12) -> 0 | CY52: =SUMIFS(sysFuelTotalCost,sysFuelType,$B52,sysFuelBuildNum,CY$12) -> 0 | CZ52: =SUMIFS(sysFuelTotalCost,sysFuelType,$B52,sysFuelBuildNum,CZ$12) -> 0 | DA52: =SUMIFS(sysFuelTotalCost,sysFuelType,$B52,sysFuelBuildNum,DA$12) -> 0 | DB52: =SUMIFS(sysFuelTotalCost,sysFuelType,$B52,sysFuelBuildNum,DB$12) -> 0 | DC52: =SUMIFS(sysFuelTotalCost,sysFuelType,$B52,sysFuelBuildNum,DC$12) -> 0 | DD52: =SUMIFS(sysFuelTotalCost,sysFuelType,$B52,sysFuelBuildNum,DD$12) -> 0 | DE52: =SUMIFS(sysFuelTotalCost,sysFuelType,$B52,sysFuelBuildNum,DE$12) -> 0 | DF52: =SUMIFS(sysFuelTotalCost,sysFuelType,$B52,sysFuelBuildNum,DF$12) -> 0 | DG52: =SUMIFS(sysFuelTotalCost,sysFuelType,$B52,sysFuelBuildNum,DG$12) -> 0 | DH52: =SUMIFS(sysFuelTotalCost,sysFuelType,$B52,sysFuelBuildNum,DH$12) -> 0 | DI52: =SUMIFS(sysFuelTotalCost,sysFuelType,$B52,sysFuelBuildNum,DI$12) -> 0 | DJ52: =SUMIFS(sysFuelTotalCost,sysFuelType,$B52,sysFuelBuildNum,DJ$12) -> 0 | DK52: =SUMIFS(sysFuelTotalCost,sysFuelType,$B52,sysFuelBuildNum,DK$12) -> 0 | DL52: =SUMIFS(sysFuelTotalCost,sysFuelType,$B52,sysFuelBuildNum,DL$12) -> 0 | DM52: =SUMIFS(sysFuelTotalCost,sysFuelType,$B52,sysFuelBuildNum,DM$12) -> 0 | DN52: =SUMIFS(sysFuelTotalCost,sysFuelType,$B52,sysFuelBuildNum,DN$12) -> 0 | DO52: =SUMIFS(sysFuelTotalCost,sysFuelType,$B52,sysFuelBuildNum,DO$12) -> 0 | DP52: =SUMIFS(sysFuelTotalCost,sysFuelType,$B52,sysFuelBuildNum,DP$12) -> 0 | DQ52: =SUMIFS(sysFuelTotalCost,sysFuelType,$B52,sysFuelBuildNum,DQ$12) -> 0 | DR52: =SUMIFS(sysFuelTotalCost,sysFuelType,$B52,sysFuelBuildNum,DR$12) -> 0 | DS52: =SUMIFS(sysFuelTotalCost,sysFuelType,$B52,sysFuelBuildNum,DS$12) -> 0 | DT52: =SUMIFS(sysFuelTotalCost,sysFuelType,$B52,sysFuelBuildNum,DT$12) -> 0 | DU52: =SUMIFS(sysFuelTotalCost,sysFuelType,$B52,sysFuelBuildNum,DU$12) -> 0 | DV52: =SUMIFS(sysFuelTotalCost,sysFuelType,$B52,sysFuelBuildNum,DV$12) -> 0 | DW52: =SUMIFS(sysFuelTotalCost,sysFuelType,$B52,sysFuelBuildNum,DW$12) -> 0 | DX52: =SUMIFS(sysFuelTotalCost,sysFuelType,$B52,sysFuelBuildNum,DX$12) -> 0 | DY52: =SUMIFS(sysFuelTotalCost,sysFuelType,$B52,sysFuelBuildNum,DY$12) -> 0 | DZ52: =SUMIFS(sysFuelTotalCost,sysFuelType,$B52,sysFuelBuildNum,DZ$12) -> 0 | EA52: =SUMIFS(sysFuelTotalCost,sysFuelType,$B52,sysFuelBuildNum,EA$12) -> 0 | EB52: =SUMIFS(sysFuelTotalCost,sysFuelType,$B52,sysFuelBuildNum,EB$12) -> 0 | EC52: =SUMIFS(sysFuelTotalCost,sysFuelType,$B52,sysFuelBuildNum,EC$12) -> 0 | ED52: =SUMIFS(sysFuelTotalCost,sysFuelType,$B52,sysFuelBuildNum,ED$12) -> 0 | EE52: =SUMIFS(sysFuelTotalCost,sysFuelType,$B52,sysFuelBuildNum,EE$12) -> 0 | EF52: =SUMIFS(sysFuelTotalCost,sysFuelType,$B52,sysFuelBuildNum,EF$12) -> 0 | EG52: =SUMIFS(sysFuelTotalCost,sysFuelType,$B52,sysFuelBuildNum,EG$12) -> 0 | EH52: =SUMIFS(sysFuelTotalCost,sysFuelType,$B52,sysFuelBuildNum,EH$12) -> 0 | EI52: =SUMIFS(sysFuelTotalCost,sysFuelType,$B52,sysFuelBuildNum,EI$12) -> 0 | EJ52: =SUMIFS(sysFuelTotalCost,sysFuelType,$B52,sysFuelBuildNum,EJ$12) -> 0 | EK52: =SUMIFS(sysFuelTotalCost,sysFuelType,$B52,sysFuelBuildNum,EK$12) -> 0 | EL52: =SUMIFS(sysFuelTotalCost,sysFuelType,$B52,sysFuelBuildNum,EL$12) -> 0 | EM52: =SUMIFS(sysFuelTotalCost,sysFuelType,$B52,sysFuelBuildNum,EM$12) -> 0 | EN52: =SUMIFS(sysFuelTotalCost,sysFuelType,$B52,sysFuelBuildNum,EN$12) -> 0 | EO52: =SUMIFS(sysFuelTotalCost,sysFuelType,$B52,sysFuelBuildNum,EO$12) -> 0 | EP52: =SUMIFS(sysFuelTotalCost,sysFuelType,$B52,sysFuelBuildNum,EP$12) -> 0 | EQ52: =SUMIFS(sysFuelTotalCost,sysFuelType,$B52,sysFuelBuildNum,EQ$12) -> 0 | ER52: =SUMIFS(sysFuelTotalCost,sysFuelType,$B52,sysFuelBuildNum,ER$12) -> 0 | ES52: =SUMIFS(sysFuelTotalCost,sysFuelType,$B52,sysFuelBuildNum,ES$12) -> 0 | ET52: =SUMIFS(sysFuelTotalCost,sysFuelType,$B52,sysFuelBuildNum,ET$12) -> 0 | EU52: =SUMIFS(sysFuelTotalCost,sysFuelType,$B52,sysFuelBuildNum,EU$12) -> 0 | EV52: =SUMIFS(sysFuelTotalCost,sysFuelType,$B52,sysFuelBuildNum,EV$12) -> 0 | EW52: =SUMIFS(sysFuelTotalCost,sysFuelType,$B52,sysFuelBuildNum,EW$12) -> 0 | EX52: =SUMIFS(sysFuelTotalCost,sysFuelType,$B52,sysFuelBuildNum,EX$12) -> 0 | EY52: =SUMIFS(sysFuelTotalCost,sysFuelType,$B52,sysFuelBuildNum,EY$12) -> 0 | EZ52: =SUMIFS(sysFuelTotalCost,sysFuelType,$B52,sysFuelBuildNum,EZ$12) -> 0 | FA52: =SUMIFS(sysFuelTotalCost,sysFuelType,$B52,sysFuelBuildNum,FA$12) -> 0 | FB52: =SUMIFS(sysFuelTotalCost,sysFuelType,$B52,sysFuelBuildNum,FB$12) -> 0 | FC52: =SUMIFS(sysFuelTotalCost,sysFuelType,$B52,sysFuelBuildNum,FC$12) -> 0 | FD52: =SUMIFS(sysFuelTotalCost,sysFuelType,$B52,sysFuelBuildNum,FD$12) -> 0 | FE52: =SUMIFS(sysFuelTotalCost,sysFuelType,$B52,sysFuelBuildNum,FE$12) -> 0 | FF52: =SUMIFS(sysFuelTotalCost,sysFuelType,$B52,sysFuelBuildNum,FF$12) -> 0 | FG52: =SUMIFS(sysFuelTotalCost,sysFuelType,$B52,sysFuelBuildNum,FG$12) -> 0 | FH52: =SUMIFS(sysFuelTotalCost,sysFuelType,$B52,sysFuelBuildNum,FH$12) -> 0 | FI52: =SUMIFS(sysFuelTotalCost,sysFuelType,$B52,sysFuelBuildNum,FI$12) -> 0 | FJ52: =SUMIFS(sysFuelTotalCost,sysFuelType,$B52,sysFuelBuildNum,FJ$12) -> 0 | FK52: =SUMIFS(sysFuelTotalCost,sysFuelType,$B52,sysFuelBuildNum,FK$12) -> 0 | FL52: =SUMIFS(sysFuelTotalCost,sysFuelType,$B52,sysFuelBuildNum,FL$12) -> 0 | FM52: =SUMIFS(sysFuelTotalCost,sysFuelType,$B52,sysFuelBuildNum,FM$12) -> 0 | FN52: =SUMIFS(sysFuelTotalCost,sysFuelType,$B52,sysFuelBuildNum,FN$12) -> 0 | FO52: =SUMIFS(sysFuelTotalCost,sysFuelType,$B52,sysFuelBuildNum,FO$12) -> 0 | FP52: =SUMIFS(sysFuelTotalCost,sysFuelType,$B52,sysFuelBuildNum,FP$12) -> 0 | FQ52: =SUMIFS(sysFuelTotalCost,sysFuelType,$B52,sysFuelBuildNum,FQ$12) -> 0 | FR52: =SUMIFS(sysFuelTotalCost,sysFuelType,$B52,sysFuelBuildNum,FR$12) -> 0 | FS52: =SUMIFS(sysFuelTotalCost,sysFuelType,$B52,sysFuelBuildNum,FS$12) -> 0 | FT52: =SUMIFS(sysFuelTotalCost,sysFuelType,$B52,sysFuelBuildNum,FT$12) -> 0 | FU52: =SUMIFS(sysFuelTotalCost,sysFuelType,$B52,sysFuelBuildNum,FU$12) -> 0 | FV52: =SUMIFS(sysFuelTotalCost,sysFuelType,$B52,sysFuelBuildNum,FV$12) -> 0 | FW52: =SUMIFS(sysFuelTotalCost,sysFuelType,$B52,sysFuelBuildNum,FW$12) -> 0 | FX52: =SUMIFS(sysFuelTotalCost,sysFuelType,$B52,sysFuelBuildNum,FX$12) -> 0 | FY52: =SUMIFS(sysFuelTotalCost,sysFuelType,$B52,sysFuelBuildNum,FY$12) -> 0 | FZ52: =SUMIFS(sysFuelTotalCost,sysFuelType,$B52,sysFuelBuildNum,FZ$12) -> 0 | GA52: =SUMIFS(sysFuelTotalCost,sysFuelType,$B52,sysFuelBuildNum,GA$12) -> 0 | GB52: =SUMIFS(sysFuelTotalCost,sysFuelType,$B52,sysFuelBuildNum,GB$12) -> 0 | GC52: =SUMIFS(sysFuelTotalCost,sysFuelType,$B52,sysFuelBuildNum,GC$12) -> 0 | GD52: =SUMIFS(sysFuelTotalCost,sysFuelType,$B52,sysFuelBuildNum,GD$12) -> 0 | GE52: =SUMIFS(sysFuelTotalCost,sysFuelType,$B52,sysFuelBuildNum,GE$12) -> 0 | GF52: =SUMIFS(sysFuelTotalCost,sysFuelType,$B52,sysFuelBuildNum,GF$12) -> 0 | GG52: =SUMIFS(sysFuelTotalCost,sysFuelType,$B52,sysFuelBuildNum,GG$12) -> 0 | GH52: =SUMIFS(sysFuelTotalCost,sysFuelType,$B52,sysFuelBuildNum,GH$12) -> 0 | GI52: =SUMIFS(sysFuelTotalCost,sysFuelType,$B52,sysFuelBuildNum,GI$12) -> 0 | GJ52: =SUMIFS(sysFuelTotalCost,sysFuelType,$B52,sysFuelBuildNum,GJ$12) -> 0 | GK52: =SUMIFS(sysFuelTotalCost,sysFuelType,$B52,sysFuelBuildNum,GK$12) -> 0 | GL52: =SUMIFS(sysFuelTotalCost,sysFuelType,$B52,sysFuelBuildNum,GL$12) -> 0 | GM52: =SUMIFS(sysFuelTotalCost,sysFuelType,$B52,sysFuelBuildNum,GM$12) -> 0 | GN52: =SUMIFS(sysFuelTotalCost,sysFuelType,$B52,sysFuelBuildNum,GN$12) -> 0 | GO52: =SUMIFS(sysFuelTotalCost,sysFuelType,$B52,sysFuelBuildNum,GO$12) -> 0 | GP52: =SUMIFS(sysFuelTotalCost,sysFuelType,$B52,sysFuelBuildNum,GP$12) -> 0 | GQ52: =SUMIFS(sysFuelTotalCost,sysFuelType,$B52,sysFuelBuildNum,GQ$12) -> 0 | GR52: =SUMIFS(sysFuelTotalCost,sysFuelType,$B52,sysFuelBuildNum,GR$12) -> 0 | GS52: =SUMIFS(sysFuelTotalCost,sysFuelType,$B52,sysFuelBuildNum,GS$12) -> 0 | GT52: =SUMIFS(sysFuelTotalCost,sysFuelType,$B52,sysFuelBuildNum,GT$12) -> 0 | GU52: =SUMIFS(sysFuelTotalCost,sysFuelType,$B52,sysFuelBuildNum,GU$12) -> 0 | GV52: =SUMIFS(sysFuelTotalCost,sysFuelType,$B52,sysFuelBuildNum,GV$12) -> 0 | GW52: =SUMIFS(sysFuelTotalCost,sysFuelType,$B52,sysFuelBuildNum,GW$12) -> 0 | GX52: =SUMIFS(sysFuelTotalCost,sysFuelType,$B52,sysFuelBuildNum,GX$12) -> 0 | GY52: =SUMIFS(sysFuelTotalCost,sysFuelType,$B52,sysFuelBuildNum,GY$12) -> 0 | GZ52: =SUMIFS(sysFuelTotalCost,sysFuelType,$B52,sysFuelBuildNum,GZ$12) -> 0 | HA52: =SUMIFS(sysFuelTotalCost,sysFuelType,$B52,sysFuelBuildNum,HA$12) -> 0 | HB52: =SUMIFS(sysFuelTotalCost,sysFuelType,$B52,sysFuelBuildNum,HB$12) -> 0 | HC52: =SUMIFS(sysFuelTotalCost,sysFuelType,$B52,sysFuelBuildNum,HC$12) -> 0
